Workbook

Sheet INTRO
B2: Formulaire de demande commune de médicaments pour CP v.4.1
B4: Dans le cadre des efforts mondiaux entrepris pour accélérer l'expansion de la chimioprévention (CP) pour l'élimination de la filariose lymphatique et la lutte contre la schistosomiase et les géohelminthiases, l'Organisation mondiale de la Santé (OMS) facilite l'approvisionnement en albendazole, comprimés de 400 mg (GSK), pour les programmes nationaux d'élimination de la filariose lymphatique et programmes nationaux de lutte contre les géohelminthiases; en diethylcarbamazine, comprimés de 100 mg (Eisai), pour les programmes nationaux d'élimination de la filariose lymphatique; en mebendazole, comprimés de 500 mg (J&J) pour les programmes nationaux de lutte contre les géohelminthiases et en praziquantel, comprimés de 600 mg (Merck KGaA), destinés aux enfants d'âge scolaire, pour les programmes nationaux de lutte contre la schistosomiase. L'OMS contribue également à l'approvisionnement en ivermectine, comprimés de 3 mg (Merck), pour les programmes de donation pour l'onchocercose et la filariose lymphatique. Cet outil Excel est concu pour aider les pays à quantifier le nombre de comprimés nécessaires, selon le traitement de chimioprévention requis, pour atteindre les objectifs de couverture de traitement de populations et districts pour l'année de la demande de médicaments. Le résultat de cet outil est une demande commune de médicaments pour la chimioprévention des maladies tropicales négligées, qui peut être imprimée, signée et soumise à l'OMS pour la demande de ces médicaments.
B6: Structure de l'application (feuilles de travail) :
B8: INTRO | C8: Cette feuille contient des instructions pour compléter le formulaire de demande de médicaments pour la chimioprévention et des informations sur le statut de la chimioprévention pour les maladies d'endémie du pays.
B9: COUNTRY_INFO | C9: Cette feuille contient des informations sur la structure administrative du pays, la population par groupe d'âge, le statut d'endémicité pour chaque maladie, la population devant être traitée par chimioprévention et les interventions prévues.
B10: DEC, ALB_MBD, PZQ et IVM | C10: Ces feuilles contiennent des informations sur l'endémicité des districts ciblés pour le traitement aux médicaments spécifiques à la chimioprévention, les plans de traitement, et le nombre de comprimés requis et demandés.
B11: SUMMARY | C11: Cette feuille inclut un résumé du nombre de comprimés demandés, des informations concernant le stock et les dates de soumission de la demande de médicaments. Avant de générer le rapport (run macros), veuillez sélectionner le médicament pour lequel le rapport est nécessaire. Veuillez suivre la même règle pour voir le nombre de personnes à traiter pour les maladies spécifiques. Cette feuille doit être imprimée et soumise en tant que "Formulaire de demande commune de médicaments pour chimioprévention" (voir les instructions pour la soumission du formulaire sous la feuille SUMMARY).
B13: Instructions pour la saisie des données
B15: La plupart des cellules des feuilles de travail mentionnées ci-dessus contiennent des formules calculées automatiquement en fonction du protocole de traitement recommandé par l'OMS pour chaque maladie. Voir : https://www.who.int/publications/i/item/9789241599993.
B17: Veuillez entrer vos données dans les cellules en fonction de leur code de couleur :
C19: Blanc - la cellule n'est pas protégée. Veuillez entrer la valeur de l'indicateur demandé.
C21: Jaune - la cellule est protégée et inclut le nom de l'indicateur. Aucune entrée de données requise.
C23: Orange - la cellule n'est pas protégée et contient un menu déroulant. Veuillez sélectionner la valeur dans le menu déroulant.
C26: Vert - la cellule n'est pas protégée et contient des formules. Veuillez changer la valeur indiquée uniquement si vos données sont différentes de celles calculées automatiquement.
C29: Bleu - la cellule est protégée et contient des formules. Aucune entrée de données requise.
B31: Données pays
B33: PAYS | E33: SENEGAL | G33: SN | H33: SEN
E34: 5
B35: Année de la demande de médicaments | E35: 2024
B37: Le pays est-il endémique à la filariose lymphatique (FL) ? | E37: Endémique
B39: Le pays est-il endémique à l'onchocercose (ONCHO) ? | E39: Endémique
B41: Le pays est-il endémique aux géohelminthiases (STH) ? | E41: Endémique
B43: Le pays est-il endémique à la schistosomiase (SCH) ? | E43: Endémique
B45: Combien d'unités administratives compte le pays ? | E45: 79
B47: Si les données démographiques par groupe d'âge ne sont pas disponibles au second niveau administratif, veuillez entrer la proportion (%) de population, par groupe d'âge, du pays. Si les données sont disponibles, veuillez laisser les cellules vierges.
B48: 1-4 ans | C48: Enfants d'âge pré-scolaire (EAPréS) | E48: 0.1207
B49: 5-14 ans | C49: Enfants d'âge scolaire (EAS) | E49: 0.2653
B50: 15 ans et plus | C50: Adultes | E50: 0.5824
B51: 15-49 ans | C51: Femmes en âge de procréer (FAP) | E51: 0.2459

Sheet COUNTRY_INFO
A1: INFORMATIONS PAYS
A2: Struture administrative, population par groupe d'âge, statut d'endémicité et interventions planifiées
A4: TOTAL | D4: =SUBTOTAL(9,D$10:D$1010) -> 18715211.09 | E4: =SUBTOTAL(9,E$10:E$1010) -> 2258926 | F4: 4965144 | G4: 10899737 | L4: =SUBTOTAL(9,L$10:L$1010) -> 1654525.959 | M4: 0 | N4: 450862 | O4: 990999 | P4: 918533 | Q4: 2360394 | R4: 504787 | S4: 1494247 | T4: 3280485 | U4: 5281184
A6: Structure administrative du pays | D6: Population | H6: Endémicité | L6: Population nécessitant la CP | V6: Nombre de tournées de traitement prévues pour l'année | Z6: Criteria to apply for IVM+DEC+ALB therapy | AA6: Enquêtes épidémiologiques planifiées pour l’année
A7: Pays | B7: Région/Département | C7: District | D7: Total | E7: EAPréS | F7: EAS | G7: Adultes | H7: FL | I7: Oncho | J7: STH | K7: SCH | L7: FL | M7: ONCHO | N7: STH | R7: SCH | V7: FL | W7: Oncho | X7: STH | Y7: SCH | Z7: FL | AA7: FL | AB7: Oncho | AC7: STH | AD7: SCH
N8: EAPréS | O8: EAS | P8: FAP | Q8: TOTAL | R8: EAPréS | S8: EAS | T8: Adultes | U8: TOTAL | AH8: IU_ID | AI8: IU_Name
A10: =IF(INTRO!$E$33<>0,INTRO!$E$33, " ") -> SENEGAL | B10: Dakar | C10: Dakar sud | D10: 231905.3747 | E10: =IF(INTRO!$E$48="","",ROUND($D10*INTRO!$E$48,0)) -> 27991 | F10: =IF(INTRO!$E$49="","",ROUND($D10*INTRO!$E$49,0)) -> 61524 | G10: =IF(INTRO!$E$50="","",ROUND($D10*INTRO!$E$50,0)) -> 135062 | H10: 0 | I10: 0 | J10: 0 | K10: 0 | L10: =IF(INTRO!$E$37="Endémique",IF($H10>0,IF($H10=4,"Inconnu",IF($H10=99,"Interrompu",$D10)),0),"Non requis") -> 0 | M10: =IF(INTRO!$E$39="Endémique", IF($I10>0, IF($I10=4,"Inconnu",IF($I10=99,"Interrompu",$D10)), 0),"Non requis") -> 0 | N10: =IF(INTRO!$E$41="Endémique", IF($J10>1, IF($J10=4, "Inconnu", IF($J10=99, "Surveillance", E10)), 0),"Non requis") -> 0 | O10: =IF(INTRO!$E$41="Endémique", IF($J10>1, IF($J10=4, "Inconnu", IF($J10=99, "Surveillance", F10)), 0),"Non requis") -> 0 | P10: =IF(INTRO!$E$41="Endémique", IF($J10>1, IF($J10=4, "Inconnu", IF($J10=99, "Surveillance", ROUND(D10*INTRO!$E$51,0))), 0),"Non requis") -> 0 | Q10: =IF(INTRO!$E$41="Endémique", IF($J10>1, IF($J10=4, "Inconnu", IF($J10=99, "Surveillance", SUM($N10:$P10))), 0),"Non requis") -> 0 | R10: 0 | S10: 0 | T10: 0 | U10: 0 | V10: 0 | W10: 0 | X10: 0 | Y10: 0 | AH10: 40159 | AI10: Dakar sud
A11: =IF(INTRO!$E$33<>0,INTRO!$E$33, " ") -> SENEGAL | B11: Dakar | C11: Dakar centre | D11: 442447.2135 | E11: =IF(INTRO!$E$48="","",ROUND($D11*INTRO!$E$48,0)) -> 53403 | F11: =IF(INTRO!$E$49="","",ROUND($D11*INTRO!$E$49,0)) -> 117381 | G11: =IF(INTRO!$E$50="","",ROUND($D11*INTRO!$E$50,0)) -> 257681 | H11: 0 | I11: 0 | J11: 0 | K11: 0 | L11: =IF(INTRO!$E$37="Endémique",IF($H11>0,IF($H11=4,"Inconnu",IF($H11=99,"Interrompu",$D11)),0),"Non requis") -> 0 | M11: =IF(INTRO!$E$39="Endémique", IF($I11>0, IF($I11=4,"Inconnu",IF($I11=99,"Interrompu",$D11)), 0),"Non requis") -> 0 | N11: =IF(INTRO!$E$41="Endémique", IF($J11>1, IF($J11=4, "Inconnu", IF($J11=99, "Surveillance", E11)), 0),"Non requis") -> 0 | O11: =IF(INTRO!$E$41="Endémique", IF($J11>1, IF($J11=4, "Inconnu", IF($J11=99, "Surveillance", F11)), 0),"Non requis") -> 0 | P11: =IF(INTRO!$E$41="Endémique", IF($J11>1, IF($J11=4, "Inconnu", IF($J11=99, "Surveillance", ROUND(D11*INTRO!$E$51,0))), 0),"Non requis") -> 0 | Q11: =IF(INTRO!$E$41="Endémique", IF($J11>1, IF($J11=4, "Inconnu", IF($J11=99, "Surveillance", SUM($N11:$P11))), 0),"Non requis") -> 0 | R11: 0 | S11: 0 | T11: 0 | U11: 0 | V11: 0 | W11: 0 | X11: 0 | Y11: 0 | AH11: 40149 | AI11: Dakar centre
A12: =IF(INTRO!$E$33<>0,INTRO!$E$33, " ") -> SENEGAL | B12: Dakar | C12: Dakar ouest | D12: 287177.3932 | E12: =IF(INTRO!$E$48="","",ROUND($D12*INTRO!$E$48,0)) -> 34662 | F12: =IF(INTRO!$E$49="","",ROUND($D12*INTRO!$E$49,0)) -> 76188 | G12: =IF(INTRO!$E$50="","",ROUND($D12*INTRO!$E$50,0)) -> 167252 | H12: 0 | I12: 0 | J12: 0 | K12: 0 | L12: =IF(INTRO!$E$37="Endémique",IF($H12>0,IF($H12=4,"Inconnu",IF($H12=99,"Interrompu",$D12)),0),"Non requis") -> 0 | M12: =IF(INTRO!$E$39="Endémique", IF($I12>0, IF($I12=4,"Inconnu",IF($I12=99,"Interrompu",$D12)), 0),"Non requis") -> 0 | N12: =IF(INTRO!$E$41="Endémique", IF($J12>1, IF($J12=4, "Inconnu", IF($J12=99, "Surveillance", E12)), 0),"Non requis") -> 0 | O12: =IF(INTRO!$E$41="Endémique", IF($J12>1, IF($J12=4, "Inconnu", IF($J12=99, "Surveillance", F12)), 0),"Non requis") -> 0 | P12: =IF(INTRO!$E$41="Endémique", IF($J12>1, IF($J12=4, "Inconnu", IF($J12=99, "Surveillance", ROUND(D12*INTRO!$E$51,0))), 0),"Non requis") -> 0 | Q12: =IF(INTRO!$E$41="Endémique", IF($J12>1, IF($J12=4, "Inconnu", IF($J12=99, "Surveillance", SUM($N12:$P12))), 0),"Non requis") -> 0 | R12: 0 | S12: 0 | T12: 0 | U12: 0 | V12: 0 | W12: 0 | X12: 0 | Y12: 0 | AH12: 40156 | AI12: Dakar ouest
A13: =IF(INTRO!$E$33<>0,INTRO!$E$33, " ") -> SENEGAL | B13: Dakar | C13: Dakar nord | D13: 595958.8005 | E13: =IF(INTRO!$E$48="","",ROUND($D13*INTRO!$E$48,0)) -> 71932 | F13: =IF(INTRO!$E$49="","",ROUND($D13*INTRO!$E$49,0)) -> 158108 | G13: =IF(INTRO!$E$50="","",ROUND($D13*INTRO!$E$50,0)) -> 347086 | H13: 0 | I13: 0 | J13: 0 | K13: 0 | L13: =IF(INTRO!$E$37="Endémique",IF($H13>0,IF($H13=4,"Inconnu",IF($H13=99,"Interrompu",$D13)),0),"Non requis") -> 0 | M13: =IF(INTRO!$E$39="Endémique", IF($I13>0, IF($I13=4,"Inconnu",IF($I13=99,"Interrompu",$D13)), 0),"Non requis") -> 0 | N13: =IF(INTRO!$E$41="Endémique", IF($J13>1, IF($J13=4, "Inconnu", IF($J13=99, "Surveillance", E13)), 0),"Non requis") -> 0 | O13: =IF(INTRO!$E$41="Endémique", IF($J13>1, IF($J13=4, "Inconnu", IF($J13=99, "Surveillance", F13)), 0),"Non requis") -> 0 | P13: =IF(INTRO!$E$41="Endémique", IF($J13>1, IF($J13=4, "Inconnu", IF($J13=99, "Surveillance", ROUND(D13*INTRO!$E$51,0))), 0),"Non requis") -> 0 | Q13: =IF(INTRO!$E$41="Endémique", IF($J13>1, IF($J13=4, "Inconnu", IF($J13=99, "Surveillance", SUM($N13:$P13))), 0),"Non requis") -> 0 | R13: 0 | S13: 0 | T13: 0 | U13: 0 | V13: 0 | W13: 0 | X13: 0 | Y13: 0 | AH13: 40155 | AI13: Dakar nord
A14: =IF(INTRO!$E$33<>0,INTRO!$E$33, " ") -> SENEGAL | B14: Dakar | C14: Guédiawaye | D14: 448006.69 | E14: =IF(INTRO!$E$48="","",ROUND($D14*INTRO!$E$48,0)) -> 54074 | F14: =IF(INTRO!$E$49="","",ROUND($D14*INTRO!$E$49,0)) -> 118856 | G14: =IF(INTRO!$E$50="","",ROUND($D14*INTRO!$E$50,0)) -> 260919 | H14: 0 | I14: 0 | J14: 3 | K14: 1 | L14: =IF(INTRO!$E$37="Endémique",IF($H14>0,IF($H14=4,"Inconnu",IF($H14=99,"Interrompu",$D14)),0),"Non requis") -> 0 | M14: =IF(INTRO!$E$39="Endémique", IF($I14>0, IF($I14=4,"Inconnu",IF($I14=99,"Interrompu",$D14)), 0),"Non requis") -> 0 | N14: =IF(INTRO!$E$41="Endémique", IF($J14>1, IF($J14=4, "Inconnu", IF($J14=99, "Surveillance", E14)), 0),"Non requis") -> 54074 | O14: =IF(INTRO!$E$41="Endémique", IF($J14>1, IF($J14=4, "Inconnu", IF($J14=99, "Surveillance", F14)), 0),"Non requis") -> 118856 | P14: =IF(INTRO!$E$41="Endémique", IF($J14>1, IF($J14=4, "Inconnu", IF($J14=99, "Surveillance", ROUND(D14*INTRO!$E$51,0))), 0),"Non requis") -> 110165 | Q14: =IF(INTRO!$E$41="Endémique", IF($J14>1, IF($J14=4, "Inconnu", IF($J14=99, "Surveillance", SUM($N14:$P14))), 0),"Non requis") -> 283095 | R14: 0 | S14: 0 | T14: 0 | U14: 0 | V14: 0 | W14: 0 | X14: 1 | Y14: 0 | AH14: 40152 | AI14: Guédiawaye
A15: =IF(INTRO!$E$33<>0,INTRO!$E$33, " ") -> SENEGAL | B15: Dakar | C15: Pikine | D15: 446667.1842 | E15: =IF(INTRO!$E$48="","",ROUND($D15*INTRO!$E$48,0)) -> 53913 | F15: =IF(INTRO!$E$49="","",ROUND($D15*INTRO!$E$49,0)) -> 118501 | G15: =IF(INTRO!$E$50="","",ROUND($D15*INTRO!$E$50,0)) -> 260139 | H15: 0 | I15: 0 | J15: 3 | K15: 0 | L15: =IF(INTRO!$E$37="Endémique",IF($H15>0,IF($H15=4,"Inconnu",IF($H15=99,"Interrompu",$D15)),0),"Non requis") -> 0 | M15: =IF(INTRO!$E$39="Endémique", IF($I15>0, IF($I15=4,"Inconnu",IF($I15=99,"Interrompu",$D15)), 0),"Non requis") -> 0 | N15: =IF(INTRO!$E$41="Endémique", IF($J15>1, IF($J15=4, "Inconnu", IF($J15=99, "Surveillance", E15)), 0),"Non requis") -> 53913 | O15: =IF(INTRO!$E$41="Endémique", IF($J15>1, IF($J15=4, "Inconnu", IF($J15=99, "Surveillance", F15)), 0),"Non requis") -> 118501 | P15: =IF(INTRO!$E$41="Endémique", IF($J15>1, IF($J15=4, "Inconnu", IF($J15=99, "Surveillance", ROUND(D15*INTRO!$E$51,0))), 0),"Non requis") -> 109835 | Q15: =IF(INTRO!$E$41="Endémique", IF($J15>1, IF($J15=4, "Inconnu", IF($J15=99, "Surveillance", SUM($N15:$P15))), 0),"Non requis") -> 282249 | R15: 0 | S15: 0 | T15: 0 | U15: 0 | V15: 0 | W15: 0 | X15: 1 | Y15: 0 | AH15: 40157 | AI15: Pikine
A16: =IF(INTRO!$E$33<>0,INTRO!$E$33, " ") -> SENEGAL | B16: Dakar | C16: Keur Massar | D16: 317711.7978 | E16: =IF(INTRO!$E$48="","",ROUND($D16*INTRO!$E$48,0)) -> 38348 | F16: =IF(INTRO!$E$49="","",ROUND($D16*INTRO!$E$49,0)) -> 84289 | G16: =IF(INTRO!$E$50="","",ROUND($D16*INTRO!$E$50,0)) -> 185035 | H16: 0 | I16: 0 | J16: 1 | K16: 0 | L16: =IF(INTRO!$E$37="Endémique",IF($H16>0,IF($H16=4,"Inconnu",IF($H16=99,"Interrompu",$D16)),0),"Non requis") -> 0 | M16: =IF(INTRO!$E$39="Endémique", IF($I16>0, IF($I16=4,"Inconnu",IF($I16=99,"Interrompu",$D16)), 0),"Non requis") -> 0 | N16: =IF(INTRO!$E$41="Endémique", IF($J16>1, IF($J16=4, "Inconnu", IF($J16=99, "Surveillance", E16)), 0),"Non requis") -> 0 | O16: =IF(INTRO!$E$41="Endémique", IF($J16>1, IF($J16=4, "Inconnu", IF($J16=99, "Surveillance", F16)), 0),"Non requis") -> 0 | P16: =IF(INTRO!$E$41="Endémique", IF($J16>1, IF($J16=4, "Inconnu", IF($J16=99, "Surveillance", ROUND(D16*INTRO!$E$51,0))), 0),"Non requis") -> 0 | Q16: =IF(INTRO!$E$41="Endémique", IF($J16>1, IF($J16=4, "Inconnu", IF($J16=99, "Surveillance", SUM($N16:$P16))), 0),"Non requis") -> 0 | R16: 0 | S16: 0 | T16: 0 | U16: 0 | V16: 0 | W16: 0 | X16: 0 | Y16: 0 | AH16: 40227 | AI16: Keur Massar
A17: =IF(INTRO!$E$33<>0,INTRO!$E$33, " ") -> SENEGAL | B17: Dakar | C17: Yeumbeul | D17: 360506.3722 | E17: =IF(INTRO!$E$48="","",ROUND($D17*INTRO!$E$48,0)) -> 43513 | F17: =IF(INTRO!$E$49="","",ROUND($D17*INTRO!$E$49,0)) -> 95642 | G17: =IF(INTRO!$E$50="","",ROUND($D17*INTRO!$E$50,0)) -> 209959 | H17: 0 | I17: 0 | J17: 1 | K17: 0 | L17: =IF(INTRO!$E$37="Endémique",IF($H17>0,IF($H17=4,"Inconnu",IF($H17=99,"Interrompu",$D17)),0),"Non requis") -> 0 | M17: =IF(INTRO!$E$39="Endémique", IF($I17>0, IF($I17=4,"Inconnu",IF($I17=99,"Interrompu",$D17)), 0),"Non requis") -> 0 | N17: =IF(INTRO!$E$41="Endémique", IF($J17>1, IF($J17=4, "Inconnu", IF($J17=99, "Surveillance", E17)), 0),"Non requis") -> 0 | O17: =IF(INTRO!$E$41="Endémique", IF($J17>1, IF($J17=4, "Inconnu", IF($J17=99, "Surveillance", F17)), 0),"Non requis") -> 0 | P17: =IF(INTRO!$E$41="Endémique", IF($J17>1, IF($J17=4, "Inconnu", IF($J17=99, "Surveillance", ROUND(D17*INTRO!$E$51,0))), 0),"Non requis") -> 0 | Q17: =IF(INTRO!$E$41="Endémique", IF($J17>1, IF($J17=4, "Inconnu", IF($J17=99, "Surveillance", SUM($N17:$P17))), 0),"Non requis") -> 0 | R17: 0 | S17: 0 | T17: 0 | U17: 0 | V17: 0 | W17: 0 | X17: 0 | Y17: 0 | AH17: 40228 | AI17: Yeumbeul
A18: =IF(INTRO!$E$33<>0,INTRO!$E$33, " ") -> SENEGAL | B18: Dakar | C18: Mbao | D18: 466137.4816 | E18: =IF(INTRO!$E$48="","",ROUND($D18*INTRO!$E$48,0)) -> 56263 | F18: =IF(INTRO!$E$49="","",ROUND($D18*INTRO!$E$49,0)) -> 123666 | G18: =IF(INTRO!$E$50="","",ROUND($D18*INTRO!$E$50,0)) -> 271478 | H18: 0 | I18: 0 | J18: 3 | K18: 0 | L18: =IF(INTRO!$E$37="Endémique",IF($H18>0,IF($H18=4,"Inconnu",IF($H18=99,"Interrompu",$D18)),0),"Non requis") -> 0 | M18: =IF(INTRO!$E$39="Endémique", IF($I18>0, IF($I18=4,"Inconnu",IF($I18=99,"Interrompu",$D18)), 0),"Non requis") -> 0 | N18: =IF(INTRO!$E$41="Endémique", IF($J18>1, IF($J18=4, "Inconnu", IF($J18=99, "Surveillance", E18)), 0),"Non requis") -> 56263 | O18: =IF(INTRO!$E$41="Endémique", IF($J18>1, IF($J18=4, "Inconnu", IF($J18=99, "Surveillance", F18)), 0),"Non requis") -> 123666 | P18: =IF(INTRO!$E$41="Endémique", IF($J18>1, IF($J18=4, "Inconnu", IF($J18=99, "Surveillance", ROUND(D18*INTRO!$E$51,0))), 0),"Non requis") -> 114623 | Q18: =IF(INTRO!$E$41="Endémique", IF($J18>1, IF($J18=4, "Inconnu", IF($J18=99, "Surveillance", SUM($N18:$P18))), 0),"Non requis") -> 294552 | R18: 0 | S18: 0 | T18: 0 | U18: 0 | V18: 0 | W18: 0 | X18: 1 | Y18: 0 | AH18: 40154 | AI18: Mbao
A19: =IF(INTRO!$E$33<>0,INTRO!$E$33, " ") -> SENEGAL | B19: Dakar | C19: Diamniadio | D19: 176748.3216 | E19: =IF(INTRO!$E$48="","",ROUND($D19*INTRO!$E$48,0)) -> 21334 | F19: =IF(INTRO!$E$49="","",ROUND($D19*INTRO!$E$49,0)) -> 46891 | G19: =IF(INTRO!$E$50="","",ROUND($D19*INTRO!$E$50,0)) -> 102938 | H19: 0 | I19: 0 | J19: 1 | K19: 0 | L19: =IF(INTRO!$E$37="Endémique",IF($H19>0,IF($H19=4,"Inconnu",IF($H19=99,"Interrompu",$D19)),0),"Non requis") -> 0 | M19: =IF(INTRO!$E$39="Endémique", IF($I19>0, IF($I19=4,"Inconnu",IF($I19=99,"Interrompu",$D19)), 0),"Non requis") -> 0 | N19: =IF(INTRO!$E$41="Endémique", IF($J19>1, IF($J19=4, "Inconnu", IF($J19=99, "Surveillance", E19)), 0),"Non requis") -> 0 | O19: =IF(INTRO!$E$41="Endémique", IF($J19>1, IF($J19=4, "Inconnu", IF($J19=99, "Surveillance", F19)), 0),"Non requis") -> 0 | P19: =IF(INTRO!$E$41="Endémique", IF($J19>1, IF($J19=4, "Inconnu", IF($J19=99, "Surveillance", ROUND(D19*INTRO!$E$51,0))), 0),"Non requis") -> 0 | Q19: =IF(INTRO!$E$41="Endémique", IF($J19>1, IF($J19=4, "Inconnu", IF($J19=99, "Surveillance", SUM($N19:$P19))), 0),"Non requis") -> 0 | R19: 0 | S19: 0 | T19: 0 | U19: 0 | V19: 0 | W19: 0 | X19: 0 | Y19: 0 | AH19: 40150 | AI19: Diamniadio
A20: =IF(INTRO!$E$33<>0,INTRO!$E$33, " ") -> SENEGAL | B20: Dakar | C20: Sangalkam | D20: 189677.1897 | E20: =IF(INTRO!$E$48="","",ROUND($D20*INTRO!$E$48,0)) -> 22894 | F20: =IF(INTRO!$E$49="","",ROUND($D20*INTRO!$E$49,0)) -> 50321 | G20: =IF(INTRO!$E$50="","",ROUND($D20*INTRO!$E$50,0)) -> 110468 | H20: 0 | I20: 0 | J20: 2 | K20: 0 | L20: =IF(INTRO!$E$37="Endémique",IF($H20>0,IF($H20=4,"Inconnu",IF($H20=99,"Interrompu",$D20)),0),"Non requis") -> 0 | M20: =IF(INTRO!$E$39="Endémique", IF($I20>0, IF($I20=4,"Inconnu",IF($I20=99,"Interrompu",$D20)), 0),"Non requis") -> 0 | N20: =IF(INTRO!$E$41="Endémique", IF($J20>1, IF($J20=4, "Inconnu", IF($J20=99, "Surveillance", E20)), 0),"Non requis") -> 22894 | O20: =IF(INTRO!$E$41="Endémique", IF($J20>1, IF($J20=4, "Inconnu", IF($J20=99, "Surveillance", F20)), 0),"Non requis") -> 50321 | P20: =IF(INTRO!$E$41="Endémique", IF($J20>1, IF($J20=4, "Inconnu", IF($J20=99, "Surveillance", ROUND(D20*INTRO!$E$51,0))), 0),"Non requis") -> 46642 | Q20: =IF(INTRO!$E$41="Endémique", IF($J20>1, IF($J20=4, "Inconnu", IF($J20=99, "Surveillance", SUM($N20:$P20))), 0),"Non requis") -> 119857 | R20: 0 | S20: 0 | T20: 0 | U20: 0 | V20: 0 | W20: 0 | X20: 1 | Y20: 0 | AH20: 40229 | AI20: Sangalkam
A21: =IF(INTRO!$E$33<>0,INTRO!$E$33, " ") -> SENEGAL | B21: Dakar | C21: Rufisque | D21: 300429.0084 | E21: =IF(INTRO!$E$48="","",ROUND($D21*INTRO!$E$48,0)) -> 36262 | F21: =IF(INTRO!$E$49="","",ROUND($D21*INTRO!$E$49,0)) -> 79704 | G21: =IF(INTRO!$E$50="","",ROUND($D21*INTRO!$E$50,0)) -> 174970 | H21: 0 | I21: 0 | J21: 2 | K21: 0 | L21: =IF(INTRO!$E$37="Endémique",IF($H21>0,IF($H21=4,"Inconnu",IF($H21=99,"Interrompu",$D21)),0),"Non requis") -> 0 | M21: =IF(INTRO!$E$39="Endémique", IF($I21>0, IF($I21=4,"Inconnu",IF($I21=99,"Interrompu",$D21)), 0),"Non requis") -> 0 | N21: =IF(INTRO!$E$41="Endémique", IF($J21>1, IF($J21=4, "Inconnu", IF($J21=99, "Surveillance", E21)), 0),"Non requis") -> 36262 | O21: =IF(INTRO!$E$41="Endémique", IF($J21>1, IF($J21=4, "Inconnu", IF($J21=99, "Surveillance", F21)), 0),"Non requis") -> 79704 | P21: =IF(INTRO!$E$41="Endémique", IF($J21>1, IF($J21=4, "Inconnu", IF($J21=99, "Surveillance", ROUND(D21*INTRO!$E$51,0))), 0),"Non requis") -> 73875 | Q21: =IF(INTRO!$E$41="Endémique", IF($J21>1, IF($J21=4, "Inconnu", IF($J21=99, "Surveillance", SUM($N21:$P21))), 0),"Non requis") -> 189841 | R21: 0 | S21: 0 | T21: 0 | U21: 0 | V21: 0 | W21: 0 | X21: 1 | Y21: 0 | AH21: 40158 | AI21: Rufisque
A22: =IF(INTRO!$E$33<>0,INTRO!$E$33, " ") -> SENEGAL | B22: Diourbel | C22: Bambéye | D22: 417826.6744 | E22: =IF(INTRO!$E$48="","",ROUND($D22*INTRO!$E$48,0)) -> 50432 | F22: =IF(INTRO!$E$49="","",ROUND($D22*INTRO!$E$49,0)) -> 110849 | G22: =IF(INTRO!$E$50="","",ROUND($D22*INTRO!$E$50,0)) -> 243342 | H22: 99 | I22: 0 | J22: 0 | K22: 2 | L22: =IF(INTRO!$E$37="Endémique",IF($H22>0,IF($H22=4,"Inconnu",IF($H22=99,"Interrompu",$D22)),0),"Non requis") -> Interrompu | M22: =IF(INTRO!$E$39="Endémique", IF($I22>0, IF($I22=4,"Inconnu",IF($I22=99,"Interrompu",$D22)), 0),"Non requis") -> 0 | N22: =IF(INTRO!$E$41="Endémique", IF($J22>1, IF($J22=4, "Inconnu", IF($J22=99, "Surveillance", E22)), 0),"Non requis") -> 0 | O22: =IF(INTRO!$E$41="Endémique", IF($J22>1, IF($J22=4, "Inconnu", IF($J22=99, "Surveillance", F22)), 0),"Non requis") -> 0 | P22: =IF(INTRO!$E$41="Endémique", IF($J22>1, IF($J22=4, "Inconnu", IF($J22=99, "Surveillance", ROUND(D22*INTRO!$E$51,0))), 0),"Non requis") -> 0 | Q22: =IF(INTRO!$E$41="Endémique", IF($J22>1, IF($J22=4, "Inconnu", IF($J22=99, "Surveillance", SUM($N22:$P22))), 0),"Non requis") -> 0 | R22: 10349 | S22: 30642 | T22: 67274 | U22: 108265 | V22: 0 | W22: 0 | X22: 0 | Y22: 1 | AH22: 40160 | AI22: Bambéye
A23: =IF(INTRO!$E$33<>0,INTRO!$E$33, " ") -> SENEGAL | B23: Diourbel | C23: Diourbel | D23: 374209.4114 | E23: =IF(INTRO!$E$48="","",ROUND($D23*INTRO!$E$48,0)) -> 45167 | F23: =IF(INTRO!$E$49="","",ROUND($D23*INTRO!$E$49,0)) -> 99278 | G23: =IF(INTRO!$E$50="","",ROUND($D23*INTRO!$E$50,0)) -> 217940 | H23: 0 | I23: 0 | J23: 0 | K23: 2 | L23: =IF(INTRO!$E$37="Endémique",IF($H23>0,IF($H23=4,"Inconnu",IF($H23=99,"Interrompu",$D23)),0),"Non requis") -> 0 | M23: =IF(INTRO!$E$39="Endémique", IF($I23>0, IF($I23=4,"Inconnu",IF($I23=99,"Interrompu",$D23)), 0),"Non requis") -> 0 | N23: =IF(INTRO!$E$41="Endémique", IF($J23>1, IF($J23=4, "Inconnu", IF($J23=99, "Surveillance", E23)), 0),"Non requis") -> 0 | O23: =IF(INTRO!$E$41="Endémique", IF($J23>1, IF($J23=4, "Inconnu", IF($J23=99, "Surveillance", F23)), 0),"Non requis") -> 0 | P23: =IF(INTRO!$E$41="Endémique", IF($J23>1, IF($J23=4, "Inconnu", IF($J23=99, "Surveillance", ROUND(D23*INTRO!$E$51,0))), 0),"Non requis") -> 0 | Q23: =IF(INTRO!$E$41="Endémique", IF($J23>1, IF($J23=4, "Inconnu", IF($J23=99, "Surveillance", SUM($N23:$P23))), 0),"Non requis") -> 0 | R23: 13844 | S23: 40994 | T23: 90000 | U23: 144838 | V23: 0 | W23: 0 | X23: 0 | Y23: 1 | AH23: 40161 | AI23: Diourbel
A24: =IF(INTRO!$E$33<>0,INTRO!$E$33, " ") -> SENEGAL | B24: Diourbel | C24: Mbacké | D24: 246182.1864 | E24: =IF(INTRO!$E$48="","",ROUND($D24*INTRO!$E$48,0)) -> 29714 | F24: =IF(INTRO!$E$49="","",ROUND($D24*INTRO!$E$49,0)) -> 65312 | G24: =IF(INTRO!$E$50="","",ROUND($D24*INTRO!$E$50,0)) -> 143377 | H24: 99 | I24: 0 | J24: 0 | K24: 1 | L24: =IF(INTRO!$E$37="Endémique",IF($H24>0,IF($H24=4,"Inconnu",IF($H24=99,"Interrompu",$D24)),0),"Non requis") -> Interrompu | M24: =IF(INTRO!$E$39="Endémique", IF($I24>0, IF($I24=4,"Inconnu",IF($I24=99,"Interrompu",$D24)), 0),"Non requis") -> 0 | N24: =IF(INTRO!$E$41="Endémique", IF($J24>1, IF($J24=4, "Inconnu", IF($J24=99, "Surveillance", E24)), 0),"Non requis") -> 0 | O24: =IF(INTRO!$E$41="Endémique", IF($J24>1, IF($J24=4, "Inconnu", IF($J24=99, "Surveillance", F24)), 0),"Non requis") -> 0 | P24: =IF(INTRO!$E$41="Endémique", IF($J24>1, IF($J24=4, "Inconnu", IF($J24=99, "Surveillance", ROUND(D24*INTRO!$E$51,0))), 0),"Non requis") -> 0 | Q24: =IF(INTRO!$E$41="Endémique", IF($J24>1, IF($J24=4, "Inconnu", IF($J24=99, "Surveillance", SUM($N24:$P24))), 0),"Non requis") -> 0 | R24: 0 | S24: 0 | T24: 0 | U24: 0 | V24: 0 | W24: 0 | X24: 0 | Y24: 0 | AH24: 40162 | AI24: Mbacké
A25: =IF(INTRO!$E$33<>0,INTRO!$E$33, " ") -> SENEGAL | B25: Diourbel | C25: Touba | D25: 1056420.469 | E25: =IF(INTRO!$E$48="","",ROUND($D25*INTRO!$E$48,0)) -> 127510 | F25: =IF(INTRO!$E$49="","",ROUND($D25*INTRO!$E$49,0)) -> 280268 | G25: =IF(INTRO!$E$50="","",ROUND($D25*INTRO!$E$50,0)) -> 615259 | H25: 99 | I25: 0 | J25: 0 | K25: 1 | L25: =IF(INTRO!$E$37="Endémique",IF($H25>0,IF($H25=4,"Inconnu",IF($H25=99,"Interrompu",$D25)),0),"Non requis") -> Interrompu | M25: =IF(INTRO!$E$39="Endémique", IF($I25>0, IF($I25=4,"Inconnu",IF($I25=99,"Interrompu",$D25)), 0),"Non requis") -> 0 | N25: =IF(INTRO!$E$41="Endémique", IF($J25>1, IF($J25=4, "Inconnu", IF($J25=99, "Surveillance", E25)), 0),"Non requis") -> 0 | O25: =IF(INTRO!$E$41="Endémique", IF($J25>1, IF($J25=4, "Inconnu", IF($J25=99, "Surveillance", F25)), 0),"Non requis") -> 0 | P25: =IF(INTRO!$E$41="Endémique", IF($J25>1, IF($J25=4, "Inconnu", IF($J25=99, "Surveillance", ROUND(D25*INTRO!$E$51,0))), 0),"Non requis") -> 0 | Q25: =IF(INTRO!$E$41="Endémique", IF($J25>1, IF($J25=4, "Inconnu", IF($J25=99, "Surveillance", SUM($N25:$P25))), 0),"Non requis") -> 0 | R25: 0 | S25: 0 | T25: 0 | U25: 0 | V25: 0 | W25: 0 | X25: 0 | Y25: 0 | AH25: 40163 | AI25: Touba
A26: =IF(INTRO!$E$33<>0,INTRO!$E$33, " ") -> SENEGAL | B26: Fatick | C26: Niakhar | D26: 110923.7395 | E26: =IF(INTRO!$E$48="","",ROUND($D26*INTRO!$E$48,0)) -> 13388 | F26: =IF(INTRO!$E$49="","",ROUND($D26*INTRO!$E$49,0)) -> 29428 | G26: =IF(INTRO!$E$50="","",ROUND($D26*INTRO!$E$50,0)) -> 64602 | H26: 99 | I26: 0 | J26: 99 | K26: 21 | L26: =IF(INTRO!$E$37="Endémique",IF($H26>0,IF($H26=4,"Inconnu",IF($H26=99,"Interrompu",$D26)),0),"Non requis") -> Interrompu | M26: =IF(INTRO!$E$39="Endémique", IF($I26>0, IF($I26=4,"Inconnu",IF($I26=99,"Interrompu",$D26)), 0),"Non requis") -> 0 | N26: =IF(INTRO!$E$41="Endémique", IF($J26>1, IF($J26=4, "Inconnu", IF($J26=99, "Surveillance", E26)), 0),"Non requis") -> Surveillance | O26: =IF(INTRO!$E$41="Endémique", IF($J26>1, IF($J26=4, "Inconnu", IF($J26=99, "Surveillance", F26)), 0),"Non requis") -> Surveillance | P26: =IF(INTRO!$E$41="Endémique", IF($J26>1, IF($J26=4, "Inconnu", IF($J26=99, "Surveillance", ROUND(D26*INTRO!$E$51,0))), 0),"Non requis") -> Surveillance | Q26: =IF(INTRO!$E$41="Endémique", IF($J26>1, IF($J26=4, "Inconnu", IF($J26=99, "Surveillance", SUM($N26:$P26))), 0),"Non requis") -> Surveillance | R26: 4430 | S26: 13118 | T26: 28799 | U26: 46347 | V26: 0 | W26: 0 | X26: 0 | Y26: 1 | AH26: 40168 | AI26: Niakhar
A27: =IF(INTRO!$E$33<>0,INTRO!$E$33, " ") -> SENEGAL | B27: Fatick | C27: Diakhao | D27: 105480.089 | E27: =IF(INTRO!$E$48="","",ROUND($D27*INTRO!$E$48,0)) -> 12731 | F27: =IF(INTRO!$E$49="","",ROUND($D27*INTRO!$E$49,0)) -> 27984 | G27: =IF(INTRO!$E$50="","",ROUND($D27*INTRO!$E$50,0)) -> 61432 | H27: 99 | I27: 0 | J27: 99 | K27: 21 | L27: =IF(INTRO!$E$37="Endémique",IF($H27>0,IF($H27=4,"Inconnu",IF($H27=99,"Interrompu",$D27)),0),"Non requis") -> Interrompu | M27: =IF(INTRO!$E$39="Endémique", IF($I27>0, IF($I27=4,"Inconnu",IF($I27=99,"Interrompu",$D27)), 0),"Non requis") -> 0 | N27: =IF(INTRO!$E$41="Endémique", IF($J27>1, IF($J27=4, "Inconnu", IF($J27=99, "Surveillance", E27)), 0),"Non requis") -> Surveillance | O27: =IF(INTRO!$E$41="Endémique", IF($J27>1, IF($J27=4, "Inconnu", IF($J27=99, "Surveillance", F27)), 0),"Non requis") -> Surveillance | P27: =IF(INTRO!$E$41="Endémique", IF($J27>1, IF($J27=4, "Inconnu", IF($J27=99, "Surveillance", ROUND(D27*INTRO!$E$51,0))), 0),"Non requis") -> Surveillance | Q27: =IF(INTRO!$E$41="Endémique", IF($J27>1, IF($J27=4, "Inconnu", IF($J27=99, "Surveillance", SUM($N27:$P27))), 0),"Non requis") -> Surveillance | R27: 3329 | S27: 9861 | T27: 21647 | U27: 34837 | V27: 0 | W27: 0 | X27: 0 | Y27: 1 | AH27: 40231 | AI27: Diakhao
A28: =IF(INTRO!$E$33<>0,INTRO!$E$33, " ") -> SENEGAL | B28: Fatick | C28: Fatick | D28: 155280.346 | E28: =IF(INTRO!$E$48="","",ROUND($D28*INTRO!$E$48,0)) -> 18742 | F28: =IF(INTRO!$E$49="","",ROUND($D28*INTRO!$E$49,0)) -> 41196 | G28: =IF(INTRO!$E$50="","",ROUND($D28*INTRO!$E$50,0)) -> 90435 | H28: 99 | I28: 0 | J28: 11 | K28: 31 | L28: =IF(INTRO!$E$37="Endémique",IF($H28>0,IF($H28=4,"Inconnu",IF($H28=99,"Interrompu",$D28)),0),"Non requis") -> Interrompu | M28: =IF(INTRO!$E$39="Endémique", IF($I28>0, IF($I28=4,"Inconnu",IF($I28=99,"Interrompu",$D28)), 0),"Non requis") -> 0 | N28: =IF(INTRO!$E$41="Endémique", IF($J28>1, IF($J28=4, "Inconnu", IF($J28=99, "Surveillance", E28)), 0),"Non requis") -> 18742 | O28: =IF(INTRO!$E$41="Endémique", IF($J28>1, IF($J28=4, "Inconnu", IF($J28=99, "Surveillance", F28)), 0),"Non requis") -> 41196 | P28: =IF(INTRO!$E$41="Endémique", IF($J28>1, IF($J28=4, "Inconnu", IF($J28=99, "Surveillance", ROUND(D28*INTRO!$E$51,0))), 0),"Non requis") -> 38183 | Q28: =IF(INTRO!$E$41="Endémique", IF($J28>1, IF($J28=4, "Inconnu", IF($J28=99, "Surveillance", SUM($N28:$P28))), 0),"Non requis") -> 98121 | R28: 14048 | S28: 41196 | T28: 90435 | U28: 146973 | V28: 0 | W28: 0 | X28: 1 | Y28: 1 | AH28: 40165 | AI28: Fatick
A29: =IF(INTRO!$E$33<>0,INTRO!$E$33, " ") -> SENEGAL | B29: Fatick | C29: Dioffior | D29: 108246.8373 | E29: =IF(INTRO!$E$48="","",ROUND($D29*INTRO!$E$48,0)) -> 13065 | F29: =IF(INTRO!$E$49="","",ROUND($D29*INTRO!$E$49,0)) -> 28718 | G29: =IF(INTRO!$E$50="","",ROUND($D29*INTRO!$E$50,0)) -> 63043 | H29: 99 | I29: 0 | J29: 1 | K29: 11 | L29: =IF(INTRO!$E$37="Endémique",IF($H29>0,IF($H29=4,"Inconnu",IF($H29=99,"Interrompu",$D29)),0),"Non requis") -> Interrompu | M29: =IF(INTRO!$E$39="Endémique", IF($I29>0, IF($I29=4,"Inconnu",IF($I29=99,"Interrompu",$D29)), 0),"Non requis") -> 0 | N29: =IF(INTRO!$E$41="Endémique", IF($J29>1, IF($J29=4, "Inconnu", IF($J29=99, "Surveillance", E29)), 0),"Non requis") -> 0 | O29: =IF(INTRO!$E$41="Endémique", IF($J29>1, IF($J29=4, "Inconnu", IF($J29=99, "Surveillance", F29)), 0),"Non requis") -> 0 | P29: =IF(INTRO!$E$41="Endémique", IF($J29>1, IF($J29=4, "Inconnu", IF($J29=99, "Surveillance", ROUND(D29*INTRO!$E$51,0))), 0),"Non requis") -> 0 | Q29: =IF(INTRO!$E$41="Endémique", IF($J29>1, IF($J29=4, "Inconnu", IF($J29=99, "Surveillance", SUM($N29:$P29))), 0),"Non requis") -> 0 | R29: 1008 | S29: 2984 | T29: 6551 | U29: 10543 | V29: 0 | W29: 0 | X29: 0 | Y29: 1 | AH29: 40164 | AI29: Dioffior
A30: =IF(INTRO!$E$33<>0,INTRO!$E$33, " ") -> SENEGAL | B30: Fatick | C30: Passy | D30: 80076.217 | E30: =IF(INTRO!$E$48="","",ROUND($D30*INTRO!$E$48,0)) -> 9665 | F30: =IF(INTRO!$E$49="","",ROUND($D30*INTRO!$E$49,0)) -> 21244 | G30: =IF(INTRO!$E$50="","",ROUND($D30*INTRO!$E$50,0)) -> 46636 | H30: 0 | I30: 0 | J30: 0 | K30: 2 | L30: =IF(INTRO!$E$37="Endémique",IF($H30>0,IF($H30=4,"Inconnu",IF($H30=99,"Interrompu",$D30)),0),"Non requis") -> 0 | M30: =IF(INTRO!$E$39="Endémique", IF($I30>0, IF($I30=4,"Inconnu",IF($I30=99,"Interrompu",$D30)), 0),"Non requis") -> 0 | N30: =IF(INTRO!$E$41="Endémique", IF($J30>1, IF($J30=4, "Inconnu", IF($J30=99, "Surveillance", E30)), 0),"Non requis") -> 0 | O30: =IF(INTRO!$E$41="Endémique", IF($J30>1, IF($J30=4, "Inconnu", IF($J30=99, "Surveillance", F30)), 0),"Non requis") -> 0 | P30: =IF(INTRO!$E$41="Endémique", IF($J30>1, IF($J30=4, "Inconnu", IF($J30=99, "Surveillance", ROUND(D30*INTRO!$E$51,0))), 0),"Non requis") -> 0 | Q30: =IF(INTRO!$E$41="Endémique", IF($J30>1, IF($J30=4, "Inconnu", IF($J30=99, "Surveillance", SUM($N30:$P30))), 0),"Non requis") -> 0 | R30: 1595 | S30: 4723 | T30: 10370 | U30: 16688 | V30: 0 | W30: 0 | X30: 0 | Y30: 1 | AH30: 40169 | AI30: Passy
A31: =IF(INTRO!$E$33<>0,INTRO!$E$33, " ") -> SENEGAL | B31: Fatick | C31: Foundiougne | D31: 72297.45403 | E31: =IF(INTRO!$E$48="","",ROUND($D31*INTRO!$E$48,0)) -> 8726 | F31: =IF(INTRO!$E$49="","",ROUND($D31*INTRO!$E$49,0)) -> 19181 | G31: =IF(INTRO!$E$50="","",ROUND($D31*INTRO!$E$50,0)) -> 42106 | H31: 0 | I31: 0 | J31: 1 | K31: 99 | L31: =IF(INTRO!$E$37="Endémique",IF($H31>0,IF($H31=4,"Inconnu",IF($H31=99,"Interrompu",$D31)),0),"Non requis") -> 0 | M31: =IF(INTRO!$E$39="Endémique", IF($I31>0, IF($I31=4,"Inconnu",IF($I31=99,"Interrompu",$D31)), 0),"Non requis") -> 0 | N31: =IF(INTRO!$E$41="Endémique", IF($J31>1, IF($J31=4, "Inconnu", IF($J31=99, "Surveillance", E31)), 0),"Non requis") -> 0 | O31: =IF(INTRO!$E$41="Endémique", IF($J31>1, IF($J31=4, "Inconnu", IF($J31=99, "Surveillance", F31)), 0),"Non requis") -> 0 | P31: =IF(INTRO!$E$41="Endémique", IF($J31>1, IF($J31=4, "Inconnu", IF($J31=99, "Surveillance", ROUND(D31*INTRO!$E$51,0))), 0),"Non requis") -> 0 | Q31: =IF(INTRO!$E$41="Endémique", IF($J31>1, IF($J31=4, "Inconnu", IF($J31=99, "Surveillance", SUM($N31:$P31))), 0),"Non requis") -> 0 | R31: 0 | S31: 0 | T31: 0 | U31: 0 | V31: 0 | W31: 0 | X31: 0 | Y31: 0 | AH31: 40166 | AI31: Foundiougne
A32: =IF(INTRO!$E$33<>0,INTRO!$E$33, " ") -> SENEGAL | B32: Fatick | C32: Sokone | D32: 249002.312 | E32: =IF(INTRO!$E$48="","",ROUND($D32*INTRO!$E$48,0)) -> 30055 | F32: =IF(INTRO!$E$49="","",ROUND($D32*INTRO!$E$49,0)) -> 66060 | G32: =IF(INTRO!$E$50="","",ROUND($D32*INTRO!$E$50,0)) -> 145019 | H32: 99 | I32: 0 | J32: 0 | K32: 1 | L32: =IF(INTRO!$E$37="Endémique",IF($H32>0,IF($H32=4,"Inconnu",IF($H32=99,"Interrompu",$D32)),0),"Non requis") -> Interrompu | M32: =IF(INTRO!$E$39="Endémique", IF($I32>0, IF($I32=4,"Inconnu",IF($I32=99,"Interrompu",$D32)), 0),"Non requis") -> 0 | N32: =IF(INTRO!$E$41="Endémique", IF($J32>1, IF($J32=4, "Inconnu", IF($J32=99, "Surveillance", E32)), 0),"Non requis") -> 0 | O32: =IF(INTRO!$E$41="Endémique", IF($J32>1, IF($J32=4, "Inconnu", IF($J32=99, "Surveillance", F32)), 0),"Non requis") -> 0 | P32: =IF(INTRO!$E$41="Endémique", IF($J32>1, IF($J32=4, "Inconnu", IF($J32=99, "Surveillance", ROUND(D32*INTRO!$E$51,0))), 0),"Non requis") -> 0 | Q32: =IF(INTRO!$E$41="Endémique", IF($J32>1, IF($J32=4, "Inconnu", IF($J32=99, "Surveillance", SUM($N32:$P32))), 0),"Non requis") -> 0 | R32: 0 | S32: 0 | T32: 0 | U32: 0 | V32: 0 | W32: 0 | X32: 0 | Y32: 0 | AH32: 40170 | AI32: Sokone
A33: =IF(INTRO!$E$33<>0,INTRO!$E$33, " ") -> SENEGAL | B33: Fatick | C33: Gossas | D33: 136497.7535 | E33: =IF(INTRO!$E$48="","",ROUND($D33*INTRO!$E$48,0)) -> 16475 | F33: =IF(INTRO!$E$49="","",ROUND($D33*INTRO!$E$49,0)) -> 36213 | G33: =IF(INTRO!$E$50="","",ROUND($D33*INTRO!$E$50,0)) -> 79496 | H33: 99 | I33: 0 | J33: 99 | K33: 31 | L33: =IF(INTRO!$E$37="Endémique",IF($H33>0,IF($H33=4,"Inconnu",IF($H33=99,"Interrompu",$D33)),0),"Non requis") -> Interrompu | M33: =IF(INTRO!$E$39="Endémique", IF($I33>0, IF($I33=4,"Inconnu",IF($I33=99,"Interrompu",$D33)), 0),"Non requis") -> 0 | N33: =IF(INTRO!$E$41="Endémique", IF($J33>1, IF($J33=4, "Inconnu", IF($J33=99, "Surveillance", E33)), 0),"Non requis") -> Surveillance | O33: =IF(INTRO!$E$41="Endémique", IF($J33>1, IF($J33=4, "Inconnu", IF($J33=99, "Surveillance", F33)), 0),"Non requis") -> Surveillance | P33: =IF(INTRO!$E$41="Endémique", IF($J33>1, IF($J33=4, "Inconnu", IF($J33=99, "Surveillance", ROUND(D33*INTRO!$E$51,0))), 0),"Non requis") -> Surveillance | Q33: =IF(INTRO!$E$41="Endémique", IF($J33>1, IF($J33=4, "Inconnu", IF($J33=99, "Surveillance", SUM($N33:$P33))), 0),"Non requis") -> Surveillance | R33: 6217 | S33: 18410 | T33: 40415 | U33: 65042 | V33: 0 | W33: 0 | X33: 0 | Y33: 1 | AH33: 40167 | AI33: Gossas
A34: =IF(INTRO!$E$33<>0,INTRO!$E$33, " ") -> SENEGAL | B34: Kaffrine | C34: Birkelane | D34: 148555.55 | E34: =IF(INTRO!$E$48="","",ROUND($D34*INTRO!$E$48,0)) -> 17931 | F34: =IF(INTRO!$E$49="","",ROUND($D34*INTRO!$E$49,0)) -> 39412 | G34: =IF(INTRO!$E$50="","",ROUND($D34*INTRO!$E$50,0)) -> 86519 | H34: 99 | I34: 0 | J34: 0 | K34: 21 | L34: =IF(INTRO!$E$37="Endémique",IF($H34>0,IF($H34=4,"Inconnu",IF($H34=99,"Interrompu",$D34)),0),"Non requis") -> Interrompu | M34: =IF(INTRO!$E$39="Endémique", IF($I34>0, IF($I34=4,"Inconnu",IF($I34=99,"Interrompu",$D34)), 0),"Non requis") -> 0 | N34: =IF(INTRO!$E$41="Endémique", IF($J34>1, IF($J34=4, "Inconnu", IF($J34=99, "Surveillance", E34)), 0),"Non requis") -> 0 | O34: =IF(INTRO!$E$41="Endémique", IF($J34>1, IF($J34=4, "Inconnu", IF($J34=99, "Surveillance", F34)), 0),"Non requis") -> 0 | P34: =IF(INTRO!$E$41="Endémique", IF($J34>1, IF($J34=4, "Inconnu", IF($J34=99, "Surveillance", ROUND(D34*INTRO!$E$51,0))), 0),"Non requis") -> 0 | Q34: =IF(INTRO!$E$41="Endémique", IF($J34>1, IF($J34=4, "Inconnu", IF($J34=99, "Surveillance", SUM($N34:$P34))), 0),"Non requis") -> 0 | R34: 2262 | S34: 6700 | T34: 14711 | U34: 23673 | V34: 0 | W34: 0 | X34: 0 | Y34: 1 | AH34: 40171 | AI34: Birkelane
A35: =IF(INTRO!$E$33<>0,INTRO!$E$33, " ") -> SENEGAL | B35: Kaffrine | C35: Kaffrine | D35: 302212.5551 | E35: =IF(INTRO!$E$48="","",ROUND($D35*INTRO!$E$48,0)) -> 36477 | F35: =IF(INTRO!$E$49="","",ROUND($D35*INTRO!$E$49,0)) -> 80177 | G35: =IF(INTRO!$E$50="","",ROUND($D35*INTRO!$E$50,0)) -> 176009 | H35: 99 | I35: 0 | J35: 0 | K35: 21 | L35: =IF(INTRO!$E$37="Endémique",IF($H35>0,IF($H35=4,"Inconnu",IF($H35=99,"Interrompu",$D35)),0),"Non requis") -> Interrompu | M35: =IF(INTRO!$E$39="Endémique", IF($I35>0, IF($I35=4,"Inconnu",IF($I35=99,"Interrompu",$D35)), 0),"Non requis") -> 0 | N35: =IF(INTRO!$E$41="Endémique", IF($J35>1, IF($J35=4, "Inconnu", IF($J35=99, "Surveillance", E35)), 0),"Non requis") -> 0 | O35: =IF(INTRO!$E$41="Endémique", IF($J35>1, IF($J35=4, "Inconnu", IF($J35=99, "Surveillance", F35)), 0),"Non requis") -> 0 | P35: =IF(INTRO!$E$41="Endémique", IF($J35>1, IF($J35=4, "Inconnu", IF($J35=99, "Surveillance", ROUND(D35*INTRO!$E$51,0))), 0),"Non requis") -> 0 | Q35: =IF(INTRO!$E$41="Endémique", IF($J35>1, IF($J35=4, "Inconnu", IF($J35=99, "Surveillance", SUM($N35:$P35))), 0),"Non requis") -> 0 | R35: 1269 | S35: 3758 | T35: 8251 | U35: 13278 | V35: 0 | W35: 0 | X35: 0 | Y35: 1 | AH35: 40172 | AI35: Kaffrine
A36: =IF(INTRO!$E$33<>0,INTRO!$E$33, " ") -> SENEGAL | B36: Kaffrine | C36: Koungheul | D36: 237832.9517 | E36: =IF(INTRO!$E$48="","",ROUND($D36*INTRO!$E$48,0)) -> 28706 | F36: =IF(INTRO!$E$49="","",ROUND($D36*INTRO!$E$49,0)) -> 63097 | G36: =IF(INTRO!$E$50="","",ROUND($D36*INTRO!$E$50,0)) -> 138514 | H36: 99 | I36: 0 | J36: 1 | K36: 21 | L36: =IF(INTRO!$E$37="Endémique",IF($H36>0,IF($H36=4,"Inconnu",IF($H36=99,"Interrompu",$D36)),0),"Non requis") -> Interrompu | M36: =IF(INTRO!$E$39="Endémique", IF($I36>0, IF($I36=4,"Inconnu",IF($I36=99,"Interrompu",$D36)), 0),"Non requis") -> 0 | N36: =IF(INTRO!$E$41="Endémique", IF($J36>1, IF($J36=4, "Inconnu", IF($J36=99, "Surveillance", E36)), 0),"Non requis") -> 0 | O36: =IF(INTRO!$E$41="Endémique", IF($J36>1, IF($J36=4, "Inconnu", IF($J36=99, "Surveillance", F36)), 0),"Non requis") -> 0 | P36: =IF(INTRO!$E$41="Endémique", IF($J36>1, IF($J36=4, "Inconnu", IF($J36=99, "Surveillance", ROUND(D36*INTRO!$E$51,0))), 0),"Non requis") -> 0 | Q36: =IF(INTRO!$E$41="Endémique", IF($J36>1, IF($J36=4, "Inconnu", IF($J36=99, "Surveillance", SUM($N36:$P36))), 0),"Non requis") -> 0 | R36: 1991 | S36: 5897 | T36: 12947 | U36: 20835 | V36: 0 | W36: 0 | X36: 0 | Y36: 1 | AH36: 40173 | AI36: Koungheul
A37: =IF(INTRO!$E$33<>0,INTRO!$E$33, " ") -> SENEGAL | B37: Kaffrine | C37: Malem Hodar | D37: 137753.9358 | E37: =IF(INTRO!$E$48="","",ROUND($D37*INTRO!$E$48,0)) -> 16627 | F37: =IF(INTRO!$E$49="","",ROUND($D37*INTRO!$E$49,0)) -> 36546 | G37: =IF(INTRO!$E$50="","",ROUND($D37*INTRO!$E$50,0)) -> 80228 | H37: 99 | I37: 0 | J37: 11 | K37: 21 | L37: =IF(INTRO!$E$37="Endémique",IF($H37>0,IF($H37=4,"Inconnu",IF($H37=99,"Interrompu",$D37)),0),"Non requis") -> Interrompu | M37: =IF(INTRO!$E$39="Endémique", IF($I37>0, IF($I37=4,"Inconnu",IF($I37=99,"Interrompu",$D37)), 0),"Non requis") -> 0 | N37: =IF(INTRO!$E$41="Endémique", IF($J37>1, IF($J37=4, "Inconnu", IF($J37=99, "Surveillance", E37)), 0),"Non requis") -> 16627 | O37: =IF(INTRO!$E$41="Endémique", IF($J37>1, IF($J37=4, "Inconnu", IF($J37=99, "Surveillance", F37)), 0),"Non requis") -> 36546 | P37: =IF(INTRO!$E$41="Endémique", IF($J37>1, IF($J37=4, "Inconnu", IF($J37=99, "Surveillance", ROUND(D37*INTRO!$E$51,0))), 0),"Non requis") -> 33874 | Q37: =IF(INTRO!$E$41="Endémique", IF($J37>1, IF($J37=4, "Inconnu", IF($J37=99, "Surveillance", SUM($N37:$P37))), 0),"Non requis") -> 87047 | R37: 4342 | S37: 12860 | T37: 28235 | U37: 45437 | V37: 0 | W37: 0 | X37: 1 | Y37: 1 | AH37: 40174 | AI37: Malem Hodar
A38: =IF(INTRO!$E$33<>0,INTRO!$E$33, " ") -> SENEGAL | B38: Kaolack | C38: Guinguineo | D38: 160193.2952 | E38: =IF(INTRO!$E$48="","",ROUND($D38*INTRO!$E$48,0)) -> 19335 | F38: =IF(INTRO!$E$49="","",ROUND($D38*INTRO!$E$49,0)) -> 42499 | G38: =IF(INTRO!$E$50="","",ROUND($D38*INTRO!$E$50,0)) -> 93297 | H38: 99 | I38: 0 | J38: 0 | K38: 2 | L38: =IF(INTRO!$E$37="Endémique",IF($H38>0,IF($H38=4,"Inconnu",IF($H38=99,"Interrompu",$D38)),0),"Non requis") -> Interrompu | M38: =IF(INTRO!$E$39="Endémique", IF($I38>0, IF($I38=4,"Inconnu",IF($I38=99,"Interrompu",$D38)), 0),"Non requis") -> 0 | N38: =IF(INTRO!$E$41="Endémique", IF($J38>1, IF($J38=4, "Inconnu", IF($J38=99, "Surveillance", E38)), 0),"Non requis") -> 0 | O38: =IF(INTRO!$E$41="Endémique", IF($J38>1, IF($J38=4, "Inconnu", IF($J38=99, "Surveillance", F38)), 0),"Non requis") -> 0 | P38: =IF(INTRO!$E$41="Endémique", IF($J38>1, IF($J38=4, "Inconnu", IF($J38=99, "Surveillance", ROUND(D38*INTRO!$E$51,0))), 0),"Non requis") -> 0 | Q38: =IF(INTRO!$E$41="Endémique", IF($J38>1, IF($J38=4, "Inconnu", IF($J38=99, "Surveillance", SUM($N38:$P38))), 0),"Non requis") -> 0 | R38: 5224 | S38: 15471 | T38: 33968 | U38: 54663 | V38: 0 | W38: 0 | X38: 0 | Y38: 1 | AH38: 40175 | AI38: Guinguineo
A39: =IF(INTRO!$E$33<>0,INTRO!$E$33, " ") -> SENEGAL | B39: Kaolack | C39: Kaolack | D39: 435465.9622 | E39: =IF(INTRO!$E$48="","",ROUND($D39*INTRO!$E$48,0)) -> 52561 | F39: =IF(INTRO!$E$49="","",ROUND($D39*INTRO!$E$49,0)) -> 115529 | G39: =IF(INTRO!$E$50="","",ROUND($D39*INTRO!$E$50,0)) -> 253615 | H39: 19 | I39: 0 | J39: 0 | K39: 1 | L39: =IF(INTRO!$E$37="Endémique",IF($H39>0,IF($H39=4,"Inconnu",IF($H39=99,"Interrompu",$D39)),0),"Non requis") -> 435465.9622 | M39: =IF(INTRO!$E$39="Endémique", IF($I39>0, IF($I39=4,"Inconnu",IF($I39=99,"Interrompu",$D39)), 0),"Non requis") -> 0 | N39: =IF(INTRO!$E$41="Endémique", IF($J39>1, IF($J39=4, "Inconnu", IF($J39=99, "Surveillance", E39)), 0),"Non requis") -> 0 | O39: =IF(INTRO!$E$41="Endémique", IF($J39>1, IF($J39=4, "Inconnu", IF($J39=99, "Surveillance", F39)), 0),"Non requis") -> 0 | P39: =IF(INTRO!$E$41="Endémique", IF($J39>1, IF($J39=4, "Inconnu", IF($J39=99, "Surveillance", ROUND(D39*INTRO!$E$51,0))), 0),"Non requis") -> 0 | Q39: =IF(INTRO!$E$41="Endémique", IF($J39>1, IF($J39=4, "Inconnu", IF($J39=99, "Surveillance", SUM($N39:$P39))), 0),"Non requis") -> 0 | R39: 0 | S39: 0 | T39: 0 | U39: 0 | V39: 0 | W39: 0 | X39: 0 | Y39: 0 | AH39: 40176 | AI39: Kaolack
A40: =IF(INTRO!$E$33<>0,INTRO!$E$33, " ") -> SENEGAL | B40: Kaolack | C40: Ndoffane | D40: 244288.9479 | E40: =IF(INTRO!$E$48="","",ROUND($D40*INTRO!$E$48,0)) -> 29486 | F40: =IF(INTRO!$E$49="","",ROUND($D40*INTRO!$E$49,0)) -> 64810 | G40: =IF(INTRO!$E$50="","",ROUND($D40*INTRO!$E$50,0)) -> 142274 | H40: 0 | I40: 0 | J40: 1 | K40: 3 | L40: =IF(INTRO!$E$37="Endémique",IF($H40>0,IF($H40=4,"Inconnu",IF($H40=99,"Interrompu",$D40)),0),"Non requis") -> 0 | M40: =IF(INTRO!$E$39="Endémique", IF($I40>0, IF($I40=4,"Inconnu",IF($I40=99,"Interrompu",$D40)), 0),"Non requis") -> 0 | N40: =IF(INTRO!$E$41="Endémique", IF($J40>1, IF($J40=4, "Inconnu", IF($J40=99, "Surveillance", E40)), 0),"Non requis") -> 0 | O40: =IF(INTRO!$E$41="Endémique", IF($J40>1, IF($J40=4, "Inconnu", IF($J40=99, "Surveillance", F40)), 0),"Non requis") -> 0 | P40: =IF(INTRO!$E$41="Endémique", IF($J40>1, IF($J40=4, "Inconnu", IF($J40=99, "Surveillance", ROUND(D40*INTRO!$E$51,0))), 0),"Non requis") -> 0 | Q40: =IF(INTRO!$E$41="Endémique", IF($J40>1, IF($J40=4, "Inconnu", IF($J40=99, "Surveillance", SUM($N40:$P40))), 0),"Non requis") -> 0 | R40: 19358 | S40: 57318 | T40: 125840 | U40: 202516 | V40: 0 | W40: 0 | X40: 0 | Y40: 1 | AH40: 40177 | AI40: Ndoffane
A41: =IF(INTRO!$E$33<>0,INTRO!$E$33, " ") -> SENEGAL | B41: Kaolack | C41: Nioro | D41: 496405.0397 | E41: =IF(INTRO!$E$48="","",ROUND($D41*INTRO!$E$48,0)) -> 59916 | F41: =IF(INTRO!$E$49="","",ROUND($D41*INTRO!$E$49,0)) -> 131696 | G41: =IF(INTRO!$E$50="","",ROUND($D41*INTRO!$E$50,0)) -> 289106 | H41: 0 | I41: 0 | J41: 0 | K41: 2 | L41: =IF(INTRO!$E$37="Endémique",IF($H41>0,IF($H41=4,"Inconnu",IF($H41=99,"Interrompu",$D41)),0),"Non requis") -> 0 | M41: =IF(INTRO!$E$39="Endémique", IF($I41>0, IF($I41=4,"Inconnu",IF($I41=99,"Interrompu",$D41)), 0),"Non requis") -> 0 | N41: =IF(INTRO!$E$41="Endémique", IF($J41>1, IF($J41=4, "Inconnu", IF($J41=99, "Surveillance", E41)), 0),"Non requis") -> 0 | O41: =IF(INTRO!$E$41="Endémique", IF($J41>1, IF($J41=4, "Inconnu", IF($J41=99, "Surveillance", F41)), 0),"Non requis") -> 0 | P41: =IF(INTRO!$E$41="Endémique", IF($J41>1, IF($J41=4, "Inconnu", IF($J41=99, "Surveillance", ROUND(D41*INTRO!$E$51,0))), 0),"Non requis") -> 0 | Q41: =IF(INTRO!$E$41="Endémique", IF($J41>1, IF($J41=4, "Inconnu", IF($J41=99, "Surveillance", SUM($N41:$P41))), 0),"Non requis") -> 0 | R41: 329 | S41: 975 | T41: 2140 | U41: 3444 | V41: 0 | W41: 0 | X41: 0 | Y41: 1 | AH41: 40178 | AI41: Nioro
A42: =IF(INTRO!$E$33<>0,INTRO!$E$33, " ") -> SENEGAL | B42: Kédougou | C42: Kédougou | D42: 111473.2533 | E42: =IF(INTRO!$E$48="","",ROUND($D42*INTRO!$E$48,0)) -> 13455 | F42: =IF(INTRO!$E$49="","",ROUND($D42*INTRO!$E$49,0)) -> 29574 | G42: =IF(INTRO!$E$50="","",ROUND($D42*INTRO!$E$50,0)) -> 64922 | H42: 19 | I42: 99 | J42: 0 | K42: 3 | L42: =IF(INTRO!$E$37="Endémique",IF($H42>0,IF($H42=4,"Inconnu",IF($H42=99,"Interrompu",$D42)),0),"Non requis") -> 111473.2533 | M42: =IF(INTRO!$E$39="Endémique", IF($I42>0, IF($I42=4,"Inconnu",IF($I42=99,"Interrompu",$D42)), 0),"Non requis") -> Interrompu | N42: =IF(INTRO!$E$41="Endémique", IF($J42>1, IF($J42=4, "Inconnu", IF($J42=99, "Surveillance", E42)), 0),"Non requis") -> 0 | O42: =IF(INTRO!$E$41="Endémique", IF($J42>1, IF($J42=4, "Inconnu", IF($J42=99, "Surveillance", F42)), 0),"Non requis") -> 0 | P42: =IF(INTRO!$E$41="Endémique", IF($J42>1, IF($J42=4, "Inconnu", IF($J42=99, "Surveillance", ROUND(D42*INTRO!$E$51,0))), 0),"Non requis") -> 0 | Q42: =IF(INTRO!$E$41="Endémique", IF($J42>1, IF($J42=4, "Inconnu", IF($J42=99, "Surveillance", SUM($N42:$P42))), 0),"Non requis") -> 0 | R42: 9858 | S42: 29190 | T42: 64084 | U42: 103132 | V42: 0 | W42: 0 | X42: 0 | Y42: 1 | AH42: 40210 | AI42: Kédougou
A43: =IF(INTRO!$E$33<>0,INTRO!$E$33, " ") -> SENEGAL | B43: Kédougou | C43: Salemata | D43: 31387.68031 | E43: =IF(INTRO!$E$48="","",ROUND($D43*INTRO!$E$48,0)) -> 3788 | F43: =IF(INTRO!$E$49="","",ROUND($D43*INTRO!$E$49,0)) -> 8327 | G43: =IF(INTRO!$E$50="","",ROUND($D43*INTRO!$E$50,0)) -> 18280 | H43: 19 | I43: 99 | J43: 0 | K43: 3 | L43: =IF(INTRO!$E$37="Endémique",IF($H43>0,IF($H43=4,"Inconnu",IF($H43=99,"Interrompu",$D43)),0),"Non requis") -> 31387.68031 | M43: =IF(INTRO!$E$39="Endémique", IF($I43>0, IF($I43=4,"Inconnu",IF($I43=99,"Interrompu",$D43)), 0),"Non requis") -> Interrompu | N43: =IF(INTRO!$E$41="Endémique", IF($J43>1, IF($J43=4, "Inconnu", IF($J43=99, "Surveillance", E43)), 0),"Non requis") -> 0 | O43: =IF(INTRO!$E$41="Endémique", IF($J43>1, IF($J43=4, "Inconnu", IF($J43=99, "Surveillance", F43)), 0),"Non requis") -> 0 | P43: =IF(INTRO!$E$41="Endémique", IF($J43>1, IF($J43=4, "Inconnu", IF($J43=99, "Surveillance", ROUND(D43*INTRO!$E$51,0))), 0),"Non requis") -> 0 | Q43: =IF(INTRO!$E$41="Endémique", IF($J43>1, IF($J43=4, "Inconnu", IF($J43=99, "Surveillance", SUM($N43:$P43))), 0),"Non requis") -> 0 | R43: 2777 | S43: 8220 | T43: 18045 | U43: 29042 | V43: 0 | W43: 0 | X43: 0 | Y43: 1 | AH43: 40179 | AI43: Salemata
A44: =IF(INTRO!$E$33<>0,INTRO!$E$33, " ") -> SENEGAL | B44: Kédougou | C44: Saraya | D44: 72008.45829 | E44: =IF(INTRO!$E$48="","",ROUND($D44*INTRO!$E$48,0)) -> 8691 | F44: =IF(INTRO!$E$49="","",ROUND($D44*INTRO!$E$49,0)) -> 19104 | G44: =IF(INTRO!$E$50="","",ROUND($D44*INTRO!$E$50,0)) -> 41938 | H44: 99 | I44: 99 | J44: 0 | K44: 31 | L44: =IF(INTRO!$E$37="Endémique",IF($H44>0,IF($H44=4,"Inconnu",IF($H44=99,"Interrompu",$D44)),0),"Non requis") -> Interrompu | M44: =IF(INTRO!$E$39="Endémique", IF($I44>0, IF($I44=4,"Inconnu",IF($I44=99,"Interrompu",$D44)), 0),"Non requis") -> Interrompu | N44: =IF(INTRO!$E$41="Endémique", IF($J44>1, IF($J44=4, "Inconnu", IF($J44=99, "Surveillance", E44)), 0),"Non requis") -> 0 | O44: =IF(INTRO!$E$41="Endémique", IF($J44>1, IF($J44=4, "Inconnu", IF($J44=99, "Surveillance", F44)), 0),"Non requis") -> 0 | P44: =IF(INTRO!$E$41="Endémique", IF($J44>1, IF($J44=4, "Inconnu", IF($J44=99, "Surveillance", ROUND(D44*INTRO!$E$51,0))), 0),"Non requis") -> 0 | Q44: =IF(INTRO!$E$41="Endémique", IF($J44>1, IF($J44=4, "Inconnu", IF($J44=99, "Surveillance", SUM($N44:$P44))), 0),"Non requis") -> 0 | R44: 6368 | S44: 18856 | T44: 41401 | U44: 66625 | V44: 0 | W44: 0 | X44: 0 | Y44: 1 | AH44: 40180 | AI44: Saraya
A45: =IF(INTRO!$E$33<>0,INTRO!$E$33, " ") -> SENEGAL | B45: Kolda | C45: Kolda | D45: 342954.6269 | E45: =IF(INTRO!$E$48="","",ROUND($D45*INTRO!$E$48,0)) -> 41395 | F45: =IF(INTRO!$E$49="","",ROUND($D45*INTRO!$E$49,0)) -> 90986 | G45: =IF(INTRO!$E$50="","",ROUND($D45*INTRO!$E$50,0)) -> 199737 | H45: 99 | I45: 0 | J45: 99 | K45: 2 | L45: =IF(INTRO!$E$37="Endémique",IF($H45>0,IF($H45=4,"Inconnu",IF($H45=99,"Interrompu",$D45)),0),"Non requis") -> Interrompu | M45: =IF(INTRO!$E$39="Endémique", IF($I45>0, IF($I45=4,"Inconnu",IF($I45=99,"Interrompu",$D45)), 0),"Non requis") -> 0 | N45: =IF(INTRO!$E$41="Endémique", IF($J45>1, IF($J45=4, "Inconnu", IF($J45=99, "Surveillance", E45)), 0),"Non requis") -> Surveillance | O45: =IF(INTRO!$E$41="Endémique", IF($J45>1, IF($J45=4, "Inconnu", IF($J45=99, "Surveillance", F45)), 0),"Non requis") -> Surveillance | P45: =IF(INTRO!$E$41="Endémique", IF($J45>1, IF($J45=4, "Inconnu", IF($J45=99, "Surveillance", ROUND(D45*INTRO!$E$51,0))), 0),"Non requis") -> Surveillance | Q45: =IF(INTRO!$E$41="Endémique", IF($J45>1, IF($J45=4, "Inconnu", IF($J45=99, "Surveillance", SUM($N45:$P45))), 0),"Non requis") -> Surveillance | R45: 1129 | S45: 3343 | T45: 7340 | U45: 11812 | V45: 0 | W45: 0 | X45: 0 | Y45: 1 | AH45: 40181 | AI45: Kolda
A46: =IF(INTRO!$E$33<>0,INTRO!$E$33, " ") -> SENEGAL | B46: Kolda | C46: Medina Yoro Foulah | D46: 192514.4107 | E46: =IF(INTRO!$E$48="","",ROUND($D46*INTRO!$E$48,0)) -> 23236 | F46: =IF(INTRO!$E$49="","",ROUND($D46*INTRO!$E$49,0)) -> 51074 | G46: =IF(INTRO!$E$50="","",ROUND($D46*INTRO!$E$50,0)) -> 112120 | H46: 99 | I46: 0 | J46: 0 | K46: 31 | L46: =IF(INTRO!$E$37="Endémique",IF($H46>0,IF($H46=4,"Inconnu",IF($H46=99,"Interrompu",$D46)),0),"Non requis") -> Interrompu | M46: =IF(INTRO!$E$39="Endémique", IF($I46>0, IF($I46=4,"Inconnu",IF($I46=99,"Interrompu",$D46)), 0),"Non requis") -> 0 | N46: =IF(INTRO!$E$41="Endémique", IF($J46>1, IF($J46=4, "Inconnu", IF($J46=99, "Surveillance", E46)), 0),"Non requis") -> 0 | O46: =IF(INTRO!$E$41="Endémique", IF($J46>1, IF($J46=4, "Inconnu", IF($J46=99, "Surveillance", F46)), 0),"Non requis") -> 0 | P46: =IF(INTRO!$E$41="Endémique", IF($J46>1, IF($J46=4, "Inconnu", IF($J46=99, "Surveillance", ROUND(D46*INTRO!$E$51,0))), 0),"Non requis") -> 0 | Q46: =IF(INTRO!$E$41="Endémique", IF($J46>1, IF($J46=4, "Inconnu", IF($J46=99, "Surveillance", SUM($N46:$P46))), 0),"Non requis") -> 0 | R46: 17088 | S46: 50604 | T46: 111097 | U46: 178789 | V46: 0 | W46: 0 | X46: 0 | Y46: 1 | AH46: 40182 | AI46: Medina Yoro Foulah
A47: =IF(INTRO!$E$33<>0,INTRO!$E$33, " ") -> SENEGAL | B47: Kolda | C47: Velingara | D47: 388114.9585 | E47: =IF(INTRO!$E$48="","",ROUND($D47*INTRO!$E$48,0)) -> 46845 | F47: =IF(INTRO!$E$49="","",ROUND($D47*INTRO!$E$49,0)) -> 102967 | G47: =IF(INTRO!$E$50="","",ROUND($D47*INTRO!$E$50,0)) -> 226038 | H47: 99 | I47: 99 | J47: 99 | K47: 2 | L47: =IF(INTRO!$E$37="Endémique",IF($H47>0,IF($H47=4,"Inconnu",IF($H47=99,"Interrompu",$D47)),0),"Non requis") -> Interrompu | M47: =IF(INTRO!$E$39="Endémique", IF($I47>0, IF($I47=4,"Inconnu",IF($I47=99,"Interrompu",$D47)), 0),"Non requis") -> Interrompu | N47: =IF(INTRO!$E$41="Endémique", IF($J47>1, IF($J47=4, "Inconnu", IF($J47=99, "Surveillance", E47)), 0),"Non requis") -> Surveillance | O47: =IF(INTRO!$E$41="Endémique", IF($J47>1, IF($J47=4, "Inconnu", IF($J47=99, "Surveillance", F47)), 0),"Non requis") -> Surveillance | P47: =IF(INTRO!$E$41="Endémique", IF($J47>1, IF($J47=4, "Inconnu", IF($J47=99, "Surveillance", ROUND(D47*INTRO!$E$51,0))), 0),"Non requis") -> Surveillance | Q47: =IF(INTRO!$E$41="Endémique", IF($J47>1, IF($J47=4, "Inconnu", IF($J47=99, "Surveillance", SUM($N47:$P47))), 0),"Non requis") -> Surveillance | R47: 12738 | S47: 37722 | T47: 82815 | U47: 133275 | V47: 0 | W47: 0 | X47: 0 | Y47: 1 | AH47: 40184 | AI47: Velingara
A48: =IF(INTRO!$E$33<>0,INTRO!$E$33, " ") -> SENEGAL | B48: Louga | C48: Darou-Mousty | D48: 112152.4988 | E48: =IF(INTRO!$E$48="","",ROUND($D48*INTRO!$E$48,0)) -> 13537 | F48: =IF(INTRO!$E$49="","",ROUND($D48*INTRO!$E$49,0)) -> 29754 | G48: =IF(INTRO!$E$50="","",ROUND($D48*INTRO!$E$50,0)) -> 65318 | H48: 0 | I48: 0 | J48: 0 | K48: 1 | L48: =IF(INTRO!$E$37="Endémique",IF($H48>0,IF($H48=4,"Inconnu",IF($H48=99,"Interrompu",$D48)),0),"Non requis") -> 0 | M48: =IF(INTRO!$E$39="Endémique", IF($I48>0, IF($I48=4,"Inconnu",IF($I48=99,"Interrompu",$D48)), 0),"Non requis") -> 0 | N48: =IF(INTRO!$E$41="Endémique", IF($J48>1, IF($J48=4, "Inconnu", IF($J48=99, "Surveillance", E48)), 0),"Non requis") -> 0 | O48: =IF(INTRO!$E$41="Endémique", IF($J48>1, IF($J48=4, "Inconnu", IF($J48=99, "Surveillance", F48)), 0),"Non requis") -> 0 | P48: =IF(INTRO!$E$41="Endémique", IF($J48>1, IF($J48=4, "Inconnu", IF($J48=99, "Surveillance", ROUND(D48*INTRO!$E$51,0))), 0),"Non requis") -> 0 | Q48: =IF(INTRO!$E$41="Endémique", IF($J48>1, IF($J48=4, "Inconnu", IF($J48=99, "Surveillance", SUM($N48:$P48))), 0),"Non requis") -> 0 | R48: 0 | S48: 0 | T48: 0 | U48: 0 | V48: 0 | W48: 0 | X48: 0 | Y48: 0 | AH48: 40187 | AI48: Darou-Mousty
A49: =IF(INTRO!$E$33<>0,INTRO!$E$33, " ") -> SENEGAL | B49: Louga | C49: Kébémer | D49: 238456.2965 | E49: =IF(INTRO!$E$48="","",ROUND($D49*INTRO!$E$48,0)) -> 28782 | F49: =IF(INTRO!$E$49="","",ROUND($D49*INTRO!$E$49,0)) -> 63262 | G49: =IF(INTRO!$E$50="","",ROUND($D49*INTRO!$E$50,0)) -> 138877 | H49: 0 | I49: 0 | J49: 0 | K49: 1 | L49: =IF(INTRO!$E$37="Endémique",IF($H49>0,IF($H49=4,"Inconnu",IF($H49=99,"Interrompu",$D49)),0),"Non requis") -> 0 | M49: =IF(INTRO!$E$39="Endémique", IF($I49>0, IF($I49=4,"Inconnu",IF($I49=99,"Interrompu",$D49)), 0),"Non requis") -> 0 | N49: =IF(INTRO!$E$41="Endémique", IF($J49>1, IF($J49=4, "Inconnu", IF($J49=99, "Surveillance", E49)), 0),"Non requis") -> 0 | O49: =IF(INTRO!$E$41="Endémique", IF($J49>1, IF($J49=4, "Inconnu", IF($J49=99, "Surveillance", F49)), 0),"Non requis") -> 0 | P49: =IF(INTRO!$E$41="Endémique", IF($J49>1, IF($J49=4, "Inconnu", IF($J49=99, "Surveillance", ROUND(D49*INTRO!$E$51,0))), 0),"Non requis") -> 0 | Q49: =IF(INTRO!$E$41="Endémique", IF($J49>1, IF($J49=4, "Inconnu", IF($J49=99, "Surveillance", SUM($N49:$P49))), 0),"Non requis") -> 0 | R49: 0 | S49: 0 | T49: 0 | U49: 0 | V49: 0 | W49: 0 | X49: 0 | Y49: 0 | AH49: 40189 | AI49: Kébémer
A50: =IF(INTRO!$E$33<>0,INTRO!$E$33, " ") -> SENEGAL | B50: Louga | C50: Linguère | D50: 148973.0881 | E50: =IF(INTRO!$E$48="","",ROUND($D50*INTRO!$E$48,0)) -> 17981 | F50: =IF(INTRO!$E$49="","",ROUND($D50*INTRO!$E$49,0)) -> 39523 | G50: =IF(INTRO!$E$50="","",ROUND($D50*INTRO!$E$50,0)) -> 86762 | H50: 19 | I50: 0 | J50: 1 | K50: 21 | L50: =IF(INTRO!$E$37="Endémique",IF($H50>0,IF($H50=4,"Inconnu",IF($H50=99,"Interrompu",$D50)),0),"Non requis") -> 148973.0881 | M50: =IF(INTRO!$E$39="Endémique", IF($I50>0, IF($I50=4,"Inconnu",IF($I50=99,"Interrompu",$D50)), 0),"Non requis") -> 0 | N50: =IF(INTRO!$E$41="Endémique", IF($J50>1, IF($J50=4, "Inconnu", IF($J50=99, "Surveillance", E50)), 0),"Non requis") -> 0 | O50: =IF(INTRO!$E$41="Endémique", IF($J50>1, IF($J50=4, "Inconnu", IF($J50=99, "Surveillance", F50)), 0),"Non requis") -> 0 | P50: =IF(INTRO!$E$41="Endémique", IF($J50>1, IF($J50=4, "Inconnu", IF($J50=99, "Surveillance", ROUND(D50*INTRO!$E$51,0))), 0),"Non requis") -> 0 | Q50: =IF(INTRO!$E$41="Endémique", IF($J50>1, IF($J50=4, "Inconnu", IF($J50=99, "Surveillance", SUM($N50:$P50))), 0),"Non requis") -> 0 | R50: 11906 | S50: 35255 | T50: 77402 | U50: 124563 | V50: 0 | W50: 0 | X50: 0 | Y50: 1 | AH50: 40190 | AI50: Linguère
A51: =IF(INTRO!$E$33<>0,INTRO!$E$33, " ") -> SENEGAL | B51: Louga | C51: Dahra | D51: 178374.7138 | E51: =IF(INTRO!$E$48="","",ROUND($D51*INTRO!$E$48,0)) -> 21530 | F51: =IF(INTRO!$E$49="","",ROUND($D51*INTRO!$E$49,0)) -> 47323 | G51: =IF(INTRO!$E$50="","",ROUND($D51*INTRO!$E$50,0)) -> 103885 | H51: 0 | I51: 0 | J51: 0 | K51: 1 | L51: =IF(INTRO!$E$37="Endémique",IF($H51>0,IF($H51=4,"Inconnu",IF($H51=99,"Interrompu",$D51)),0),"Non requis") -> 0 | M51: =IF(INTRO!$E$39="Endémique", IF($I51>0, IF($I51=4,"Inconnu",IF($I51=99,"Interrompu",$D51)), 0),"Non requis") -> 0 | N51: =IF(INTRO!$E$41="Endémique", IF($J51>1, IF($J51=4, "Inconnu", IF($J51=99, "Surveillance", E51)), 0),"Non requis") -> 0 | O51: =IF(INTRO!$E$41="Endémique", IF($J51>1, IF($J51=4, "Inconnu", IF($J51=99, "Surveillance", F51)), 0),"Non requis") -> 0 | P51: =IF(INTRO!$E$41="Endémique", IF($J51>1, IF($J51=4, "Inconnu", IF($J51=99, "Surveillance", ROUND(D51*INTRO!$E$51,0))), 0),"Non requis") -> 0 | Q51: =IF(INTRO!$E$41="Endémique", IF($J51>1, IF($J51=4, "Inconnu", IF($J51=99, "Surveillance", SUM($N51:$P51))), 0),"Non requis") -> 0 | R51: 0 | S51: 0 | T51: 0 | U51: 0 | V51: 0 | W51: 0 | X51: 0 | Y51: 0 | AH51: 40186 | AI51: Dahra
A52: =IF(INTRO!$E$33<>0,INTRO!$E$33, " ") -> SENEGAL | B52: Louga | C52: Coki | D52: 85857.05006 | E52: =IF(INTRO!$E$48="","",ROUND($D52*INTRO!$E$48,0)) -> 10363 | F52: =IF(INTRO!$E$49="","",ROUND($D52*INTRO!$E$49,0)) -> 22778 | G52: =IF(INTRO!$E$50="","",ROUND($D52*INTRO!$E$50,0)) -> 50003 | H52: 1 | I52: 0 | J52: 1 | K52: 3 | L52: =IF(INTRO!$E$37="Endémique",IF($H52>0,IF($H52=4,"Inconnu",IF($H52=99,"Interrompu",$D52)),0),"Non requis") -> 85857.05006 | M52: =IF(INTRO!$E$39="Endémique", IF($I52>0, IF($I52=4,"Inconnu",IF($I52=99,"Interrompu",$D52)), 0),"Non requis") -> 0 | N52: =IF(INTRO!$E$41="Endémique", IF($J52>1, IF($J52=4, "Inconnu", IF($J52=99, "Surveillance", E52)), 0),"Non requis") -> 0 | O52: =IF(INTRO!$E$41="Endémique", IF($J52>1, IF($J52=4, "Inconnu", IF($J52=99, "Surveillance", F52)), 0),"Non requis") -> 0 | P52: =IF(INTRO!$E$41="Endémique", IF($J52>1, IF($J52=4, "Inconnu", IF($J52=99, "Surveillance", ROUND(D52*INTRO!$E$51,0))), 0),"Non requis") -> 0 | Q52: =IF(INTRO!$E$41="Endémique", IF($J52>1, IF($J52=4, "Inconnu", IF($J52=99, "Surveillance", SUM($N52:$P52))), 0),"Non requis") -> 0 | R52: 6279 | S52: 18595 | T52: 40821 | U52: 65695 | V52: 1 | W52: 0 | X52: 0 | Y52: 1 | AH52: 40185 | AI52: Coki
A53: =IF(INTRO!$E$33<>0,INTRO!$E$33, " ") -> SENEGAL | B53: Louga | C53: Keur Momar Sarr | D53: 102376.2157 | E53: =IF(INTRO!$E$48="","",ROUND($D53*INTRO!$E$48,0)) -> 12357 | F53: =IF(INTRO!$E$49="","",ROUND($D53*INTRO!$E$49,0)) -> 27160 | G53: =IF(INTRO!$E$50="","",ROUND($D53*INTRO!$E$50,0)) -> 59624 | H53: 19 | I53: 0 | J53: 1 | K53: 31 | L53: =IF(INTRO!$E$37="Endémique",IF($H53>0,IF($H53=4,"Inconnu",IF($H53=99,"Interrompu",$D53)),0),"Non requis") -> 102376.2157 | M53: =IF(INTRO!$E$39="Endémique", IF($I53>0, IF($I53=4,"Inconnu",IF($I53=99,"Interrompu",$D53)), 0),"Non requis") -> 0 | N53: =IF(INTRO!$E$41="Endémique", IF($J53>1, IF($J53=4, "Inconnu", IF($J53=99, "Surveillance", E53)), 0),"Non requis") -> 0 | O53: =IF(INTRO!$E$41="Endémique", IF($J53>1, IF($J53=4, "Inconnu", IF($J53=99, "Surveillance", F53)), 0),"Non requis") -> 0 | P53: =IF(INTRO!$E$41="Endémique", IF($J53>1, IF($J53=4, "Inconnu", IF($J53=99, "Surveillance", ROUND(D53*INTRO!$E$51,0))), 0),"Non requis") -> 0 | Q53: =IF(INTRO!$E$41="Endémique", IF($J53>1, IF($J53=4, "Inconnu", IF($J53=99, "Surveillance", SUM($N53:$P53))), 0),"Non requis") -> 0 | R53: 9163 | S53: 27135 | T53: 59570 | U53: 95868 | V53: 0 | W53: 0 | X53: 0 | Y53: 1 | AH53: 40188 | AI53: Keur Momar Sarr
A54: =IF(INTRO!$E$33<>0,INTRO!$E$33, " ") -> SENEGAL | B54: Louga | C54: Sakal | D54: 97026.63017 | E54: =IF(INTRO!$E$48="","",ROUND($D54*INTRO!$E$48,0)) -> 11711 | F54: =IF(INTRO!$E$49="","",ROUND($D54*INTRO!$E$49,0)) -> 25741 | G54: =IF(INTRO!$E$50="","",ROUND($D54*INTRO!$E$50,0)) -> 56508 | H54: 99 | I54: 0 | J54: 1 | K54: 3 | L54: =IF(INTRO!$E$37="Endémique",IF($H54>0,IF($H54=4,"Inconnu",IF($H54=99,"Interrompu",$D54)),0),"Non requis") -> Interrompu | M54: =IF(INTRO!$E$39="Endémique", IF($I54>0, IF($I54=4,"Inconnu",IF($I54=99,"Interrompu",$D54)), 0),"Non requis") -> 0 | N54: =IF(INTRO!$E$41="Endémique", IF($J54>1, IF($J54=4, "Inconnu", IF($J54=99, "Surveillance", E54)), 0),"Non requis") -> 0 | O54: =IF(INTRO!$E$41="Endémique", IF($J54>1, IF($J54=4, "Inconnu", IF($J54=99, "Surveillance", F54)), 0),"Non requis") -> 0 | P54: =IF(INTRO!$E$41="Endémique", IF($J54>1, IF($J54=4, "Inconnu", IF($J54=99, "Surveillance", ROUND(D54*INTRO!$E$51,0))), 0),"Non requis") -> 0 | Q54: =IF(INTRO!$E$41="Endémique", IF($J54>1, IF($J54=4, "Inconnu", IF($J54=99, "Surveillance", SUM($N54:$P54))), 0),"Non requis") -> 0 | R54: 8685 | S54: 25713 | T54: 56454 | U54: 90852 | V54: 0 | W54: 0 | X54: 0 | Y54: 1 | AH54: 40192 | AI54: Sakal
A55: =IF(INTRO!$E$33<>0,INTRO!$E$33, " ") -> SENEGAL | B55: Louga | C55: Louga | D55: 219787.5932 | E55: =IF(INTRO!$E$48="","",ROUND($D55*INTRO!$E$48,0)) -> 26528 | F55: =IF(INTRO!$E$49="","",ROUND($D55*INTRO!$E$49,0)) -> 58310 | G55: =IF(INTRO!$E$50="","",ROUND($D55*INTRO!$E$50,0)) -> 128004 | H55: 1 | I55: 0 | J55: 1 | K55: 3 | L55: =IF(INTRO!$E$37="Endémique",IF($H55>0,IF($H55=4,"Inconnu",IF($H55=99,"Interrompu",$D55)),0),"Non requis") -> 219787.5932 | M55: =IF(INTRO!$E$39="Endémique", IF($I55>0, IF($I55=4,"Inconnu",IF($I55=99,"Interrompu",$D55)), 0),"Non requis") -> 0 | N55: =IF(INTRO!$E$41="Endémique", IF($J55>1, IF($J55=4, "Inconnu", IF($J55=99, "Surveillance", E55)), 0),"Non requis") -> 0 | O55: =IF(INTRO!$E$41="Endémique", IF($J55>1, IF($J55=4, "Inconnu", IF($J55=99, "Surveillance", F55)), 0),"Non requis") -> 0 | P55: =IF(INTRO!$E$41="Endémique", IF($J55>1, IF($J55=4, "Inconnu", IF($J55=99, "Surveillance", ROUND(D55*INTRO!$E$51,0))), 0),"Non requis") -> 0 | Q55: =IF(INTRO!$E$41="Endémique", IF($J55>1, IF($J55=4, "Inconnu", IF($J55=99, "Surveillance", SUM($N55:$P55))), 0),"Non requis") -> 0 | R55: 18906 | S55: 55988 | T55: 122916 | U55: 197810 | V55: 1 | W55: 0 | X55: 0 | Y55: 1 | AH55: 40191 | AI55: Louga
A56: =IF(INTRO!$E$33<>0,INTRO!$E$33, " ") -> SENEGAL | B56: Matam | C56: Kanel | D56: 353071.5875 | E56: =IF(INTRO!$E$48="","",ROUND($D56*INTRO!$E$48,0)) -> 42616 | F56: =IF(INTRO!$E$49="","",ROUND($D56*INTRO!$E$49,0)) -> 93670 | G56: =IF(INTRO!$E$50="","",ROUND($D56*INTRO!$E$50,0)) -> 205629 | H56: 0 | I56: 0 | J56: 1 | K56: 31 | L56: =IF(INTRO!$E$37="Endémique",IF($H56>0,IF($H56=4,"Inconnu",IF($H56=99,"Interrompu",$D56)),0),"Non requis") -> 0 | M56: =IF(INTRO!$E$39="Endémique", IF($I56>0, IF($I56=4,"Inconnu",IF($I56=99,"Interrompu",$D56)), 0),"Non requis") -> 0 | N56: =IF(INTRO!$E$41="Endémique", IF($J56>1, IF($J56=4, "Inconnu", IF($J56=99, "Surveillance", E56)), 0),"Non requis") -> 0 | O56: =IF(INTRO!$E$41="Endémique", IF($J56>1, IF($J56=4, "Inconnu", IF($J56=99, "Surveillance", F56)), 0),"Non requis") -> 0 | P56: =IF(INTRO!$E$41="Endémique", IF($J56>1, IF($J56=4, "Inconnu", IF($J56=99, "Surveillance", ROUND(D56*INTRO!$E$51,0))), 0),"Non requis") -> 0 | Q56: =IF(INTRO!$E$41="Endémique", IF($J56>1, IF($J56=4, "Inconnu", IF($J56=99, "Surveillance", SUM($N56:$P56))), 0),"Non requis") -> 0 | R56: 30681 | S56: 90849 | T56: 199454 | U56: 320984 | V56: 0 | W56: 0 | X56: 0 | Y56: 1 | AH56: 40193 | AI56: Kanel
A57: =IF(INTRO!$E$33<>0,INTRO!$E$33, " ") -> SENEGAL | B57: Matam | C57: Matam | D57: 286422.2072 | E57: =IF(INTRO!$E$48="","",ROUND($D57*INTRO!$E$48,0)) -> 34571 | F57: =IF(INTRO!$E$49="","",ROUND($D57*INTRO!$E$49,0)) -> 75988 | G57: =IF(INTRO!$E$50="","",ROUND($D57*INTRO!$E$50,0)) -> 166812 | H57: 0 | I57: 0 | J57: 1 | K57: 31 | L57: =IF(INTRO!$E$37="Endémique",IF($H57>0,IF($H57=4,"Inconnu",IF($H57=99,"Interrompu",$D57)),0),"Non requis") -> 0 | M57: =IF(INTRO!$E$39="Endémique", IF($I57>0, IF($I57=4,"Inconnu",IF($I57=99,"Interrompu",$D57)), 0),"Non requis") -> 0 | N57: =IF(INTRO!$E$41="Endémique", IF($J57>1, IF($J57=4, "Inconnu", IF($J57=99, "Surveillance", E57)), 0),"Non requis") -> 0 | O57: =IF(INTRO!$E$41="Endémique", IF($J57>1, IF($J57=4, "Inconnu", IF($J57=99, "Surveillance", F57)), 0),"Non requis") -> 0 | P57: =IF(INTRO!$E$41="Endémique", IF($J57>1, IF($J57=4, "Inconnu", IF($J57=99, "Surveillance", ROUND(D57*INTRO!$E$51,0))), 0),"Non requis") -> 0 | Q57: =IF(INTRO!$E$41="Endémique", IF($J57>1, IF($J57=4, "Inconnu", IF($J57=99, "Surveillance", SUM($N57:$P57))), 0),"Non requis") -> 0 | R57: 25151 | S57: 74473 | T57: 163506 | U57: 263130 | V57: 0 | W57: 0 | X57: 0 | Y57: 1 | AH57: 40194 | AI57: Matam
A58: =IF(INTRO!$E$33<>0,INTRO!$E$33, " ") -> SENEGAL | B58: Matam | C58: Thilogne | D58: 116985.267 | E58: =IF(INTRO!$E$48="","",ROUND($D58*INTRO!$E$48,0)) -> 14120 | F58: =IF(INTRO!$E$49="","",ROUND($D58*INTRO!$E$49,0)) -> 31036 | G58: =IF(INTRO!$E$50="","",ROUND($D58*INTRO!$E$50,0)) -> 68132 | H58: 0 | I58: 0 | J58: 1 | K58: 21 | L58: =IF(INTRO!$E$37="Endémique",IF($H58>0,IF($H58=4,"Inconnu",IF($H58=99,"Interrompu",$D58)),0),"Non requis") -> 0 | M58: =IF(INTRO!$E$39="Endémique", IF($I58>0, IF($I58=4,"Inconnu",IF($I58=99,"Interrompu",$D58)), 0),"Non requis") -> 0 | N58: =IF(INTRO!$E$41="Endémique", IF($J58>1, IF($J58=4, "Inconnu", IF($J58=99, "Surveillance", E58)), 0),"Non requis") -> 0 | O58: =IF(INTRO!$E$41="Endémique", IF($J58>1, IF($J58=4, "Inconnu", IF($J58=99, "Surveillance", F58)), 0),"Non requis") -> 0 | P58: =IF(INTRO!$E$41="Endémique", IF($J58>1, IF($J58=4, "Inconnu", IF($J58=99, "Surveillance", ROUND(D58*INTRO!$E$51,0))), 0),"Non requis") -> 0 | Q58: =IF(INTRO!$E$41="Endémique", IF($J58>1, IF($J58=4, "Inconnu", IF($J58=99, "Surveillance", SUM($N58:$P58))), 0),"Non requis") -> 0 | R58: 10273 | S58: 30417 | T58: 66782 | U58: 107472 | V58: 0 | W58: 0 | X58: 0 | Y58: 1 | AH58: 40196 | AI58: Thilogne
A59: =IF(INTRO!$E$33<>0,INTRO!$E$33, " ") -> SENEGAL | B59: Matam | C59: Ranerou | D59: 75928.88598 | E59: =IF(INTRO!$E$48="","",ROUND($D59*INTRO!$E$48,0)) -> 9165 | F59: =IF(INTRO!$E$49="","",ROUND($D59*INTRO!$E$49,0)) -> 20144 | G59: =IF(INTRO!$E$50="","",ROUND($D59*INTRO!$E$50,0)) -> 44221 | H59: 0 | I59: 0 | J59: 1 | K59: 21 | L59: =IF(INTRO!$E$37="Endémique",IF($H59>0,IF($H59=4,"Inconnu",IF($H59=99,"Interrompu",$D59)),0),"Non requis") -> 0 | M59: =IF(INTRO!$E$39="Endémique", IF($I59>0, IF($I59=4,"Inconnu",IF($I59=99,"Interrompu",$D59)), 0),"Non requis") -> 0 | N59: =IF(INTRO!$E$41="Endémique", IF($J59>1, IF($J59=4, "Inconnu", IF($J59=99, "Surveillance", E59)), 0),"Non requis") -> 0 | O59: =IF(INTRO!$E$41="Endémique", IF($J59>1, IF($J59=4, "Inconnu", IF($J59=99, "Surveillance", F59)), 0),"Non requis") -> 0 | P59: =IF(INTRO!$E$41="Endémique", IF($J59>1, IF($J59=4, "Inconnu", IF($J59=99, "Surveillance", ROUND(D59*INTRO!$E$51,0))), 0),"Non requis") -> 0 | Q59: =IF(INTRO!$E$41="Endémique", IF($J59>1, IF($J59=4, "Inconnu", IF($J59=99, "Surveillance", SUM($N59:$P59))), 0),"Non requis") -> 0 | R59: 2455 | S59: 7271 | T59: 15961 | U59: 25687 | V59: 0 | W59: 0 | X59: 0 | Y59: 1 | AH59: 40195 | AI59: Ranerou
A60: =IF(INTRO!$E$33<>0,INTRO!$E$33, " ") -> SENEGAL | B60: Saint Louis | C60: Dagana | D60: 105296.7603 | E60: =IF(INTRO!$E$48="","",ROUND($D60*INTRO!$E$48,0)) -> 12709 | F60: =IF(INTRO!$E$49="","",ROUND($D60*INTRO!$E$49,0)) -> 27935 | G60: =IF(INTRO!$E$50="","",ROUND($D60*INTRO!$E$50,0)) -> 61325 | H60: 0 | I60: 0 | J60: 1 | K60: 31 | L60: =IF(INTRO!$E$37="Endémique",IF($H60>0,IF($H60=4,"Inconnu",IF($H60=99,"Interrompu",$D60)),0),"Non requis") -> 0 | M60: =IF(INTRO!$E$39="Endémique", IF($I60>0, IF($I60=4,"Inconnu",IF($I60=99,"Interrompu",$D60)), 0),"Non requis") -> 0 | N60: =IF(INTRO!$E$41="Endémique", IF($J60>1, IF($J60=4, "Inconnu", IF($J60=99, "Surveillance", E60)), 0),"Non requis") -> 0 | O60: =IF(INTRO!$E$41="Endémique", IF($J60>1, IF($J60=4, "Inconnu", IF($J60=99, "Surveillance", F60)), 0),"Non requis") -> 0 | P60: =IF(INTRO!$E$41="Endémique", IF($J60>1, IF($J60=4, "Inconnu", IF($J60=99, "Surveillance", ROUND(D60*INTRO!$E$51,0))), 0),"Non requis") -> 0 | Q60: =IF(INTRO!$E$41="Endémique", IF($J60>1, IF($J60=4, "Inconnu", IF($J60=99, "Surveillance", SUM($N60:$P60))), 0),"Non requis") -> 0 | R60: 8439 | S60: 24990 | T60: 54865 | U60: 88294 | V60: 0 | W60: 0 | X60: 0 | Y60: 1 | AH60: 40197 | AI60: Dagana
A61: =IF(INTRO!$E$33<>0,INTRO!$E$33, " ") -> SENEGAL | B61: Saint Louis | C61: Richard Toll | D61: 217249.9152 | E61: =IF(INTRO!$E$48="","",ROUND($D61*INTRO!$E$48,0)) -> 26222 | F61: =IF(INTRO!$E$49="","",ROUND($D61*INTRO!$E$49,0)) -> 57636 | G61: =IF(INTRO!$E$50="","",ROUND($D61*INTRO!$E$50,0)) -> 126526 | H61: 0 | I61: 0 | J61: 1 | K61: 31 | L61: =IF(INTRO!$E$37="Endémique",IF($H61>0,IF($H61=4,"Inconnu",IF($H61=99,"Interrompu",$D61)),0),"Non requis") -> 0 | M61: =IF(INTRO!$E$39="Endémique", IF($I61>0, IF($I61=4,"Inconnu",IF($I61=99,"Interrompu",$D61)), 0),"Non requis") -> 0 | N61: =IF(INTRO!$E$41="Endémique", IF($J61>1, IF($J61=4, "Inconnu", IF($J61=99, "Surveillance", E61)), 0),"Non requis") -> 0 | O61: =IF(INTRO!$E$41="Endémique", IF($J61>1, IF($J61=4, "Inconnu", IF($J61=99, "Surveillance", F61)), 0),"Non requis") -> 0 | P61: =IF(INTRO!$E$41="Endémique", IF($J61>1, IF($J61=4, "Inconnu", IF($J61=99, "Surveillance", ROUND(D61*INTRO!$E$51,0))), 0),"Non requis") -> 0 | Q61: =IF(INTRO!$E$41="Endémique", IF($J61>1, IF($J61=4, "Inconnu", IF($J61=99, "Surveillance", SUM($N61:$P61))), 0),"Non requis") -> 0 | R61: 18204 | S61: 53899 | T61: 118329 | U61: 190432 | V61: 0 | W61: 0 | X61: 0 | Y61: 1 | AH61: 40200 | AI61: Richard Toll
A62: =IF(INTRO!$E$33<>0,INTRO!$E$33, " ") -> SENEGAL | B62: Saint Louis | C62: Peté | D62: 219350.9354 | E62: =IF(INTRO!$E$48="","",ROUND($D62*INTRO!$E$48,0)) -> 26476 | F62: =IF(INTRO!$E$49="","",ROUND($D62*INTRO!$E$49,0)) -> 58194 | G62: =IF(INTRO!$E$50="","",ROUND($D62*INTRO!$E$50,0)) -> 127750 | H62: 1 | I62: 0 | J62: 1 | K62: 3 | L62: =IF(INTRO!$E$37="Endémique",IF($H62>0,IF($H62=4,"Inconnu",IF($H62=99,"Interrompu",$D62)),0),"Non requis") -> 219350.9354 | M62: =IF(INTRO!$E$39="Endémique", IF($I62>0, IF($I62=4,"Inconnu",IF($I62=99,"Interrompu",$D62)), 0),"Non requis") -> 0 | N62: =IF(INTRO!$E$41="Endémique", IF($J62>1, IF($J62=4, "Inconnu", IF($J62=99, "Surveillance", E62)), 0),"Non requis") -> 0 | O62: =IF(INTRO!$E$41="Endémique", IF($J62>1, IF($J62=4, "Inconnu", IF($J62=99, "Surveillance", F62)), 0),"Non requis") -> 0 | P62: =IF(INTRO!$E$41="Endémique", IF($J62>1, IF($J62=4, "Inconnu", IF($J62=99, "Surveillance", ROUND(D62*INTRO!$E$51,0))), 0),"Non requis") -> 0 | Q62: =IF(INTRO!$E$41="Endémique", IF($J62>1, IF($J62=4, "Inconnu", IF($J62=99, "Surveillance", SUM($N62:$P62))), 0),"Non requis") -> 0 | R62: 19689 | S62: 58194 | T62: 127750 | U62: 206004 | V62: 1 | W62: 0 | X62: 0 | Y62: 1 | AH62: 40198 | AI62: Peté
A63: =IF(INTRO!$E$33<>0,INTRO!$E$33, " ") -> SENEGAL | B63: Saint Louis | C63: Podor | D63: 275427.7121 | E63: =IF(INTRO!$E$48="","",ROUND($D63*INTRO!$E$48,0)) -> 33244 | F63: =IF(INTRO!$E$49="","",ROUND($D63*INTRO!$E$49,0)) -> 73071 | G63: =IF(INTRO!$E$50="","",ROUND($D63*INTRO!$E$50,0)) -> 160409 | H63: 99 | I63: 0 | J63: 1 | K63: 31 | L63: =IF(INTRO!$E$37="Endémique",IF($H63>0,IF($H63=4,"Inconnu",IF($H63=99,"Interrompu",$D63)),0),"Non requis") -> Interrompu | M63: =IF(INTRO!$E$39="Endémique", IF($I63>0, IF($I63=4,"Inconnu",IF($I63=99,"Interrompu",$D63)), 0),"Non requis") -> 0 | N63: =IF(INTRO!$E$41="Endémique", IF($J63>1, IF($J63=4, "Inconnu", IF($J63=99, "Surveillance", E63)), 0),"Non requis") -> 0 | O63: =IF(INTRO!$E$41="Endémique", IF($J63>1, IF($J63=4, "Inconnu", IF($J63=99, "Surveillance", F63)), 0),"Non requis") -> 0 | P63: =IF(INTRO!$E$41="Endémique", IF($J63>1, IF($J63=4, "Inconnu", IF($J63=99, "Surveillance", ROUND(D63*INTRO!$E$51,0))), 0),"Non requis") -> 0 | Q63: =IF(INTRO!$E$41="Endémique", IF($J63>1, IF($J63=4, "Inconnu", IF($J63=99, "Surveillance", SUM($N63:$P63))), 0),"Non requis") -> 0 | R63: 24387 | S63: 72209 | T63: 158531 | U63: 255127 | V63: 0 | W63: 0 | X63: 0 | Y63: 1 | AH63: 40199 | AI63: Podor
A64: =IF(INTRO!$E$33<>0,INTRO!$E$33, " ") -> SENEGAL | B64: Saint Louis | C64: Saint Louis | D64: 395679.4749 | E64: =IF(INTRO!$E$48="","",ROUND($D64*INTRO!$E$48,0)) -> 47759 | F64: =IF(INTRO!$E$49="","",ROUND($D64*INTRO!$E$49,0)) -> 104974 | G64: =IF(INTRO!$E$50="","",ROUND($D64*INTRO!$E$50,0)) -> 230444 | H64: 0 | I64: 0 | J64: 1 | K64: 31 | L64: =IF(INTRO!$E$37="Endémique",IF($H64>0,IF($H64=4,"Inconnu",IF($H64=99,"Interrompu",$D64)),0),"Non requis") -> 0 | M64: =IF(INTRO!$E$39="Endémique", IF($I64>0, IF($I64=4,"Inconnu",IF($I64=99,"Interrompu",$D64)), 0),"Non requis") -> 0 | N64: =IF(INTRO!$E$41="Endémique", IF($J64>1, IF($J64=4, "Inconnu", IF($J64=99, "Surveillance", E64)), 0),"Non requis") -> 0 | O64: =IF(INTRO!$E$41="Endémique", IF($J64>1, IF($J64=4, "Inconnu", IF($J64=99, "Surveillance", F64)), 0),"Non requis") -> 0 | P64: =IF(INTRO!$E$41="Endémique", IF($J64>1, IF($J64=4, "Inconnu", IF($J64=99, "Surveillance", ROUND(D64*INTRO!$E$51,0))), 0),"Non requis") -> 0 | Q64: =IF(INTRO!$E$41="Endémique", IF($J64>1, IF($J64=4, "Inconnu", IF($J64=99, "Surveillance", SUM($N64:$P64))), 0),"Non requis") -> 0 | R64: 33513 | S64: 99239 | T64: 217869 | U64: 350621 | V64: 0 | W64: 0 | X64: 0 | Y64: 1 | AH64: 40201 | AI64: Saint Louis
A65: =IF(INTRO!$E$33<>0,INTRO!$E$33, " ") -> SENEGAL | B65: Sédhiou | C65: Bounkiling | D65: 207648.7171 | E65: =IF(INTRO!$E$48="","",ROUND($D65*INTRO!$E$48,0)) -> 25063 | F65: =IF(INTRO!$E$49="","",ROUND($D65*INTRO!$E$49,0)) -> 55089 | G65: =IF(INTRO!$E$50="","",ROUND($D65*INTRO!$E$50,0)) -> 120935 | H65: 99 | I65: 0 | J65: 1 | K65: 3 | L65: =IF(INTRO!$E$37="Endémique",IF($H65>0,IF($H65=4,"Inconnu",IF($H65=99,"Interrompu",$D65)),0),"Non requis") -> Interrompu | M65: =IF(INTRO!$E$39="Endémique", IF($I65>0, IF($I65=4,"Inconnu",IF($I65=99,"Interrompu",$D65)), 0),"Non requis") -> 0 | N65: =IF(INTRO!$E$41="Endémique", IF($J65>1, IF($J65=4, "Inconnu", IF($J65=99, "Surveillance", E65)), 0),"Non requis") -> 0 | O65: =IF(INTRO!$E$41="Endémique", IF($J65>1, IF($J65=4, "Inconnu", IF($J65=99, "Surveillance", F65)), 0),"Non requis") -> 0 | P65: =IF(INTRO!$E$41="Endémique", IF($J65>1, IF($J65=4, "Inconnu", IF($J65=99, "Surveillance", ROUND(D65*INTRO!$E$51,0))), 0),"Non requis") -> 0 | Q65: =IF(INTRO!$E$41="Endémique", IF($J65>1, IF($J65=4, "Inconnu", IF($J65=99, "Surveillance", SUM($N65:$P65))), 0),"Non requis") -> 0 | R65: 1563 | S65: 4629 | T65: 10163 | U65: 16355 | V65: 0 | W65: 0 | X65: 0 | Y65: 1 | AH65: 40202 | AI65: Bounkiling
A66: =IF(INTRO!$E$33<>0,INTRO!$E$33, " ") -> SENEGAL | B66: Sédhiou | C66: Goudomp | D66: 222667.0034 | E66: =IF(INTRO!$E$48="","",ROUND($D66*INTRO!$E$48,0)) -> 26876 | F66: =IF(INTRO!$E$49="","",ROUND($D66*INTRO!$E$49,0)) -> 59074 | G66: =IF(INTRO!$E$50="","",ROUND($D66*INTRO!$E$50,0)) -> 129681 | H66: 99 | I66: 0 | J66: 1 | K66: 0 | L66: =IF(INTRO!$E$37="Endémique",IF($H66>0,IF($H66=4,"Inconnu",IF($H66=99,"Interrompu",$D66)),0),"Non requis") -> Interrompu | M66: =IF(INTRO!$E$39="Endémique", IF($I66>0, IF($I66=4,"Inconnu",IF($I66=99,"Interrompu",$D66)), 0),"Non requis") -> 0 | N66: =IF(INTRO!$E$41="Endémique", IF($J66>1, IF($J66=4, "Inconnu", IF($J66=99, "Surveillance", E66)), 0),"Non requis") -> 0 | O66: =IF(INTRO!$E$41="Endémique", IF($J66>1, IF($J66=4, "Inconnu", IF($J66=99, "Surveillance", F66)), 0),"Non requis") -> 0 | P66: =IF(INTRO!$E$41="Endémique", IF($J66>1, IF($J66=4, "Inconnu", IF($J66=99, "Surveillance", ROUND(D66*INTRO!$E$51,0))), 0),"Non requis") -> 0 | Q66: =IF(INTRO!$E$41="Endémique", IF($J66>1, IF($J66=4, "Inconnu", IF($J66=99, "Surveillance", SUM($N66:$P66))), 0),"Non requis") -> 0 | R66: 0 | S66: 0 | T66: 0 | U66: 0 | V66: 0 | W66: 0 | X66: 0 | Y66: 0 | AH66: 40203 | AI66: Goudomp
A67: =IF(INTRO!$E$33<>0,INTRO!$E$33, " ") -> SENEGAL | B67: Sédhiou | C67: Sedhiou | D67: 215864.0013 | E67: =IF(INTRO!$E$48="","",ROUND($D67*INTRO!$E$48,0)) -> 26055 | F67: =IF(INTRO!$E$49="","",ROUND($D67*INTRO!$E$49,0)) -> 57269 | G67: =IF(INTRO!$E$50="","",ROUND($D67*INTRO!$E$50,0)) -> 125719 | H67: 99 | I67: 0 | J67: 1 | K67: 3 | L67: =IF(INTRO!$E$37="Endémique",IF($H67>0,IF($H67=4,"Inconnu",IF($H67=99,"Interrompu",$D67)),0),"Non requis") -> Interrompu | M67: =IF(INTRO!$E$39="Endémique", IF($I67>0, IF($I67=4,"Inconnu",IF($I67=99,"Interrompu",$D67)), 0),"Non requis") -> 0 | N67: =IF(INTRO!$E$41="Endémique", IF($J67>1, IF($J67=4, "Inconnu", IF($J67=99, "Surveillance", E67)), 0),"Non requis") -> 0 | O67: =IF(INTRO!$E$41="Endémique", IF($J67>1, IF($J67=4, "Inconnu", IF($J67=99, "Surveillance", F67)), 0),"Non requis") -> 0 | P67: =IF(INTRO!$E$41="Endémique", IF($J67>1, IF($J67=4, "Inconnu", IF($J67=99, "Surveillance", ROUND(D67*INTRO!$E$51,0))), 0),"Non requis") -> 0 | Q67: =IF(INTRO!$E$41="Endémique", IF($J67>1, IF($J67=4, "Inconnu", IF($J67=99, "Surveillance", SUM($N67:$P67))), 0),"Non requis") -> 0 | R67: 15744 | S67: 46617 | T67: 102342 | U67: 164703 | V67: 0 | W67: 0 | X67: 0 | Y67: 1 | AH67: 40183 | AI67: Sedhiou
A68: =IF(INTRO!$E$33<>0,INTRO!$E$33, " ") -> SENEGAL | B68: Tambacounda | C68: Bakel | D68: 123038.3568 | E68: =IF(INTRO!$E$48="","",ROUND($D68*INTRO!$E$48,0)) -> 14851 | F68: =IF(INTRO!$E$49="","",ROUND($D68*INTRO!$E$49,0)) -> 32642 | G68: =IF(INTRO!$E$50="","",ROUND($D68*INTRO!$E$50,0)) -> 71658 | H68: 99 | I68: 0 | J68: 0 | K68: 3 | L68: =IF(INTRO!$E$37="Endémique",IF($H68>0,IF($H68=4,"Inconnu",IF($H68=99,"Interrompu",$D68)),0),"Non requis") -> Interrompu | M68: =IF(INTRO!$E$39="Endémique", IF($I68>0, IF($I68=4,"Inconnu",IF($I68=99,"Interrompu",$D68)), 0),"Non requis") -> 0 | N68: =IF(INTRO!$E$41="Endémique", IF($J68>1, IF($J68=4, "Inconnu", IF($J68=99, "Surveillance", E68)), 0),"Non requis") -> 0 | O68: =IF(INTRO!$E$41="Endémique", IF($J68>1, IF($J68=4, "Inconnu", IF($J68=99, "Surveillance", F68)), 0),"Non requis") -> 0 | P68: =IF(INTRO!$E$41="Endémique", IF($J68>1, IF($J68=4, "Inconnu", IF($J68=99, "Surveillance", ROUND(D68*INTRO!$E$51,0))), 0),"Non requis") -> 0 | Q68: =IF(INTRO!$E$41="Endémique", IF($J68>1, IF($J68=4, "Inconnu", IF($J68=99, "Surveillance", SUM($N68:$P68))), 0),"Non requis") -> 0 | R68: 10300 | S68: 30502 | T68: 66959 | U68: 107761 | V68: 0 | W68: 0 | X68: 0 | Y68: 1 | AH68: 40205 | AI68: Bakel
A69: =IF(INTRO!$E$33<>0,INTRO!$E$33, " ") -> SENEGAL | B69: Tambacounda | C69: Kidira | D69: 78437.03154 | E69: =IF(INTRO!$E$48="","",ROUND($D69*INTRO!$E$48,0)) -> 9467 | F69: =IF(INTRO!$E$49="","",ROUND($D69*INTRO!$E$49,0)) -> 20809 | G69: =IF(INTRO!$E$50="","",ROUND($D69*INTRO!$E$50,0)) -> 45682 | H69: 99 | I69: 99 | J69: 0 | K69: 3 | L69: =IF(INTRO!$E$37="Endémique",IF($H69>0,IF($H69=4,"Inconnu",IF($H69=99,"Interrompu",$D69)),0),"Non requis") -> Interrompu | M69: =IF(INTRO!$E$39="Endémique", IF($I69>0, IF($I69=4,"Inconnu",IF($I69=99,"Interrompu",$D69)), 0),"Non requis") -> Interrompu | N69: =IF(INTRO!$E$41="Endémique", IF($J69>1, IF($J69=4, "Inconnu", IF($J69=99, "Surveillance", E69)), 0),"Non requis") -> 0 | O69: =IF(INTRO!$E$41="Endémique", IF($J69>1, IF($J69=4, "Inconnu", IF($J69=99, "Surveillance", F69)), 0),"Non requis") -> 0 | P69: =IF(INTRO!$E$41="Endémique", IF($J69>1, IF($J69=4, "Inconnu", IF($J69=99, "Surveillance", ROUND(D69*INTRO!$E$51,0))), 0),"Non requis") -> 0 | Q69: =IF(INTRO!$E$41="Endémique", IF($J69>1, IF($J69=4, "Inconnu", IF($J69=99, "Surveillance", SUM($N69:$P69))), 0),"Non requis") -> 0 | R69: 6903 | S69: 20440 | T69: 44874 | U69: 72217 | V69: 0 | W69: 0 | X69: 0 | Y69: 1 | AH69: 40208 | AI69: Kidira
A70: =IF(INTRO!$E$33<>0,INTRO!$E$33, " ") -> SENEGAL | B70: Tambacounda | C70: Goudiry | D70: 106287.1508 | E70: =IF(INTRO!$E$48="","",ROUND($D70*INTRO!$E$48,0)) -> 12829 | F70: =IF(INTRO!$E$49="","",ROUND($D70*INTRO!$E$49,0)) -> 28198 | G70: =IF(INTRO!$E$50="","",ROUND($D70*INTRO!$E$50,0)) -> 61902 | H70: 99 | I70: 99 | J70: 0 | K70: 3 | L70: =IF(INTRO!$E$37="Endémique",IF($H70>0,IF($H70=4,"Inconnu",IF($H70=99,"Interrompu",$D70)),0),"Non requis") -> Interrompu | M70: =IF(INTRO!$E$39="Endémique", IF($I70>0, IF($I70=4,"Inconnu",IF($I70=99,"Interrompu",$D70)), 0),"Non requis") -> Interrompu | N70: =IF(INTRO!$E$41="Endémique", IF($J70>1, IF($J70=4, "Inconnu", IF($J70=99, "Surveillance", E70)), 0),"Non requis") -> 0 | O70: =IF(INTRO!$E$41="Endémique", IF($J70>1, IF($J70=4, "Inconnu", IF($J70=99, "Surveillance", F70)), 0),"Non requis") -> 0 | P70: =IF(INTRO!$E$41="Endémique", IF($J70>1, IF($J70=4, "Inconnu", IF($J70=99, "Surveillance", ROUND(D70*INTRO!$E$51,0))), 0),"Non requis") -> 0 | Q70: =IF(INTRO!$E$41="Endémique", IF($J70>1, IF($J70=4, "Inconnu", IF($J70=99, "Surveillance", SUM($N70:$P70))), 0),"Non requis") -> 0 | R70: 9025 | S70: 26731 | T70: 58686 | U70: 94442 | V70: 0 | W70: 0 | X70: 0 | Y70: 1 | AH70: 40207 | AI70: Goudiry
A71: =IF(INTRO!$E$33<>0,INTRO!$E$33, " ") -> SENEGAL | B71: Tambacounda | C71: Dianke Makha | D71: 60337.8819 | E71: =IF(INTRO!$E$48="","",ROUND($D71*INTRO!$E$48,0)) -> 7283 | F71: =IF(INTRO!$E$49="","",ROUND($D71*INTRO!$E$49,0)) -> 16008 | G71: =IF(INTRO!$E$50="","",ROUND($D71*INTRO!$E$50,0)) -> 35141 | H71: 99 | I71: 99 | J71: 0 | K71: 3 | L71: =IF(INTRO!$E$37="Endémique",IF($H71>0,IF($H71=4,"Inconnu",IF($H71=99,"Interrompu",$D71)),0),"Non requis") -> Interrompu | M71: =IF(INTRO!$E$39="Endémique", IF($I71>0, IF($I71=4,"Inconnu",IF($I71=99,"Interrompu",$D71)), 0),"Non requis") -> Interrompu | N71: =IF(INTRO!$E$41="Endémique", IF($J71>1, IF($J71=4, "Inconnu", IF($J71=99, "Surveillance", E71)), 0),"Non requis") -> 0 | O71: =IF(INTRO!$E$41="Endémique", IF($J71>1, IF($J71=4, "Inconnu", IF($J71=99, "Surveillance", F71)), 0),"Non requis") -> 0 | P71: =IF(INTRO!$E$41="Endémique", IF($J71>1, IF($J71=4, "Inconnu", IF($J71=99, "Surveillance", ROUND(D71*INTRO!$E$51,0))), 0),"Non requis") -> 0 | Q71: =IF(INTRO!$E$41="Endémique", IF($J71>1, IF($J71=4, "Inconnu", IF($J71=99, "Surveillance", SUM($N71:$P71))), 0),"Non requis") -> 0 | R71: 5311 | S71: 15722 | T71: 34516 | U71: 55549 | V71: 0 | W71: 0 | X71: 0 | Y71: 1 | AH71: 40206 | AI71: Dianke Makha
A72: =IF(INTRO!$E$33<>0,INTRO!$E$33, " ") -> SENEGAL | B72: Tambacounda | C72: Koumpentoum | D72: 186334.7535 | E72: =IF(INTRO!$E$48="","",ROUND($D72*INTRO!$E$48,0)) -> 22491 | F72: =IF(INTRO!$E$49="","",ROUND($D72*INTRO!$E$49,0)) -> 49435 | G72: =IF(INTRO!$E$50="","",ROUND($D72*INTRO!$E$50,0)) -> 108521 | H72: 99 | I72: 0 | J72: 0 | K72: 2 | L72: =IF(INTRO!$E$37="Endémique",IF($H72>0,IF($H72=4,"Inconnu",IF($H72=99,"Interrompu",$D72)),0),"Non requis") -> Interrompu | M72: =IF(INTRO!$E$39="Endémique", IF($I72>0, IF($I72=4,"Inconnu",IF($I72=99,"Interrompu",$D72)), 0),"Non requis") -> 0 | N72: =IF(INTRO!$E$41="Endémique", IF($J72>1, IF($J72=4, "Inconnu", IF($J72=99, "Surveillance", E72)), 0),"Non requis") -> 0 | O72: =IF(INTRO!$E$41="Endémique", IF($J72>1, IF($J72=4, "Inconnu", IF($J72=99, "Surveillance", F72)), 0),"Non requis") -> 0 | P72: =IF(INTRO!$E$41="Endémique", IF($J72>1, IF($J72=4, "Inconnu", IF($J72=99, "Surveillance", ROUND(D72*INTRO!$E$51,0))), 0),"Non requis") -> 0 | Q72: =IF(INTRO!$E$41="Endémique", IF($J72>1, IF($J72=4, "Inconnu", IF($J72=99, "Surveillance", SUM($N72:$P72))), 0),"Non requis") -> 0 | R72: 710 | S72: 2103 | T72: 4617 | U72: 7430 | V72: 0 | W72: 0 | X72: 0 | Y72: 1 | AH72: 40209 | AI72: Koumpentoum
A73: =IF(INTRO!$E$33<>0,INTRO!$E$33, " ") -> SENEGAL | B73: Tambacounda | C73: Tambacounda | D73: 334362.8045 | E73: =IF(INTRO!$E$48="","",ROUND($D73*INTRO!$E$48,0)) -> 40358 | F73: =IF(INTRO!$E$49="","",ROUND($D73*INTRO!$E$49,0)) -> 88706 | G73: =IF(INTRO!$E$50="","",ROUND($D73*INTRO!$E$50,0)) -> 194733 | H73: 99 | I73: 99 | J73: 0 | K73: 3 | L73: =IF(INTRO!$E$37="Endémique",IF($H73>0,IF($H73=4,"Inconnu",IF($H73=99,"Interrompu",$D73)),0),"Non requis") -> Interrompu | M73: =IF(INTRO!$E$39="Endémique", IF($I73>0, IF($I73=4,"Inconnu",IF($I73=99,"Interrompu",$D73)), 0),"Non requis") -> Interrompu | N73: =IF(INTRO!$E$41="Endémique", IF($J73>1, IF($J73=4, "Inconnu", IF($J73=99, "Surveillance", E73)), 0),"Non requis") -> 0 | O73: =IF(INTRO!$E$41="Endémique", IF($J73>1, IF($J73=4, "Inconnu", IF($J73=99, "Surveillance", F73)), 0),"Non requis") -> 0 | P73: =IF(INTRO!$E$41="Endémique", IF($J73>1, IF($J73=4, "Inconnu", IF($J73=99, "Surveillance", ROUND(D73*INTRO!$E$51,0))), 0),"Non requis") -> 0 | Q73: =IF(INTRO!$E$41="Endémique", IF($J73>1, IF($J73=4, "Inconnu", IF($J73=99, "Surveillance", SUM($N73:$P73))), 0),"Non requis") -> 0 | R73: 27435 | S73: 81239 | T73: 178351 | U73: 287025 | V73: 0 | W73: 0 | X73: 0 | Y73: 1 | AH73: 40212 | AI73: Tambacounda
A74: =IF(INTRO!$E$33<>0,INTRO!$E$33, " ") -> SENEGAL | B74: Tambacounda | C74: Maka Colibantang | D74: 99670.83577 | E74: =IF(INTRO!$E$48="","",ROUND($D74*INTRO!$E$48,0)) -> 12030 | F74: =IF(INTRO!$E$49="","",ROUND($D74*INTRO!$E$49,0)) -> 26443 | G74: =IF(INTRO!$E$50="","",ROUND($D74*INTRO!$E$50,0)) -> 58048 | H74: 99 | I74: 0 | J74: 0 | K74: 3 | L74: =IF(INTRO!$E$37="Endémique",IF($H74>0,IF($H74=4,"Inconnu",IF($H74=99,"Interrompu",$D74)),0),"Non requis") -> Interrompu | M74: =IF(INTRO!$E$39="Endémique", IF($I74>0, IF($I74=4,"Inconnu",IF($I74=99,"Interrompu",$D74)), 0),"Non requis") -> 0 | N74: =IF(INTRO!$E$41="Endémique", IF($J74>1, IF($J74=4, "Inconnu", IF($J74=99, "Surveillance", E74)), 0),"Non requis") -> 0 | O74: =IF(INTRO!$E$41="Endémique", IF($J74>1, IF($J74=4, "Inconnu", IF($J74=99, "Surveillance", F74)), 0),"Non requis") -> 0 | P74: =IF(INTRO!$E$41="Endémique", IF($J74>1, IF($J74=4, "Inconnu", IF($J74=99, "Surveillance", ROUND(D74*INTRO!$E$51,0))), 0),"Non requis") -> 0 | Q74: =IF(INTRO!$E$41="Endémique", IF($J74>1, IF($J74=4, "Inconnu", IF($J74=99, "Surveillance", SUM($N74:$P74))), 0),"Non requis") -> 0 | R74: 8037 | S74: 23799 | T74: 52248 | U74: 84084 | V74: 0 | W74: 0 | X74: 0 | Y74: 1 | AH74: 40211 | AI74: Maka Colibantang
A75: =IF(INTRO!$E$33<>0,INTRO!$E$33, " ") -> SENEGAL | B75: Thiès | C75: Joal-Fadhiouth | D75: 108083.3543 | E75: =IF(INTRO!$E$48="","",ROUND($D75*INTRO!$E$48,0)) -> 13046 | F75: =IF(INTRO!$E$49="","",ROUND($D75*INTRO!$E$49,0)) -> 28675 | G75: =IF(INTRO!$E$50="","",ROUND($D75*INTRO!$E$50,0)) -> 62948 | H75: 99 | I75: 0 | J75: 1 | K75: 31 | L75: =IF(INTRO!$E$37="Endémique",IF($H75>0,IF($H75=4,"Inconnu",IF($H75=99,"Interrompu",$D75)),0),"Non requis") -> Interrompu | M75: =IF(INTRO!$E$39="Endémique", IF($I75>0, IF($I75=4,"Inconnu",IF($I75=99,"Interrompu",$D75)), 0),"Non requis") -> 0 | N75: =IF(INTRO!$E$41="Endémique", IF($J75>1, IF($J75=4, "Inconnu", IF($J75=99, "Surveillance", E75)), 0),"Non requis") -> 0 | O75: =IF(INTRO!$E$41="Endémique", IF($J75>1, IF($J75=4, "Inconnu", IF($J75=99, "Surveillance", F75)), 0),"Non requis") -> 0 | P75: =IF(INTRO!$E$41="Endémique", IF($J75>1, IF($J75=4, "Inconnu", IF($J75=99, "Surveillance", ROUND(D75*INTRO!$E$51,0))), 0),"Non requis") -> 0 | Q75: =IF(INTRO!$E$41="Endémique", IF($J75>1, IF($J75=4, "Inconnu", IF($J75=99, "Surveillance", SUM($N75:$P75))), 0),"Non requis") -> 0 | R75: 2432 | S75: 7203 | T75: 15814 | U75: 25449 | V75: 0 | W75: 0 | X75: 0 | Y75: 1 | AH75: 40213 | AI75: Joal-Fadhiouth
A76: =IF(INTRO!$E$33<>0,INTRO!$E$33, " ") -> SENEGAL | B76: Thiès | C76: Mbour | D76: 487758.3713 | E76: =IF(INTRO!$E$48="","",ROUND($D76*INTRO!$E$48,0)) -> 58872 | F76: =IF(INTRO!$E$49="","",ROUND($D76*INTRO!$E$49,0)) -> 129402 | G76: =IF(INTRO!$E$50="","",ROUND($D76*INTRO!$E$50,0)) -> 284070 | H76: 99 | I76: 0 | J76: 2 | K76: 1 | L76: =IF(INTRO!$E$37="Endémique",IF($H76>0,IF($H76=4,"Inconnu",IF($H76=99,"Interrompu",$D76)),0),"Non requis") -> Interrompu | M76: =IF(INTRO!$E$39="Endémique", IF($I76>0, IF($I76=4,"Inconnu",IF($I76=99,"Interrompu",$D76)), 0),"Non requis") -> 0 | N76: =IF(INTRO!$E$41="Endémique", IF($J76>1, IF($J76=4, "Inconnu", IF($J76=99, "Surveillance", E76)), 0),"Non requis") -> 58872 | O76: =IF(INTRO!$E$41="Endémique", IF($J76>1, IF($J76=4, "Inconnu", IF($J76=99, "Surveillance", F76)), 0),"Non requis") -> 129402 | P76: =IF(INTRO!$E$41="Endémique", IF($J76>1, IF($J76=4, "Inconnu", IF($J76=99, "Surveillance", ROUND(D76*INTRO!$E$51,0))), 0),"Non requis") -> 119940 | Q76: =IF(INTRO!$E$41="Endémique", IF($J76>1, IF($J76=4, "Inconnu", IF($J76=99, "Surveillance", SUM($N76:$P76))), 0),"Non requis") -> 308214 | R76: 0 | S76: 0 | T76: 0 | U76: 0 | V76: 0 | W76: 0 | X76: 1 | Y76: 0 | AH76: 40215 | AI76: Mbour
A77: =IF(INTRO!$E$33<>0,INTRO!$E$33, " ") -> SENEGAL | B77: Thiès | C77: Popenguine | D77: 97763.88574 | E77: =IF(INTRO!$E$48="","",ROUND($D77*INTRO!$E$48,0)) -> 11800 | F77: =IF(INTRO!$E$49="","",ROUND($D77*INTRO!$E$49,0)) -> 25937 | G77: =IF(INTRO!$E$50="","",ROUND($D77*INTRO!$E$50,0)) -> 56938 | H77: 99 | I77: 0 | J77: 1 | K77: 99 | L77: =IF(INTRO!$E$37="Endémique",IF($H77>0,IF($H77=4,"Inconnu",IF($H77=99,"Interrompu",$D77)),0),"Non requis") -> Interrompu | M77: =IF(INTRO!$E$39="Endémique", IF($I77>0, IF($I77=4,"Inconnu",IF($I77=99,"Interrompu",$D77)), 0),"Non requis") -> 0 | N77: =IF(INTRO!$E$41="Endémique", IF($J77>1, IF($J77=4, "Inconnu", IF($J77=99, "Surveillance", E77)), 0),"Non requis") -> 0 | O77: =IF(INTRO!$E$41="Endémique", IF($J77>1, IF($J77=4, "Inconnu", IF($J77=99, "Surveillance", F77)), 0),"Non requis") -> 0 | P77: =IF(INTRO!$E$41="Endémique", IF($J77>1, IF($J77=4, "Inconnu", IF($J77=99, "Surveillance", ROUND(D77*INTRO!$E$51,0))), 0),"Non requis") -> 0 | Q77: =IF(INTRO!$E$41="Endémique", IF($J77>1, IF($J77=4, "Inconnu", IF($J77=99, "Surveillance", SUM($N77:$P77))), 0),"Non requis") -> 0 | R77: 0 | S77: 0 | T77: 0 | U77: 0 | V77: 0 | W77: 0 | X77: 0 | Y77: 0 | AH77: 40217 | AI77: Popenguine
A78: =IF(INTRO!$E$33<>0,INTRO!$E$33, " ") -> SENEGAL | B78: Thiès | C78: Thiadiaye | D78: 205758.6428 | E78: =IF(INTRO!$E$48="","",ROUND($D78*INTRO!$E$48,0)) -> 24835 | F78: =IF(INTRO!$E$49="","",ROUND($D78*INTRO!$E$49,0)) -> 54588 | G78: =IF(INTRO!$E$50="","",ROUND($D78*INTRO!$E$50,0)) -> 119834 | H78: 99 | I78: 0 | J78: 2 | K78: 21 | L78: =IF(INTRO!$E$37="Endémique",IF($H78>0,IF($H78=4,"Inconnu",IF($H78=99,"Interrompu",$D78)),0),"Non requis") -> Interrompu | M78: =IF(INTRO!$E$39="Endémique", IF($I78>0, IF($I78=4,"Inconnu",IF($I78=99,"Interrompu",$D78)), 0),"Non requis") -> 0 | N78: =IF(INTRO!$E$41="Endémique", IF($J78>1, IF($J78=4, "Inconnu", IF($J78=99, "Surveillance", E78)), 0),"Non requis") -> 24835 | O78: =IF(INTRO!$E$41="Endémique", IF($J78>1, IF($J78=4, "Inconnu", IF($J78=99, "Surveillance", F78)), 0),"Non requis") -> 54588 | P78: =IF(INTRO!$E$41="Endémique", IF($J78>1, IF($J78=4, "Inconnu", IF($J78=99, "Surveillance", ROUND(D78*INTRO!$E$51,0))), 0),"Non requis") -> 50596 | Q78: =IF(INTRO!$E$41="Endémique", IF($J78>1, IF($J78=4, "Inconnu", IF($J78=99, "Surveillance", SUM($N78:$P78))), 0),"Non requis") -> 130019 | R78: 17215 | S78: 50976 | T78: 111914 | U78: 180105 | V78: 0 | W78: 0 | X78: 1 | Y78: 1 | AH78: 40219 | AI78: Thiadiaye
A79: =IF(INTRO!$E$33<>0,INTRO!$E$33, " ") -> SENEGAL | B79: Thiès | C79: Pout | D79: 161987.3893 | E79: =IF(INTRO!$E$48="","",ROUND($D79*INTRO!$E$48,0)) -> 19552 | F79: =IF(INTRO!$E$49="","",ROUND($D79*INTRO!$E$49,0)) -> 42975 | G79: =IF(INTRO!$E$50="","",ROUND($D79*INTRO!$E$50,0)) -> 94341 | H79: 99 | I79: 0 | J79: 2 | K79: 1 | L79: =IF(INTRO!$E$37="Endémique",IF($H79>0,IF($H79=4,"Inconnu",IF($H79=99,"Interrompu",$D79)),0),"Non requis") -> Interrompu | M79: =IF(INTRO!$E$39="Endémique", IF($I79>0, IF($I79=4,"Inconnu",IF($I79=99,"Interrompu",$D79)), 0),"Non requis") -> 0 | N79: =IF(INTRO!$E$41="Endémique", IF($J79>1, IF($J79=4, "Inconnu", IF($J79=99, "Surveillance", E79)), 0),"Non requis") -> 19552 | O79: =IF(INTRO!$E$41="Endémique", IF($J79>1, IF($J79=4, "Inconnu", IF($J79=99, "Surveillance", F79)), 0),"Non requis") -> 42975 | P79: =IF(INTRO!$E$41="Endémique", IF($J79>1, IF($J79=4, "Inconnu", IF($J79=99, "Surveillance", ROUND(D79*INTRO!$E$51,0))), 0),"Non requis") -> 39833 | Q79: =IF(INTRO!$E$41="Endémique", IF($J79>1, IF($J79=4, "Inconnu", IF($J79=99, "Surveillance", SUM($N79:$P79))), 0),"Non requis") -> 102360 | R79: 0 | S79: 0 | T79: 0 | U79: 0 | V79: 0 | W79: 0 | X79: 1 | Y79: 0 | AH79: 40218 | AI79: Pout
A80: =IF(INTRO!$E$33<>0,INTRO!$E$33, " ") -> SENEGAL | B80: Thiès | C80: Thiès | D80: 548608.8515 | E80: =IF(INTRO!$E$48="","",ROUND($D80*INTRO!$E$48,0)) -> 66217 | F80: =IF(INTRO!$E$49="","",ROUND($D80*INTRO!$E$49,0)) -> 145546 | G80: =IF(INTRO!$E$50="","",ROUND($D80*INTRO!$E$50,0)) -> 319510 | H80: 99 | I80: 0 | J80: 2 | K80: 2 | L80: =IF(INTRO!$E$37="Endémique",IF($H80>0,IF($H80=4,"Inconnu",IF($H80=99,"Interrompu",$D80)),0),"Non requis") -> Interrompu | M80: =IF(INTRO!$E$39="Endémique", IF($I80>0, IF($I80=4,"Inconnu",IF($I80=99,"Interrompu",$D80)), 0),"Non requis") -> 0 | N80: =IF(INTRO!$E$41="Endémique", IF($J80>1, IF($J80=4, "Inconnu", IF($J80=99, "Surveillance", E80)), 0),"Non requis") -> 66217 | O80: =IF(INTRO!$E$41="Endémique", IF($J80>1, IF($J80=4, "Inconnu", IF($J80=99, "Surveillance", F80)), 0),"Non requis") -> 145546 | P80: =IF(INTRO!$E$41="Endémique", IF($J80>1, IF($J80=4, "Inconnu", IF($J80=99, "Surveillance", ROUND(D80*INTRO!$E$51,0))), 0),"Non requis") -> 134903 | Q80: =IF(INTRO!$E$41="Endémique", IF($J80>1, IF($J80=4, "Inconnu", IF($J80=99, "Surveillance", SUM($N80:$P80))), 0),"Non requis") -> 346666 | R80: 3527 | S80: 10444 | T80: 22929 | U80: 36900 | V80: 0 | W80: 0 | X80: 1 | Y80: 1 | AH80: 40220 | AI80: Thiès
A81: =IF(INTRO!$E$33<>0,INTRO!$E$33, " ") -> SENEGAL | B81: Thiès | C81: Khombole | D81: 187329.363 | E81: =IF(INTRO!$E$48="","",ROUND($D81*INTRO!$E$48,0)) -> 22611 | F81: =IF(INTRO!$E$49="","",ROUND($D81*INTRO!$E$49,0)) -> 49698 | G81: =IF(INTRO!$E$50="","",ROUND($D81*INTRO!$E$50,0)) -> 109101 | H81: 19 | I81: 0 | J81: 21 | K81: 2 | L81: =IF(INTRO!$E$37="Endémique",IF($H81>0,IF($H81=4,"Inconnu",IF($H81=99,"Interrompu",$D81)),0),"Non requis") -> 187329.363 | M81: =IF(INTRO!$E$39="Endémique", IF($I81>0, IF($I81=4,"Inconnu",IF($I81=99,"Interrompu",$D81)), 0),"Non requis") -> 0 | N81: =IF(INTRO!$E$41="Endémique", IF($J81>1, IF($J81=4, "Inconnu", IF($J81=99, "Surveillance", E81)), 0),"Non requis") -> 22611 | O81: =IF(INTRO!$E$41="Endémique", IF($J81>1, IF($J81=4, "Inconnu", IF($J81=99, "Surveillance", F81)), 0),"Non requis") -> 49698 | P81: =IF(INTRO!$E$41="Endémique", IF($J81>1, IF($J81=4, "Inconnu", IF($J81=99, "Surveillance", ROUND(D81*INTRO!$E$51,0))), 0),"Non requis") -> 46064 | Q81: =IF(INTRO!$E$41="Endémique", IF($J81>1, IF($J81=4, "Inconnu", IF($J81=99, "Surveillance", SUM($N81:$P81))), 0),"Non requis") -> 118373 | R81: 4204 | S81: 12448 | T81: 27327 | U81: 43979 | V81: 0 | W81: 0 | X81: 1 | Y81: 1 | AH81: 40214 | AI81: Khombole
A82: =IF(INTRO!$E$33<>0,INTRO!$E$33, " ") -> SENEGAL | B82: Thiès | C82: Tivaouane | D82: 395337.7427 | E82: =IF(INTRO!$E$48="","",ROUND($D82*INTRO!$E$48,0)) -> 47717 | F82: =IF(INTRO!$E$49="","",ROUND($D82*INTRO!$E$49,0)) -> 104883 | G82: =IF(INTRO!$E$50="","",ROUND($D82*INTRO!$E$50,0)) -> 230245 | H82: 99 | I82: 0 | J82: 1 | K82: 2 | L82: =IF(INTRO!$E$37="Endémique",IF($H82>0,IF($H82=4,"Inconnu",IF($H82=99,"Interrompu",$D82)),0),"Non requis") -> Interrompu | M82: =IF(INTRO!$E$39="Endémique", IF($I82>0, IF($I82=4,"Inconnu",IF($I82=99,"Interrompu",$D82)), 0),"Non requis") -> 0 | N82: =IF(INTRO!$E$41="Endémique", IF($J82>1, IF($J82=4, "Inconnu", IF($J82=99, "Surveillance", E82)), 0),"Non requis") -> 0 | O82: =IF(INTRO!$E$41="Endémique", IF($J82>1, IF($J82=4, "Inconnu", IF($J82=99, "Surveillance", F82)), 0),"Non requis") -> 0 | P82: =IF(INTRO!$E$41="Endémique", IF($J82>1, IF($J82=4, "Inconnu", IF($J82=99, "Surveillance", ROUND(D82*INTRO!$E$51,0))), 0),"Non requis") -> 0 | Q82: =IF(INTRO!$E$41="Endémique", IF($J82>1, IF($J82=4, "Inconnu", IF($J82=99, "Surveillance", SUM($N82:$P82))), 0),"Non requis") -> 0 | R82: 1005 | S82: 2976 | T82: 6534 | U82: 10515 | V82: 0 | W82: 0 | X82: 0 | Y82: 1 | AH82: 40221 | AI82: Tivaouane
A83: =IF(INTRO!$E$33<>0,INTRO!$E$33, " ") -> SENEGAL | B83: Thiès | C83: Mékhé | D83: 212639.6948 | E83: =IF(INTRO!$E$48="","",ROUND($D83*INTRO!$E$48,0)) -> 25666 | F83: =IF(INTRO!$E$49="","",ROUND($D83*INTRO!$E$49,0)) -> 56413 | G83: =IF(INTRO!$E$50="","",ROUND($D83*INTRO!$E$50,0)) -> 123841 | H83: 0 | I83: 0 | J83: 1 | K83: 0 | L83: =IF(INTRO!$E$37="Endémique",IF($H83>0,IF($H83=4,"Inconnu",IF($H83=99,"Interrompu",$D83)),0),"Non requis") -> 0 | M83: =IF(INTRO!$E$39="Endémique", IF($I83>0, IF($I83=4,"Inconnu",IF($I83=99,"Interrompu",$D83)), 0),"Non requis") -> 0 | N83: =IF(INTRO!$E$41="Endémique", IF($J83>1, IF($J83=4, "Inconnu", IF($J83=99, "Surveillance", E83)), 0),"Non requis") -> 0 | O83: =IF(INTRO!$E$41="Endémique", IF($J83>1, IF($J83=4, "Inconnu", IF($J83=99, "Surveillance", F83)), 0),"Non requis") -> 0 | P83: =IF(INTRO!$E$41="Endémique", IF($J83>1, IF($J83=4, "Inconnu", IF($J83=99, "Surveillance", ROUND(D83*INTRO!$E$51,0))), 0),"Non requis") -> 0 | Q83: =IF(INTRO!$E$41="Endémique", IF($J83>1, IF($J83=4, "Inconnu", IF($J83=99, "Surveillance", SUM($N83:$P83))), 0),"Non requis") -> 0 | R83: 0 | S83: 0 | T83: 0 | U83: 0 | V83: 0 | W83: 0 | X83: 0 | Y83: 0 | AH83: 40216 | AI83: Mékhé
A84: =IF(INTRO!$E$33<>0,INTRO!$E$33, " ") -> SENEGAL | B84: Ziguinchor | C84: Diouloulou | D84: 112524.8181 | E84: =IF(INTRO!$E$48="","",ROUND($D84*INTRO!$E$48,0)) -> 13582 | F84: =IF(INTRO!$E$49="","",ROUND($D84*INTRO!$E$49,0)) -> 29853 | G84: =IF(INTRO!$E$50="","",ROUND($D84*INTRO!$E$50,0)) -> 65534 | H84: 19 | I84: 0 | J84: 1 | K84: 11 | L84: =IF(INTRO!$E$37="Endémique",IF($H84>0,IF($H84=4,"Inconnu",IF($H84=99,"Interrompu",$D84)),0),"Non requis") -> 112524.8181 | M84: =IF(INTRO!$E$39="Endémique", IF($I84>0, IF($I84=4,"Inconnu",IF($I84=99,"Interrompu",$D84)), 0),"Non requis") -> 0 | N84: =IF(INTRO!$E$41="Endémique", IF($J84>1, IF($J84=4, "Inconnu", IF($J84=99, "Surveillance", E84)), 0),"Non requis") -> 0 | O84: =IF(INTRO!$E$41="Endémique", IF($J84>1, IF($J84=4, "Inconnu", IF($J84=99, "Surveillance", F84)), 0),"Non requis") -> 0 | P84: =IF(INTRO!$E$41="Endémique", IF($J84>1, IF($J84=4, "Inconnu", IF($J84=99, "Surveillance", ROUND(D84*INTRO!$E$51,0))), 0),"Non requis") -> 0 | Q84: =IF(INTRO!$E$41="Endémique", IF($J84>1, IF($J84=4, "Inconnu", IF($J84=99, "Surveillance", SUM($N84:$P84))), 0),"Non requis") -> 0 | R84: 717 | S84: 2124 | T84: 4664 | U84: 7505 | V84: 0 | W84: 0 | X84: 0 | Y84: 1 | AH84: 40223 | AI84: Diouloulou
A85: =IF(INTRO!$E$33<>0,INTRO!$E$33, " ") -> SENEGAL | B85: Ziguinchor | C85: Bignona | D85: 184248.4996 | E85: =IF(INTRO!$E$48="","",ROUND($D85*INTRO!$E$48,0)) -> 22239 | F85: =IF(INTRO!$E$49="","",ROUND($D85*INTRO!$E$49,0)) -> 48881 | G85: =IF(INTRO!$E$50="","",ROUND($D85*INTRO!$E$50,0)) -> 107306 | H85: 99 | I85: 0 | J85: 0 | K85: 2 | L85: =IF(INTRO!$E$37="Endémique",IF($H85>0,IF($H85=4,"Inconnu",IF($H85=99,"Interrompu",$D85)),0),"Non requis") -> Interrompu | M85: =IF(INTRO!$E$39="Endémique", IF($I85>0, IF($I85=4,"Inconnu",IF($I85=99,"Interrompu",$D85)), 0),"Non requis") -> 0 | N85: =IF(INTRO!$E$41="Endémique", IF($J85>1, IF($J85=4, "Inconnu", IF($J85=99, "Surveillance", E85)), 0),"Non requis") -> 0 | O85: =IF(INTRO!$E$41="Endémique", IF($J85>1, IF($J85=4, "Inconnu", IF($J85=99, "Surveillance", F85)), 0),"Non requis") -> 0 | P85: =IF(INTRO!$E$41="Endémique", IF($J85>1, IF($J85=4, "Inconnu", IF($J85=99, "Surveillance", ROUND(D85*INTRO!$E$51,0))), 0),"Non requis") -> 0 | Q85: =IF(INTRO!$E$41="Endémique", IF($J85>1, IF($J85=4, "Inconnu", IF($J85=99, "Surveillance", SUM($N85:$P85))), 0),"Non requis") -> 0 | R85: 16325 | S85: 48345 | T85: 106133 | U85: 170803 | V85: 0 | W85: 0 | X85: 0 | Y85: 1 | AH85: 40222 | AI85: Bignona
A86: =IF(INTRO!$E$33<>0,INTRO!$E$33, " ") -> SENEGAL | B86: Ziguinchor | C86: Thionk Essyl | D86: 57305.53603 | E86: =IF(INTRO!$E$48="","",ROUND($D86*INTRO!$E$48,0)) -> 6917 | F86: =IF(INTRO!$E$49="","",ROUND($D86*INTRO!$E$49,0)) -> 15203 | G86: =IF(INTRO!$E$50="","",ROUND($D86*INTRO!$E$50,0)) -> 33375 | H86: 99 | I86: 0 | J86: 0 | K86: 99 | L86: =IF(INTRO!$E$37="Endémique",IF($H86>0,IF($H86=4,"Inconnu",IF($H86=99,"Interrompu",$D86)),0),"Non requis") -> Interrompu | M86: =IF(INTRO!$E$39="Endémique", IF($I86>0, IF($I86=4,"Inconnu",IF($I86=99,"Interrompu",$D86)), 0),"Non requis") -> 0 | N86: =IF(INTRO!$E$41="Endémique", IF($J86>1, IF($J86=4, "Inconnu", IF($J86=99, "Surveillance", E86)), 0),"Non requis") -> 0 | O86: =IF(INTRO!$E$41="Endémique", IF($J86>1, IF($J86=4, "Inconnu", IF($J86=99, "Surveillance", F86)), 0),"Non requis") -> 0 | P86: =IF(INTRO!$E$41="Endémique", IF($J86>1, IF($J86=4, "Inconnu", IF($J86=99, "Surveillance", ROUND(D86*INTRO!$E$51,0))), 0),"Non requis") -> 0 | Q86: =IF(INTRO!$E$41="Endémique", IF($J86>1, IF($J86=4, "Inconnu", IF($J86=99, "Surveillance", SUM($N86:$P86))), 0),"Non requis") -> 0 | R86: 0 | S86: 0 | T86: 0 | U86: 0 | V86: 0 | W86: 0 | X86: 0 | Y86: 0 | AH86: 40225 | AI86: Thionk Essyl
A87: =IF(INTRO!$E$33<>0,INTRO!$E$33, " ") -> SENEGAL | B87: Ziguinchor | C87: Oussouye | D87: 67760.00988 | E87: =IF(INTRO!$E$48="","",ROUND($D87*INTRO!$E$48,0)) -> 8179 | F87: =IF(INTRO!$E$49="","",ROUND($D87*INTRO!$E$49,0)) -> 17977 | G87: =IF(INTRO!$E$50="","",ROUND($D87*INTRO!$E$50,0)) -> 39463 | H87: 99 | I87: 0 | J87: 0 | K87: 2 | L87: =IF(INTRO!$E$37="Endémique",IF($H87>0,IF($H87=4,"Inconnu",IF($H87=99,"Interrompu",$D87)),0),"Non requis") -> Interrompu | M87: =IF(INTRO!$E$39="Endémique", IF($I87>0, IF($I87=4,"Inconnu",IF($I87=99,"Interrompu",$D87)), 0),"Non requis") -> 0 | N87: =IF(INTRO!$E$41="Endémique", IF($J87>1, IF($J87=4, "Inconnu", IF($J87=99, "Surveillance", E87)), 0),"Non requis") -> 0 | O87: =IF(INTRO!$E$41="Endémique", IF($J87>1, IF($J87=4, "Inconnu", IF($J87=99, "Surveillance", F87)), 0),"Non requis") -> 0 | P87: =IF(INTRO!$E$41="Endémique", IF($J87>1, IF($J87=4, "Inconnu", IF($J87=99, "Surveillance", ROUND(D87*INTRO!$E$51,0))), 0),"Non requis") -> 0 | Q87: =IF(INTRO!$E$41="Endémique", IF($J87>1, IF($J87=4, "Inconnu", IF($J87=99, "Surveillance", SUM($N87:$P87))), 0),"Non requis") -> 0 | R87: 6003 | S87: 17780 | T87: 39032 | U87: 62815 | V87: 0 | W87: 0 | X87: 0 | Y87: 1 | AH87: 40224 | AI87: Oussouye
A88: =IF(INTRO!$E$33<>0,INTRO!$E$33, " ") -> SENEGAL | B88: Ziguinchor | C88: Ziguinchor | D88: 348061.6247 | E88: =IF(INTRO!$E$48="","",ROUND($D88*INTRO!$E$48,0)) -> 42011 | F88: =IF(INTRO!$E$49="","",ROUND($D88*INTRO!$E$49,0)) -> 92341 | G88: =IF(INTRO!$E$50="","",ROUND($D88*INTRO!$E$50,0)) -> 202711 | H88: 99 | I88: 0 | J88: 1 | K88: 11 | L88: =IF(INTRO!$E$37="Endémique",IF($H88>0,IF($H88=4,"Inconnu",IF($H88=99,"Interrompu",$D88)),0),"Non requis") -> Interrompu | M88: =IF(INTRO!$E$39="Endémique", IF($I88>0, IF($I88=4,"Inconnu",IF($I88=99,"Interrompu",$D88)), 0),"Non requis") -> 0 | N88: =IF(INTRO!$E$41="Endémique", IF($J88>1, IF($J88=4, "Inconnu", IF($J88=99, "Surveillance", E88)), 0),"Non requis") -> 0 | O88: =IF(INTRO!$E$41="Endémique", IF($J88>1, IF($J88=4, "Inconnu", IF($J88=99, "Surveillance", F88)), 0),"Non requis") -> 0 | P88: =IF(INTRO!$E$41="Endémique", IF($J88>1, IF($J88=4, "Inconnu", IF($J88=99, "Surveillance", ROUND(D88*INTRO!$E$51,0))), 0),"Non requis") -> 0 | Q88: =IF(INTRO!$E$41="Endémique", IF($J88>1, IF($J88=4, "Inconnu", IF($J88=99, "Surveillance", SUM($N88:$P88))), 0),"Non requis") -> 0 | R88: 1047 | S88: 3100 | T88: 6807 | U88: 10954 | V88: 0 | W88: 0 | X88: 0 | Y88: 1 | AH88: 40226 | AI88: Ziguinchor

Sheet DEC (hidden)
A1: Diethylcarbamazine (DEC)
A2: Structure administrative, population ciblée par groupe d'âge, plan de traitement et information sur les comprimés
A4: TOTAL | D4: =SUBTOTAL(9,D$10:D$1010) -> 0 | E4: 0 | F4: 0 | G4: 0 | I4: =SUBTOTAL(9,I$10:I$1010) -> 0 | J4: 0 | K4: 0 | L4: 0
A6: Structure administrative du pays | D6: Population nécessitant un traitement avec DEC | H6: Plan de traitement | I6: Population cible | J6: Diethylcarbamazine (DEC)
A7: Pays | B7: Région/Département | C7: District | D7: EAPréS | E7: EAS | F7: Adultes | G7: Total | H7: FL | I7: FL | J7: Total requis | K7: Reste en stock | L7: Comprimés devant être fournis
A10: =IF(INTRO!$E$39<>"Non endémique", " ", IF(INTRO!$E$37="Non endémique"," ", IF(COUNTRY_INFO!A10=0," ",COUNTRY_INFO!A10))) ->  | B10: =IF(INTRO!$E$39<>"Non endémique", " ", IF(INTRO!$E$37="Non endémique"," ", IF(COUNTRY_INFO!B10=0," ",COUNTRY_INFO!B10))) ->  | C10: =IF(INTRO!$E$39<>"Non endémique", " ", IF(INTRO!$E$37="Non endémique"," ", IF(COUNTRY_INFO!C10=0," ",COUNTRY_INFO!C10))) ->  | D10: =IF(INTRO!$E$39<>"Non endémique", 0, IF(INTRO!$E$37="Non endémique",0,IF(COUNTRY_INFO!$H10=1,COUNTRY_INFO!E10,0))) -> 0 | E10: =IF(INTRO!$E$39<>"Non endémique", 0, IF(INTRO!$E$37="Non endémique",0,IF(COUNTRY_INFO!$H10=1,COUNTRY_INFO!F10,0))) -> 0 | F10: =IF(INTRO!$E$39<>"Non endémique", 0, IF(INTRO!$E$37="Non endémique",0,IF(COUNTRY_INFO!$H10=1,COUNTRY_INFO!G10,0))) -> 0 | G10: =SUM(D10:F10) -> 0 | H10: =IF(INTRO!$E$39="Non endémique",IF(INTRO!$E$37="Non endémique","Non requis",COUNTRY_INFO!V10),"Traiter avec IVM") -> Traiter avec IVM | I10: =IF(H10=1,G10,0) -> 0 | J10: =IF(I10>0,I10*2.5,0) -> 0 | L10: =IF($J10>$K10,$J10-$K10,0) -> 0
A11: =IF(INTRO!$E$39<>"Non endémique", " ", IF(INTRO!$E$37="Non endémique"," ", IF(COUNTRY_INFO!A11=0," ",COUNTRY_INFO!A11))) ->  | B11: =IF(INTRO!$E$39<>"Non endémique", " ", IF(INTRO!$E$37="Non endémique"," ", IF(COUNTRY_INFO!B11=0," ",COUNTRY_INFO!B11))) ->  | C11: =IF(INTRO!$E$39<>"Non endémique", " ", IF(INTRO!$E$37="Non endémique"," ", IF(COUNTRY_INFO!C11=0," ",COUNTRY_INFO!C11))) ->  | D11: =IF(INTRO!$E$39<>"Non endémique", 0, IF(INTRO!$E$37="Non endémique",0,IF(COUNTRY_INFO!$H11=1,COUNTRY_INFO!E11,0))) -> 0 | E11: =IF(INTRO!$E$39<>"Non endémique", 0, IF(INTRO!$E$37="Non endémique",0,IF(COUNTRY_INFO!$H11=1,COUNTRY_INFO!F11,0))) -> 0 | F11: =IF(INTRO!$E$39<>"Non endémique", 0, IF(INTRO!$E$37="Non endémique",0,IF(COUNTRY_INFO!$H11=1,COUNTRY_INFO!G11,0))) -> 0 | G11: =SUM(D11:F11) -> 0 | H11: =IF(INTRO!$E$39="Non endémique",IF(INTRO!$E$37="Non endémique","Non requis",COUNTRY_INFO!V11),"Traiter avec IVM") -> Traiter avec IVM | I11: =IF(H11=1,G11,0) -> 0 | J11: =IF(I11>0,I11*2.5,0) -> 0 | L11: 0
A12: =IF(INTRO!$E$39<>"Non endémique", " ", IF(INTRO!$E$37="Non endémique"," ", IF(COUNTRY_INFO!A12=0," ",COUNTRY_INFO!A12))) ->  | B12: =IF(INTRO!$E$39<>"Non endémique", " ", IF(INTRO!$E$37="Non endémique"," ", IF(COUNTRY_INFO!B12=0," ",COUNTRY_INFO!B12))) ->  | C12: =IF(INTRO!$E$39<>"Non endémique", " ", IF(INTRO!$E$37="Non endémique"," ", IF(COUNTRY_INFO!C12=0," ",COUNTRY_INFO!C12))) ->  | D12: =IF(INTRO!$E$39<>"Non endémique", 0, IF(INTRO!$E$37="Non endémique",0,IF(COUNTRY_INFO!$H12=1,COUNTRY_INFO!E12,0))) -> 0 | E12: =IF(INTRO!$E$39<>"Non endémique", 0, IF(INTRO!$E$37="Non endémique",0,IF(COUNTRY_INFO!$H12=1,COUNTRY_INFO!F12,0))) -> 0 | F12: =IF(INTRO!$E$39<>"Non endémique", 0, IF(INTRO!$E$37="Non endémique",0,IF(COUNTRY_INFO!$H12=1,COUNTRY_INFO!G12,0))) -> 0 | G12: 0 | H12: =IF(INTRO!$E$39="Non endémique",IF(INTRO!$E$37="Non endémique","Non requis",COUNTRY_INFO!V12),"Traiter avec IVM") -> Traiter avec IVM | I12: 0 | J12: 0 | L12: 0
A13: =IF(INTRO!$E$39<>"Non endémique", " ", IF(INTRO!$E$37="Non endémique"," ", IF(COUNTRY_INFO!A13=0," ",COUNTRY_INFO!A13))) ->  | B13: =IF(INTRO!$E$39<>"Non endémique", " ", IF(INTRO!$E$37="Non endémique"," ", IF(COUNTRY_INFO!B13=0," ",COUNTRY_INFO!B13))) ->  | C13: =IF(INTRO!$E$39<>"Non endémique", " ", IF(INTRO!$E$37="Non endémique"," ", IF(COUNTRY_INFO!C13=0," ",COUNTRY_INFO!C13))) ->  | D13: =IF(INTRO!$E$39<>"Non endémique", 0, IF(INTRO!$E$37="Non endémique",0,IF(COUNTRY_INFO!$H13=1,COUNTRY_INFO!E13,0))) -> 0 | E13: =IF(INTRO!$E$39<>"Non endémique", 0, IF(INTRO!$E$37="Non endémique",0,IF(COUNTRY_INFO!$H13=1,COUNTRY_INFO!F13,0))) -> 0 | F13: =IF(INTRO!$E$39<>"Non endémique", 0, IF(INTRO!$E$37="Non endémique",0,IF(COUNTRY_INFO!$H13=1,COUNTRY_INFO!G13,0))) -> 0 | G13: 0 | H13: =IF(INTRO!$E$39="Non endémique",IF(INTRO!$E$37="Non endémique","Non requis",COUNTRY_INFO!V13),"Traiter avec IVM") -> Traiter avec IVM | I13: 0 | J13: 0 | L13: 0
A14: =IF(INTRO!$E$39<>"Non endémique", " ", IF(INTRO!$E$37="Non endémique"," ", IF(COUNTRY_INFO!A14=0," ",COUNTRY_INFO!A14))) ->  | B14: =IF(INTRO!$E$39<>"Non endémique", " ", IF(INTRO!$E$37="Non endémique"," ", IF(COUNTRY_INFO!B14=0," ",COUNTRY_INFO!B14))) ->  | C14: =IF(INTRO!$E$39<>"Non endémique", " ", IF(INTRO!$E$37="Non endémique"," ", IF(COUNTRY_INFO!C14=0," ",COUNTRY_INFO!C14))) ->  | D14: =IF(INTRO!$E$39<>"Non endémique", 0, IF(INTRO!$E$37="Non endémique",0,IF(COUNTRY_INFO!$H14=1,COUNTRY_INFO!E14,0))) -> 0 | E14: =IF(INTRO!$E$39<>"Non endémique", 0, IF(INTRO!$E$37="Non endémique",0,IF(COUNTRY_INFO!$H14=1,COUNTRY_INFO!F14,0))) -> 0 | F14: =IF(INTRO!$E$39<>"Non endémique", 0, IF(INTRO!$E$37="Non endémique",0,IF(COUNTRY_INFO!$H14=1,COUNTRY_INFO!G14,0))) -> 0 | G14: 0 | H14: =IF(INTRO!$E$39="Non endémique",IF(INTRO!$E$37="Non endémique","Non requis",COUNTRY_INFO!V14),"Traiter avec IVM") -> Traiter avec IVM | I14: 0 | J14: 0 | L14: 0
A15: =IF(INTRO!$E$39<>"Non endémique", " ", IF(INTRO!$E$37="Non endémique"," ", IF(COUNTRY_INFO!A15=0," ",COUNTRY_INFO!A15))) ->  | B15: =IF(INTRO!$E$39<>"Non endémique", " ", IF(INTRO!$E$37="Non endémique"," ", IF(COUNTRY_INFO!B15=0," ",COUNTRY_INFO!B15))) ->  | C15: =IF(INTRO!$E$39<>"Non endémique", " ", IF(INTRO!$E$37="Non endémique"," ", IF(COUNTRY_INFO!C15=0," ",COUNTRY_INFO!C15))) ->  | D15: =IF(INTRO!$E$39<>"Non endémique", 0, IF(INTRO!$E$37="Non endémique",0,IF(COUNTRY_INFO!$H15=1,COUNTRY_INFO!E15,0))) -> 0 | E15: =IF(INTRO!$E$39<>"Non endémique", 0, IF(INTRO!$E$37="Non endémique",0,IF(COUNTRY_INFO!$H15=1,COUNTRY_INFO!F15,0))) -> 0 | F15: =IF(INTRO!$E$39<>"Non endémique", 0, IF(INTRO!$E$37="Non endémique",0,IF(COUNTRY_INFO!$H15=1,COUNTRY_INFO!G15,0))) -> 0 | G15: 0 | H15: =IF(INTRO!$E$39="Non endémique",IF(INTRO!$E$37="Non endémique","Non requis",COUNTRY_INFO!V15),"Traiter avec IVM") -> Traiter avec IVM | I15: 0 | J15: 0 | L15: 0
A16: =IF(INTRO!$E$39<>"Non endémique", " ", IF(INTRO!$E$37="Non endémique"," ", IF(COUNTRY_INFO!A16=0," ",COUNTRY_INFO!A16))) ->  | B16: =IF(INTRO!$E$39<>"Non endémique", " ", IF(INTRO!$E$37="Non endémique"," ", IF(COUNTRY_INFO!B16=0," ",COUNTRY_INFO!B16))) ->  | C16: =IF(INTRO!$E$39<>"Non endémique", " ", IF(INTRO!$E$37="Non endémique"," ", IF(COUNTRY_INFO!C16=0," ",COUNTRY_INFO!C16))) ->  | D16: =IF(INTRO!$E$39<>"Non endémique", 0, IF(INTRO!$E$37="Non endémique",0,IF(COUNTRY_INFO!$H16=1,COUNTRY_INFO!E16,0))) -> 0 | E16: =IF(INTRO!$E$39<>"Non endémique", 0, IF(INTRO!$E$37="Non endémique",0,IF(COUNTRY_INFO!$H16=1,COUNTRY_INFO!F16,0))) -> 0 | F16: =IF(INTRO!$E$39<>"Non endémique", 0, IF(INTRO!$E$37="Non endémique",0,IF(COUNTRY_INFO!$H16=1,COUNTRY_INFO!G16,0))) -> 0 | G16: 0 | H16: =IF(INTRO!$E$39="Non endémique",IF(INTRO!$E$37="Non endémique","Non requis",COUNTRY_INFO!V16),"Traiter avec IVM") -> Traiter avec IVM | I16: 0 | J16: 0 | L16: 0
A17: =IF(INTRO!$E$39<>"Non endémique", " ", IF(INTRO!$E$37="Non endémique"," ", IF(COUNTRY_INFO!A17=0," ",COUNTRY_INFO!A17))) ->  | B17: =IF(INTRO!$E$39<>"Non endémique", " ", IF(INTRO!$E$37="Non endémique"," ", IF(COUNTRY_INFO!B17=0," ",COUNTRY_INFO!B17))) ->  | C17: =IF(INTRO!$E$39<>"Non endémique", " ", IF(INTRO!$E$37="Non endémique"," ", IF(COUNTRY_INFO!C17=0," ",COUNTRY_INFO!C17))) ->  | D17: =IF(INTRO!$E$39<>"Non endémique", 0, IF(INTRO!$E$37="Non endémique",0,IF(COUNTRY_INFO!$H17=1,COUNTRY_INFO!E17,0))) -> 0 | E17: =IF(INTRO!$E$39<>"Non endémique", 0, IF(INTRO!$E$37="Non endémique",0,IF(COUNTRY_INFO!$H17=1,COUNTRY_INFO!F17,0))) -> 0 | F17: =IF(INTRO!$E$39<>"Non endémique", 0, IF(INTRO!$E$37="Non endémique",0,IF(COUNTRY_INFO!$H17=1,COUNTRY_INFO!G17,0))) -> 0 | G17: 0 | H17: =IF(INTRO!$E$39="Non endémique",IF(INTRO!$E$37="Non endémique","Non requis",COUNTRY_INFO!V17),"Traiter avec IVM") -> Traiter avec IVM | I17: 0 | J17: 0 | L17: 0
A18: =IF(INTRO!$E$39<>"Non endémique", " ", IF(INTRO!$E$37="Non endémique"," ", IF(COUNTRY_INFO!A18=0," ",COUNTRY_INFO!A18))) ->  | B18: =IF(INTRO!$E$39<>"Non endémique", " ", IF(INTRO!$E$37="Non endémique"," ", IF(COUNTRY_INFO!B18=0," ",COUNTRY_INFO!B18))) ->  | C18: =IF(INTRO!$E$39<>"Non endémique", " ", IF(INTRO!$E$37="Non endémique"," ", IF(COUNTRY_INFO!C18=0," ",COUNTRY_INFO!C18))) ->  | D18: =IF(INTRO!$E$39<>"Non endémique", 0, IF(INTRO!$E$37="Non endémique",0,IF(COUNTRY_INFO!$H18=1,COUNTRY_INFO!E18,0))) -> 0 | E18: =IF(INTRO!$E$39<>"Non endémique", 0, IF(INTRO!$E$37="Non endémique",0,IF(COUNTRY_INFO!$H18=1,COUNTRY_INFO!F18,0))) -> 0 | F18: =IF(INTRO!$E$39<>"Non endémique", 0, IF(INTRO!$E$37="Non endémique",0,IF(COUNTRY_INFO!$H18=1,COUNTRY_INFO!G18,0))) -> 0 | G18: 0 | H18: =IF(INTRO!$E$39="Non endémique",IF(INTRO!$E$37="Non endémique","Non requis",COUNTRY_INFO!V18),"Traiter avec IVM") -> Traiter avec IVM | I18: 0 | J18: 0 | L18: 0
A19: =IF(INTRO!$E$39<>"Non endémique", " ", IF(INTRO!$E$37="Non endémique"," ", IF(COUNTRY_INFO!A19=0," ",COUNTRY_INFO!A19))) ->  | B19: =IF(INTRO!$E$39<>"Non endémique", " ", IF(INTRO!$E$37="Non endémique"," ", IF(COUNTRY_INFO!B19=0," ",COUNTRY_INFO!B19))) ->  | C19: =IF(INTRO!$E$39<>"Non endémique", " ", IF(INTRO!$E$37="Non endémique"," ", IF(COUNTRY_INFO!C19=0," ",COUNTRY_INFO!C19))) ->  | D19: =IF(INTRO!$E$39<>"Non endémique", 0, IF(INTRO!$E$37="Non endémique",0,IF(COUNTRY_INFO!$H19=1,COUNTRY_INFO!E19,0))) -> 0 | E19: =IF(INTRO!$E$39<>"Non endémique", 0, IF(INTRO!$E$37="Non endémique",0,IF(COUNTRY_INFO!$H19=1,COUNTRY_INFO!F19,0))) -> 0 | F19: =IF(INTRO!$E$39<>"Non endémique", 0, IF(INTRO!$E$37="Non endémique",0,IF(COUNTRY_INFO!$H19=1,COUNTRY_INFO!G19,0))) -> 0 | G19: 0 | H19: =IF(INTRO!$E$39="Non endémique",IF(INTRO!$E$37="Non endémique","Non requis",COUNTRY_INFO!V19),"Traiter avec IVM") -> Traiter avec IVM | I19: 0 | J19: 0 | L19: 0
A20: =IF(INTRO!$E$39<>"Non endémique", " ", IF(INTRO!$E$37="Non endémique"," ", IF(COUNTRY_INFO!A20=0," ",COUNTRY_INFO!A20))) ->  | B20: =IF(INTRO!$E$39<>"Non endémique", " ", IF(INTRO!$E$37="Non endémique"," ", IF(COUNTRY_INFO!B20=0," ",COUNTRY_INFO!B20))) ->  | C20: =IF(INTRO!$E$39<>"Non endémique", " ", IF(INTRO!$E$37="Non endémique"," ", IF(COUNTRY_INFO!C20=0," ",COUNTRY_INFO!C20))) ->  | D20: =IF(INTRO!$E$39<>"Non endémique", 0, IF(INTRO!$E$37="Non endémique",0,IF(COUNTRY_INFO!$H20=1,COUNTRY_INFO!E20,0))) -> 0 | E20: =IF(INTRO!$E$39<>"Non endémique", 0, IF(INTRO!$E$37="Non endémique",0,IF(COUNTRY_INFO!$H20=1,COUNTRY_INFO!F20,0))) -> 0 | F20: =IF(INTRO!$E$39<>"Non endémique", 0, IF(INTRO!$E$37="Non endémique",0,IF(COUNTRY_INFO!$H20=1,COUNTRY_INFO!G20,0))) -> 0 | G20: 0 | H20: =IF(INTRO!$E$39="Non endémique",IF(INTRO!$E$37="Non endémique","Non requis",COUNTRY_INFO!V20),"Traiter avec IVM") -> Traiter avec IVM | I20: 0 | J20: 0 | L20: 0
A21: =IF(INTRO!$E$39<>"Non endémique", " ", IF(INTRO!$E$37="Non endémique"," ", IF(COUNTRY_INFO!A21=0," ",COUNTRY_INFO!A21))) ->  | B21: =IF(INTRO!$E$39<>"Non endémique", " ", IF(INTRO!$E$37="Non endémique"," ", IF(COUNTRY_INFO!B21=0," ",COUNTRY_INFO!B21))) ->  | C21: =IF(INTRO!$E$39<>"Non endémique", " ", IF(INTRO!$E$37="Non endémique"," ", IF(COUNTRY_INFO!C21=0," ",COUNTRY_INFO!C21))) ->  | D21: =IF(INTRO!$E$39<>"Non endémique", 0, IF(INTRO!$E$37="Non endémique",0,IF(COUNTRY_INFO!$H21=1,COUNTRY_INFO!E21,0))) -> 0 | E21: =IF(INTRO!$E$39<>"Non endémique", 0, IF(INTRO!$E$37="Non endémique",0,IF(COUNTRY_INFO!$H21=1,COUNTRY_INFO!F21,0))) -> 0 | F21: =IF(INTRO!$E$39<>"Non endémique", 0, IF(INTRO!$E$37="Non endémique",0,IF(COUNTRY_INFO!$H21=1,COUNTRY_INFO!G21,0))) -> 0 | G21: 0 | H21: =IF(INTRO!$E$39="Non endémique",IF(INTRO!$E$37="Non endémique","Non requis",COUNTRY_INFO!V21),"Traiter avec IVM") -> Traiter avec IVM | I21: 0 | J21: 0 | L21: 0
A22: =IF(INTRO!$E$39<>"Non endémique", " ", IF(INTRO!$E$37="Non endémique"," ", IF(COUNTRY_INFO!A22=0," ",COUNTRY_INFO!A22))) ->  | B22: =IF(INTRO!$E$39<>"Non endémique", " ", IF(INTRO!$E$37="Non endémique"," ", IF(COUNTRY_INFO!B22=0," ",COUNTRY_INFO!B22))) ->  | C22: =IF(INTRO!$E$39<>"Non endémique", " ", IF(INTRO!$E$37="Non endémique"," ", IF(COUNTRY_INFO!C22=0," ",COUNTRY_INFO!C22))) ->  | D22: =IF(INTRO!$E$39<>"Non endémique", 0, IF(INTRO!$E$37="Non endémique",0,IF(COUNTRY_INFO!$H22=1,COUNTRY_INFO!E22,0))) -> 0 | E22: =IF(INTRO!$E$39<>"Non endémique", 0, IF(INTRO!$E$37="Non endémique",0,IF(COUNTRY_INFO!$H22=1,COUNTRY_INFO!F22,0))) -> 0 | F22: =IF(INTRO!$E$39<>"Non endémique", 0, IF(INTRO!$E$37="Non endémique",0,IF(COUNTRY_INFO!$H22=1,COUNTRY_INFO!G22,0))) -> 0 | G22: 0 | H22: =IF(INTRO!$E$39="Non endémique",IF(INTRO!$E$37="Non endémique","Non requis",COUNTRY_INFO!V22),"Traiter avec IVM") -> Traiter avec IVM | I22: 0 | J22: 0 | L22: 0
A23: =IF(INTRO!$E$39<>"Non endémique", " ", IF(INTRO!$E$37="Non endémique"," ", IF(COUNTRY_INFO!A23=0," ",COUNTRY_INFO!A23))) ->  | B23: =IF(INTRO!$E$39<>"Non endémique", " ", IF(INTRO!$E$37="Non endémique"," ", IF(COUNTRY_INFO!B23=0," ",COUNTRY_INFO!B23))) ->  | C23: =IF(INTRO!$E$39<>"Non endémique", " ", IF(INTRO!$E$37="Non endémique"," ", IF(COUNTRY_INFO!C23=0," ",COUNTRY_INFO!C23))) ->  | D23: =IF(INTRO!$E$39<>"Non endémique", 0, IF(INTRO!$E$37="Non endémique",0,IF(COUNTRY_INFO!$H23=1,COUNTRY_INFO!E23,0))) -> 0 | E23: =IF(INTRO!$E$39<>"Non endémique", 0, IF(INTRO!$E$37="Non endémique",0,IF(COUNTRY_INFO!$H23=1,COUNTRY_INFO!F23,0))) -> 0 | F23: =IF(INTRO!$E$39<>"Non endémique", 0, IF(INTRO!$E$37="Non endémique",0,IF(COUNTRY_INFO!$H23=1,COUNTRY_INFO!G23,0))) -> 0 | G23: 0 | H23: =IF(INTRO!$E$39="Non endémique",IF(INTRO!$E$37="Non endémique","Non requis",COUNTRY_INFO!V23),"Traiter avec IVM") -> Traiter avec IVM | I23: 0 | J23: 0 | L23: 0
A24: =IF(INTRO!$E$39<>"Non endémique", " ", IF(INTRO!$E$37="Non endémique"," ", IF(COUNTRY_INFO!A24=0," ",COUNTRY_INFO!A24))) ->  | B24: =IF(INTRO!$E$39<>"Non endémique", " ", IF(INTRO!$E$37="Non endémique"," ", IF(COUNTRY_INFO!B24=0," ",COUNTRY_INFO!B24))) ->  | C24: =IF(INTRO!$E$39<>"Non endémique", " ", IF(INTRO!$E$37="Non endémique"," ", IF(COUNTRY_INFO!C24=0," ",COUNTRY_INFO!C24))) ->  | D24: =IF(INTRO!$E$39<>"Non endémique", 0, IF(INTRO!$E$37="Non endémique",0,IF(COUNTRY_INFO!$H24=1,COUNTRY_INFO!E24,0))) -> 0 | E24: =IF(INTRO!$E$39<>"Non endémique", 0, IF(INTRO!$E$37="Non endémique",0,IF(COUNTRY_INFO!$H24=1,COUNTRY_INFO!F24,0))) -> 0 | F24: =IF(INTRO!$E$39<>"Non endémique", 0, IF(INTRO!$E$37="Non endémique",0,IF(COUNTRY_INFO!$H24=1,COUNTRY_INFO!G24,0))) -> 0 | G24: 0 | H24: =IF(INTRO!$E$39="Non endémique",IF(INTRO!$E$37="Non endémique","Non requis",COUNTRY_INFO!V24),"Traiter avec IVM") -> Traiter avec IVM | I24: 0 | J24: 0 | L24: 0
A25: =IF(INTRO!$E$39<>"Non endémique", " ", IF(INTRO!$E$37="Non endémique"," ", IF(COUNTRY_INFO!A25=0," ",COUNTRY_INFO!A25))) ->  | B25: =IF(INTRO!$E$39<>"Non endémique", " ", IF(INTRO!$E$37="Non endémique"," ", IF(COUNTRY_INFO!B25=0," ",COUNTRY_INFO!B25))) ->  | C25: =IF(INTRO!$E$39<>"Non endémique", " ", IF(INTRO!$E$37="Non endémique"," ", IF(COUNTRY_INFO!C25=0," ",COUNTRY_INFO!C25))) ->  | D25: =IF(INTRO!$E$39<>"Non endémique", 0, IF(INTRO!$E$37="Non endémique",0,IF(COUNTRY_INFO!$H25=1,COUNTRY_INFO!E25,0))) -> 0 | E25: =IF(INTRO!$E$39<>"Non endémique", 0, IF(INTRO!$E$37="Non endémique",0,IF(COUNTRY_INFO!$H25=1,COUNTRY_INFO!F25,0))) -> 0 | F25: =IF(INTRO!$E$39<>"Non endémique", 0, IF(INTRO!$E$37="Non endémique",0,IF(COUNTRY_INFO!$H25=1,COUNTRY_INFO!G25,0))) -> 0 | G25: 0 | H25: =IF(INTRO!$E$39="Non endémique",IF(INTRO!$E$37="Non endémique","Non requis",COUNTRY_INFO!V25),"Traiter avec IVM") -> Traiter avec IVM | I25: 0 | J25: 0 | L25: 0
A26: =IF(INTRO!$E$39<>"Non endémique", " ", IF(INTRO!$E$37="Non endémique"," ", IF(COUNTRY_INFO!A26=0," ",COUNTRY_INFO!A26))) ->  | B26: =IF(INTRO!$E$39<>"Non endémique", " ", IF(INTRO!$E$37="Non endémique"," ", IF(COUNTRY_INFO!B26=0," ",COUNTRY_INFO!B26))) ->  | C26: =IF(INTRO!$E$39<>"Non endémique", " ", IF(INTRO!$E$37="Non endémique"," ", IF(COUNTRY_INFO!C26=0," ",COUNTRY_INFO!C26))) ->  | D26: =IF(INTRO!$E$39<>"Non endémique", 0, IF(INTRO!$E$37="Non endémique",0,IF(COUNTRY_INFO!$H26=1,COUNTRY_INFO!E26,0))) -> 0 | E26: =IF(INTRO!$E$39<>"Non endémique", 0, IF(INTRO!$E$37="Non endémique",0,IF(COUNTRY_INFO!$H26=1,COUNTRY_INFO!F26,0))) -> 0 | F26: =IF(INTRO!$E$39<>"Non endémique", 0, IF(INTRO!$E$37="Non endémique",0,IF(COUNTRY_INFO!$H26=1,COUNTRY_INFO!G26,0))) -> 0 | G26: 0 | H26: =IF(INTRO!$E$39="Non endémique",IF(INTRO!$E$37="Non endémique","Non requis",COUNTRY_INFO!V26),"Traiter avec IVM") -> Traiter avec IVM | I26: 0 | J26: 0 | L26: 0
A27: =IF(INTRO!$E$39<>"Non endémique", " ", IF(INTRO!$E$37="Non endémique"," ", IF(COUNTRY_INFO!A27=0," ",COUNTRY_INFO!A27))) ->  | B27: =IF(INTRO!$E$39<>"Non endémique", " ", IF(INTRO!$E$37="Non endémique"," ", IF(COUNTRY_INFO!B27=0," ",COUNTRY_INFO!B27))) ->  | C27: =IF(INTRO!$E$39<>"Non endémique", " ", IF(INTRO!$E$37="Non endémique"," ", IF(COUNTRY_INFO!C27=0," ",COUNTRY_INFO!C27))) ->  | D27: =IF(INTRO!$E$39<>"Non endémique", 0, IF(INTRO!$E$37="Non endémique",0,IF(COUNTRY_INFO!$H27=1,COUNTRY_INFO!E27,0))) -> 0 | E27: =IF(INTRO!$E$39<>"Non endémique", 0, IF(INTRO!$E$37="Non endémique",0,IF(COUNTRY_INFO!$H27=1,COUNTRY_INFO!F27,0))) -> 0 | F27: =IF(INTRO!$E$39<>"Non endémique", 0, IF(INTRO!$E$37="Non endémique",0,IF(COUNTRY_INFO!$H27=1,COUNTRY_INFO!G27,0))) -> 0 | G27: 0 | H27: =IF(INTRO!$E$39="Non endémique",IF(INTRO!$E$37="Non endémique","Non requis",COUNTRY_INFO!V27),"Traiter avec IVM") -> Traiter avec IVM | I27: 0 | J27: 0 | L27: 0
A28: =IF(INTRO!$E$39<>"Non endémique", " ", IF(INTRO!$E$37="Non endémique"," ", IF(COUNTRY_INFO!A28=0," ",COUNTRY_INFO!A28))) ->  | B28: =IF(INTRO!$E$39<>"Non endémique", " ", IF(INTRO!$E$37="Non endémique"," ", IF(COUNTRY_INFO!B28=0," ",COUNTRY_INFO!B28))) ->  | C28: =IF(INTRO!$E$39<>"Non endémique", " ", IF(INTRO!$E$37="Non endémique"," ", IF(COUNTRY_INFO!C28=0," ",COUNTRY_INFO!C28))) ->  | D28: =IF(INTRO!$E$39<>"Non endémique", 0, IF(INTRO!$E$37="Non endémique",0,IF(COUNTRY_INFO!$H28=1,COUNTRY_INFO!E28,0))) -> 0 | E28: =IF(INTRO!$E$39<>"Non endémique", 0, IF(INTRO!$E$37="Non endémique",0,IF(COUNTRY_INFO!$H28=1,COUNTRY_INFO!F28,0))) -> 0 | F28: =IF(INTRO!$E$39<>"Non endémique", 0, IF(INTRO!$E$37="Non endémique",0,IF(COUNTRY_INFO!$H28=1,COUNTRY_INFO!G28,0))) -> 0 | G28: 0 | H28: =IF(INTRO!$E$39="Non endémique",IF(INTRO!$E$37="Non endémique","Non requis",COUNTRY_INFO!V28),"Traiter avec IVM") -> Traiter avec IVM | I28: 0 | J28: 0 | L28: 0
A29: =IF(INTRO!$E$39<>"Non endémique", " ", IF(INTRO!$E$37="Non endémique"," ", IF(COUNTRY_INFO!A29=0," ",COUNTRY_INFO!A29))) ->  | B29: =IF(INTRO!$E$39<>"Non endémique", " ", IF(INTRO!$E$37="Non endémique"," ", IF(COUNTRY_INFO!B29=0," ",COUNTRY_INFO!B29))) ->  | C29: =IF(INTRO!$E$39<>"Non endémique", " ", IF(INTRO!$E$37="Non endémique"," ", IF(COUNTRY_INFO!C29=0," ",COUNTRY_INFO!C29))) ->  | D29: =IF(INTRO!$E$39<>"Non endémique", 0, IF(INTRO!$E$37="Non endémique",0,IF(COUNTRY_INFO!$H29=1,COUNTRY_INFO!E29,0))) -> 0 | E29: =IF(INTRO!$E$39<>"Non endémique", 0, IF(INTRO!$E$37="Non endémique",0,IF(COUNTRY_INFO!$H29=1,COUNTRY_INFO!F29,0))) -> 0 | F29: =IF(INTRO!$E$39<>"Non endémique", 0, IF(INTRO!$E$37="Non endémique",0,IF(COUNTRY_INFO!$H29=1,COUNTRY_INFO!G29,0))) -> 0 | G29: 0 | H29: =IF(INTRO!$E$39="Non endémique",IF(INTRO!$E$37="Non endémique","Non requis",COUNTRY_INFO!V29),"Traiter avec IVM") -> Traiter avec IVM | I29: 0 | J29: 0 | L29: 0
A30: =IF(INTRO!$E$39<>"Non endémique", " ", IF(INTRO!$E$37="Non endémique"," ", IF(COUNTRY_INFO!A30=0," ",COUNTRY_INFO!A30))) ->  | B30: =IF(INTRO!$E$39<>"Non endémique", " ", IF(INTRO!$E$37="Non endémique"," ", IF(COUNTRY_INFO!B30=0," ",COUNTRY_INFO!B30))) ->  | C30: =IF(INTRO!$E$39<>"Non endémique", " ", IF(INTRO!$E$37="Non endémique"," ", IF(COUNTRY_INFO!C30=0," ",COUNTRY_INFO!C30))) ->  | D30: =IF(INTRO!$E$39<>"Non endémique", 0, IF(INTRO!$E$37="Non endémique",0,IF(COUNTRY_INFO!$H30=1,COUNTRY_INFO!E30,0))) -> 0 | E30: =IF(INTRO!$E$39<>"Non endémique", 0, IF(INTRO!$E$37="Non endémique",0,IF(COUNTRY_INFO!$H30=1,COUNTRY_INFO!F30,0))) -> 0 | F30: =IF(INTRO!$E$39<>"Non endémique", 0, IF(INTRO!$E$37="Non endémique",0,IF(COUNTRY_INFO!$H30=1,COUNTRY_INFO!G30,0))) -> 0 | G30: 0 | H30: =IF(INTRO!$E$39="Non endémique",IF(INTRO!$E$37="Non endémique","Non requis",COUNTRY_INFO!V30),"Traiter avec IVM") -> Traiter avec IVM | I30: 0 | J30: 0 | L30: 0
A31: =IF(INTRO!$E$39<>"Non endémique", " ", IF(INTRO!$E$37="Non endémique"," ", IF(COUNTRY_INFO!A31=0," ",COUNTRY_INFO!A31))) ->  | B31: =IF(INTRO!$E$39<>"Non endémique", " ", IF(INTRO!$E$37="Non endémique"," ", IF(COUNTRY_INFO!B31=0," ",COUNTRY_INFO!B31))) ->  | C31: =IF(INTRO!$E$39<>"Non endémique", " ", IF(INTRO!$E$37="Non endémique"," ", IF(COUNTRY_INFO!C31=0," ",COUNTRY_INFO!C31))) ->  | D31: =IF(INTRO!$E$39<>"Non endémique", 0, IF(INTRO!$E$37="Non endémique",0,IF(COUNTRY_INFO!$H31=1,COUNTRY_INFO!E31,0))) -> 0 | E31: =IF(INTRO!$E$39<>"Non endémique", 0, IF(INTRO!$E$37="Non endémique",0,IF(COUNTRY_INFO!$H31=1,COUNTRY_INFO!F31,0))) -> 0 | F31: =IF(INTRO!$E$39<>"Non endémique", 0, IF(INTRO!$E$37="Non endémique",0,IF(COUNTRY_INFO!$H31=1,COUNTRY_INFO!G31,0))) -> 0 | G31: 0 | H31: =IF(INTRO!$E$39="Non endémique",IF(INTRO!$E$37="Non endémique","Non requis",COUNTRY_INFO!V31),"Traiter avec IVM") -> Traiter avec IVM | I31: 0 | J31: 0 | L31: 0
A32: =IF(INTRO!$E$39<>"Non endémique", " ", IF(INTRO!$E$37="Non endémique"," ", IF(COUNTRY_INFO!A32=0," ",COUNTRY_INFO!A32))) ->  | B32: =IF(INTRO!$E$39<>"Non endémique", " ", IF(INTRO!$E$37="Non endémique"," ", IF(COUNTRY_INFO!B32=0," ",COUNTRY_INFO!B32))) ->  | C32: =IF(INTRO!$E$39<>"Non endémique", " ", IF(INTRO!$E$37="Non endémique"," ", IF(COUNTRY_INFO!C32=0," ",COUNTRY_INFO!C32))) ->  | D32: =IF(INTRO!$E$39<>"Non endémique", 0, IF(INTRO!$E$37="Non endémique",0,IF(COUNTRY_INFO!$H32=1,COUNTRY_INFO!E32,0))) -> 0 | E32: =IF(INTRO!$E$39<>"Non endémique", 0, IF(INTRO!$E$37="Non endémique",0,IF(COUNTRY_INFO!$H32=1,COUNTRY_INFO!F32,0))) -> 0 | F32: =IF(INTRO!$E$39<>"Non endémique", 0, IF(INTRO!$E$37="Non endémique",0,IF(COUNTRY_INFO!$H32=1,COUNTRY_INFO!G32,0))) -> 0 | G32: 0 | H32: =IF(INTRO!$E$39="Non endémique",IF(INTRO!$E$37="Non endémique","Non requis",COUNTRY_INFO!V32),"Traiter avec IVM") -> Traiter avec IVM | I32: 0 | J32: 0 | L32: 0
A33: =IF(INTRO!$E$39<>"Non endémique", " ", IF(INTRO!$E$37="Non endémique"," ", IF(COUNTRY_INFO!A33=0," ",COUNTRY_INFO!A33))) ->  | B33: =IF(INTRO!$E$39<>"Non endémique", " ", IF(INTRO!$E$37="Non endémique"," ", IF(COUNTRY_INFO!B33=0," ",COUNTRY_INFO!B33))) ->  | C33: =IF(INTRO!$E$39<>"Non endémique", " ", IF(INTRO!$E$37="Non endémique"," ", IF(COUNTRY_INFO!C33=0," ",COUNTRY_INFO!C33))) ->  | D33: =IF(INTRO!$E$39<>"Non endémique", 0, IF(INTRO!$E$37="Non endémique",0,IF(COUNTRY_INFO!$H33=1,COUNTRY_INFO!E33,0))) -> 0 | E33: =IF(INTRO!$E$39<>"Non endémique", 0, IF(INTRO!$E$37="Non endémique",0,IF(COUNTRY_INFO!$H33=1,COUNTRY_INFO!F33,0))) -> 0 | F33: =IF(INTRO!$E$39<>"Non endémique", 0, IF(INTRO!$E$37="Non endémique",0,IF(COUNTRY_INFO!$H33=1,COUNTRY_INFO!G33,0))) -> 0 | G33: 0 | H33: =IF(INTRO!$E$39="Non endémique",IF(INTRO!$E$37="Non endémique","Non requis",COUNTRY_INFO!V33),"Traiter avec IVM") -> Traiter avec IVM | I33: 0 | J33: 0 | L33: 0
A34: =IF(INTRO!$E$39<>"Non endémique", " ", IF(INTRO!$E$37="Non endémique"," ", IF(COUNTRY_INFO!A34=0," ",COUNTRY_INFO!A34))) ->  | B34: =IF(INTRO!$E$39<>"Non endémique", " ", IF(INTRO!$E$37="Non endémique"," ", IF(COUNTRY_INFO!B34=0," ",COUNTRY_INFO!B34))) ->  | C34: =IF(INTRO!$E$39<>"Non endémique", " ", IF(INTRO!$E$37="Non endémique"," ", IF(COUNTRY_INFO!C34=0," ",COUNTRY_INFO!C34))) ->  | D34: =IF(INTRO!$E$39<>"Non endémique", 0, IF(INTRO!$E$37="Non endémique",0,IF(COUNTRY_INFO!$H34=1,COUNTRY_INFO!E34,0))) -> 0 | E34: =IF(INTRO!$E$39<>"Non endémique", 0, IF(INTRO!$E$37="Non endémique",0,IF(COUNTRY_INFO!$H34=1,COUNTRY_INFO!F34,0))) -> 0 | F34: =IF(INTRO!$E$39<>"Non endémique", 0, IF(INTRO!$E$37="Non endémique",0,IF(COUNTRY_INFO!$H34=1,COUNTRY_INFO!G34,0))) -> 0 | G34: 0 | H34: =IF(INTRO!$E$39="Non endémique",IF(INTRO!$E$37="Non endémique","Non requis",COUNTRY_INFO!V34),"Traiter avec IVM") -> Traiter avec IVM | I34: 0 | J34: 0 | L34: 0
A35: =IF(INTRO!$E$39<>"Non endémique", " ", IF(INTRO!$E$37="Non endémique"," ", IF(COUNTRY_INFO!A35=0," ",COUNTRY_INFO!A35))) ->  | B35: =IF(INTRO!$E$39<>"Non endémique", " ", IF(INTRO!$E$37="Non endémique"," ", IF(COUNTRY_INFO!B35=0," ",COUNTRY_INFO!B35))) ->  | C35: =IF(INTRO!$E$39<>"Non endémique", " ", IF(INTRO!$E$37="Non endémique"," ", IF(COUNTRY_INFO!C35=0," ",COUNTRY_INFO!C35))) ->  | D35: =IF(INTRO!$E$39<>"Non endémique", 0, IF(INTRO!$E$37="Non endémique",0,IF(COUNTRY_INFO!$H35=1,COUNTRY_INFO!E35,0))) -> 0 | E35: =IF(INTRO!$E$39<>"Non endémique", 0, IF(INTRO!$E$37="Non endémique",0,IF(COUNTRY_INFO!$H35=1,COUNTRY_INFO!F35,0))) -> 0 | F35: =IF(INTRO!$E$39<>"Non endémique", 0, IF(INTRO!$E$37="Non endémique",0,IF(COUNTRY_INFO!$H35=1,COUNTRY_INFO!G35,0))) -> 0 | G35: 0 | H35: =IF(INTRO!$E$39="Non endémique",IF(INTRO!$E$37="Non endémique","Non requis",COUNTRY_INFO!V35),"Traiter avec IVM") -> Traiter avec IVM | I35: 0 | J35: 0 | L35: 0
A36: =IF(INTRO!$E$39<>"Non endémique", " ", IF(INTRO!$E$37="Non endémique"," ", IF(COUNTRY_INFO!A36=0," ",COUNTRY_INFO!A36))) ->  | B36: =IF(INTRO!$E$39<>"Non endémique", " ", IF(INTRO!$E$37="Non endémique"," ", IF(COUNTRY_INFO!B36=0," ",COUNTRY_INFO!B36))) ->  | C36: =IF(INTRO!$E$39<>"Non endémique", " ", IF(INTRO!$E$37="Non endémique"," ", IF(COUNTRY_INFO!C36=0," ",COUNTRY_INFO!C36))) ->  | D36: =IF(INTRO!$E$39<>"Non endémique", 0, IF(INTRO!$E$37="Non endémique",0,IF(COUNTRY_INFO!$H36=1,COUNTRY_INFO!E36,0))) -> 0 | E36: =IF(INTRO!$E$39<>"Non endémique", 0, IF(INTRO!$E$37="Non endémique",0,IF(COUNTRY_INFO!$H36=1,COUNTRY_INFO!F36,0))) -> 0 | F36: =IF(INTRO!$E$39<>"Non endémique", 0, IF(INTRO!$E$37="Non endémique",0,IF(COUNTRY_INFO!$H36=1,COUNTRY_INFO!G36,0))) -> 0 | G36: 0 | H36: =IF(INTRO!$E$39="Non endémique",IF(INTRO!$E$37="Non endémique","Non requis",COUNTRY_INFO!V36),"Traiter avec IVM") -> Traiter avec IVM | I36: 0 | J36: 0 | L36: 0
A37: =IF(INTRO!$E$39<>"Non endémique", " ", IF(INTRO!$E$37="Non endémique"," ", IF(COUNTRY_INFO!A37=0," ",COUNTRY_INFO!A37))) ->  | B37: =IF(INTRO!$E$39<>"Non endémique", " ", IF(INTRO!$E$37="Non endémique"," ", IF(COUNTRY_INFO!B37=0," ",COUNTRY_INFO!B37))) ->  | C37: =IF(INTRO!$E$39<>"Non endémique", " ", IF(INTRO!$E$37="Non endémique"," ", IF(COUNTRY_INFO!C37=0," ",COUNTRY_INFO!C37))) ->  | D37: =IF(INTRO!$E$39<>"Non endémique", 0, IF(INTRO!$E$37="Non endémique",0,IF(COUNTRY_INFO!$H37=1,COUNTRY_INFO!E37,0))) -> 0 | E37: =IF(INTRO!$E$39<>"Non endémique", 0, IF(INTRO!$E$37="Non endémique",0,IF(COUNTRY_INFO!$H37=1,COUNTRY_INFO!F37,0))) -> 0 | F37: =IF(INTRO!$E$39<>"Non endémique", 0, IF(INTRO!$E$37="Non endémique",0,IF(COUNTRY_INFO!$H37=1,COUNTRY_INFO!G37,0))) -> 0 | G37: 0 | H37: =IF(INTRO!$E$39="Non endémique",IF(INTRO!$E$37="Non endémique","Non requis",COUNTRY_INFO!V37),"Traiter avec IVM") -> Traiter avec IVM | I37: 0 | J37: 0 | L37: 0
A38: =IF(INTRO!$E$39<>"Non endémique", " ", IF(INTRO!$E$37="Non endémique"," ", IF(COUNTRY_INFO!A38=0," ",COUNTRY_INFO!A38))) ->  | B38: =IF(INTRO!$E$39<>"Non endémique", " ", IF(INTRO!$E$37="Non endémique"," ", IF(COUNTRY_INFO!B38=0," ",COUNTRY_INFO!B38))) ->  | C38: =IF(INTRO!$E$39<>"Non endémique", " ", IF(INTRO!$E$37="Non endémique"," ", IF(COUNTRY_INFO!C38=0," ",COUNTRY_INFO!C38))) ->  | D38: =IF(INTRO!$E$39<>"Non endémique", 0, IF(INTRO!$E$37="Non endémique",0,IF(COUNTRY_INFO!$H38=1,COUNTRY_INFO!E38,0))) -> 0 | E38: =IF(INTRO!$E$39<>"Non endémique", 0, IF(INTRO!$E$37="Non endémique",0,IF(COUNTRY_INFO!$H38=1,COUNTRY_INFO!F38,0))) -> 0 | F38: =IF(INTRO!$E$39<>"Non endémique", 0, IF(INTRO!$E$37="Non endémique",0,IF(COUNTRY_INFO!$H38=1,COUNTRY_INFO!G38,0))) -> 0 | G38: 0 | H38: =IF(INTRO!$E$39="Non endémique",IF(INTRO!$E$37="Non endémique","Non requis",COUNTRY_INFO!V38),"Traiter avec IVM") -> Traiter avec IVM | I38: 0 | J38: 0 | L38: 0
A39: =IF(INTRO!$E$39<>"Non endémique", " ", IF(INTRO!$E$37="Non endémique"," ", IF(COUNTRY_INFO!A39=0," ",COUNTRY_INFO!A39))) ->  | B39: =IF(INTRO!$E$39<>"Non endémique", " ", IF(INTRO!$E$37="Non endémique"," ", IF(COUNTRY_INFO!B39=0," ",COUNTRY_INFO!B39))) ->  | C39: =IF(INTRO!$E$39<>"Non endémique", " ", IF(INTRO!$E$37="Non endémique"," ", IF(COUNTRY_INFO!C39=0," ",COUNTRY_INFO!C39))) ->  | D39: =IF(INTRO!$E$39<>"Non endémique", 0, IF(INTRO!$E$37="Non endémique",0,IF(COUNTRY_INFO!$H39=1,COUNTRY_INFO!E39,0))) -> 0 | E39: =IF(INTRO!$E$39<>"Non endémique", 0, IF(INTRO!$E$37="Non endémique",0,IF(COUNTRY_INFO!$H39=1,COUNTRY_INFO!F39,0))) -> 0 | F39: =IF(INTRO!$E$39<>"Non endémique", 0, IF(INTRO!$E$37="Non endémique",0,IF(COUNTRY_INFO!$H39=1,COUNTRY_INFO!G39,0))) -> 0 | G39: 0 | H39: =IF(INTRO!$E$39="Non endémique",IF(INTRO!$E$37="Non endémique","Non requis",COUNTRY_INFO!V39),"Traiter avec IVM") -> Traiter avec IVM | I39: 0 | J39: 0 | L39: 0
A40: =IF(INTRO!$E$39<>"Non endémique", " ", IF(INTRO!$E$37="Non endémique"," ", IF(COUNTRY_INFO!A40=0," ",COUNTRY_INFO!A40))) ->  | B40: =IF(INTRO!$E$39<>"Non endémique", " ", IF(INTRO!$E$37="Non endémique"," ", IF(COUNTRY_INFO!B40=0," ",COUNTRY_INFO!B40))) ->  | C40: =IF(INTRO!$E$39<>"Non endémique", " ", IF(INTRO!$E$37="Non endémique"," ", IF(COUNTRY_INFO!C40=0," ",COUNTRY_INFO!C40))) ->  | D40: =IF(INTRO!$E$39<>"Non endémique", 0, IF(INTRO!$E$37="Non endémique",0,IF(COUNTRY_INFO!$H40=1,COUNTRY_INFO!E40,0))) -> 0 | E40: =IF(INTRO!$E$39<>"Non endémique", 0, IF(INTRO!$E$37="Non endémique",0,IF(COUNTRY_INFO!$H40=1,COUNTRY_INFO!F40,0))) -> 0 | F40: =IF(INTRO!$E$39<>"Non endémique", 0, IF(INTRO!$E$37="Non endémique",0,IF(COUNTRY_INFO!$H40=1,COUNTRY_INFO!G40,0))) -> 0 | G40: 0 | H40: =IF(INTRO!$E$39="Non endémique",IF(INTRO!$E$37="Non endémique","Non requis",COUNTRY_INFO!V40),"Traiter avec IVM") -> Traiter avec IVM | I40: 0 | J40: 0 | L40: 0
A41: =IF(INTRO!$E$39<>"Non endémique", " ", IF(INTRO!$E$37="Non endémique"," ", IF(COUNTRY_INFO!A41=0," ",COUNTRY_INFO!A41))) ->  | B41: =IF(INTRO!$E$39<>"Non endémique", " ", IF(INTRO!$E$37="Non endémique"," ", IF(COUNTRY_INFO!B41=0," ",COUNTRY_INFO!B41))) ->  | C41: =IF(INTRO!$E$39<>"Non endémique", " ", IF(INTRO!$E$37="Non endémique"," ", IF(COUNTRY_INFO!C41=0," ",COUNTRY_INFO!C41))) ->  | D41: =IF(INTRO!$E$39<>"Non endémique", 0, IF(INTRO!$E$37="Non endémique",0,IF(COUNTRY_INFO!$H41=1,COUNTRY_INFO!E41,0))) -> 0 | E41: =IF(INTRO!$E$39<>"Non endémique", 0, IF(INTRO!$E$37="Non endémique",0,IF(COUNTRY_INFO!$H41=1,COUNTRY_INFO!F41,0))) -> 0 | F41: =IF(INTRO!$E$39<>"Non endémique", 0, IF(INTRO!$E$37="Non endémique",0,IF(COUNTRY_INFO!$H41=1,COUNTRY_INFO!G41,0))) -> 0 | G41: 0 | H41: =IF(INTRO!$E$39="Non endémique",IF(INTRO!$E$37="Non endémique","Non requis",COUNTRY_INFO!V41),"Traiter avec IVM") -> Traiter avec IVM | I41: 0 | J41: 0 | L41: 0
A42: =IF(INTRO!$E$39<>"Non endémique", " ", IF(INTRO!$E$37="Non endémique"," ", IF(COUNTRY_INFO!A42=0," ",COUNTRY_INFO!A42))) ->  | B42: =IF(INTRO!$E$39<>"Non endémique", " ", IF(INTRO!$E$37="Non endémique"," ", IF(COUNTRY_INFO!B42=0," ",COUNTRY_INFO!B42))) ->  | C42: =IF(INTRO!$E$39<>"Non endémique", " ", IF(INTRO!$E$37="Non endémique"," ", IF(COUNTRY_INFO!C42=0," ",COUNTRY_INFO!C42))) ->  | D42: =IF(INTRO!$E$39<>"Non endémique", 0, IF(INTRO!$E$37="Non endémique",0,IF(COUNTRY_INFO!$H42=1,COUNTRY_INFO!E42,0))) -> 0 | E42: =IF(INTRO!$E$39<>"Non endémique", 0, IF(INTRO!$E$37="Non endémique",0,IF(COUNTRY_INFO!$H42=1,COUNTRY_INFO!F42,0))) -> 0 | F42: =IF(INTRO!$E$39<>"Non endémique", 0, IF(INTRO!$E$37="Non endémique",0,IF(COUNTRY_INFO!$H42=1,COUNTRY_INFO!G42,0))) -> 0 | G42: 0 | H42: =IF(INTRO!$E$39="Non endémique",IF(INTRO!$E$37="Non endémique","Non requis",COUNTRY_INFO!V42),"Traiter avec IVM") -> Traiter avec IVM | I42: 0 | J42: 0 | L42: 0
A43: =IF(INTRO!$E$39<>"Non endémique", " ", IF(INTRO!$E$37="Non endémique"," ", IF(COUNTRY_INFO!A43=0," ",COUNTRY_INFO!A43))) ->  | B43: =IF(INTRO!$E$39<>"Non endémique", " ", IF(INTRO!$E$37="Non endémique"," ", IF(COUNTRY_INFO!B43=0," ",COUNTRY_INFO!B43))) ->  | C43: =IF(INTRO!$E$39<>"Non endémique", " ", IF(INTRO!$E$37="Non endémique"," ", IF(COUNTRY_INFO!C43=0," ",COUNTRY_INFO!C43))) ->  | D43: =IF(INTRO!$E$39<>"Non endémique", 0, IF(INTRO!$E$37="Non endémique",0,IF(COUNTRY_INFO!$H43=1,COUNTRY_INFO!E43,0))) -> 0 | E43: =IF(INTRO!$E$39<>"Non endémique", 0, IF(INTRO!$E$37="Non endémique",0,IF(COUNTRY_INFO!$H43=1,COUNTRY_INFO!F43,0))) -> 0 | F43: =IF(INTRO!$E$39<>"Non endémique", 0, IF(INTRO!$E$37="Non endémique",0,IF(COUNTRY_INFO!$H43=1,COUNTRY_INFO!G43,0))) -> 0 | G43: 0 | H43: =IF(INTRO!$E$39="Non endémique",IF(INTRO!$E$37="Non endémique","Non requis",COUNTRY_INFO!V43),"Traiter avec IVM") -> Traiter avec IVM | I43: 0 | J43: 0 | L43: 0
A44: =IF(INTRO!$E$39<>"Non endémique", " ", IF(INTRO!$E$37="Non endémique"," ", IF(COUNTRY_INFO!A44=0," ",COUNTRY_INFO!A44))) ->  | B44: =IF(INTRO!$E$39<>"Non endémique", " ", IF(INTRO!$E$37="Non endémique"," ", IF(COUNTRY_INFO!B44=0," ",COUNTRY_INFO!B44))) ->  | C44: =IF(INTRO!$E$39<>"Non endémique", " ", IF(INTRO!$E$37="Non endémique"," ", IF(COUNTRY_INFO!C44=0," ",COUNTRY_INFO!C44))) ->  | D44: =IF(INTRO!$E$39<>"Non endémique", 0, IF(INTRO!$E$37="Non endémique",0,IF(COUNTRY_INFO!$H44=1,COUNTRY_INFO!E44,0))) -> 0 | E44: =IF(INTRO!$E$39<>"Non endémique", 0, IF(INTRO!$E$37="Non endémique",0,IF(COUNTRY_INFO!$H44=1,COUNTRY_INFO!F44,0))) -> 0 | F44: =IF(INTRO!$E$39<>"Non endémique", 0, IF(INTRO!$E$37="Non endémique",0,IF(COUNTRY_INFO!$H44=1,COUNTRY_INFO!G44,0))) -> 0 | G44: 0 | H44: =IF(INTRO!$E$39="Non endémique",IF(INTRO!$E$37="Non endémique","Non requis",COUNTRY_INFO!V44),"Traiter avec IVM") -> Traiter avec IVM | I44: 0 | J44: 0 | L44: 0
A45: =IF(INTRO!$E$39<>"Non endémique", " ", IF(INTRO!$E$37="Non endémique"," ", IF(COUNTRY_INFO!A45=0," ",COUNTRY_INFO!A45))) ->  | B45: =IF(INTRO!$E$39<>"Non endémique", " ", IF(INTRO!$E$37="Non endémique"," ", IF(COUNTRY_INFO!B45=0," ",COUNTRY_INFO!B45))) ->  | C45: =IF(INTRO!$E$39<>"Non endémique", " ", IF(INTRO!$E$37="Non endémique"," ", IF(COUNTRY_INFO!C45=0," ",COUNTRY_INFO!C45))) ->  | D45: =IF(INTRO!$E$39<>"Non endémique", 0, IF(INTRO!$E$37="Non endémique",0,IF(COUNTRY_INFO!$H45=1,COUNTRY_INFO!E45,0))) -> 0 | E45: =IF(INTRO!$E$39<>"Non endémique", 0, IF(INTRO!$E$37="Non endémique",0,IF(COUNTRY_INFO!$H45=1,COUNTRY_INFO!F45,0))) -> 0 | F45: =IF(INTRO!$E$39<>"Non endémique", 0, IF(INTRO!$E$37="Non endémique",0,IF(COUNTRY_INFO!$H45=1,COUNTRY_INFO!G45,0))) -> 0 | G45: 0 | H45: =IF(INTRO!$E$39="Non endémique",IF(INTRO!$E$37="Non endémique","Non requis",COUNTRY_INFO!V45),"Traiter avec IVM") -> Traiter avec IVM | I45: 0 | J45: 0 | L45: 0
A46: =IF(INTRO!$E$39<>"Non endémique", " ", IF(INTRO!$E$37="Non endémique"," ", IF(COUNTRY_INFO!A46=0," ",COUNTRY_INFO!A46))) ->  | B46: =IF(INTRO!$E$39<>"Non endémique", " ", IF(INTRO!$E$37="Non endémique"," ", IF(COUNTRY_INFO!B46=0," ",COUNTRY_INFO!B46))) ->  | C46: =IF(INTRO!$E$39<>"Non endémique", " ", IF(INTRO!$E$37="Non endémique"," ", IF(COUNTRY_INFO!C46=0," ",COUNTRY_INFO!C46))) ->  | D46: =IF(INTRO!$E$39<>"Non endémique", 0, IF(INTRO!$E$37="Non endémique",0,IF(COUNTRY_INFO!$H46=1,COUNTRY_INFO!E46,0))) -> 0 | E46: =IF(INTRO!$E$39<>"Non endémique", 0, IF(INTRO!$E$37="Non endémique",0,IF(COUNTRY_INFO!$H46=1,COUNTRY_INFO!F46,0))) -> 0 | F46: =IF(INTRO!$E$39<>"Non endémique", 0, IF(INTRO!$E$37="Non endémique",0,IF(COUNTRY_INFO!$H46=1,COUNTRY_INFO!G46,0))) -> 0 | G46: 0 | H46: =IF(INTRO!$E$39="Non endémique",IF(INTRO!$E$37="Non endémique","Non requis",COUNTRY_INFO!V46),"Traiter avec IVM") -> Traiter avec IVM | I46: 0 | J46: 0 | L46: 0
A47: =IF(INTRO!$E$39<>"Non endémique", " ", IF(INTRO!$E$37="Non endémique"," ", IF(COUNTRY_INFO!A47=0," ",COUNTRY_INFO!A47))) ->  | B47: =IF(INTRO!$E$39<>"Non endémique", " ", IF(INTRO!$E$37="Non endémique"," ", IF(COUNTRY_INFO!B47=0," ",COUNTRY_INFO!B47))) ->  | C47: =IF(INTRO!$E$39<>"Non endémique", " ", IF(INTRO!$E$37="Non endémique"," ", IF(COUNTRY_INFO!C47=0," ",COUNTRY_INFO!C47))) ->  | D47: =IF(INTRO!$E$39<>"Non endémique", 0, IF(INTRO!$E$37="Non endémique",0,IF(COUNTRY_INFO!$H47=1,COUNTRY_INFO!E47,0))) -> 0 | E47: =IF(INTRO!$E$39<>"Non endémique", 0, IF(INTRO!$E$37="Non endémique",0,IF(COUNTRY_INFO!$H47=1,COUNTRY_INFO!F47,0))) -> 0 | F47: =IF(INTRO!$E$39<>"Non endémique", 0, IF(INTRO!$E$37="Non endémique",0,IF(COUNTRY_INFO!$H47=1,COUNTRY_INFO!G47,0))) -> 0 | G47: 0 | H47: =IF(INTRO!$E$39="Non endémique",IF(INTRO!$E$37="Non endémique","Non requis",COUNTRY_INFO!V47),"Traiter avec IVM") -> Traiter avec IVM | I47: 0 | J47: 0 | L47: 0
A48: =IF(INTRO!$E$39<>"Non endémique", " ", IF(INTRO!$E$37="Non endémique"," ", IF(COUNTRY_INFO!A48=0," ",COUNTRY_INFO!A48))) ->  | B48: =IF(INTRO!$E$39<>"Non endémique", " ", IF(INTRO!$E$37="Non endémique"," ", IF(COUNTRY_INFO!B48=0," ",COUNTRY_INFO!B48))) ->  | C48: =IF(INTRO!$E$39<>"Non endémique", " ", IF(INTRO!$E$37="Non endémique"," ", IF(COUNTRY_INFO!C48=0," ",COUNTRY_INFO!C48))) ->  | D48: =IF(INTRO!$E$39<>"Non endémique", 0, IF(INTRO!$E$37="Non endémique",0,IF(COUNTRY_INFO!$H48=1,COUNTRY_INFO!E48,0))) -> 0 | E48: =IF(INTRO!$E$39<>"Non endémique", 0, IF(INTRO!$E$37="Non endémique",0,IF(COUNTRY_INFO!$H48=1,COUNTRY_INFO!F48,0))) -> 0 | F48: =IF(INTRO!$E$39<>"Non endémique", 0, IF(INTRO!$E$37="Non endémique",0,IF(COUNTRY_INFO!$H48=1,COUNTRY_INFO!G48,0))) -> 0 | G48: 0 | H48: =IF(INTRO!$E$39="Non endémique",IF(INTRO!$E$37="Non endémique","Non requis",COUNTRY_INFO!V48),"Traiter avec IVM") -> Traiter avec IVM | I48: 0 | J48: 0 | L48: 0
A49: =IF(INTRO!$E$39<>"Non endémique", " ", IF(INTRO!$E$37="Non endémique"," ", IF(COUNTRY_INFO!A49=0," ",COUNTRY_INFO!A49))) ->  | B49: =IF(INTRO!$E$39<>"Non endémique", " ", IF(INTRO!$E$37="Non endémique"," ", IF(COUNTRY_INFO!B49=0," ",COUNTRY_INFO!B49))) ->  | C49: =IF(INTRO!$E$39<>"Non endémique", " ", IF(INTRO!$E$37="Non endémique"," ", IF(COUNTRY_INFO!C49=0," ",COUNTRY_INFO!C49))) ->  | D49: =IF(INTRO!$E$39<>"Non endémique", 0, IF(INTRO!$E$37="Non endémique",0,IF(COUNTRY_INFO!$H49=1,COUNTRY_INFO!E49,0))) -> 0 | E49: =IF(INTRO!$E$39<>"Non endémique", 0, IF(INTRO!$E$37="Non endémique",0,IF(COUNTRY_INFO!$H49=1,COUNTRY_INFO!F49,0))) -> 0 | F49: =IF(INTRO!$E$39<>"Non endémique", 0, IF(INTRO!$E$37="Non endémique",0,IF(COUNTRY_INFO!$H49=1,COUNTRY_INFO!G49,0))) -> 0 | G49: 0 | H49: =IF(INTRO!$E$39="Non endémique",IF(INTRO!$E$37="Non endémique","Non requis",COUNTRY_INFO!V49),"Traiter avec IVM") -> Traiter avec IVM | I49: 0 | J49: 0 | L49: 0
A50: =IF(INTRO!$E$39<>"Non endémique", " ", IF(INTRO!$E$37="Non endémique"," ", IF(COUNTRY_INFO!A50=0," ",COUNTRY_INFO!A50))) ->  | B50: =IF(INTRO!$E$39<>"Non endémique", " ", IF(INTRO!$E$37="Non endémique"," ", IF(COUNTRY_INFO!B50=0," ",COUNTRY_INFO!B50))) ->  | C50: =IF(INTRO!$E$39<>"Non endémique", " ", IF(INTRO!$E$37="Non endémique"," ", IF(COUNTRY_INFO!C50=0," ",COUNTRY_INFO!C50))) ->  | D50: =IF(INTRO!$E$39<>"Non endémique", 0, IF(INTRO!$E$37="Non endémique",0,IF(COUNTRY_INFO!$H50=1,COUNTRY_INFO!E50,0))) -> 0 | E50: =IF(INTRO!$E$39<>"Non endémique", 0, IF(INTRO!$E$37="Non endémique",0,IF(COUNTRY_INFO!$H50=1,COUNTRY_INFO!F50,0))) -> 0 | F50: =IF(INTRO!$E$39<>"Non endémique", 0, IF(INTRO!$E$37="Non endémique",0,IF(COUNTRY_INFO!$H50=1,COUNTRY_INFO!G50,0))) -> 0 | G50: 0 | H50: =IF(INTRO!$E$39="Non endémique",IF(INTRO!$E$37="Non endémique","Non requis",COUNTRY_INFO!V50),"Traiter avec IVM") -> Traiter avec IVM | I50: 0 | J50: 0 | L50: 0
A51: =IF(INTRO!$E$39<>"Non endémique", " ", IF(INTRO!$E$37="Non endémique"," ", IF(COUNTRY_INFO!A51=0," ",COUNTRY_INFO!A51))) ->  | B51: =IF(INTRO!$E$39<>"Non endémique", " ", IF(INTRO!$E$37="Non endémique"," ", IF(COUNTRY_INFO!B51=0," ",COUNTRY_INFO!B51))) ->  | C51: =IF(INTRO!$E$39<>"Non endémique", " ", IF(INTRO!$E$37="Non endémique"," ", IF(COUNTRY_INFO!C51=0," ",COUNTRY_INFO!C51))) ->  | D51: =IF(INTRO!$E$39<>"Non endémique", 0, IF(INTRO!$E$37="Non endémique",0,IF(COUNTRY_INFO!$H51=1,COUNTRY_INFO!E51,0))) -> 0 | E51: =IF(INTRO!$E$39<>"Non endémique", 0, IF(INTRO!$E$37="Non endémique",0,IF(COUNTRY_INFO!$H51=1,COUNTRY_INFO!F51,0))) -> 0 | F51: =IF(INTRO!$E$39<>"Non endémique", 0, IF(INTRO!$E$37="Non endémique",0,IF(COUNTRY_INFO!$H51=1,COUNTRY_INFO!G51,0))) -> 0 | G51: 0 | H51: =IF(INTRO!$E$39="Non endémique",IF(INTRO!$E$37="Non endémique","Non requis",COUNTRY_INFO!V51),"Traiter avec IVM") -> Traiter avec IVM | I51: 0 | J51: 0 | L51: 0
A52: =IF(INTRO!$E$39<>"Non endémique", " ", IF(INTRO!$E$37="Non endémique"," ", IF(COUNTRY_INFO!A52=0," ",COUNTRY_INFO!A52))) ->  | B52: =IF(INTRO!$E$39<>"Non endémique", " ", IF(INTRO!$E$37="Non endémique"," ", IF(COUNTRY_INFO!B52=0," ",COUNTRY_INFO!B52))) ->  | C52: =IF(INTRO!$E$39<>"Non endémique", " ", IF(INTRO!$E$37="Non endémique"," ", IF(COUNTRY_INFO!C52=0," ",COUNTRY_INFO!C52))) ->  | D52: =IF(INTRO!$E$39<>"Non endémique", 0, IF(INTRO!$E$37="Non endémique",0,IF(COUNTRY_INFO!$H52=1,COUNTRY_INFO!E52,0))) -> 0 | E52: =IF(INTRO!$E$39<>"Non endémique", 0, IF(INTRO!$E$37="Non endémique",0,IF(COUNTRY_INFO!$H52=1,COUNTRY_INFO!F52,0))) -> 0 | F52: =IF(INTRO!$E$39<>"Non endémique", 0, IF(INTRO!$E$37="Non endémique",0,IF(COUNTRY_INFO!$H52=1,COUNTRY_INFO!G52,0))) -> 0 | G52: 0 | H52: =IF(INTRO!$E$39="Non endémique",IF(INTRO!$E$37="Non endémique","Non requis",COUNTRY_INFO!V52),"Traiter avec IVM") -> Traiter avec IVM | I52: 0 | J52: 0 | L52: 0
A53: =IF(INTRO!$E$39<>"Non endémique", " ", IF(INTRO!$E$37="Non endémique"," ", IF(COUNTRY_INFO!A53=0," ",COUNTRY_INFO!A53))) ->  | B53: =IF(INTRO!$E$39<>"Non endémique", " ", IF(INTRO!$E$37="Non endémique"," ", IF(COUNTRY_INFO!B53=0," ",COUNTRY_INFO!B53))) ->  | C53: =IF(INTRO!$E$39<>"Non endémique", " ", IF(INTRO!$E$37="Non endémique"," ", IF(COUNTRY_INFO!C53=0," ",COUNTRY_INFO!C53))) ->  | D53: =IF(INTRO!$E$39<>"Non endémique", 0, IF(INTRO!$E$37="Non endémique",0,IF(COUNTRY_INFO!$H53=1,COUNTRY_INFO!E53,0))) -> 0 | E53: =IF(INTRO!$E$39<>"Non endémique", 0, IF(INTRO!$E$37="Non endémique",0,IF(COUNTRY_INFO!$H53=1,COUNTRY_INFO!F53,0))) -> 0 | F53: =IF(INTRO!$E$39<>"Non endémique", 0, IF(INTRO!$E$37="Non endémique",0,IF(COUNTRY_INFO!$H53=1,COUNTRY_INFO!G53,0))) -> 0 | G53: 0 | H53: =IF(INTRO!$E$39="Non endémique",IF(INTRO!$E$37="Non endémique","Non requis",COUNTRY_INFO!V53),"Traiter avec IVM") -> Traiter avec IVM | I53: 0 | J53: 0 | L53: 0
A54: =IF(INTRO!$E$39<>"Non endémique", " ", IF(INTRO!$E$37="Non endémique"," ", IF(COUNTRY_INFO!A54=0," ",COUNTRY_INFO!A54))) ->  | B54: =IF(INTRO!$E$39<>"Non endémique", " ", IF(INTRO!$E$37="Non endémique"," ", IF(COUNTRY_INFO!B54=0," ",COUNTRY_INFO!B54))) ->  | C54: =IF(INTRO!$E$39<>"Non endémique", " ", IF(INTRO!$E$37="Non endémique"," ", IF(COUNTRY_INFO!C54=0," ",COUNTRY_INFO!C54))) ->  | D54: =IF(INTRO!$E$39<>"Non endémique", 0, IF(INTRO!$E$37="Non endémique",0,IF(COUNTRY_INFO!$H54=1,COUNTRY_INFO!E54,0))) -> 0 | E54: =IF(INTRO!$E$39<>"Non endémique", 0, IF(INTRO!$E$37="Non endémique",0,IF(COUNTRY_INFO!$H54=1,COUNTRY_INFO!F54,0))) -> 0 | F54: =IF(INTRO!$E$39<>"Non endémique", 0, IF(INTRO!$E$37="Non endémique",0,IF(COUNTRY_INFO!$H54=1,COUNTRY_INFO!G54,0))) -> 0 | G54: 0 | H54: =IF(INTRO!$E$39="Non endémique",IF(INTRO!$E$37="Non endémique","Non requis",COUNTRY_INFO!V54),"Traiter avec IVM") -> Traiter avec IVM | I54: 0 | J54: 0 | L54: 0
A55: =IF(INTRO!$E$39<>"Non endémique", " ", IF(INTRO!$E$37="Non endémique"," ", IF(COUNTRY_INFO!A55=0," ",COUNTRY_INFO!A55))) ->  | B55: =IF(INTRO!$E$39<>"Non endémique", " ", IF(INTRO!$E$37="Non endémique"," ", IF(COUNTRY_INFO!B55=0," ",COUNTRY_INFO!B55))) ->  | C55: =IF(INTRO!$E$39<>"Non endémique", " ", IF(INTRO!$E$37="Non endémique"," ", IF(COUNTRY_INFO!C55=0," ",COUNTRY_INFO!C55))) ->  | D55: =IF(INTRO!$E$39<>"Non endémique", 0, IF(INTRO!$E$37="Non endémique",0,IF(COUNTRY_INFO!$H55=1,COUNTRY_INFO!E55,0))) -> 0 | E55: =IF(INTRO!$E$39<>"Non endémique", 0, IF(INTRO!$E$37="Non endémique",0,IF(COUNTRY_INFO!$H55=1,COUNTRY_INFO!F55,0))) -> 0 | F55: =IF(INTRO!$E$39<>"Non endémique", 0, IF(INTRO!$E$37="Non endémique",0,IF(COUNTRY_INFO!$H55=1,COUNTRY_INFO!G55,0))) -> 0 | G55: 0 | H55: =IF(INTRO!$E$39="Non endémique",IF(INTRO!$E$37="Non endémique","Non requis",COUNTRY_INFO!V55),"Traiter avec IVM") -> Traiter avec IVM | I55: 0 | J55: 0 | L55: 0
A56: =IF(INTRO!$E$39<>"Non endémique", " ", IF(INTRO!$E$37="Non endémique"," ", IF(COUNTRY_INFO!A56=0," ",COUNTRY_INFO!A56))) ->  | B56: =IF(INTRO!$E$39<>"Non endémique", " ", IF(INTRO!$E$37="Non endémique"," ", IF(COUNTRY_INFO!B56=0," ",COUNTRY_INFO!B56))) ->  | C56: =IF(INTRO!$E$39<>"Non endémique", " ", IF(INTRO!$E$37="Non endémique"," ", IF(COUNTRY_INFO!C56=0," ",COUNTRY_INFO!C56))) ->  | D56: =IF(INTRO!$E$39<>"Non endémique", 0, IF(INTRO!$E$37="Non endémique",0,IF(COUNTRY_INFO!$H56=1,COUNTRY_INFO!E56,0))) -> 0 | E56: =IF(INTRO!$E$39<>"Non endémique", 0, IF(INTRO!$E$37="Non endémique",0,IF(COUNTRY_INFO!$H56=1,COUNTRY_INFO!F56,0))) -> 0 | F56: =IF(INTRO!$E$39<>"Non endémique", 0, IF(INTRO!$E$37="Non endémique",0,IF(COUNTRY_INFO!$H56=1,COUNTRY_INFO!G56,0))) -> 0 | G56: 0 | H56: =IF(INTRO!$E$39="Non endémique",IF(INTRO!$E$37="Non endémique","Non requis",COUNTRY_INFO!V56),"Traiter avec IVM") -> Traiter avec IVM | I56: 0 | J56: 0 | L56: 0
A57: =IF(INTRO!$E$39<>"Non endémique", " ", IF(INTRO!$E$37="Non endémique"," ", IF(COUNTRY_INFO!A57=0," ",COUNTRY_INFO!A57))) ->  | B57: =IF(INTRO!$E$39<>"Non endémique", " ", IF(INTRO!$E$37="Non endémique"," ", IF(COUNTRY_INFO!B57=0," ",COUNTRY_INFO!B57))) ->  | C57: =IF(INTRO!$E$39<>"Non endémique", " ", IF(INTRO!$E$37="Non endémique"," ", IF(COUNTRY_INFO!C57=0," ",COUNTRY_INFO!C57))) ->  | D57: =IF(INTRO!$E$39<>"Non endémique", 0, IF(INTRO!$E$37="Non endémique",0,IF(COUNTRY_INFO!$H57=1,COUNTRY_INFO!E57,0))) -> 0 | E57: =IF(INTRO!$E$39<>"Non endémique", 0, IF(INTRO!$E$37="Non endémique",0,IF(COUNTRY_INFO!$H57=1,COUNTRY_INFO!F57,0))) -> 0 | F57: =IF(INTRO!$E$39<>"Non endémique", 0, IF(INTRO!$E$37="Non endémique",0,IF(COUNTRY_INFO!$H57=1,COUNTRY_INFO!G57,0))) -> 0 | G57: 0 | H57: =IF(INTRO!$E$39="Non endémique",IF(INTRO!$E$37="Non endémique","Non requis",COUNTRY_INFO!V57),"Traiter avec IVM") -> Traiter avec IVM | I57: 0 | J57: 0 | L57: 0
A58: =IF(INTRO!$E$39<>"Non endémique", " ", IF(INTRO!$E$37="Non endémique"," ", IF(COUNTRY_INFO!A58=0," ",COUNTRY_INFO!A58))) ->  | B58: =IF(INTRO!$E$39<>"Non endémique", " ", IF(INTRO!$E$37="Non endémique"," ", IF(COUNTRY_INFO!B58=0," ",COUNTRY_INFO!B58))) ->  | C58: =IF(INTRO!$E$39<>"Non endémique", " ", IF(INTRO!$E$37="Non endémique"," ", IF(COUNTRY_INFO!C58=0," ",COUNTRY_INFO!C58))) ->  | D58: =IF(INTRO!$E$39<>"Non endémique", 0, IF(INTRO!$E$37="Non endémique",0,IF(COUNTRY_INFO!$H58=1,COUNTRY_INFO!E58,0))) -> 0 | E58: =IF(INTRO!$E$39<>"Non endémique", 0, IF(INTRO!$E$37="Non endémique",0,IF(COUNTRY_INFO!$H58=1,COUNTRY_INFO!F58,0))) -> 0 | F58: =IF(INTRO!$E$39<>"Non endémique", 0, IF(INTRO!$E$37="Non endémique",0,IF(COUNTRY_INFO!$H58=1,COUNTRY_INFO!G58,0))) -> 0 | G58: 0 | H58: =IF(INTRO!$E$39="Non endémique",IF(INTRO!$E$37="Non endémique","Non requis",COUNTRY_INFO!V58),"Traiter avec IVM") -> Traiter avec IVM | I58: 0 | J58: 0 | L58: 0
A59: =IF(INTRO!$E$39<>"Non endémique", " ", IF(INTRO!$E$37="Non endémique"," ", IF(COUNTRY_INFO!A59=0," ",COUNTRY_INFO!A59))) ->  | B59: =IF(INTRO!$E$39<>"Non endémique", " ", IF(INTRO!$E$37="Non endémique"," ", IF(COUNTRY_INFO!B59=0," ",COUNTRY_INFO!B59))) ->  | C59: =IF(INTRO!$E$39<>"Non endémique", " ", IF(INTRO!$E$37="Non endémique"," ", IF(COUNTRY_INFO!C59=0," ",COUNTRY_INFO!C59))) ->  | D59: =IF(INTRO!$E$39<>"Non endémique", 0, IF(INTRO!$E$37="Non endémique",0,IF(COUNTRY_INFO!$H59=1,COUNTRY_INFO!E59,0))) -> 0 | E59: =IF(INTRO!$E$39<>"Non endémique", 0, IF(INTRO!$E$37="Non endémique",0,IF(COUNTRY_INFO!$H59=1,COUNTRY_INFO!F59,0))) -> 0 | F59: =IF(INTRO!$E$39<>"Non endémique", 0, IF(INTRO!$E$37="Non endémique",0,IF(COUNTRY_INFO!$H59=1,COUNTRY_INFO!G59,0))) -> 0 | G59: 0 | H59: =IF(INTRO!$E$39="Non endémique",IF(INTRO!$E$37="Non endémique","Non requis",COUNTRY_INFO!V59),"Traiter avec IVM") -> Traiter avec IVM | I59: 0 | J59: 0 | L59: 0
A60: =IF(INTRO!$E$39<>"Non endémique", " ", IF(INTRO!$E$37="Non endémique"," ", IF(COUNTRY_INFO!A60=0," ",COUNTRY_INFO!A60))) ->  | B60: =IF(INTRO!$E$39<>"Non endémique", " ", IF(INTRO!$E$37="Non endémique"," ", IF(COUNTRY_INFO!B60=0," ",COUNTRY_INFO!B60))) ->  | C60: =IF(INTRO!$E$39<>"Non endémique", " ", IF(INTRO!$E$37="Non endémique"," ", IF(COUNTRY_INFO!C60=0," ",COUNTRY_INFO!C60))) ->  | D60: =IF(INTRO!$E$39<>"Non endémique", 0, IF(INTRO!$E$37="Non endémique",0,IF(COUNTRY_INFO!$H60=1,COUNTRY_INFO!E60,0))) -> 0 | E60: =IF(INTRO!$E$39<>"Non endémique", 0, IF(INTRO!$E$37="Non endémique",0,IF(COUNTRY_INFO!$H60=1,COUNTRY_INFO!F60,0))) -> 0 | F60: =IF(INTRO!$E$39<>"Non endémique", 0, IF(INTRO!$E$37="Non endémique",0,IF(COUNTRY_INFO!$H60=1,COUNTRY_INFO!G60,0))) -> 0 | G60: 0 | H60: =IF(INTRO!$E$39="Non endémique",IF(INTRO!$E$37="Non endémique","Non requis",COUNTRY_INFO!V60),"Traiter avec IVM") -> Traiter avec IVM | I60: 0 | J60: 0 | L60: 0
A61: =IF(INTRO!$E$39<>"Non endémique", " ", IF(INTRO!$E$37="Non endémique"," ", IF(COUNTRY_INFO!A61=0," ",COUNTRY_INFO!A61))) ->  | B61: =IF(INTRO!$E$39<>"Non endémique", " ", IF(INTRO!$E$37="Non endémique"," ", IF(COUNTRY_INFO!B61=0," ",COUNTRY_INFO!B61))) ->  | C61: =IF(INTRO!$E$39<>"Non endémique", " ", IF(INTRO!$E$37="Non endémique"," ", IF(COUNTRY_INFO!C61=0," ",COUNTRY_INFO!C61))) ->  | D61: =IF(INTRO!$E$39<>"Non endémique", 0, IF(INTRO!$E$37="Non endémique",0,IF(COUNTRY_INFO!$H61=1,COUNTRY_INFO!E61,0))) -> 0 | E61: =IF(INTRO!$E$39<>"Non endémique", 0, IF(INTRO!$E$37="Non endémique",0,IF(COUNTRY_INFO!$H61=1,COUNTRY_INFO!F61,0))) -> 0 | F61: =IF(INTRO!$E$39<>"Non endémique", 0, IF(INTRO!$E$37="Non endémique",0,IF(COUNTRY_INFO!$H61=1,COUNTRY_INFO!G61,0))) -> 0 | G61: 0 | H61: =IF(INTRO!$E$39="Non endémique",IF(INTRO!$E$37="Non endémique","Non requis",COUNTRY_INFO!V61),"Traiter avec IVM") -> Traiter avec IVM | I61: 0 | J61: 0 | L61: 0
A62: =IF(INTRO!$E$39<>"Non endémique", " ", IF(INTRO!$E$37="Non endémique"," ", IF(COUNTRY_INFO!A62=0," ",COUNTRY_INFO!A62))) ->  | B62: =IF(INTRO!$E$39<>"Non endémique", " ", IF(INTRO!$E$37="Non endémique"," ", IF(COUNTRY_INFO!B62=0," ",COUNTRY_INFO!B62))) ->  | C62: =IF(INTRO!$E$39<>"Non endémique", " ", IF(INTRO!$E$37="Non endémique"," ", IF(COUNTRY_INFO!C62=0," ",COUNTRY_INFO!C62))) ->  | D62: =IF(INTRO!$E$39<>"Non endémique", 0, IF(INTRO!$E$37="Non endémique",0,IF(COUNTRY_INFO!$H62=1,COUNTRY_INFO!E62,0))) -> 0 | E62: =IF(INTRO!$E$39<>"Non endémique", 0, IF(INTRO!$E$37="Non endémique",0,IF(COUNTRY_INFO!$H62=1,COUNTRY_INFO!F62,0))) -> 0 | F62: =IF(INTRO!$E$39<>"Non endémique", 0, IF(INTRO!$E$37="Non endémique",0,IF(COUNTRY_INFO!$H62=1,COUNTRY_INFO!G62,0))) -> 0 | G62: 0 | H62: =IF(INTRO!$E$39="Non endémique",IF(INTRO!$E$37="Non endémique","Non requis",COUNTRY_INFO!V62),"Traiter avec IVM") -> Traiter avec IVM | I62: 0 | J62: 0 | L62: 0
A63: =IF(INTRO!$E$39<>"Non endémique", " ", IF(INTRO!$E$37="Non endémique"," ", IF(COUNTRY_INFO!A63=0," ",COUNTRY_INFO!A63))) ->  | B63: =IF(INTRO!$E$39<>"Non endémique", " ", IF(INTRO!$E$37="Non endémique"," ", IF(COUNTRY_INFO!B63=0," ",COUNTRY_INFO!B63))) ->  | C63: =IF(INTRO!$E$39<>"Non endémique", " ", IF(INTRO!$E$37="Non endémique"," ", IF(COUNTRY_INFO!C63=0," ",COUNTRY_INFO!C63))) ->  | D63: =IF(INTRO!$E$39<>"Non endémique", 0, IF(INTRO!$E$37="Non endémique",0,IF(COUNTRY_INFO!$H63=1,COUNTRY_INFO!E63,0))) -> 0 | E63: =IF(INTRO!$E$39<>"Non endémique", 0, IF(INTRO!$E$37="Non endémique",0,IF(COUNTRY_INFO!$H63=1,COUNTRY_INFO!F63,0))) -> 0 | F63: =IF(INTRO!$E$39<>"Non endémique", 0, IF(INTRO!$E$37="Non endémique",0,IF(COUNTRY_INFO!$H63=1,COUNTRY_INFO!G63,0))) -> 0 | G63: 0 | H63: =IF(INTRO!$E$39="Non endémique",IF(INTRO!$E$37="Non endémique","Non requis",COUNTRY_INFO!V63),"Traiter avec IVM") -> Traiter avec IVM | I63: 0 | J63: 0 | L63: 0
A64: =IF(INTRO!$E$39<>"Non endémique", " ", IF(INTRO!$E$37="Non endémique"," ", IF(COUNTRY_INFO!A64=0," ",COUNTRY_INFO!A64))) ->  | B64: =IF(INTRO!$E$39<>"Non endémique", " ", IF(INTRO!$E$37="Non endémique"," ", IF(COUNTRY_INFO!B64=0," ",COUNTRY_INFO!B64))) ->  | C64: =IF(INTRO!$E$39<>"Non endémique", " ", IF(INTRO!$E$37="Non endémique"," ", IF(COUNTRY_INFO!C64=0," ",COUNTRY_INFO!C64))) ->  | D64: =IF(INTRO!$E$39<>"Non endémique", 0, IF(INTRO!$E$37="Non endémique",0,IF(COUNTRY_INFO!$H64=1,COUNTRY_INFO!E64,0))) -> 0 | E64: =IF(INTRO!$E$39<>"Non endémique", 0, IF(INTRO!$E$37="Non endémique",0,IF(COUNTRY_INFO!$H64=1,COUNTRY_INFO!F64,0))) -> 0 | F64: =IF(INTRO!$E$39<>"Non endémique", 0, IF(INTRO!$E$37="Non endémique",0,IF(COUNTRY_INFO!$H64=1,COUNTRY_INFO!G64,0))) -> 0 | G64: 0 | H64: =IF(INTRO!$E$39="Non endémique",IF(INTRO!$E$37="Non endémique","Non requis",COUNTRY_INFO!V64),"Traiter avec IVM") -> Traiter avec IVM | I64: 0 | J64: 0 | L64: 0
A65: =IF(INTRO!$E$39<>"Non endémique", " ", IF(INTRO!$E$37="Non endémique"," ", IF(COUNTRY_INFO!A65=0," ",COUNTRY_INFO!A65))) ->  | B65: =IF(INTRO!$E$39<>"Non endémique", " ", IF(INTRO!$E$37="Non endémique"," ", IF(COUNTRY_INFO!B65=0," ",COUNTRY_INFO!B65))) ->  | C65: =IF(INTRO!$E$39<>"Non endémique", " ", IF(INTRO!$E$37="Non endémique"," ", IF(COUNTRY_INFO!C65=0," ",COUNTRY_INFO!C65))) ->  | D65: =IF(INTRO!$E$39<>"Non endémique", 0, IF(INTRO!$E$37="Non endémique",0,IF(COUNTRY_INFO!$H65=1,COUNTRY_INFO!E65,0))) -> 0 | E65: =IF(INTRO!$E$39<>"Non endémique", 0, IF(INTRO!$E$37="Non endémique",0,IF(COUNTRY_INFO!$H65=1,COUNTRY_INFO!F65,0))) -> 0 | F65: =IF(INTRO!$E$39<>"Non endémique", 0, IF(INTRO!$E$37="Non endémique",0,IF(COUNTRY_INFO!$H65=1,COUNTRY_INFO!G65,0))) -> 0 | G65: 0 | H65: =IF(INTRO!$E$39="Non endémique",IF(INTRO!$E$37="Non endémique","Non requis",COUNTRY_INFO!V65),"Traiter avec IVM") -> Traiter avec IVM | I65: 0 | J65: 0 | L65: 0
A66: =IF(INTRO!$E$39<>"Non endémique", " ", IF(INTRO!$E$37="Non endémique"," ", IF(COUNTRY_INFO!A66=0," ",COUNTRY_INFO!A66))) ->  | B66: =IF(INTRO!$E$39<>"Non endémique", " ", IF(INTRO!$E$37="Non endémique"," ", IF(COUNTRY_INFO!B66=0," ",COUNTRY_INFO!B66))) ->  | C66: =IF(INTRO!$E$39<>"Non endémique", " ", IF(INTRO!$E$37="Non endémique"," ", IF(COUNTRY_INFO!C66=0," ",COUNTRY_INFO!C66))) ->  | D66: =IF(INTRO!$E$39<>"Non endémique", 0, IF(INTRO!$E$37="Non endémique",0,IF(COUNTRY_INFO!$H66=1,COUNTRY_INFO!E66,0))) -> 0 | E66: =IF(INTRO!$E$39<>"Non endémique", 0, IF(INTRO!$E$37="Non endémique",0,IF(COUNTRY_INFO!$H66=1,COUNTRY_INFO!F66,0))) -> 0 | F66: =IF(INTRO!$E$39<>"Non endémique", 0, IF(INTRO!$E$37="Non endémique",0,IF(COUNTRY_INFO!$H66=1,COUNTRY_INFO!G66,0))) -> 0 | G66: 0 | H66: =IF(INTRO!$E$39="Non endémique",IF(INTRO!$E$37="Non endémique","Non requis",COUNTRY_INFO!V66),"Traiter avec IVM") -> Traiter avec IVM | I66: 0 | J66: 0 | L66: 0
A67: =IF(INTRO!$E$39<>"Non endémique", " ", IF(INTRO!$E$37="Non endémique"," ", IF(COUNTRY_INFO!A67=0," ",COUNTRY_INFO!A67))) ->  | B67: =IF(INTRO!$E$39<>"Non endémique", " ", IF(INTRO!$E$37="Non endémique"," ", IF(COUNTRY_INFO!B67=0," ",COUNTRY_INFO!B67))) ->  | C67: =IF(INTRO!$E$39<>"Non endémique", " ", IF(INTRO!$E$37="Non endémique"," ", IF(COUNTRY_INFO!C67=0," ",COUNTRY_INFO!C67))) ->  | D67: =IF(INTRO!$E$39<>"Non endémique", 0, IF(INTRO!$E$37="Non endémique",0,IF(COUNTRY_INFO!$H67=1,COUNTRY_INFO!E67,0))) -> 0 | E67: =IF(INTRO!$E$39<>"Non endémique", 0, IF(INTRO!$E$37="Non endémique",0,IF(COUNTRY_INFO!$H67=1,COUNTRY_INFO!F67,0))) -> 0 | F67: =IF(INTRO!$E$39<>"Non endémique", 0, IF(INTRO!$E$37="Non endémique",0,IF(COUNTRY_INFO!$H67=1,COUNTRY_INFO!G67,0))) -> 0 | G67: 0 | H67: =IF(INTRO!$E$39="Non endémique",IF(INTRO!$E$37="Non endémique","Non requis",COUNTRY_INFO!V67),"Traiter avec IVM") -> Traiter avec IVM | I67: 0 | J67: 0 | L67: 0
A68: =IF(INTRO!$E$39<>"Non endémique", " ", IF(INTRO!$E$37="Non endémique"," ", IF(COUNTRY_INFO!A68=0," ",COUNTRY_INFO!A68))) ->  | B68: =IF(INTRO!$E$39<>"Non endémique", " ", IF(INTRO!$E$37="Non endémique"," ", IF(COUNTRY_INFO!B68=0," ",COUNTRY_INFO!B68))) ->  | C68: =IF(INTRO!$E$39<>"Non endémique", " ", IF(INTRO!$E$37="Non endémique"," ", IF(COUNTRY_INFO!C68=0," ",COUNTRY_INFO!C68))) ->  | D68: =IF(INTRO!$E$39<>"Non endémique", 0, IF(INTRO!$E$37="Non endémique",0,IF(COUNTRY_INFO!$H68=1,COUNTRY_INFO!E68,0))) -> 0 | E68: =IF(INTRO!$E$39<>"Non endémique", 0, IF(INTRO!$E$37="Non endémique",0,IF(COUNTRY_INFO!$H68=1,COUNTRY_INFO!F68,0))) -> 0 | F68: =IF(INTRO!$E$39<>"Non endémique", 0, IF(INTRO!$E$37="Non endémique",0,IF(COUNTRY_INFO!$H68=1,COUNTRY_INFO!G68,0))) -> 0 | G68: 0 | H68: =IF(INTRO!$E$39="Non endémique",IF(INTRO!$E$37="Non endémique","Non requis",COUNTRY_INFO!V68),"Traiter avec IVM") -> Traiter avec IVM | I68: 0 | J68: 0 | L68: 0
A69: =IF(INTRO!$E$39<>"Non endémique", " ", IF(INTRO!$E$37="Non endémique"," ", IF(COUNTRY_INFO!A69=0," ",COUNTRY_INFO!A69))) ->  | B69: =IF(INTRO!$E$39<>"Non endémique", " ", IF(INTRO!$E$37="Non endémique"," ", IF(COUNTRY_INFO!B69=0," ",COUNTRY_INFO!B69))) ->  | C69: =IF(INTRO!$E$39<>"Non endémique", " ", IF(INTRO!$E$37="Non endémique"," ", IF(COUNTRY_INFO!C69=0," ",COUNTRY_INFO!C69))) ->  | D69: =IF(INTRO!$E$39<>"Non endémique", 0, IF(INTRO!$E$37="Non endémique",0,IF(COUNTRY_INFO!$H69=1,COUNTRY_INFO!E69,0))) -> 0 | E69: =IF(INTRO!$E$39<>"Non endémique", 0, IF(INTRO!$E$37="Non endémique",0,IF(COUNTRY_INFO!$H69=1,COUNTRY_INFO!F69,0))) -> 0 | F69: =IF(INTRO!$E$39<>"Non endémique", 0, IF(INTRO!$E$37="Non endémique",0,IF(COUNTRY_INFO!$H69=1,COUNTRY_INFO!G69,0))) -> 0 | G69: 0 | H69: =IF(INTRO!$E$39="Non endémique",IF(INTRO!$E$37="Non endémique","Non requis",COUNTRY_INFO!V69),"Traiter avec IVM") -> Traiter avec IVM | I69: 0 | J69: 0 | L69: 0
A70: =IF(INTRO!$E$39<>"Non endémique", " ", IF(INTRO!$E$37="Non endémique"," ", IF(COUNTRY_INFO!A70=0," ",COUNTRY_INFO!A70))) ->  | B70: =IF(INTRO!$E$39<>"Non endémique", " ", IF(INTRO!$E$37="Non endémique"," ", IF(COUNTRY_INFO!B70=0," ",COUNTRY_INFO!B70))) ->  | C70: =IF(INTRO!$E$39<>"Non endémique", " ", IF(INTRO!$E$37="Non endémique"," ", IF(COUNTRY_INFO!C70=0," ",COUNTRY_INFO!C70))) ->  | D70: =IF(INTRO!$E$39<>"Non endémique", 0, IF(INTRO!$E$37="Non endémique",0,IF(COUNTRY_INFO!$H70=1,COUNTRY_INFO!E70,0))) -> 0 | E70: =IF(INTRO!$E$39<>"Non endémique", 0, IF(INTRO!$E$37="Non endémique",0,IF(COUNTRY_INFO!$H70=1,COUNTRY_INFO!F70,0))) -> 0 | F70: =IF(INTRO!$E$39<>"Non endémique", 0, IF(INTRO!$E$37="Non endémique",0,IF(COUNTRY_INFO!$H70=1,COUNTRY_INFO!G70,0))) -> 0 | G70: 0 | H70: =IF(INTRO!$E$39="Non endémique",IF(INTRO!$E$37="Non endémique","Non requis",COUNTRY_INFO!V70),"Traiter avec IVM") -> Traiter avec IVM | I70: 0 | J70: 0 | L70: 0
A71: =IF(INTRO!$E$39<>"Non endémique", " ", IF(INTRO!$E$37="Non endémique"," ", IF(COUNTRY_INFO!A71=0," ",COUNTRY_INFO!A71))) ->  | B71: =IF(INTRO!$E$39<>"Non endémique", " ", IF(INTRO!$E$37="Non endémique"," ", IF(COUNTRY_INFO!B71=0," ",COUNTRY_INFO!B71))) ->  | C71: =IF(INTRO!$E$39<>"Non endémique", " ", IF(INTRO!$E$37="Non endémique"," ", IF(COUNTRY_INFO!C71=0," ",COUNTRY_INFO!C71))) ->  | D71: =IF(INTRO!$E$39<>"Non endémique", 0, IF(INTRO!$E$37="Non endémique",0,IF(COUNTRY_INFO!$H71=1,COUNTRY_INFO!E71,0))) -> 0 | E71: =IF(INTRO!$E$39<>"Non endémique", 0, IF(INTRO!$E$37="Non endémique",0,IF(COUNTRY_INFO!$H71=1,COUNTRY_INFO!F71,0))) -> 0 | F71: =IF(INTRO!$E$39<>"Non endémique", 0, IF(INTRO!$E$37="Non endémique",0,IF(COUNTRY_INFO!$H71=1,COUNTRY_INFO!G71,0))) -> 0 | G71: 0 | H71: =IF(INTRO!$E$39="Non endémique",IF(INTRO!$E$37="Non endémique","Non requis",COUNTRY_INFO!V71),"Traiter avec IVM") -> Traiter avec IVM | I71: 0 | J71: 0 | L71: 0
A72: =IF(INTRO!$E$39<>"Non endémique", " ", IF(INTRO!$E$37="Non endémique"," ", IF(COUNTRY_INFO!A72=0," ",COUNTRY_INFO!A72))) ->  | B72: =IF(INTRO!$E$39<>"Non endémique", " ", IF(INTRO!$E$37="Non endémique"," ", IF(COUNTRY_INFO!B72=0," ",COUNTRY_INFO!B72))) ->  | C72: =IF(INTRO!$E$39<>"Non endémique", " ", IF(INTRO!$E$37="Non endémique"," ", IF(COUNTRY_INFO!C72=0," ",COUNTRY_INFO!C72))) ->  | D72: =IF(INTRO!$E$39<>"Non endémique", 0, IF(INTRO!$E$37="Non endémique",0,IF(COUNTRY_INFO!$H72=1,COUNTRY_INFO!E72,0))) -> 0 | E72: =IF(INTRO!$E$39<>"Non endémique", 0, IF(INTRO!$E$37="Non endémique",0,IF(COUNTRY_INFO!$H72=1,COUNTRY_INFO!F72,0))) -> 0 | F72: =IF(INTRO!$E$39<>"Non endémique", 0, IF(INTRO!$E$37="Non endémique",0,IF(COUNTRY_INFO!$H72=1,COUNTRY_INFO!G72,0))) -> 0 | G72: 0 | H72: =IF(INTRO!$E$39="Non endémique",IF(INTRO!$E$37="Non endémique","Non requis",COUNTRY_INFO!V72),"Traiter avec IVM") -> Traiter avec IVM | I72: 0 | J72: 0 | L72: 0
A73: =IF(INTRO!$E$39<>"Non endémique", " ", IF(INTRO!$E$37="Non endémique"," ", IF(COUNTRY_INFO!A73=0," ",COUNTRY_INFO!A73))) ->  | B73: =IF(INTRO!$E$39<>"Non endémique", " ", IF(INTRO!$E$37="Non endémique"," ", IF(COUNTRY_INFO!B73=0," ",COUNTRY_INFO!B73))) ->  | C73: =IF(INTRO!$E$39<>"Non endémique", " ", IF(INTRO!$E$37="Non endémique"," ", IF(COUNTRY_INFO!C73=0," ",COUNTRY_INFO!C73))) ->  | D73: =IF(INTRO!$E$39<>"Non endémique", 0, IF(INTRO!$E$37="Non endémique",0,IF(COUNTRY_INFO!$H73=1,COUNTRY_INFO!E73,0))) -> 0 | E73: =IF(INTRO!$E$39<>"Non endémique", 0, IF(INTRO!$E$37="Non endémique",0,IF(COUNTRY_INFO!$H73=1,COUNTRY_INFO!F73,0))) -> 0 | F73: =IF(INTRO!$E$39<>"Non endémique", 0, IF(INTRO!$E$37="Non endémique",0,IF(COUNTRY_INFO!$H73=1,COUNTRY_INFO!G73,0))) -> 0 | G73: 0 | H73: =IF(INTRO!$E$39="Non endémique",IF(INTRO!$E$37="Non endémique","Non requis",COUNTRY_INFO!V73),"Traiter avec IVM") -> Traiter avec IVM | I73: 0 | J73: 0 | L73: 0
A74: =IF(INTRO!$E$39<>"Non endémique", " ", IF(INTRO!$E$37="Non endémique"," ", IF(COUNTRY_INFO!A74=0," ",COUNTRY_INFO!A74))) ->  | B74: =IF(INTRO!$E$39<>"Non endémique", " ", IF(INTRO!$E$37="Non endémique"," ", IF(COUNTRY_INFO!B74=0," ",COUNTRY_INFO!B74))) ->  | C74: =IF(INTRO!$E$39<>"Non endémique", " ", IF(INTRO!$E$37="Non endémique"," ", IF(COUNTRY_INFO!C74=0," ",COUNTRY_INFO!C74))) ->  | D74: =IF(INTRO!$E$39<>"Non endémique", 0, IF(INTRO!$E$37="Non endémique",0,IF(COUNTRY_INFO!$H74=1,COUNTRY_INFO!E74,0))) -> 0 | E74: =IF(INTRO!$E$39<>"Non endémique", 0, IF(INTRO!$E$37="Non endémique",0,IF(COUNTRY_INFO!$H74=1,COUNTRY_INFO!F74,0))) -> 0 | F74: =IF(INTRO!$E$39<>"Non endémique", 0, IF(INTRO!$E$37="Non endémique",0,IF(COUNTRY_INFO!$H74=1,COUNTRY_INFO!G74,0))) -> 0 | G74: 0 | H74: =IF(INTRO!$E$39="Non endémique",IF(INTRO!$E$37="Non endémique","Non requis",COUNTRY_INFO!V74),"Traiter avec IVM") -> Traiter avec IVM | I74: 0 | J74: 0 | L74: 0
A75: =IF(INTRO!$E$39<>"Non endémique", " ", IF(INTRO!$E$37="Non endémique"," ", IF(COUNTRY_INFO!A75=0," ",COUNTRY_INFO!A75))) ->  | B75: =IF(INTRO!$E$39<>"Non endémique", " ", IF(INTRO!$E$37="Non endémique"," ", IF(COUNTRY_INFO!B75=0," ",COUNTRY_INFO!B75))) ->  | C75: =IF(INTRO!$E$39<>"Non endémique", " ", IF(INTRO!$E$37="Non endémique"," ", IF(COUNTRY_INFO!C75=0," ",COUNTRY_INFO!C75))) ->  | D75: =IF(INTRO!$E$39<>"Non endémique", 0, IF(INTRO!$E$37="Non endémique",0,IF(COUNTRY_INFO!$H75=1,COUNTRY_INFO!E75,0))) -> 0 | E75: =IF(INTRO!$E$39<>"Non endémique", 0, IF(INTRO!$E$37="Non endémique",0,IF(COUNTRY_INFO!$H75=1,COUNTRY_INFO!F75,0))) -> 0 | F75: =IF(INTRO!$E$39<>"Non endémique", 0, IF(INTRO!$E$37="Non endémique",0,IF(COUNTRY_INFO!$H75=1,COUNTRY_INFO!G75,0))) -> 0 | G75: =SUM(D75:F75) -> 0 | H75: =IF(INTRO!$E$39="Non endémique",IF(INTRO!$E$37="Non endémique","Non requis",COUNTRY_INFO!V75),"Traiter avec IVM") -> Traiter avec IVM | I75: =IF(H75=1,G75,0) -> 0 | J75: =IF(I75>0,I75*2.5,0) -> 0 | L75: 0
A76: =IF(INTRO!$E$39<>"Non endémique", " ", IF(INTRO!$E$37="Non endémique"," ", IF(COUNTRY_INFO!A76=0," ",COUNTRY_INFO!A76))) ->  | B76: =IF(INTRO!$E$39<>"Non endémique", " ", IF(INTRO!$E$37="Non endémique"," ", IF(COUNTRY_INFO!B76=0," ",COUNTRY_INFO!B76))) ->  | C76: =IF(INTRO!$E$39<>"Non endémique", " ", IF(INTRO!$E$37="Non endémique"," ", IF(COUNTRY_INFO!C76=0," ",COUNTRY_INFO!C76))) ->  | D76: =IF(INTRO!$E$39<>"Non endémique", 0, IF(INTRO!$E$37="Non endémique",0,IF(COUNTRY_INFO!$H76=1,COUNTRY_INFO!E76,0))) -> 0 | E76: =IF(INTRO!$E$39<>"Non endémique", 0, IF(INTRO!$E$37="Non endémique",0,IF(COUNTRY_INFO!$H76=1,COUNTRY_INFO!F76,0))) -> 0 | F76: =IF(INTRO!$E$39<>"Non endémique", 0, IF(INTRO!$E$37="Non endémique",0,IF(COUNTRY_INFO!$H76=1,COUNTRY_INFO!G76,0))) -> 0 | G76: 0 | H76: =IF(INTRO!$E$39="Non endémique",IF(INTRO!$E$37="Non endémique","Non requis",COUNTRY_INFO!V76),"Traiter avec IVM") -> Traiter avec IVM | I76: 0 | J76: 0 | L76: 0
A77: =IF(INTRO!$E$39<>"Non endémique", " ", IF(INTRO!$E$37="Non endémique"," ", IF(COUNTRY_INFO!A77=0," ",COUNTRY_INFO!A77))) ->  | B77: =IF(INTRO!$E$39<>"Non endémique", " ", IF(INTRO!$E$37="Non endémique"," ", IF(COUNTRY_INFO!B77=0," ",COUNTRY_INFO!B77))) ->  | C77: =IF(INTRO!$E$39<>"Non endémique", " ", IF(INTRO!$E$37="Non endémique"," ", IF(COUNTRY_INFO!C77=0," ",COUNTRY_INFO!C77))) ->  | D77: =IF(INTRO!$E$39<>"Non endémique", 0, IF(INTRO!$E$37="Non endémique",0,IF(COUNTRY_INFO!$H77=1,COUNTRY_INFO!E77,0))) -> 0 | E77: =IF(INTRO!$E$39<>"Non endémique", 0, IF(INTRO!$E$37="Non endémique",0,IF(COUNTRY_INFO!$H77=1,COUNTRY_INFO!F77,0))) -> 0 | F77: =IF(INTRO!$E$39<>"Non endémique", 0, IF(INTRO!$E$37="Non endémique",0,IF(COUNTRY_INFO!$H77=1,COUNTRY_INFO!G77,0))) -> 0 | G77: 0 | H77: =IF(INTRO!$E$39="Non endémique",IF(INTRO!$E$37="Non endémique","Non requis",COUNTRY_INFO!V77),"Traiter avec IVM") -> Traiter avec IVM | I77: 0 | J77: 0 | L77: 0
A78: =IF(INTRO!$E$39<>"Non endémique", " ", IF(INTRO!$E$37="Non endémique"," ", IF(COUNTRY_INFO!A78=0," ",COUNTRY_INFO!A78))) ->  | B78: =IF(INTRO!$E$39<>"Non endémique", " ", IF(INTRO!$E$37="Non endémique"," ", IF(COUNTRY_INFO!B78=0," ",COUNTRY_INFO!B78))) ->  | C78: =IF(INTRO!$E$39<>"Non endémique", " ", IF(INTRO!$E$37="Non endémique"," ", IF(COUNTRY_INFO!C78=0," ",COUNTRY_INFO!C78))) ->  | D78: =IF(INTRO!$E$39<>"Non endémique", 0, IF(INTRO!$E$37="Non endémique",0,IF(COUNTRY_INFO!$H78=1,COUNTRY_INFO!E78,0))) -> 0 | E78: =IF(INTRO!$E$39<>"Non endémique", 0, IF(INTRO!$E$37="Non endémique",0,IF(COUNTRY_INFO!$H78=1,COUNTRY_INFO!F78,0))) -> 0 | F78: =IF(INTRO!$E$39<>"Non endémique", 0, IF(INTRO!$E$37="Non endémique",0,IF(COUNTRY_INFO!$H78=1,COUNTRY_INFO!G78,0))) -> 0 | G78: 0 | H78: =IF(INTRO!$E$39="Non endémique",IF(INTRO!$E$37="Non endémique","Non requis",COUNTRY_INFO!V78),"Traiter avec IVM") -> Traiter avec IVM | I78: 0 | J78: 0 | L78: 0
A79: =IF(INTRO!$E$39<>"Non endémique", " ", IF(INTRO!$E$37="Non endémique"," ", IF(COUNTRY_INFO!A79=0," ",COUNTRY_INFO!A79))) ->  | B79: =IF(INTRO!$E$39<>"Non endémique", " ", IF(INTRO!$E$37="Non endémique"," ", IF(COUNTRY_INFO!B79=0," ",COUNTRY_INFO!B79))) ->  | C79: =IF(INTRO!$E$39<>"Non endémique", " ", IF(INTRO!$E$37="Non endémique"," ", IF(COUNTRY_INFO!C79=0," ",COUNTRY_INFO!C79))) ->  | D79: =IF(INTRO!$E$39<>"Non endémique", 0, IF(INTRO!$E$37="Non endémique",0,IF(COUNTRY_INFO!$H79=1,COUNTRY_INFO!E79,0))) -> 0 | E79: =IF(INTRO!$E$39<>"Non endémique", 0, IF(INTRO!$E$37="Non endémique",0,IF(COUNTRY_INFO!$H79=1,COUNTRY_INFO!F79,0))) -> 0 | F79: =IF(INTRO!$E$39<>"Non endémique", 0, IF(INTRO!$E$37="Non endémique",0,IF(COUNTRY_INFO!$H79=1,COUNTRY_INFO!G79,0))) -> 0 | G79: 0 | H79: =IF(INTRO!$E$39="Non endémique",IF(INTRO!$E$37="Non endémique","Non requis",COUNTRY_INFO!V79),"Traiter avec IVM") -> Traiter avec IVM | I79: 0 | J79: 0 | L79: 0
A80: =IF(INTRO!$E$39<>"Non endémique", " ", IF(INTRO!$E$37="Non endémique"," ", IF(COUNTRY_INFO!A80=0," ",COUNTRY_INFO!A80))) ->  | B80: =IF(INTRO!$E$39<>"Non endémique", " ", IF(INTRO!$E$37="Non endémique"," ", IF(COUNTRY_INFO!B80=0," ",COUNTRY_INFO!B80))) ->  | C80: =IF(INTRO!$E$39<>"Non endémique", " ", IF(INTRO!$E$37="Non endémique"," ", IF(COUNTRY_INFO!C80=0," ",COUNTRY_INFO!C80))) ->  | D80: =IF(INTRO!$E$39<>"Non endémique", 0, IF(INTRO!$E$37="Non endémique",0,IF(COUNTRY_INFO!$H80=1,COUNTRY_INFO!E80,0))) -> 0 | E80: =IF(INTRO!$E$39<>"Non endémique", 0, IF(INTRO!$E$37="Non endémique",0,IF(COUNTRY_INFO!$H80=1,COUNTRY_INFO!F80,0))) -> 0 | F80: =IF(INTRO!$E$39<>"Non endémique", 0, IF(INTRO!$E$37="Non endémique",0,IF(COUNTRY_INFO!$H80=1,COUNTRY_INFO!G80,0))) -> 0 | G80: 0 | H80: =IF(INTRO!$E$39="Non endémique",IF(INTRO!$E$37="Non endémique","Non requis",COUNTRY_INFO!V80),"Traiter avec IVM") -> Traiter avec IVM | I80: 0 | J80: 0 | L80: 0
A81: =IF(INTRO!$E$39<>"Non endémique", " ", IF(INTRO!$E$37="Non endémique"," ", IF(COUNTRY_INFO!A81=0," ",COUNTRY_INFO!A81))) ->  | B81: =IF(INTRO!$E$39<>"Non endémique", " ", IF(INTRO!$E$37="Non endémique"," ", IF(COUNTRY_INFO!B81=0," ",COUNTRY_INFO!B81))) ->  | C81: =IF(INTRO!$E$39<>"Non endémique", " ", IF(INTRO!$E$37="Non endémique"," ", IF(COUNTRY_INFO!C81=0," ",COUNTRY_INFO!C81))) ->  | D81: =IF(INTRO!$E$39<>"Non endémique", 0, IF(INTRO!$E$37="Non endémique",0,IF(COUNTRY_INFO!$H81=1,COUNTRY_INFO!E81,0))) -> 0 | E81: =IF(INTRO!$E$39<>"Non endémique", 0, IF(INTRO!$E$37="Non endémique",0,IF(COUNTRY_INFO!$H81=1,COUNTRY_INFO!F81,0))) -> 0 | F81: =IF(INTRO!$E$39<>"Non endémique", 0, IF(INTRO!$E$37="Non endémique",0,IF(COUNTRY_INFO!$H81=1,COUNTRY_INFO!G81,0))) -> 0 | G81: 0 | H81: =IF(INTRO!$E$39="Non endémique",IF(INTRO!$E$37="Non endémique","Non requis",COUNTRY_INFO!V81),"Traiter avec IVM") -> Traiter avec IVM | I81: 0 | J81: 0 | L81: 0
A82: =IF(INTRO!$E$39<>"Non endémique", " ", IF(INTRO!$E$37="Non endémique"," ", IF(COUNTRY_INFO!A82=0," ",COUNTRY_INFO!A82))) ->  | B82: =IF(INTRO!$E$39<>"Non endémique", " ", IF(INTRO!$E$37="Non endémique"," ", IF(COUNTRY_INFO!B82=0," ",COUNTRY_INFO!B82))) ->  | C82: =IF(INTRO!$E$39<>"Non endémique", " ", IF(INTRO!$E$37="Non endémique"," ", IF(COUNTRY_INFO!C82=0," ",COUNTRY_INFO!C82))) ->  | D82: =IF(INTRO!$E$39<>"Non endémique", 0, IF(INTRO!$E$37="Non endémique",0,IF(COUNTRY_INFO!$H82=1,COUNTRY_INFO!E82,0))) -> 0 | E82: =IF(INTRO!$E$39<>"Non endémique", 0, IF(INTRO!$E$37="Non endémique",0,IF(COUNTRY_INFO!$H82=1,COUNTRY_INFO!F82,0))) -> 0 | F82: =IF(INTRO!$E$39<>"Non endémique", 0, IF(INTRO!$E$37="Non endémique",0,IF(COUNTRY_INFO!$H82=1,COUNTRY_INFO!G82,0))) -> 0 | G82: 0 | H82: =IF(INTRO!$E$39="Non endémique",IF(INTRO!$E$37="Non endémique","Non requis",COUNTRY_INFO!V82),"Traiter avec IVM") -> Traiter avec IVM | I82: 0 | J82: 0 | L82: 0
A83: =IF(INTRO!$E$39<>"Non endémique", " ", IF(INTRO!$E$37="Non endémique"," ", IF(COUNTRY_INFO!A83=0," ",COUNTRY_INFO!A83))) ->  | B83: =IF(INTRO!$E$39<>"Non endémique", " ", IF(INTRO!$E$37="Non endémique"," ", IF(COUNTRY_INFO!B83=0," ",COUNTRY_INFO!B83))) ->  | C83: =IF(INTRO!$E$39<>"Non endémique", " ", IF(INTRO!$E$37="Non endémique"," ", IF(COUNTRY_INFO!C83=0," ",COUNTRY_INFO!C83))) ->  | D83: =IF(INTRO!$E$39<>"Non endémique", 0, IF(INTRO!$E$37="Non endémique",0,IF(COUNTRY_INFO!$H83=1,COUNTRY_INFO!E83,0))) -> 0 | E83: =IF(INTRO!$E$39<>"Non endémique", 0, IF(INTRO!$E$37="Non endémique",0,IF(COUNTRY_INFO!$H83=1,COUNTRY_INFO!F83,0))) -> 0 | F83: =IF(INTRO!$E$39<>"Non endémique", 0, IF(INTRO!$E$37="Non endémique",0,IF(COUNTRY_INFO!$H83=1,COUNTRY_INFO!G83,0))) -> 0 | G83: 0 | H83: =IF(INTRO!$E$39="Non endémique",IF(INTRO!$E$37="Non endémique","Non requis",COUNTRY_INFO!V83),"Traiter avec IVM") -> Traiter avec IVM | I83: 0 | J83: 0 | L83: 0
A84: =IF(INTRO!$E$39<>"Non endémique", " ", IF(INTRO!$E$37="Non endémique"," ", IF(COUNTRY_INFO!A84=0," ",COUNTRY_INFO!A84))) ->  | B84: =IF(INTRO!$E$39<>"Non endémique", " ", IF(INTRO!$E$37="Non endémique"," ", IF(COUNTRY_INFO!B84=0," ",COUNTRY_INFO!B84))) ->  | C84: =IF(INTRO!$E$39<>"Non endémique", " ", IF(INTRO!$E$37="Non endémique"," ", IF(COUNTRY_INFO!C84=0," ",COUNTRY_INFO!C84))) ->  | D84: =IF(INTRO!$E$39<>"Non endémique", 0, IF(INTRO!$E$37="Non endémique",0,IF(COUNTRY_INFO!$H84=1,COUNTRY_INFO!E84,0))) -> 0 | E84: =IF(INTRO!$E$39<>"Non endémique", 0, IF(INTRO!$E$37="Non endémique",0,IF(COUNTRY_INFO!$H84=1,COUNTRY_INFO!F84,0))) -> 0 | F84: =IF(INTRO!$E$39<>"Non endémique", 0, IF(INTRO!$E$37="Non endémique",0,IF(COUNTRY_INFO!$H84=1,COUNTRY_INFO!G84,0))) -> 0 | G84: 0 | H84: =IF(INTRO!$E$39="Non endémique",IF(INTRO!$E$37="Non endémique","Non requis",COUNTRY_INFO!V84),"Traiter avec IVM") -> Traiter avec IVM | I84: 0 | J84: 0 | L84: 0
A85: =IF(INTRO!$E$39<>"Non endémique", " ", IF(INTRO!$E$37="Non endémique"," ", IF(COUNTRY_INFO!A85=0," ",COUNTRY_INFO!A85))) ->  | B85: =IF(INTRO!$E$39<>"Non endémique", " ", IF(INTRO!$E$37="Non endémique"," ", IF(COUNTRY_INFO!B85=0," ",COUNTRY_INFO!B85))) ->  | C85: =IF(INTRO!$E$39<>"Non endémique", " ", IF(INTRO!$E$37="Non endémique"," ", IF(COUNTRY_INFO!C85=0," ",COUNTRY_INFO!C85))) ->  | D85: =IF(INTRO!$E$39<>"Non endémique", 0, IF(INTRO!$E$37="Non endémique",0,IF(COUNTRY_INFO!$H85=1,COUNTRY_INFO!E85,0))) -> 0 | E85: =IF(INTRO!$E$39<>"Non endémique", 0, IF(INTRO!$E$37="Non endémique",0,IF(COUNTRY_INFO!$H85=1,COUNTRY_INFO!F85,0))) -> 0 | F85: =IF(INTRO!$E$39<>"Non endémique", 0, IF(INTRO!$E$37="Non endémique",0,IF(COUNTRY_INFO!$H85=1,COUNTRY_INFO!G85,0))) -> 0 | G85: 0 | H85: =IF(INTRO!$E$39="Non endémique",IF(INTRO!$E$37="Non endémique","Non requis",COUNTRY_INFO!V85),"Traiter avec IVM") -> Traiter avec IVM | I85: 0 | J85: 0 | L85: 0
A86: =IF(INTRO!$E$39<>"Non endémique", " ", IF(INTRO!$E$37="Non endémique"," ", IF(COUNTRY_INFO!A86=0," ",COUNTRY_INFO!A86))) ->  | B86: =IF(INTRO!$E$39<>"Non endémique", " ", IF(INTRO!$E$37="Non endémique"," ", IF(COUNTRY_INFO!B86=0," ",COUNTRY_INFO!B86))) ->  | C86: =IF(INTRO!$E$39<>"Non endémique", " ", IF(INTRO!$E$37="Non endémique"," ", IF(COUNTRY_INFO!C86=0," ",COUNTRY_INFO!C86))) ->  | D86: =IF(INTRO!$E$39<>"Non endémique", 0, IF(INTRO!$E$37="Non endémique",0,IF(COUNTRY_INFO!$H86=1,COUNTRY_INFO!E86,0))) -> 0 | E86: =IF(INTRO!$E$39<>"Non endémique", 0, IF(INTRO!$E$37="Non endémique",0,IF(COUNTRY_INFO!$H86=1,COUNTRY_INFO!F86,0))) -> 0 | F86: =IF(INTRO!$E$39<>"Non endémique", 0, IF(INTRO!$E$37="Non endémique",0,IF(COUNTRY_INFO!$H86=1,COUNTRY_INFO!G86,0))) -> 0 | G86: 0 | H86: =IF(INTRO!$E$39="Non endémique",IF(INTRO!$E$37="Non endémique","Non requis",COUNTRY_INFO!V86),"Traiter avec IVM") -> Traiter avec IVM | I86: 0 | J86: 0 | L86: 0
A87: =IF(INTRO!$E$39<>"Non endémique", " ", IF(INTRO!$E$37="Non endémique"," ", IF(COUNTRY_INFO!A87=0," ",COUNTRY_INFO!A87))) ->  | B87: =IF(INTRO!$E$39<>"Non endémique", " ", IF(INTRO!$E$37="Non endémique"," ", IF(COUNTRY_INFO!B87=0," ",COUNTRY_INFO!B87))) ->  | C87: =IF(INTRO!$E$39<>"Non endémique", " ", IF(INTRO!$E$37="Non endémique"," ", IF(COUNTRY_INFO!C87=0," ",COUNTRY_INFO!C87))) ->  | D87: =IF(INTRO!$E$39<>"Non endémique", 0, IF(INTRO!$E$37="Non endémique",0,IF(COUNTRY_INFO!$H87=1,COUNTRY_INFO!E87,0))) -> 0 | E87: =IF(INTRO!$E$39<>"Non endémique", 0, IF(INTRO!$E$37="Non endémique",0,IF(COUNTRY_INFO!$H87=1,COUNTRY_INFO!F87,0))) -> 0 | F87: =IF(INTRO!$E$39<>"Non endémique", 0, IF(INTRO!$E$37="Non endémique",0,IF(COUNTRY_INFO!$H87=1,COUNTRY_INFO!G87,0))) -> 0 | G87: 0 | H87: =IF(INTRO!$E$39="Non endémique",IF(INTRO!$E$37="Non endémique","Non requis",COUNTRY_INFO!V87),"Traiter avec IVM") -> Traiter avec IVM | I87: 0 | J87: 0 | L87: 0
A88: =IF(INTRO!$E$39<>"Non endémique", " ", IF(INTRO!$E$37="Non endémique"," ", IF(COUNTRY_INFO!A88=0," ",COUNTRY_INFO!A88))) ->  | B88: =IF(INTRO!$E$39<>"Non endémique", " ", IF(INTRO!$E$37="Non endémique"," ", IF(COUNTRY_INFO!B88=0," ",COUNTRY_INFO!B88))) ->  | C88: =IF(INTRO!$E$39<>"Non endémique", " ", IF(INTRO!$E$37="Non endémique"," ", IF(COUNTRY_INFO!C88=0," ",COUNTRY_INFO!C88))) ->  | D88: =IF(INTRO!$E$39<>"Non endémique", 0, IF(INTRO!$E$37="Non endémique",0,IF(COUNTRY_INFO!$H88=1,COUNTRY_INFO!E88,0))) -> 0 | E88: =IF(INTRO!$E$39<>"Non endémique", 0, IF(INTRO!$E$37="Non endémique",0,IF(COUNTRY_INFO!$H88=1,COUNTRY_INFO!F88,0))) -> 0 | F88: =IF(INTRO!$E$39<>"Non endémique", 0, IF(INTRO!$E$37="Non endémique",0,IF(COUNTRY_INFO!$H88=1,COUNTRY_INFO!G88,0))) -> 0 | G88: 0 | H88: =IF(INTRO!$E$39="Non endémique",IF(INTRO!$E$37="Non endémique","Non requis",COUNTRY_INFO!V88),"Traiter avec IVM") -> Traiter avec IVM | I88: 0 | J88: 0 | L88: 0

Sheet ALB_MBD
A1: Albendazole (ALB) et Mebendazole (MBD) | G1: Choisir le médicament pour le traitement de STH pour chaque groupe d'âge
A2: Structure administrative, population ciblée par groupe d'âge, plan de traitement et information sur les comprimés | I2: ALB
A4: TOTAL | F4: =SUBTOTAL(9,F$10:F$1010) -> 445039 | H4: =SUBTOTAL(9,H$10:H$1010) -> 450862 | I4: 990999 | K4: 918533 | L4: 2360394 | M4: 445039 | N4: 0 | O4: 445039 | P4: 990999 | Q4: 0 | R4: 990999 | S4: 0 | T4: 0 | U4: 0
A6: Structure administrative du pays | D6: Plan de traitement | F6: Population couverte par le PEFL avec ALB | G6: Population cible pour STH | M6: Albendazole (ALB) | S6: Mebendazole (MBD)
A7: Pays | B7: Région/Département | C7: District | D7: FL | E7: STH | G7: EAPréS | I7: EAS | J7: FAP | L7: Total | M7: Total requis (FL) | N7: Reste en stock (FL) | O7: Comprimés devant être fournis (FL) | P7: Total requis (STH) | Q7: Reste en stock (STH) | R7: Comprimés devant être fournis (STH) | S7: Total requis | T7: Reste en stock | U7: Comprimés devant être fournis
G8: Tournées | H8: Personnes | I8: Personnes | J8: Tournées | K8: Personnes
A10: =IF(AND(INTRO!$E$37="Non endémique",INTRO!$E$41="Non endémique")," ",IF(COUNTRY_INFO!A10=0," ",COUNTRY_INFO!A10)) -> SENEGAL | B10: =IF(AND(INTRO!$E$37="Non endémique",INTRO!$E$41="Non endémique")," ",IF(COUNTRY_INFO!B10=0," ",COUNTRY_INFO!B10)) -> Dakar | C10: =IF(AND(INTRO!$E$37="Non endémique",INTRO!$E$41="Non endémique")," ",IF(COUNTRY_INFO!C10=0," ",COUNTRY_INFO!C10)) -> Dakar sud | D10: =IF(AND(INTRO!$E$37="Non endémique",INTRO!$E$41="Non endémique"),0,COUNTRY_INFO!V10) -> 0 | E10: =IF(AND(INTRO!$E$37="Non endémique",INTRO!$E$41="Non endémique"),0,COUNTRY_INFO!X10) -> 0 | F10: =IF(INTRO!$E$39="Non endémique",IF($D10=1,DEC!I10,0),IF($D10=1,IVM!G10,0)) -> 0 | H10: =IF(OR(COUNTRY_INFO!N10="Inconnu",COUNTRY_INFO!N10="Surveillance",COUNTRY_INFO!N10="Non requis",COUNTRY_INFO!N10=0),0,IF(INTRO!$E$39="Non endémique",IF(AND($E10<>0,$G10=""),IF($F10=0,COUNTRY_INFO!N10*$E10,COUNTRY_INFO!N10*($E10-$D10)),IF(AND($E10<>0,$G10<>0),IF($F10=0,COUNTRY_INFO!N10*$G10,COUNTRY_INFO!N10*($G10-$D10)),0)),IF($G10="",COUNTRY_INFO!N10*$E10,COUNTRY_INFO!N10*$G10))) -> 0 | I10: =IF(OR(COUNTRY_INFO!O10="Inconnu",COUNTRY_INFO!O10="Surveillance",COUNTRY_INFO!O10="Non requis",COUNTRY_INFO!O10=0),0,IF($E10<>0, IF($F10=0,COUNTRY_INFO!O10*$E10,COUNTRY_INFO!O10*($E10-$D10)),COUNTRY_INFO!O10*$E10)) -> 0 | K10: =IF(OR(COUNTRY_INFO!P10="Inconnu",COUNTRY_INFO!P10="Surveillance",COUNTRY_INFO!P10="Non requis",COUNTRY_INFO!P10=0),0,IF(AND($E10<>0,$J10=""),IF($F10=0,COUNTRY_INFO!P10*$E10,COUNTRY_INFO!P10*($E10-$D10)), IF(AND($E10<>0,$J10<>0),IF($F10=0,COUNTRY_INFO!P10*$J10,COUNTRY_INFO!P10*($J10-$D10)), COUNTRY_INFO!P10*$J10))) -> 0 | L10: =ROUND($H10,0)+ROUND($I10,0)+ROUND($K10,0) -> 0 | M10: =$F10 -> 0 | O10: =IF($M10>$N10, $M10-$N10,0) -> 0 | P10: =ROUND((IF($G$2="ALB",$H10,0)+IF($I$2="ALB",$I10,0)+IF($J$2="ALB",$K10,0)),0) -> 0 | R10: =IF($P10>$Q10,$P10-$Q10,0) -> 0 | S10: =ROUND((IF($G$2="MBD",$H10,0)+IF($I$2="MBD",$I10,0)+IF($J$2="MBD",$K10,0)),0) -> 0 | U10: =IF($S10>$T10,$S10-$T10,0) -> 0
A11: =IF(AND(INTRO!$E$37="Non endémique",INTRO!$E$41="Non endémique")," ",IF(COUNTRY_INFO!A11=0," ",COUNTRY_INFO!A11)) -> SENEGAL | B11: =IF(AND(INTRO!$E$37="Non endémique",INTRO!$E$41="Non endémique")," ",IF(COUNTRY_INFO!B11=0," ",COUNTRY_INFO!B11)) -> Dakar | C11: =IF(AND(INTRO!$E$37="Non endémique",INTRO!$E$41="Non endémique")," ",IF(COUNTRY_INFO!C11=0," ",COUNTRY_INFO!C11)) -> Dakar centre | D11: =IF(AND(INTRO!$E$37="Non endémique",INTRO!$E$41="Non endémique"),0,COUNTRY_INFO!V11) -> 0 | E11: =IF(AND(INTRO!$E$37="Non endémique",INTRO!$E$41="Non endémique"),0,COUNTRY_INFO!X11) -> 0 | F11: =IF(INTRO!$E$39="Non endémique",IF($D11=1,DEC!I11,0),IF($D11=1,IVM!G11,0)) -> 0 | H11: =IF(OR(COUNTRY_INFO!N11="Inconnu",COUNTRY_INFO!N11="Surveillance",COUNTRY_INFO!N11="Non requis",COUNTRY_INFO!N11=0),0,IF(INTRO!$E$39="Non endémique",IF(AND($E11<>0,$G11=""),IF($F11=0,COUNTRY_INFO!N11*$E11,COUNTRY_INFO!N11*($E11-$D11)),IF(AND($E11<>0,$G11<>0),IF($F11=0,COUNTRY_INFO!N11*$G11,COUNTRY_INFO!N11*($G11-$D11)),0)),IF($G11="",COUNTRY_INFO!N11*$E11,COUNTRY_INFO!N11*$G11))) -> 0 | I11: =IF(OR(COUNTRY_INFO!O11="Inconnu",COUNTRY_INFO!O11="Surveillance",COUNTRY_INFO!O11="Non requis",COUNTRY_INFO!O11=0),0,IF($E11<>0, IF($F11=0,COUNTRY_INFO!O11*$E11,COUNTRY_INFO!O11*($E11-$D11)),COUNTRY_INFO!O11*$E11)) -> 0 | K11: =IF(OR(COUNTRY_INFO!P11="Inconnu",COUNTRY_INFO!P11="Surveillance",COUNTRY_INFO!P11="Non requis",COUNTRY_INFO!P11=0),0,IF(AND($E11<>0,$J11=""),IF($F11=0,COUNTRY_INFO!P11*$E11,COUNTRY_INFO!P11*($E11-$D11)), IF(AND($E11<>0,$J11<>0),IF($F11=0,COUNTRY_INFO!P11*$J11,COUNTRY_INFO!P11*($J11-$D11)), COUNTRY_INFO!P11*$J11))) -> 0 | L11: 0 | M11: 0 | O11: 0 | P11: 0 | R11: 0 | S11: 0 | U11: 0
A12: =IF(AND(INTRO!$E$37="Non endémique",INTRO!$E$41="Non endémique")," ",IF(COUNTRY_INFO!A12=0," ",COUNTRY_INFO!A12)) -> SENEGAL | B12: =IF(AND(INTRO!$E$37="Non endémique",INTRO!$E$41="Non endémique")," ",IF(COUNTRY_INFO!B12=0," ",COUNTRY_INFO!B12)) -> Dakar | C12: =IF(AND(INTRO!$E$37="Non endémique",INTRO!$E$41="Non endémique")," ",IF(COUNTRY_INFO!C12=0," ",COUNTRY_INFO!C12)) -> Dakar ouest | D12: =IF(AND(INTRO!$E$37="Non endémique",INTRO!$E$41="Non endémique"),0,COUNTRY_INFO!V12) -> 0 | E12: =IF(AND(INTRO!$E$37="Non endémique",INTRO!$E$41="Non endémique"),0,COUNTRY_INFO!X12) -> 0 | F12: =IF(INTRO!$E$39="Non endémique",IF($D12=1,DEC!I12,0),IF($D12=1,IVM!G12,0)) -> 0 | H12: =IF(OR(COUNTRY_INFO!N12="Inconnu",COUNTRY_INFO!N12="Surveillance",COUNTRY_INFO!N12="Non requis",COUNTRY_INFO!N12=0),0,IF(INTRO!$E$39="Non endémique",IF(AND($E12<>0,$G12=""),IF($F12=0,COUNTRY_INFO!N12*$E12,COUNTRY_INFO!N12*($E12-$D12)),IF(AND($E12<>0,$G12<>0),IF($F12=0,COUNTRY_INFO!N12*$G12,COUNTRY_INFO!N12*($G12-$D12)),0)),IF($G12="",COUNTRY_INFO!N12*$E12,COUNTRY_INFO!N12*$G12))) -> 0 | I12: =IF(OR(COUNTRY_INFO!O12="Inconnu",COUNTRY_INFO!O12="Surveillance",COUNTRY_INFO!O12="Non requis",COUNTRY_INFO!O12=0),0,IF($E12<>0, IF($F12=0,COUNTRY_INFO!O12*$E12,COUNTRY_INFO!O12*($E12-$D12)),COUNTRY_INFO!O12*$E12)) -> 0 | K12: =IF(OR(COUNTRY_INFO!P12="Inconnu",COUNTRY_INFO!P12="Surveillance",COUNTRY_INFO!P12="Non requis",COUNTRY_INFO!P12=0),0,IF(AND($E12<>0,$J12=""),IF($F12=0,COUNTRY_INFO!P12*$E12,COUNTRY_INFO!P12*($E12-$D12)), IF(AND($E12<>0,$J12<>0),IF($F12=0,COUNTRY_INFO!P12*$J12,COUNTRY_INFO!P12*($J12-$D12)), COUNTRY_INFO!P12*$J12))) -> 0 | L12: 0 | M12: 0 | O12: 0 | P12: 0 | R12: 0 | S12: 0 | U12: 0
A13: =IF(AND(INTRO!$E$37="Non endémique",INTRO!$E$41="Non endémique")," ",IF(COUNTRY_INFO!A13=0," ",COUNTRY_INFO!A13)) -> SENEGAL | B13: =IF(AND(INTRO!$E$37="Non endémique",INTRO!$E$41="Non endémique")," ",IF(COUNTRY_INFO!B13=0," ",COUNTRY_INFO!B13)) -> Dakar | C13: =IF(AND(INTRO!$E$37="Non endémique",INTRO!$E$41="Non endémique")," ",IF(COUNTRY_INFO!C13=0," ",COUNTRY_INFO!C13)) -> Dakar nord | D13: =IF(AND(INTRO!$E$37="Non endémique",INTRO!$E$41="Non endémique"),0,COUNTRY_INFO!V13) -> 0 | E13: =IF(AND(INTRO!$E$37="Non endémique",INTRO!$E$41="Non endémique"),0,COUNTRY_INFO!X13) -> 0 | F13: =IF(INTRO!$E$39="Non endémique",IF($D13=1,DEC!I13,0),IF($D13=1,IVM!G13,0)) -> 0 | H13: =IF(OR(COUNTRY_INFO!N13="Inconnu",COUNTRY_INFO!N13="Surveillance",COUNTRY_INFO!N13="Non requis",COUNTRY_INFO!N13=0),0,IF(INTRO!$E$39="Non endémique",IF(AND($E13<>0,$G13=""),IF($F13=0,COUNTRY_INFO!N13*$E13,COUNTRY_INFO!N13*($E13-$D13)),IF(AND($E13<>0,$G13<>0),IF($F13=0,COUNTRY_INFO!N13*$G13,COUNTRY_INFO!N13*($G13-$D13)),0)),IF($G13="",COUNTRY_INFO!N13*$E13,COUNTRY_INFO!N13*$G13))) -> 0 | I13: =IF(OR(COUNTRY_INFO!O13="Inconnu",COUNTRY_INFO!O13="Surveillance",COUNTRY_INFO!O13="Non requis",COUNTRY_INFO!O13=0),0,IF($E13<>0, IF($F13=0,COUNTRY_INFO!O13*$E13,COUNTRY_INFO!O13*($E13-$D13)),COUNTRY_INFO!O13*$E13)) -> 0 | K13: =IF(OR(COUNTRY_INFO!P13="Inconnu",COUNTRY_INFO!P13="Surveillance",COUNTRY_INFO!P13="Non requis",COUNTRY_INFO!P13=0),0,IF(AND($E13<>0,$J13=""),IF($F13=0,COUNTRY_INFO!P13*$E13,COUNTRY_INFO!P13*($E13-$D13)), IF(AND($E13<>0,$J13<>0),IF($F13=0,COUNTRY_INFO!P13*$J13,COUNTRY_INFO!P13*($J13-$D13)), COUNTRY_INFO!P13*$J13))) -> 0 | L13: 0 | M13: 0 | O13: 0 | P13: 0 | R13: 0 | S13: 0 | U13: 0
A14: =IF(AND(INTRO!$E$37="Non endémique",INTRO!$E$41="Non endémique")," ",IF(COUNTRY_INFO!A14=0," ",COUNTRY_INFO!A14)) -> SENEGAL | B14: =IF(AND(INTRO!$E$37="Non endémique",INTRO!$E$41="Non endémique")," ",IF(COUNTRY_INFO!B14=0," ",COUNTRY_INFO!B14)) -> Dakar | C14: =IF(AND(INTRO!$E$37="Non endémique",INTRO!$E$41="Non endémique")," ",IF(COUNTRY_INFO!C14=0," ",COUNTRY_INFO!C14)) -> Guédiawaye | D14: =IF(AND(INTRO!$E$37="Non endémique",INTRO!$E$41="Non endémique"),0,COUNTRY_INFO!V14) -> 0 | E14: =IF(AND(INTRO!$E$37="Non endémique",INTRO!$E$41="Non endémique"),0,COUNTRY_INFO!X14) -> 1 | F14: =IF(INTRO!$E$39="Non endémique",IF($D14=1,DEC!I14,0),IF($D14=1,IVM!G14,0)) -> 0 | H14: =IF(OR(COUNTRY_INFO!N14="Inconnu",COUNTRY_INFO!N14="Surveillance",COUNTRY_INFO!N14="Non requis",COUNTRY_INFO!N14=0),0,IF(INTRO!$E$39="Non endémique",IF(AND($E14<>0,$G14=""),IF($F14=0,COUNTRY_INFO!N14*$E14,COUNTRY_INFO!N14*($E14-$D14)),IF(AND($E14<>0,$G14<>0),IF($F14=0,COUNTRY_INFO!N14*$G14,COUNTRY_INFO!N14*($G14-$D14)),0)),IF($G14="",COUNTRY_INFO!N14*$E14,COUNTRY_INFO!N14*$G14))) -> 54074 | I14: =IF(OR(COUNTRY_INFO!O14="Inconnu",COUNTRY_INFO!O14="Surveillance",COUNTRY_INFO!O14="Non requis",COUNTRY_INFO!O14=0),0,IF($E14<>0, IF($F14=0,COUNTRY_INFO!O14*$E14,COUNTRY_INFO!O14*($E14-$D14)),COUNTRY_INFO!O14*$E14)) -> 118856 | K14: =IF(OR(COUNTRY_INFO!P14="Inconnu",COUNTRY_INFO!P14="Surveillance",COUNTRY_INFO!P14="Non requis",COUNTRY_INFO!P14=0),0,IF(AND($E14<>0,$J14=""),IF($F14=0,COUNTRY_INFO!P14*$E14,COUNTRY_INFO!P14*($E14-$D14)), IF(AND($E14<>0,$J14<>0),IF($F14=0,COUNTRY_INFO!P14*$J14,COUNTRY_INFO!P14*($J14-$D14)), COUNTRY_INFO!P14*$J14))) -> 110165 | L14: 283095 | M14: 0 | O14: 0 | P14: 118856 | R14: 118856 | S14: 0 | U14: 0
A15: =IF(AND(INTRO!$E$37="Non endémique",INTRO!$E$41="Non endémique")," ",IF(COUNTRY_INFO!A15=0," ",COUNTRY_INFO!A15)) -> SENEGAL | B15: =IF(AND(INTRO!$E$37="Non endémique",INTRO!$E$41="Non endémique")," ",IF(COUNTRY_INFO!B15=0," ",COUNTRY_INFO!B15)) -> Dakar | C15: =IF(AND(INTRO!$E$37="Non endémique",INTRO!$E$41="Non endémique")," ",IF(COUNTRY_INFO!C15=0," ",COUNTRY_INFO!C15)) -> Pikine | D15: =IF(AND(INTRO!$E$37="Non endémique",INTRO!$E$41="Non endémique"),0,COUNTRY_INFO!V15) -> 0 | E15: =IF(AND(INTRO!$E$37="Non endémique",INTRO!$E$41="Non endémique"),0,COUNTRY_INFO!X15) -> 1 | F15: =IF(INTRO!$E$39="Non endémique",IF($D15=1,DEC!I15,0),IF($D15=1,IVM!G15,0)) -> 0 | H15: =IF(OR(COUNTRY_INFO!N15="Inconnu",COUNTRY_INFO!N15="Surveillance",COUNTRY_INFO!N15="Non requis",COUNTRY_INFO!N15=0),0,IF(INTRO!$E$39="Non endémique",IF(AND($E15<>0,$G15=""),IF($F15=0,COUNTRY_INFO!N15*$E15,COUNTRY_INFO!N15*($E15-$D15)),IF(AND($E15<>0,$G15<>0),IF($F15=0,COUNTRY_INFO!N15*$G15,COUNTRY_INFO!N15*($G15-$D15)),0)),IF($G15="",COUNTRY_INFO!N15*$E15,COUNTRY_INFO!N15*$G15))) -> 53913 | I15: =IF(OR(COUNTRY_INFO!O15="Inconnu",COUNTRY_INFO!O15="Surveillance",COUNTRY_INFO!O15="Non requis",COUNTRY_INFO!O15=0),0,IF($E15<>0, IF($F15=0,COUNTRY_INFO!O15*$E15,COUNTRY_INFO!O15*($E15-$D15)),COUNTRY_INFO!O15*$E15)) -> 118501 | K15: =IF(OR(COUNTRY_INFO!P15="Inconnu",COUNTRY_INFO!P15="Surveillance",COUNTRY_INFO!P15="Non requis",COUNTRY_INFO!P15=0),0,IF(AND($E15<>0,$J15=""),IF($F15=0,COUNTRY_INFO!P15*$E15,COUNTRY_INFO!P15*($E15-$D15)), IF(AND($E15<>0,$J15<>0),IF($F15=0,COUNTRY_INFO!P15*$J15,COUNTRY_INFO!P15*($J15-$D15)), COUNTRY_INFO!P15*$J15))) -> 109835 | L15: 282249 | M15: 0 | O15: 0 | P15: 118501 | R15: 118501 | S15: 0 | U15: 0
A16: =IF(AND(INTRO!$E$37="Non endémique",INTRO!$E$41="Non endémique")," ",IF(COUNTRY_INFO!A16=0," ",COUNTRY_INFO!A16)) -> SENEGAL | B16: =IF(AND(INTRO!$E$37="Non endémique",INTRO!$E$41="Non endémique")," ",IF(COUNTRY_INFO!B16=0," ",COUNTRY_INFO!B16)) -> Dakar | C16: =IF(AND(INTRO!$E$37="Non endémique",INTRO!$E$41="Non endémique")," ",IF(COUNTRY_INFO!C16=0," ",COUNTRY_INFO!C16)) -> Keur Massar | D16: =IF(AND(INTRO!$E$37="Non endémique",INTRO!$E$41="Non endémique"),0,COUNTRY_INFO!V16) -> 0 | E16: =IF(AND(INTRO!$E$37="Non endémique",INTRO!$E$41="Non endémique"),0,COUNTRY_INFO!X16) -> 0 | F16: =IF(INTRO!$E$39="Non endémique",IF($D16=1,DEC!I16,0),IF($D16=1,IVM!G16,0)) -> 0 | H16: =IF(OR(COUNTRY_INFO!N16="Inconnu",COUNTRY_INFO!N16="Surveillance",COUNTRY_INFO!N16="Non requis",COUNTRY_INFO!N16=0),0,IF(INTRO!$E$39="Non endémique",IF(AND($E16<>0,$G16=""),IF($F16=0,COUNTRY_INFO!N16*$E16,COUNTRY_INFO!N16*($E16-$D16)),IF(AND($E16<>0,$G16<>0),IF($F16=0,COUNTRY_INFO!N16*$G16,COUNTRY_INFO!N16*($G16-$D16)),0)),IF($G16="",COUNTRY_INFO!N16*$E16,COUNTRY_INFO!N16*$G16))) -> 0 | I16: =IF(OR(COUNTRY_INFO!O16="Inconnu",COUNTRY_INFO!O16="Surveillance",COUNTRY_INFO!O16="Non requis",COUNTRY_INFO!O16=0),0,IF($E16<>0, IF($F16=0,COUNTRY_INFO!O16*$E16,COUNTRY_INFO!O16*($E16-$D16)),COUNTRY_INFO!O16*$E16)) -> 0 | K16: =IF(OR(COUNTRY_INFO!P16="Inconnu",COUNTRY_INFO!P16="Surveillance",COUNTRY_INFO!P16="Non requis",COUNTRY_INFO!P16=0),0,IF(AND($E16<>0,$J16=""),IF($F16=0,COUNTRY_INFO!P16*$E16,COUNTRY_INFO!P16*($E16-$D16)), IF(AND($E16<>0,$J16<>0),IF($F16=0,COUNTRY_INFO!P16*$J16,COUNTRY_INFO!P16*($J16-$D16)), COUNTRY_INFO!P16*$J16))) -> 0 | L16: 0 | M16: 0 | O16: 0 | P16: 0 | R16: 0 | S16: 0 | U16: 0
A17: =IF(AND(INTRO!$E$37="Non endémique",INTRO!$E$41="Non endémique")," ",IF(COUNTRY_INFO!A17=0," ",COUNTRY_INFO!A17)) -> SENEGAL | B17: =IF(AND(INTRO!$E$37="Non endémique",INTRO!$E$41="Non endémique")," ",IF(COUNTRY_INFO!B17=0," ",COUNTRY_INFO!B17)) -> Dakar | C17: =IF(AND(INTRO!$E$37="Non endémique",INTRO!$E$41="Non endémique")," ",IF(COUNTRY_INFO!C17=0," ",COUNTRY_INFO!C17)) -> Yeumbeul | D17: =IF(AND(INTRO!$E$37="Non endémique",INTRO!$E$41="Non endémique"),0,COUNTRY_INFO!V17) -> 0 | E17: =IF(AND(INTRO!$E$37="Non endémique",INTRO!$E$41="Non endémique"),0,COUNTRY_INFO!X17) -> 0 | F17: =IF(INTRO!$E$39="Non endémique",IF($D17=1,DEC!I17,0),IF($D17=1,IVM!G17,0)) -> 0 | H17: =IF(OR(COUNTRY_INFO!N17="Inconnu",COUNTRY_INFO!N17="Surveillance",COUNTRY_INFO!N17="Non requis",COUNTRY_INFO!N17=0),0,IF(INTRO!$E$39="Non endémique",IF(AND($E17<>0,$G17=""),IF($F17=0,COUNTRY_INFO!N17*$E17,COUNTRY_INFO!N17*($E17-$D17)),IF(AND($E17<>0,$G17<>0),IF($F17=0,COUNTRY_INFO!N17*$G17,COUNTRY_INFO!N17*($G17-$D17)),0)),IF($G17="",COUNTRY_INFO!N17*$E17,COUNTRY_INFO!N17*$G17))) -> 0 | I17: =IF(OR(COUNTRY_INFO!O17="Inconnu",COUNTRY_INFO!O17="Surveillance",COUNTRY_INFO!O17="Non requis",COUNTRY_INFO!O17=0),0,IF($E17<>0, IF($F17=0,COUNTRY_INFO!O17*$E17,COUNTRY_INFO!O17*($E17-$D17)),COUNTRY_INFO!O17*$E17)) -> 0 | K17: =IF(OR(COUNTRY_INFO!P17="Inconnu",COUNTRY_INFO!P17="Surveillance",COUNTRY_INFO!P17="Non requis",COUNTRY_INFO!P17=0),0,IF(AND($E17<>0,$J17=""),IF($F17=0,COUNTRY_INFO!P17*$E17,COUNTRY_INFO!P17*($E17-$D17)), IF(AND($E17<>0,$J17<>0),IF($F17=0,COUNTRY_INFO!P17*$J17,COUNTRY_INFO!P17*($J17-$D17)), COUNTRY_INFO!P17*$J17))) -> 0 | L17: 0 | M17: 0 | O17: 0 | P17: 0 | R17: 0 | S17: 0 | U17: 0
A18: =IF(AND(INTRO!$E$37="Non endémique",INTRO!$E$41="Non endémique")," ",IF(COUNTRY_INFO!A18=0," ",COUNTRY_INFO!A18)) -> SENEGAL | B18: =IF(AND(INTRO!$E$37="Non endémique",INTRO!$E$41="Non endémique")," ",IF(COUNTRY_INFO!B18=0," ",COUNTRY_INFO!B18)) -> Dakar | C18: =IF(AND(INTRO!$E$37="Non endémique",INTRO!$E$41="Non endémique")," ",IF(COUNTRY_INFO!C18=0," ",COUNTRY_INFO!C18)) -> Mbao | D18: =IF(AND(INTRO!$E$37="Non endémique",INTRO!$E$41="Non endémique"),0,COUNTRY_INFO!V18) -> 0 | E18: =IF(AND(INTRO!$E$37="Non endémique",INTRO!$E$41="Non endémique"),0,COUNTRY_INFO!X18) -> 1 | F18: =IF(INTRO!$E$39="Non endémique",IF($D18=1,DEC!I18,0),IF($D18=1,IVM!G18,0)) -> 0 | H18: =IF(OR(COUNTRY_INFO!N18="Inconnu",COUNTRY_INFO!N18="Surveillance",COUNTRY_INFO!N18="Non requis",COUNTRY_INFO!N18=0),0,IF(INTRO!$E$39="Non endémique",IF(AND($E18<>0,$G18=""),IF($F18=0,COUNTRY_INFO!N18*$E18,COUNTRY_INFO!N18*($E18-$D18)),IF(AND($E18<>0,$G18<>0),IF($F18=0,COUNTRY_INFO!N18*$G18,COUNTRY_INFO!N18*($G18-$D18)),0)),IF($G18="",COUNTRY_INFO!N18*$E18,COUNTRY_INFO!N18*$G18))) -> 56263 | I18: =IF(OR(COUNTRY_INFO!O18="Inconnu",COUNTRY_INFO!O18="Surveillance",COUNTRY_INFO!O18="Non requis",COUNTRY_INFO!O18=0),0,IF($E18<>0, IF($F18=0,COUNTRY_INFO!O18*$E18,COUNTRY_INFO!O18*($E18-$D18)),COUNTRY_INFO!O18*$E18)) -> 123666 | K18: =IF(OR(COUNTRY_INFO!P18="Inconnu",COUNTRY_INFO!P18="Surveillance",COUNTRY_INFO!P18="Non requis",COUNTRY_INFO!P18=0),0,IF(AND($E18<>0,$J18=""),IF($F18=0,COUNTRY_INFO!P18*$E18,COUNTRY_INFO!P18*($E18-$D18)), IF(AND($E18<>0,$J18<>0),IF($F18=0,COUNTRY_INFO!P18*$J18,COUNTRY_INFO!P18*($J18-$D18)), COUNTRY_INFO!P18*$J18))) -> 114623 | L18: 294552 | M18: 0 | O18: 0 | P18: 123666 | R18: 123666 | S18: 0 | U18: 0
A19: =IF(AND(INTRO!$E$37="Non endémique",INTRO!$E$41="Non endémique")," ",IF(COUNTRY_INFO!A19=0," ",COUNTRY_INFO!A19)) -> SENEGAL | B19: =IF(AND(INTRO!$E$37="Non endémique",INTRO!$E$41="Non endémique")," ",IF(COUNTRY_INFO!B19=0," ",COUNTRY_INFO!B19)) -> Dakar | C19: =IF(AND(INTRO!$E$37="Non endémique",INTRO!$E$41="Non endémique")," ",IF(COUNTRY_INFO!C19=0," ",COUNTRY_INFO!C19)) -> Diamniadio | D19: =IF(AND(INTRO!$E$37="Non endémique",INTRO!$E$41="Non endémique"),0,COUNTRY_INFO!V19) -> 0 | E19: =IF(AND(INTRO!$E$37="Non endémique",INTRO!$E$41="Non endémique"),0,COUNTRY_INFO!X19) -> 0 | F19: =IF(INTRO!$E$39="Non endémique",IF($D19=1,DEC!I19,0),IF($D19=1,IVM!G19,0)) -> 0 | H19: =IF(OR(COUNTRY_INFO!N19="Inconnu",COUNTRY_INFO!N19="Surveillance",COUNTRY_INFO!N19="Non requis",COUNTRY_INFO!N19=0),0,IF(INTRO!$E$39="Non endémique",IF(AND($E19<>0,$G19=""),IF($F19=0,COUNTRY_INFO!N19*$E19,COUNTRY_INFO!N19*($E19-$D19)),IF(AND($E19<>0,$G19<>0),IF($F19=0,COUNTRY_INFO!N19*$G19,COUNTRY_INFO!N19*($G19-$D19)),0)),IF($G19="",COUNTRY_INFO!N19*$E19,COUNTRY_INFO!N19*$G19))) -> 0 | I19: =IF(OR(COUNTRY_INFO!O19="Inconnu",COUNTRY_INFO!O19="Surveillance",COUNTRY_INFO!O19="Non requis",COUNTRY_INFO!O19=0),0,IF($E19<>0, IF($F19=0,COUNTRY_INFO!O19*$E19,COUNTRY_INFO!O19*($E19-$D19)),COUNTRY_INFO!O19*$E19)) -> 0 | K19: =IF(OR(COUNTRY_INFO!P19="Inconnu",COUNTRY_INFO!P19="Surveillance",COUNTRY_INFO!P19="Non requis",COUNTRY_INFO!P19=0),0,IF(AND($E19<>0,$J19=""),IF($F19=0,COUNTRY_INFO!P19*$E19,COUNTRY_INFO!P19*($E19-$D19)), IF(AND($E19<>0,$J19<>0),IF($F19=0,COUNTRY_INFO!P19*$J19,COUNTRY_INFO!P19*($J19-$D19)), COUNTRY_INFO!P19*$J19))) -> 0 | L19: 0 | M19: 0 | O19: 0 | P19: 0 | R19: 0 | S19: 0 | U19: 0
A20: =IF(AND(INTRO!$E$37="Non endémique",INTRO!$E$41="Non endémique")," ",IF(COUNTRY_INFO!A20=0," ",COUNTRY_INFO!A20)) -> SENEGAL | B20: =IF(AND(INTRO!$E$37="Non endémique",INTRO!$E$41="Non endémique")," ",IF(COUNTRY_INFO!B20=0," ",COUNTRY_INFO!B20)) -> Dakar | C20: =IF(AND(INTRO!$E$37="Non endémique",INTRO!$E$41="Non endémique")," ",IF(COUNTRY_INFO!C20=0," ",COUNTRY_INFO!C20)) -> Sangalkam | D20: =IF(AND(INTRO!$E$37="Non endémique",INTRO!$E$41="Non endémique"),0,COUNTRY_INFO!V20) -> 0 | E20: =IF(AND(INTRO!$E$37="Non endémique",INTRO!$E$41="Non endémique"),0,COUNTRY_INFO!X20) -> 1 | F20: =IF(INTRO!$E$39="Non endémique",IF($D20=1,DEC!I20,0),IF($D20=1,IVM!G20,0)) -> 0 | H20: =IF(OR(COUNTRY_INFO!N20="Inconnu",COUNTRY_INFO!N20="Surveillance",COUNTRY_INFO!N20="Non requis",COUNTRY_INFO!N20=0),0,IF(INTRO!$E$39="Non endémique",IF(AND($E20<>0,$G20=""),IF($F20=0,COUNTRY_INFO!N20*$E20,COUNTRY_INFO!N20*($E20-$D20)),IF(AND($E20<>0,$G20<>0),IF($F20=0,COUNTRY_INFO!N20*$G20,COUNTRY_INFO!N20*($G20-$D20)),0)),IF($G20="",COUNTRY_INFO!N20*$E20,COUNTRY_INFO!N20*$G20))) -> 22894 | I20: =IF(OR(COUNTRY_INFO!O20="Inconnu",COUNTRY_INFO!O20="Surveillance",COUNTRY_INFO!O20="Non requis",COUNTRY_INFO!O20=0),0,IF($E20<>0, IF($F20=0,COUNTRY_INFO!O20*$E20,COUNTRY_INFO!O20*($E20-$D20)),COUNTRY_INFO!O20*$E20)) -> 50321 | K20: =IF(OR(COUNTRY_INFO!P20="Inconnu",COUNTRY_INFO!P20="Surveillance",COUNTRY_INFO!P20="Non requis",COUNTRY_INFO!P20=0),0,IF(AND($E20<>0,$J20=""),IF($F20=0,COUNTRY_INFO!P20*$E20,COUNTRY_INFO!P20*($E20-$D20)), IF(AND($E20<>0,$J20<>0),IF($F20=0,COUNTRY_INFO!P20*$J20,COUNTRY_INFO!P20*($J20-$D20)), COUNTRY_INFO!P20*$J20))) -> 46642 | L20: 119857 | M20: 0 | O20: 0 | P20: 50321 | R20: 50321 | S20: 0 | U20: 0
A21: =IF(AND(INTRO!$E$37="Non endémique",INTRO!$E$41="Non endémique")," ",IF(COUNTRY_INFO!A21=0," ",COUNTRY_INFO!A21)) -> SENEGAL | B21: =IF(AND(INTRO!$E$37="Non endémique",INTRO!$E$41="Non endémique")," ",IF(COUNTRY_INFO!B21=0," ",COUNTRY_INFO!B21)) -> Dakar | C21: =IF(AND(INTRO!$E$37="Non endémique",INTRO!$E$41="Non endémique")," ",IF(COUNTRY_INFO!C21=0," ",COUNTRY_INFO!C21)) -> Rufisque | D21: =IF(AND(INTRO!$E$37="Non endémique",INTRO!$E$41="Non endémique"),0,COUNTRY_INFO!V21) -> 0 | E21: =IF(AND(INTRO!$E$37="Non endémique",INTRO!$E$41="Non endémique"),0,COUNTRY_INFO!X21) -> 1 | F21: =IF(INTRO!$E$39="Non endémique",IF($D21=1,DEC!I21,0),IF($D21=1,IVM!G21,0)) -> 0 | H21: =IF(OR(COUNTRY_INFO!N21="Inconnu",COUNTRY_INFO!N21="Surveillance",COUNTRY_INFO!N21="Non requis",COUNTRY_INFO!N21=0),0,IF(INTRO!$E$39="Non endémique",IF(AND($E21<>0,$G21=""),IF($F21=0,COUNTRY_INFO!N21*$E21,COUNTRY_INFO!N21*($E21-$D21)),IF(AND($E21<>0,$G21<>0),IF($F21=0,COUNTRY_INFO!N21*$G21,COUNTRY_INFO!N21*($G21-$D21)),0)),IF($G21="",COUNTRY_INFO!N21*$E21,COUNTRY_INFO!N21*$G21))) -> 36262 | I21: =IF(OR(COUNTRY_INFO!O21="Inconnu",COUNTRY_INFO!O21="Surveillance",COUNTRY_INFO!O21="Non requis",COUNTRY_INFO!O21=0),0,IF($E21<>0, IF($F21=0,COUNTRY_INFO!O21*$E21,COUNTRY_INFO!O21*($E21-$D21)),COUNTRY_INFO!O21*$E21)) -> 79704 | K21: =IF(OR(COUNTRY_INFO!P21="Inconnu",COUNTRY_INFO!P21="Surveillance",COUNTRY_INFO!P21="Non requis",COUNTRY_INFO!P21=0),0,IF(AND($E21<>0,$J21=""),IF($F21=0,COUNTRY_INFO!P21*$E21,COUNTRY_INFO!P21*($E21-$D21)), IF(AND($E21<>0,$J21<>0),IF($F21=0,COUNTRY_INFO!P21*$J21,COUNTRY_INFO!P21*($J21-$D21)), COUNTRY_INFO!P21*$J21))) -> 73875 | L21: 189841 | M21: 0 | O21: 0 | P21: 79704 | R21: 79704 | S21: 0 | U21: 0
A22: =IF(AND(INTRO!$E$37="Non endémique",INTRO!$E$41="Non endémique")," ",IF(COUNTRY_INFO!A22=0," ",COUNTRY_INFO!A22)) -> SENEGAL | B22: =IF(AND(INTRO!$E$37="Non endémique",INTRO!$E$41="Non endémique")," ",IF(COUNTRY_INFO!B22=0," ",COUNTRY_INFO!B22)) -> Diourbel | C22: =IF(AND(INTRO!$E$37="Non endémique",INTRO!$E$41="Non endémique")," ",IF(COUNTRY_INFO!C22=0," ",COUNTRY_INFO!C22)) -> Bambéye | D22: =IF(AND(INTRO!$E$37="Non endémique",INTRO!$E$41="Non endémique"),0,COUNTRY_INFO!V22) -> 0 | E22: =IF(AND(INTRO!$E$37="Non endémique",INTRO!$E$41="Non endémique"),0,COUNTRY_INFO!X22) -> 0 | F22: =IF(INTRO!$E$39="Non endémique",IF($D22=1,DEC!I22,0),IF($D22=1,IVM!G22,0)) -> 0 | H22: =IF(OR(COUNTRY_INFO!N22="Inconnu",COUNTRY_INFO!N22="Surveillance",COUNTRY_INFO!N22="Non requis",COUNTRY_INFO!N22=0),0,IF(INTRO!$E$39="Non endémique",IF(AND($E22<>0,$G22=""),IF($F22=0,COUNTRY_INFO!N22*$E22,COUNTRY_INFO!N22*($E22-$D22)),IF(AND($E22<>0,$G22<>0),IF($F22=0,COUNTRY_INFO!N22*$G22,COUNTRY_INFO!N22*($G22-$D22)),0)),IF($G22="",COUNTRY_INFO!N22*$E22,COUNTRY_INFO!N22*$G22))) -> 0 | I22: =IF(OR(COUNTRY_INFO!O22="Inconnu",COUNTRY_INFO!O22="Surveillance",COUNTRY_INFO!O22="Non requis",COUNTRY_INFO!O22=0),0,IF($E22<>0, IF($F22=0,COUNTRY_INFO!O22*$E22,COUNTRY_INFO!O22*($E22-$D22)),COUNTRY_INFO!O22*$E22)) -> 0 | K22: =IF(OR(COUNTRY_INFO!P22="Inconnu",COUNTRY_INFO!P22="Surveillance",COUNTRY_INFO!P22="Non requis",COUNTRY_INFO!P22=0),0,IF(AND($E22<>0,$J22=""),IF($F22=0,COUNTRY_INFO!P22*$E22,COUNTRY_INFO!P22*($E22-$D22)), IF(AND($E22<>0,$J22<>0),IF($F22=0,COUNTRY_INFO!P22*$J22,COUNTRY_INFO!P22*($J22-$D22)), COUNTRY_INFO!P22*$J22))) -> 0 | L22: 0 | M22: 0 | O22: 0 | P22: 0 | R22: 0 | S22: 0 | U22: 0
A23: =IF(AND(INTRO!$E$37="Non endémique",INTRO!$E$41="Non endémique")," ",IF(COUNTRY_INFO!A23=0," ",COUNTRY_INFO!A23)) -> SENEGAL | B23: =IF(AND(INTRO!$E$37="Non endémique",INTRO!$E$41="Non endémique")," ",IF(COUNTRY_INFO!B23=0," ",COUNTRY_INFO!B23)) -> Diourbel | C23: =IF(AND(INTRO!$E$37="Non endémique",INTRO!$E$41="Non endémique")," ",IF(COUNTRY_INFO!C23=0," ",COUNTRY_INFO!C23)) -> Diourbel | D23: =IF(AND(INTRO!$E$37="Non endémique",INTRO!$E$41="Non endémique"),0,COUNTRY_INFO!V23) -> 0 | E23: =IF(AND(INTRO!$E$37="Non endémique",INTRO!$E$41="Non endémique"),0,COUNTRY_INFO!X23) -> 0 | F23: =IF(INTRO!$E$39="Non endémique",IF($D23=1,DEC!I23,0),IF($D23=1,IVM!G23,0)) -> 0 | H23: =IF(OR(COUNTRY_INFO!N23="Inconnu",COUNTRY_INFO!N23="Surveillance",COUNTRY_INFO!N23="Non requis",COUNTRY_INFO!N23=0),0,IF(INTRO!$E$39="Non endémique",IF(AND($E23<>0,$G23=""),IF($F23=0,COUNTRY_INFO!N23*$E23,COUNTRY_INFO!N23*($E23-$D23)),IF(AND($E23<>0,$G23<>0),IF($F23=0,COUNTRY_INFO!N23*$G23,COUNTRY_INFO!N23*($G23-$D23)),0)),IF($G23="",COUNTRY_INFO!N23*$E23,COUNTRY_INFO!N23*$G23))) -> 0 | I23: =IF(OR(COUNTRY_INFO!O23="Inconnu",COUNTRY_INFO!O23="Surveillance",COUNTRY_INFO!O23="Non requis",COUNTRY_INFO!O23=0),0,IF($E23<>0, IF($F23=0,COUNTRY_INFO!O23*$E23,COUNTRY_INFO!O23*($E23-$D23)),COUNTRY_INFO!O23*$E23)) -> 0 | K23: =IF(OR(COUNTRY_INFO!P23="Inconnu",COUNTRY_INFO!P23="Surveillance",COUNTRY_INFO!P23="Non requis",COUNTRY_INFO!P23=0),0,IF(AND($E23<>0,$J23=""),IF($F23=0,COUNTRY_INFO!P23*$E23,COUNTRY_INFO!P23*($E23-$D23)), IF(AND($E23<>0,$J23<>0),IF($F23=0,COUNTRY_INFO!P23*$J23,COUNTRY_INFO!P23*($J23-$D23)), COUNTRY_INFO!P23*$J23))) -> 0 | L23: 0 | M23: 0 | O23: 0 | P23: 0 | R23: 0 | S23: 0 | U23: 0
A24: =IF(AND(INTRO!$E$37="Non endémique",INTRO!$E$41="Non endémique")," ",IF(COUNTRY_INFO!A24=0," ",COUNTRY_INFO!A24)) -> SENEGAL | B24: =IF(AND(INTRO!$E$37="Non endémique",INTRO!$E$41="Non endémique")," ",IF(COUNTRY_INFO!B24=0," ",COUNTRY_INFO!B24)) -> Diourbel | C24: =IF(AND(INTRO!$E$37="Non endémique",INTRO!$E$41="Non endémique")," ",IF(COUNTRY_INFO!C24=0," ",COUNTRY_INFO!C24)) -> Mbacké | D24: =IF(AND(INTRO!$E$37="Non endémique",INTRO!$E$41="Non endémique"),0,COUNTRY_INFO!V24) -> 0 | E24: =IF(AND(INTRO!$E$37="Non endémique",INTRO!$E$41="Non endémique"),0,COUNTRY_INFO!X24) -> 0 | F24: =IF(INTRO!$E$39="Non endémique",IF($D24=1,DEC!I24,0),IF($D24=1,IVM!G24,0)) -> 0 | H24: =IF(OR(COUNTRY_INFO!N24="Inconnu",COUNTRY_INFO!N24="Surveillance",COUNTRY_INFO!N24="Non requis",COUNTRY_INFO!N24=0),0,IF(INTRO!$E$39="Non endémique",IF(AND($E24<>0,$G24=""),IF($F24=0,COUNTRY_INFO!N24*$E24,COUNTRY_INFO!N24*($E24-$D24)),IF(AND($E24<>0,$G24<>0),IF($F24=0,COUNTRY_INFO!N24*$G24,COUNTRY_INFO!N24*($G24-$D24)),0)),IF($G24="",COUNTRY_INFO!N24*$E24,COUNTRY_INFO!N24*$G24))) -> 0 | I24: =IF(OR(COUNTRY_INFO!O24="Inconnu",COUNTRY_INFO!O24="Surveillance",COUNTRY_INFO!O24="Non requis",COUNTRY_INFO!O24=0),0,IF($E24<>0, IF($F24=0,COUNTRY_INFO!O24*$E24,COUNTRY_INFO!O24*($E24-$D24)),COUNTRY_INFO!O24*$E24)) -> 0 | K24: =IF(OR(COUNTRY_INFO!P24="Inconnu",COUNTRY_INFO!P24="Surveillance",COUNTRY_INFO!P24="Non requis",COUNTRY_INFO!P24=0),0,IF(AND($E24<>0,$J24=""),IF($F24=0,COUNTRY_INFO!P24*$E24,COUNTRY_INFO!P24*($E24-$D24)), IF(AND($E24<>0,$J24<>0),IF($F24=0,COUNTRY_INFO!P24*$J24,COUNTRY_INFO!P24*($J24-$D24)), COUNTRY_INFO!P24*$J24))) -> 0 | L24: 0 | M24: 0 | O24: 0 | P24: 0 | R24: 0 | S24: 0 | U24: 0
A25: =IF(AND(INTRO!$E$37="Non endémique",INTRO!$E$41="Non endémique")," ",IF(COUNTRY_INFO!A25=0," ",COUNTRY_INFO!A25)) -> SENEGAL | B25: =IF(AND(INTRO!$E$37="Non endémique",INTRO!$E$41="Non endémique")," ",IF(COUNTRY_INFO!B25=0," ",COUNTRY_INFO!B25)) -> Diourbel | C25: =IF(AND(INTRO!$E$37="Non endémique",INTRO!$E$41="Non endémique")," ",IF(COUNTRY_INFO!C25=0," ",COUNTRY_INFO!C25)) -> Touba | D25: =IF(AND(INTRO!$E$37="Non endémique",INTRO!$E$41="Non endémique"),0,COUNTRY_INFO!V25) -> 0 | E25: =IF(AND(INTRO!$E$37="Non endémique",INTRO!$E$41="Non endémique"),0,COUNTRY_INFO!X25) -> 0 | F25: =IF(INTRO!$E$39="Non endémique",IF($D25=1,DEC!I25,0),IF($D25=1,IVM!G25,0)) -> 0 | H25: =IF(OR(COUNTRY_INFO!N25="Inconnu",COUNTRY_INFO!N25="Surveillance",COUNTRY_INFO!N25="Non requis",COUNTRY_INFO!N25=0),0,IF(INTRO!$E$39="Non endémique",IF(AND($E25<>0,$G25=""),IF($F25=0,COUNTRY_INFO!N25*$E25,COUNTRY_INFO!N25*($E25-$D25)),IF(AND($E25<>0,$G25<>0),IF($F25=0,COUNTRY_INFO!N25*$G25,COUNTRY_INFO!N25*($G25-$D25)),0)),IF($G25="",COUNTRY_INFO!N25*$E25,COUNTRY_INFO!N25*$G25))) -> 0 | I25: =IF(OR(COUNTRY_INFO!O25="Inconnu",COUNTRY_INFO!O25="Surveillance",COUNTRY_INFO!O25="Non requis",COUNTRY_INFO!O25=0),0,IF($E25<>0, IF($F25=0,COUNTRY_INFO!O25*$E25,COUNTRY_INFO!O25*($E25-$D25)),COUNTRY_INFO!O25*$E25)) -> 0 | K25: =IF(OR(COUNTRY_INFO!P25="Inconnu",COUNTRY_INFO!P25="Surveillance",COUNTRY_INFO!P25="Non requis",COUNTRY_INFO!P25=0),0,IF(AND($E25<>0,$J25=""),IF($F25=0,COUNTRY_INFO!P25*$E25,COUNTRY_INFO!P25*($E25-$D25)), IF(AND($E25<>0,$J25<>0),IF($F25=0,COUNTRY_INFO!P25*$J25,COUNTRY_INFO!P25*($J25-$D25)), COUNTRY_INFO!P25*$J25))) -> 0 | L25: 0 | M25: 0 | O25: 0 | P25: 0 | R25: 0 | S25: 0 | U25: 0
A26: =IF(AND(INTRO!$E$37="Non endémique",INTRO!$E$41="Non endémique")," ",IF(COUNTRY_INFO!A26=0," ",COUNTRY_INFO!A26)) -> SENEGAL | B26: =IF(AND(INTRO!$E$37="Non endémique",INTRO!$E$41="Non endémique")," ",IF(COUNTRY_INFO!B26=0," ",COUNTRY_INFO!B26)) -> Fatick | C26: =IF(AND(INTRO!$E$37="Non endémique",INTRO!$E$41="Non endémique")," ",IF(COUNTRY_INFO!C26=0," ",COUNTRY_INFO!C26)) -> Niakhar | D26: =IF(AND(INTRO!$E$37="Non endémique",INTRO!$E$41="Non endémique"),0,COUNTRY_INFO!V26) -> 0 | E26: =IF(AND(INTRO!$E$37="Non endémique",INTRO!$E$41="Non endémique"),0,COUNTRY_INFO!X26) -> 0 | F26: =IF(INTRO!$E$39="Non endémique",IF($D26=1,DEC!I26,0),IF($D26=1,IVM!G26,0)) -> 0 | H26: =IF(OR(COUNTRY_INFO!N26="Inconnu",COUNTRY_INFO!N26="Surveillance",COUNTRY_INFO!N26="Non requis",COUNTRY_INFO!N26=0),0,IF(INTRO!$E$39="Non endémique",IF(AND($E26<>0,$G26=""),IF($F26=0,COUNTRY_INFO!N26*$E26,COUNTRY_INFO!N26*($E26-$D26)),IF(AND($E26<>0,$G26<>0),IF($F26=0,COUNTRY_INFO!N26*$G26,COUNTRY_INFO!N26*($G26-$D26)),0)),IF($G26="",COUNTRY_INFO!N26*$E26,COUNTRY_INFO!N26*$G26))) -> 0 | I26: =IF(OR(COUNTRY_INFO!O26="Inconnu",COUNTRY_INFO!O26="Surveillance",COUNTRY_INFO!O26="Non requis",COUNTRY_INFO!O26=0),0,IF($E26<>0, IF($F26=0,COUNTRY_INFO!O26*$E26,COUNTRY_INFO!O26*($E26-$D26)),COUNTRY_INFO!O26*$E26)) -> 0 | K26: =IF(OR(COUNTRY_INFO!P26="Inconnu",COUNTRY_INFO!P26="Surveillance",COUNTRY_INFO!P26="Non requis",COUNTRY_INFO!P26=0),0,IF(AND($E26<>0,$J26=""),IF($F26=0,COUNTRY_INFO!P26*$E26,COUNTRY_INFO!P26*($E26-$D26)), IF(AND($E26<>0,$J26<>0),IF($F26=0,COUNTRY_INFO!P26*$J26,COUNTRY_INFO!P26*($J26-$D26)), COUNTRY_INFO!P26*$J26))) -> 0 | L26: 0 | M26: 0 | O26: 0 | P26: 0 | R26: 0 | S26: 0 | U26: 0
A27: =IF(AND(INTRO!$E$37="Non endémique",INTRO!$E$41="Non endémique")," ",IF(COUNTRY_INFO!A27=0," ",COUNTRY_INFO!A27)) -> SENEGAL | B27: =IF(AND(INTRO!$E$37="Non endémique",INTRO!$E$41="Non endémique")," ",IF(COUNTRY_INFO!B27=0," ",COUNTRY_INFO!B27)) -> Fatick | C27: =IF(AND(INTRO!$E$37="Non endémique",INTRO!$E$41="Non endémique")," ",IF(COUNTRY_INFO!C27=0," ",COUNTRY_INFO!C27)) -> Diakhao | D27: =IF(AND(INTRO!$E$37="Non endémique",INTRO!$E$41="Non endémique"),0,COUNTRY_INFO!V27) -> 0 | E27: =IF(AND(INTRO!$E$37="Non endémique",INTRO!$E$41="Non endémique"),0,COUNTRY_INFO!X27) -> 0 | F27: =IF(INTRO!$E$39="Non endémique",IF($D27=1,DEC!I27,0),IF($D27=1,IVM!G27,0)) -> 0 | H27: =IF(OR(COUNTRY_INFO!N27="Inconnu",COUNTRY_INFO!N27="Surveillance",COUNTRY_INFO!N27="Non requis",COUNTRY_INFO!N27=0),0,IF(INTRO!$E$39="Non endémique",IF(AND($E27<>0,$G27=""),IF($F27=0,COUNTRY_INFO!N27*$E27,COUNTRY_INFO!N27*($E27-$D27)),IF(AND($E27<>0,$G27<>0),IF($F27=0,COUNTRY_INFO!N27*$G27,COUNTRY_INFO!N27*($G27-$D27)),0)),IF($G27="",COUNTRY_INFO!N27*$E27,COUNTRY_INFO!N27*$G27))) -> 0 | I27: =IF(OR(COUNTRY_INFO!O27="Inconnu",COUNTRY_INFO!O27="Surveillance",COUNTRY_INFO!O27="Non requis",COUNTRY_INFO!O27=0),0,IF($E27<>0, IF($F27=0,COUNTRY_INFO!O27*$E27,COUNTRY_INFO!O27*($E27-$D27)),COUNTRY_INFO!O27*$E27)) -> 0 | K27: =IF(OR(COUNTRY_INFO!P27="Inconnu",COUNTRY_INFO!P27="Surveillance",COUNTRY_INFO!P27="Non requis",COUNTRY_INFO!P27=0),0,IF(AND($E27<>0,$J27=""),IF($F27=0,COUNTRY_INFO!P27*$E27,COUNTRY_INFO!P27*($E27-$D27)), IF(AND($E27<>0,$J27<>0),IF($F27=0,COUNTRY_INFO!P27*$J27,COUNTRY_INFO!P27*($J27-$D27)), COUNTRY_INFO!P27*$J27))) -> 0 | L27: 0 | M27: 0 | O27: 0 | P27: 0 | R27: 0 | S27: 0 | U27: 0
A28: =IF(AND(INTRO!$E$37="Non endémique",INTRO!$E$41="Non endémique")," ",IF(COUNTRY_INFO!A28=0," ",COUNTRY_INFO!A28)) -> SENEGAL | B28: =IF(AND(INTRO!$E$37="Non endémique",INTRO!$E$41="Non endémique")," ",IF(COUNTRY_INFO!B28=0," ",COUNTRY_INFO!B28)) -> Fatick | C28: =IF(AND(INTRO!$E$37="Non endémique",INTRO!$E$41="Non endémique")," ",IF(COUNTRY_INFO!C28=0," ",COUNTRY_INFO!C28)) -> Fatick | D28: =IF(AND(INTRO!$E$37="Non endémique",INTRO!$E$41="Non endémique"),0,COUNTRY_INFO!V28) -> 0 | E28: =IF(AND(INTRO!$E$37="Non endémique",INTRO!$E$41="Non endémique"),0,COUNTRY_INFO!X28) -> 1 | F28: =IF(INTRO!$E$39="Non endémique",IF($D28=1,DEC!I28,0),IF($D28=1,IVM!G28,0)) -> 0 | H28: =IF(OR(COUNTRY_INFO!N28="Inconnu",COUNTRY_INFO!N28="Surveillance",COUNTRY_INFO!N28="Non requis",COUNTRY_INFO!N28=0),0,IF(INTRO!$E$39="Non endémique",IF(AND($E28<>0,$G28=""),IF($F28=0,COUNTRY_INFO!N28*$E28,COUNTRY_INFO!N28*($E28-$D28)),IF(AND($E28<>0,$G28<>0),IF($F28=0,COUNTRY_INFO!N28*$G28,COUNTRY_INFO!N28*($G28-$D28)),0)),IF($G28="",COUNTRY_INFO!N28*$E28,COUNTRY_INFO!N28*$G28))) -> 18742 | I28: =IF(OR(COUNTRY_INFO!O28="Inconnu",COUNTRY_INFO!O28="Surveillance",COUNTRY_INFO!O28="Non requis",COUNTRY_INFO!O28=0),0,IF($E28<>0, IF($F28=0,COUNTRY_INFO!O28*$E28,COUNTRY_INFO!O28*($E28-$D28)),COUNTRY_INFO!O28*$E28)) -> 41196 | K28: =IF(OR(COUNTRY_INFO!P28="Inconnu",COUNTRY_INFO!P28="Surveillance",COUNTRY_INFO!P28="Non requis",COUNTRY_INFO!P28=0),0,IF(AND($E28<>0,$J28=""),IF($F28=0,COUNTRY_INFO!P28*$E28,COUNTRY_INFO!P28*($E28-$D28)), IF(AND($E28<>0,$J28<>0),IF($F28=0,COUNTRY_INFO!P28*$J28,COUNTRY_INFO!P28*($J28-$D28)), COUNTRY_INFO!P28*$J28))) -> 38183 | L28: 98121 | M28: 0 | O28: 0 | P28: 41196 | R28: 41196 | S28: 0 | U28: 0
A29: =IF(AND(INTRO!$E$37="Non endémique",INTRO!$E$41="Non endémique")," ",IF(COUNTRY_INFO!A29=0," ",COUNTRY_INFO!A29)) -> SENEGAL | B29: =IF(AND(INTRO!$E$37="Non endémique",INTRO!$E$41="Non endémique")," ",IF(COUNTRY_INFO!B29=0," ",COUNTRY_INFO!B29)) -> Fatick | C29: =IF(AND(INTRO!$E$37="Non endémique",INTRO!$E$41="Non endémique")," ",IF(COUNTRY_INFO!C29=0," ",COUNTRY_INFO!C29)) -> Dioffior | D29: =IF(AND(INTRO!$E$37="Non endémique",INTRO!$E$41="Non endémique"),0,COUNTRY_INFO!V29) -> 0 | E29: =IF(AND(INTRO!$E$37="Non endémique",INTRO!$E$41="Non endémique"),0,COUNTRY_INFO!X29) -> 0 | F29: =IF(INTRO!$E$39="Non endémique",IF($D29=1,DEC!I29,0),IF($D29=1,IVM!G29,0)) -> 0 | H29: =IF(OR(COUNTRY_INFO!N29="Inconnu",COUNTRY_INFO!N29="Surveillance",COUNTRY_INFO!N29="Non requis",COUNTRY_INFO!N29=0),0,IF(INTRO!$E$39="Non endémique",IF(AND($E29<>0,$G29=""),IF($F29=0,COUNTRY_INFO!N29*$E29,COUNTRY_INFO!N29*($E29-$D29)),IF(AND($E29<>0,$G29<>0),IF($F29=0,COUNTRY_INFO!N29*$G29,COUNTRY_INFO!N29*($G29-$D29)),0)),IF($G29="",COUNTRY_INFO!N29*$E29,COUNTRY_INFO!N29*$G29))) -> 0 | I29: =IF(OR(COUNTRY_INFO!O29="Inconnu",COUNTRY_INFO!O29="Surveillance",COUNTRY_INFO!O29="Non requis",COUNTRY_INFO!O29=0),0,IF($E29<>0, IF($F29=0,COUNTRY_INFO!O29*$E29,COUNTRY_INFO!O29*($E29-$D29)),COUNTRY_INFO!O29*$E29)) -> 0 | K29: =IF(OR(COUNTRY_INFO!P29="Inconnu",COUNTRY_INFO!P29="Surveillance",COUNTRY_INFO!P29="Non requis",COUNTRY_INFO!P29=0),0,IF(AND($E29<>0,$J29=""),IF($F29=0,COUNTRY_INFO!P29*$E29,COUNTRY_INFO!P29*($E29-$D29)), IF(AND($E29<>0,$J29<>0),IF($F29=0,COUNTRY_INFO!P29*$J29,COUNTRY_INFO!P29*($J29-$D29)), COUNTRY_INFO!P29*$J29))) -> 0 | L29: 0 | M29: 0 | O29: 0 | P29: 0 | R29: 0 | S29: 0 | U29: 0
A30: =IF(AND(INTRO!$E$37="Non endémique",INTRO!$E$41="Non endémique")," ",IF(COUNTRY_INFO!A30=0," ",COUNTRY_INFO!A30)) -> SENEGAL | B30: =IF(AND(INTRO!$E$37="Non endémique",INTRO!$E$41="Non endémique")," ",IF(COUNTRY_INFO!B30=0," ",COUNTRY_INFO!B30)) -> Fatick | C30: =IF(AND(INTRO!$E$37="Non endémique",INTRO!$E$41="Non endémique")," ",IF(COUNTRY_INFO!C30=0," ",COUNTRY_INFO!C30)) -> Passy | D30: =IF(AND(INTRO!$E$37="Non endémique",INTRO!$E$41="Non endémique"),0,COUNTRY_INFO!V30) -> 0 | E30: =IF(AND(INTRO!$E$37="Non endémique",INTRO!$E$41="Non endémique"),0,COUNTRY_INFO!X30) -> 0 | F30: =IF(INTRO!$E$39="Non endémique",IF($D30=1,DEC!I30,0),IF($D30=1,IVM!G30,0)) -> 0 | H30: =IF(OR(COUNTRY_INFO!N30="Inconnu",COUNTRY_INFO!N30="Surveillance",COUNTRY_INFO!N30="Non requis",COUNTRY_INFO!N30=0),0,IF(INTRO!$E$39="Non endémique",IF(AND($E30<>0,$G30=""),IF($F30=0,COUNTRY_INFO!N30*$E30,COUNTRY_INFO!N30*($E30-$D30)),IF(AND($E30<>0,$G30<>0),IF($F30=0,COUNTRY_INFO!N30*$G30,COUNTRY_INFO!N30*($G30-$D30)),0)),IF($G30="",COUNTRY_INFO!N30*$E30,COUNTRY_INFO!N30*$G30))) -> 0 | I30: =IF(OR(COUNTRY_INFO!O30="Inconnu",COUNTRY_INFO!O30="Surveillance",COUNTRY_INFO!O30="Non requis",COUNTRY_INFO!O30=0),0,IF($E30<>0, IF($F30=0,COUNTRY_INFO!O30*$E30,COUNTRY_INFO!O30*($E30-$D30)),COUNTRY_INFO!O30*$E30)) -> 0 | K30: =IF(OR(COUNTRY_INFO!P30="Inconnu",COUNTRY_INFO!P30="Surveillance",COUNTRY_INFO!P30="Non requis",COUNTRY_INFO!P30=0),0,IF(AND($E30<>0,$J30=""),IF($F30=0,COUNTRY_INFO!P30*$E30,COUNTRY_INFO!P30*($E30-$D30)), IF(AND($E30<>0,$J30<>0),IF($F30=0,COUNTRY_INFO!P30*$J30,COUNTRY_INFO!P30*($J30-$D30)), COUNTRY_INFO!P30*$J30))) -> 0 | L30: 0 | M30: 0 | O30: 0 | P30: 0 | R30: 0 | S30: 0 | U30: 0
A31: =IF(AND(INTRO!$E$37="Non endémique",INTRO!$E$41="Non endémique")," ",IF(COUNTRY_INFO!A31=0," ",COUNTRY_INFO!A31)) -> SENEGAL | B31: =IF(AND(INTRO!$E$37="Non endémique",INTRO!$E$41="Non endémique")," ",IF(COUNTRY_INFO!B31=0," ",COUNTRY_INFO!B31)) -> Fatick | C31: =IF(AND(INTRO!$E$37="Non endémique",INTRO!$E$41="Non endémique")," ",IF(COUNTRY_INFO!C31=0," ",COUNTRY_INFO!C31)) -> Foundiougne | D31: =IF(AND(INTRO!$E$37="Non endémique",INTRO!$E$41="Non endémique"),0,COUNTRY_INFO!V31) -> 0 | E31: =IF(AND(INTRO!$E$37="Non endémique",INTRO!$E$41="Non endémique"),0,COUNTRY_INFO!X31) -> 0 | F31: =IF(INTRO!$E$39="Non endémique",IF($D31=1,DEC!I31,0),IF($D31=1,IVM!G31,0)) -> 0 | H31: =IF(OR(COUNTRY_INFO!N31="Inconnu",COUNTRY_INFO!N31="Surveillance",COUNTRY_INFO!N31="Non requis",COUNTRY_INFO!N31=0),0,IF(INTRO!$E$39="Non endémique",IF(AND($E31<>0,$G31=""),IF($F31=0,COUNTRY_INFO!N31*$E31,COUNTRY_INFO!N31*($E31-$D31)),IF(AND($E31<>0,$G31<>0),IF($F31=0,COUNTRY_INFO!N31*$G31,COUNTRY_INFO!N31*($G31-$D31)),0)),IF($G31="",COUNTRY_INFO!N31*$E31,COUNTRY_INFO!N31*$G31))) -> 0 | I31: =IF(OR(COUNTRY_INFO!O31="Inconnu",COUNTRY_INFO!O31="Surveillance",COUNTRY_INFO!O31="Non requis",COUNTRY_INFO!O31=0),0,IF($E31<>0, IF($F31=0,COUNTRY_INFO!O31*$E31,COUNTRY_INFO!O31*($E31-$D31)),COUNTRY_INFO!O31*$E31)) -> 0 | K31: =IF(OR(COUNTRY_INFO!P31="Inconnu",COUNTRY_INFO!P31="Surveillance",COUNTRY_INFO!P31="Non requis",COUNTRY_INFO!P31=0),0,IF(AND($E31<>0,$J31=""),IF($F31=0,COUNTRY_INFO!P31*$E31,COUNTRY_INFO!P31*($E31-$D31)), IF(AND($E31<>0,$J31<>0),IF($F31=0,COUNTRY_INFO!P31*$J31,COUNTRY_INFO!P31*($J31-$D31)), COUNTRY_INFO!P31*$J31))) -> 0 | L31: 0 | M31: 0 | O31: 0 | P31: 0 | R31: 0 | S31: 0 | U31: 0
A32: =IF(AND(INTRO!$E$37="Non endémique",INTRO!$E$41="Non endémique")," ",IF(COUNTRY_INFO!A32=0," ",COUNTRY_INFO!A32)) -> SENEGAL | B32: =IF(AND(INTRO!$E$37="Non endémique",INTRO!$E$41="Non endémique")," ",IF(COUNTRY_INFO!B32=0," ",COUNTRY_INFO!B32)) -> Fatick | C32: =IF(AND(INTRO!$E$37="Non endémique",INTRO!$E$41="Non endémique")," ",IF(COUNTRY_INFO!C32=0," ",COUNTRY_INFO!C32)) -> Sokone | D32: =IF(AND(INTRO!$E$37="Non endémique",INTRO!$E$41="Non endémique"),0,COUNTRY_INFO!V32) -> 0 | E32: =IF(AND(INTRO!$E$37="Non endémique",INTRO!$E$41="Non endémique"),0,COUNTRY_INFO!X32) -> 0 | F32: =IF(INTRO!$E$39="Non endémique",IF($D32=1,DEC!I32,0),IF($D32=1,IVM!G32,0)) -> 0 | H32: =IF(OR(COUNTRY_INFO!N32="Inconnu",COUNTRY_INFO!N32="Surveillance",COUNTRY_INFO!N32="Non requis",COUNTRY_INFO!N32=0),0,IF(INTRO!$E$39="Non endémique",IF(AND($E32<>0,$G32=""),IF($F32=0,COUNTRY_INFO!N32*$E32,COUNTRY_INFO!N32*($E32-$D32)),IF(AND($E32<>0,$G32<>0),IF($F32=0,COUNTRY_INFO!N32*$G32,COUNTRY_INFO!N32*($G32-$D32)),0)),IF($G32="",COUNTRY_INFO!N32*$E32,COUNTRY_INFO!N32*$G32))) -> 0 | I32: =IF(OR(COUNTRY_INFO!O32="Inconnu",COUNTRY_INFO!O32="Surveillance",COUNTRY_INFO!O32="Non requis",COUNTRY_INFO!O32=0),0,IF($E32<>0, IF($F32=0,COUNTRY_INFO!O32*$E32,COUNTRY_INFO!O32*($E32-$D32)),COUNTRY_INFO!O32*$E32)) -> 0 | K32: =IF(OR(COUNTRY_INFO!P32="Inconnu",COUNTRY_INFO!P32="Surveillance",COUNTRY_INFO!P32="Non requis",COUNTRY_INFO!P32=0),0,IF(AND($E32<>0,$J32=""),IF($F32=0,COUNTRY_INFO!P32*$E32,COUNTRY_INFO!P32*($E32-$D32)), IF(AND($E32<>0,$J32<>0),IF($F32=0,COUNTRY_INFO!P32*$J32,COUNTRY_INFO!P32*($J32-$D32)), COUNTRY_INFO!P32*$J32))) -> 0 | L32: 0 | M32: 0 | O32: 0 | P32: 0 | R32: 0 | S32: 0 | U32: 0
A33: =IF(AND(INTRO!$E$37="Non endémique",INTRO!$E$41="Non endémique")," ",IF(COUNTRY_INFO!A33=0," ",COUNTRY_INFO!A33)) -> SENEGAL | B33: =IF(AND(INTRO!$E$37="Non endémique",INTRO!$E$41="Non endémique")," ",IF(COUNTRY_INFO!B33=0," ",COUNTRY_INFO!B33)) -> Fatick | C33: =IF(AND(INTRO!$E$37="Non endémique",INTRO!$E$41="Non endémique")," ",IF(COUNTRY_INFO!C33=0," ",COUNTRY_INFO!C33)) -> Gossas | D33: =IF(AND(INTRO!$E$37="Non endémique",INTRO!$E$41="Non endémique"),0,COUNTRY_INFO!V33) -> 0 | E33: =IF(AND(INTRO!$E$37="Non endémique",INTRO!$E$41="Non endémique"),0,COUNTRY_INFO!X33) -> 0 | F33: =IF(INTRO!$E$39="Non endémique",IF($D33=1,DEC!I33,0),IF($D33=1,IVM!G33,0)) -> 0 | H33: =IF(OR(COUNTRY_INFO!N33="Inconnu",COUNTRY_INFO!N33="Surveillance",COUNTRY_INFO!N33="Non requis",COUNTRY_INFO!N33=0),0,IF(INTRO!$E$39="Non endémique",IF(AND($E33<>0,$G33=""),IF($F33=0,COUNTRY_INFO!N33*$E33,COUNTRY_INFO!N33*($E33-$D33)),IF(AND($E33<>0,$G33<>0),IF($F33=0,COUNTRY_INFO!N33*$G33,COUNTRY_INFO!N33*($G33-$D33)),0)),IF($G33="",COUNTRY_INFO!N33*$E33,COUNTRY_INFO!N33*$G33))) -> 0 | I33: =IF(OR(COUNTRY_INFO!O33="Inconnu",COUNTRY_INFO!O33="Surveillance",COUNTRY_INFO!O33="Non requis",COUNTRY_INFO!O33=0),0,IF($E33<>0, IF($F33=0,COUNTRY_INFO!O33*$E33,COUNTRY_INFO!O33*($E33-$D33)),COUNTRY_INFO!O33*$E33)) -> 0 | K33: =IF(OR(COUNTRY_INFO!P33="Inconnu",COUNTRY_INFO!P33="Surveillance",COUNTRY_INFO!P33="Non requis",COUNTRY_INFO!P33=0),0,IF(AND($E33<>0,$J33=""),IF($F33=0,COUNTRY_INFO!P33*$E33,COUNTRY_INFO!P33*($E33-$D33)), IF(AND($E33<>0,$J33<>0),IF($F33=0,COUNTRY_INFO!P33*$J33,COUNTRY_INFO!P33*($J33-$D33)), COUNTRY_INFO!P33*$J33))) -> 0 | L33: 0 | M33: 0 | O33: 0 | P33: 0 | R33: 0 | S33: 0 | U33: 0
A34: =IF(AND(INTRO!$E$37="Non endémique",INTRO!$E$41="Non endémique")," ",IF(COUNTRY_INFO!A34=0," ",COUNTRY_INFO!A34)) -> SENEGAL | B34: =IF(AND(INTRO!$E$37="Non endémique",INTRO!$E$41="Non endémique")," ",IF(COUNTRY_INFO!B34=0," ",COUNTRY_INFO!B34)) -> Kaffrine | C34: =IF(AND(INTRO!$E$37="Non endémique",INTRO!$E$41="Non endémique")," ",IF(COUNTRY_INFO!C34=0," ",COUNTRY_INFO!C34)) -> Birkelane | D34: =IF(AND(INTRO!$E$37="Non endémique",INTRO!$E$41="Non endémique"),0,COUNTRY_INFO!V34) -> 0 | E34: =IF(AND(INTRO!$E$37="Non endémique",INTRO!$E$41="Non endémique"),0,COUNTRY_INFO!X34) -> 0 | F34: =IF(INTRO!$E$39="Non endémique",IF($D34=1,DEC!I34,0),IF($D34=1,IVM!G34,0)) -> 0 | H34: =IF(OR(COUNTRY_INFO!N34="Inconnu",COUNTRY_INFO!N34="Surveillance",COUNTRY_INFO!N34="Non requis",COUNTRY_INFO!N34=0),0,IF(INTRO!$E$39="Non endémique",IF(AND($E34<>0,$G34=""),IF($F34=0,COUNTRY_INFO!N34*$E34,COUNTRY_INFO!N34*($E34-$D34)),IF(AND($E34<>0,$G34<>0),IF($F34=0,COUNTRY_INFO!N34*$G34,COUNTRY_INFO!N34*($G34-$D34)),0)),IF($G34="",COUNTRY_INFO!N34*$E34,COUNTRY_INFO!N34*$G34))) -> 0 | I34: =IF(OR(COUNTRY_INFO!O34="Inconnu",COUNTRY_INFO!O34="Surveillance",COUNTRY_INFO!O34="Non requis",COUNTRY_INFO!O34=0),0,IF($E34<>0, IF($F34=0,COUNTRY_INFO!O34*$E34,COUNTRY_INFO!O34*($E34-$D34)),COUNTRY_INFO!O34*$E34)) -> 0 | K34: =IF(OR(COUNTRY_INFO!P34="Inconnu",COUNTRY_INFO!P34="Surveillance",COUNTRY_INFO!P34="Non requis",COUNTRY_INFO!P34=0),0,IF(AND($E34<>0,$J34=""),IF($F34=0,COUNTRY_INFO!P34*$E34,COUNTRY_INFO!P34*($E34-$D34)), IF(AND($E34<>0,$J34<>0),IF($F34=0,COUNTRY_INFO!P34*$J34,COUNTRY_INFO!P34*($J34-$D34)), COUNTRY_INFO!P34*$J34))) -> 0 | L34: 0 | M34: 0 | O34: 0 | P34: 0 | R34: 0 | S34: 0 | U34: 0
A35: =IF(AND(INTRO!$E$37="Non endémique",INTRO!$E$41="Non endémique")," ",IF(COUNTRY_INFO!A35=0," ",COUNTRY_INFO!A35)) -> SENEGAL | B35: =IF(AND(INTRO!$E$37="Non endémique",INTRO!$E$41="Non endémique")," ",IF(COUNTRY_INFO!B35=0," ",COUNTRY_INFO!B35)) -> Kaffrine | C35: =IF(AND(INTRO!$E$37="Non endémique",INTRO!$E$41="Non endémique")," ",IF(COUNTRY_INFO!C35=0," ",COUNTRY_INFO!C35)) -> Kaffrine | D35: =IF(AND(INTRO!$E$37="Non endémique",INTRO!$E$41="Non endémique"),0,COUNTRY_INFO!V35) -> 0 | E35: =IF(AND(INTRO!$E$37="Non endémique",INTRO!$E$41="Non endémique"),0,COUNTRY_INFO!X35) -> 0 | F35: =IF(INTRO!$E$39="Non endémique",IF($D35=1,DEC!I35,0),IF($D35=1,IVM!G35,0)) -> 0 | H35: =IF(OR(COUNTRY_INFO!N35="Inconnu",COUNTRY_INFO!N35="Surveillance",COUNTRY_INFO!N35="Non requis",COUNTRY_INFO!N35=0),0,IF(INTRO!$E$39="Non endémique",IF(AND($E35<>0,$G35=""),IF($F35=0,COUNTRY_INFO!N35*$E35,COUNTRY_INFO!N35*($E35-$D35)),IF(AND($E35<>0,$G35<>0),IF($F35=0,COUNTRY_INFO!N35*$G35,COUNTRY_INFO!N35*($G35-$D35)),0)),IF($G35="",COUNTRY_INFO!N35*$E35,COUNTRY_INFO!N35*$G35))) -> 0 | I35: =IF(OR(COUNTRY_INFO!O35="Inconnu",COUNTRY_INFO!O35="Surveillance",COUNTRY_INFO!O35="Non requis",COUNTRY_INFO!O35=0),0,IF($E35<>0, IF($F35=0,COUNTRY_INFO!O35*$E35,COUNTRY_INFO!O35*($E35-$D35)),COUNTRY_INFO!O35*$E35)) -> 0 | K35: =IF(OR(COUNTRY_INFO!P35="Inconnu",COUNTRY_INFO!P35="Surveillance",COUNTRY_INFO!P35="Non requis",COUNTRY_INFO!P35=0),0,IF(AND($E35<>0,$J35=""),IF($F35=0,COUNTRY_INFO!P35*$E35,COUNTRY_INFO!P35*($E35-$D35)), IF(AND($E35<>0,$J35<>0),IF($F35=0,COUNTRY_INFO!P35*$J35,COUNTRY_INFO!P35*($J35-$D35)), COUNTRY_INFO!P35*$J35))) -> 0 | L35: 0 | M35: 0 | O35: 0 | P35: 0 | R35: 0 | S35: 0 | U35: 0
A36: =IF(AND(INTRO!$E$37="Non endémique",INTRO!$E$41="Non endémique")," ",IF(COUNTRY_INFO!A36=0," ",COUNTRY_INFO!A36)) -> SENEGAL | B36: =IF(AND(INTRO!$E$37="Non endémique",INTRO!$E$41="Non endémique")," ",IF(COUNTRY_INFO!B36=0," ",COUNTRY_INFO!B36)) -> Kaffrine | C36: =IF(AND(INTRO!$E$37="Non endémique",INTRO!$E$41="Non endémique")," ",IF(COUNTRY_INFO!C36=0," ",COUNTRY_INFO!C36)) -> Koungheul | D36: =IF(AND(INTRO!$E$37="Non endémique",INTRO!$E$41="Non endémique"),0,COUNTRY_INFO!V36) -> 0 | E36: =IF(AND(INTRO!$E$37="Non endémique",INTRO!$E$41="Non endémique"),0,COUNTRY_INFO!X36) -> 0 | F36: =IF(INTRO!$E$39="Non endémique",IF($D36=1,DEC!I36,0),IF($D36=1,IVM!G36,0)) -> 0 | H36: =IF(OR(COUNTRY_INFO!N36="Inconnu",COUNTRY_INFO!N36="Surveillance",COUNTRY_INFO!N36="Non requis",COUNTRY_INFO!N36=0),0,IF(INTRO!$E$39="Non endémique",IF(AND($E36<>0,$G36=""),IF($F36=0,COUNTRY_INFO!N36*$E36,COUNTRY_INFO!N36*($E36-$D36)),IF(AND($E36<>0,$G36<>0),IF($F36=0,COUNTRY_INFO!N36*$G36,COUNTRY_INFO!N36*($G36-$D36)),0)),IF($G36="",COUNTRY_INFO!N36*$E36,COUNTRY_INFO!N36*$G36))) -> 0 | I36: =IF(OR(COUNTRY_INFO!O36="Inconnu",COUNTRY_INFO!O36="Surveillance",COUNTRY_INFO!O36="Non requis",COUNTRY_INFO!O36=0),0,IF($E36<>0, IF($F36=0,COUNTRY_INFO!O36*$E36,COUNTRY_INFO!O36*($E36-$D36)),COUNTRY_INFO!O36*$E36)) -> 0 | K36: =IF(OR(COUNTRY_INFO!P36="Inconnu",COUNTRY_INFO!P36="Surveillance",COUNTRY_INFO!P36="Non requis",COUNTRY_INFO!P36=0),0,IF(AND($E36<>0,$J36=""),IF($F36=0,COUNTRY_INFO!P36*$E36,COUNTRY_INFO!P36*($E36-$D36)), IF(AND($E36<>0,$J36<>0),IF($F36=0,COUNTRY_INFO!P36*$J36,COUNTRY_INFO!P36*($J36-$D36)), COUNTRY_INFO!P36*$J36))) -> 0 | L36: 0 | M36: 0 | O36: 0 | P36: 0 | R36: 0 | S36: 0 | U36: 0
A37: =IF(AND(INTRO!$E$37="Non endémique",INTRO!$E$41="Non endémique")," ",IF(COUNTRY_INFO!A37=0," ",COUNTRY_INFO!A37)) -> SENEGAL | B37: =IF(AND(INTRO!$E$37="Non endémique",INTRO!$E$41="Non endémique")," ",IF(COUNTRY_INFO!B37=0," ",COUNTRY_INFO!B37)) -> Kaffrine | C37: =IF(AND(INTRO!$E$37="Non endémique",INTRO!$E$41="Non endémique")," ",IF(COUNTRY_INFO!C37=0," ",COUNTRY_INFO!C37)) -> Malem Hodar | D37: =IF(AND(INTRO!$E$37="Non endémique",INTRO!$E$41="Non endémique"),0,COUNTRY_INFO!V37) -> 0 | E37: =IF(AND(INTRO!$E$37="Non endémique",INTRO!$E$41="Non endémique"),0,COUNTRY_INFO!X37) -> 1 | F37: =IF(INTRO!$E$39="Non endémique",IF($D37=1,DEC!I37,0),IF($D37=1,IVM!G37,0)) -> 0 | H37: =IF(OR(COUNTRY_INFO!N37="Inconnu",COUNTRY_INFO!N37="Surveillance",COUNTRY_INFO!N37="Non requis",COUNTRY_INFO!N37=0),0,IF(INTRO!$E$39="Non endémique",IF(AND($E37<>0,$G37=""),IF($F37=0,COUNTRY_INFO!N37*$E37,COUNTRY_INFO!N37*($E37-$D37)),IF(AND($E37<>0,$G37<>0),IF($F37=0,COUNTRY_INFO!N37*$G37,COUNTRY_INFO!N37*($G37-$D37)),0)),IF($G37="",COUNTRY_INFO!N37*$E37,COUNTRY_INFO!N37*$G37))) -> 16627 | I37: =IF(OR(COUNTRY_INFO!O37="Inconnu",COUNTRY_INFO!O37="Surveillance",COUNTRY_INFO!O37="Non requis",COUNTRY_INFO!O37=0),0,IF($E37<>0, IF($F37=0,COUNTRY_INFO!O37*$E37,COUNTRY_INFO!O37*($E37-$D37)),COUNTRY_INFO!O37*$E37)) -> 36546 | K37: =IF(OR(COUNTRY_INFO!P37="Inconnu",COUNTRY_INFO!P37="Surveillance",COUNTRY_INFO!P37="Non requis",COUNTRY_INFO!P37=0),0,IF(AND($E37<>0,$J37=""),IF($F37=0,COUNTRY_INFO!P37*$E37,COUNTRY_INFO!P37*($E37-$D37)), IF(AND($E37<>0,$J37<>0),IF($F37=0,COUNTRY_INFO!P37*$J37,COUNTRY_INFO!P37*($J37-$D37)), COUNTRY_INFO!P37*$J37))) -> 33874 | L37: 87047 | M37: 0 | O37: 0 | P37: 36546 | R37: 36546 | S37: 0 | U37: 0
A38: =IF(AND(INTRO!$E$37="Non endémique",INTRO!$E$41="Non endémique")," ",IF(COUNTRY_INFO!A38=0," ",COUNTRY_INFO!A38)) -> SENEGAL | B38: =IF(AND(INTRO!$E$37="Non endémique",INTRO!$E$41="Non endémique")," ",IF(COUNTRY_INFO!B38=0," ",COUNTRY_INFO!B38)) -> Kaolack | C38: =IF(AND(INTRO!$E$37="Non endémique",INTRO!$E$41="Non endémique")," ",IF(COUNTRY_INFO!C38=0," ",COUNTRY_INFO!C38)) -> Guinguineo | D38: =IF(AND(INTRO!$E$37="Non endémique",INTRO!$E$41="Non endémique"),0,COUNTRY_INFO!V38) -> 0 | E38: =IF(AND(INTRO!$E$37="Non endémique",INTRO!$E$41="Non endémique"),0,COUNTRY_INFO!X38) -> 0 | F38: =IF(INTRO!$E$39="Non endémique",IF($D38=1,DEC!I38,0),IF($D38=1,IVM!G38,0)) -> 0 | H38: =IF(OR(COUNTRY_INFO!N38="Inconnu",COUNTRY_INFO!N38="Surveillance",COUNTRY_INFO!N38="Non requis",COUNTRY_INFO!N38=0),0,IF(INTRO!$E$39="Non endémique",IF(AND($E38<>0,$G38=""),IF($F38=0,COUNTRY_INFO!N38*$E38,COUNTRY_INFO!N38*($E38-$D38)),IF(AND($E38<>0,$G38<>0),IF($F38=0,COUNTRY_INFO!N38*$G38,COUNTRY_INFO!N38*($G38-$D38)),0)),IF($G38="",COUNTRY_INFO!N38*$E38,COUNTRY_INFO!N38*$G38))) -> 0 | I38: =IF(OR(COUNTRY_INFO!O38="Inconnu",COUNTRY_INFO!O38="Surveillance",COUNTRY_INFO!O38="Non requis",COUNTRY_INFO!O38=0),0,IF($E38<>0, IF($F38=0,COUNTRY_INFO!O38*$E38,COUNTRY_INFO!O38*($E38-$D38)),COUNTRY_INFO!O38*$E38)) -> 0 | K38: =IF(OR(COUNTRY_INFO!P38="Inconnu",COUNTRY_INFO!P38="Surveillance",COUNTRY_INFO!P38="Non requis",COUNTRY_INFO!P38=0),0,IF(AND($E38<>0,$J38=""),IF($F38=0,COUNTRY_INFO!P38*$E38,COUNTRY_INFO!P38*($E38-$D38)), IF(AND($E38<>0,$J38<>0),IF($F38=0,COUNTRY_INFO!P38*$J38,COUNTRY_INFO!P38*($J38-$D38)), COUNTRY_INFO!P38*$J38))) -> 0 | L38: 0 | M38: 0 | O38: 0 | P38: 0 | R38: 0 | S38: 0 | U38: 0
A39: =IF(AND(INTRO!$E$37="Non endémique",INTRO!$E$41="Non endémique")," ",IF(COUNTRY_INFO!A39=0," ",COUNTRY_INFO!A39)) -> SENEGAL | B39: =IF(AND(INTRO!$E$37="Non endémique",INTRO!$E$41="Non endémique")," ",IF(COUNTRY_INFO!B39=0," ",COUNTRY_INFO!B39)) -> Kaolack | C39: =IF(AND(INTRO!$E$37="Non endémique",INTRO!$E$41="Non endémique")," ",IF(COUNTRY_INFO!C39=0," ",COUNTRY_INFO!C39)) -> Kaolack | D39: =IF(AND(INTRO!$E$37="Non endémique",INTRO!$E$41="Non endémique"),0,COUNTRY_INFO!V39) -> 0 | E39: =IF(AND(INTRO!$E$37="Non endémique",INTRO!$E$41="Non endémique"),0,COUNTRY_INFO!X39) -> 0 | F39: =IF(INTRO!$E$39="Non endémique",IF($D39=1,DEC!I39,0),IF($D39=1,IVM!G39,0)) -> 0 | H39: =IF(OR(COUNTRY_INFO!N39="Inconnu",COUNTRY_INFO!N39="Surveillance",COUNTRY_INFO!N39="Non requis",COUNTRY_INFO!N39=0),0,IF(INTRO!$E$39="Non endémique",IF(AND($E39<>0,$G39=""),IF($F39=0,COUNTRY_INFO!N39*$E39,COUNTRY_INFO!N39*($E39-$D39)),IF(AND($E39<>0,$G39<>0),IF($F39=0,COUNTRY_INFO!N39*$G39,COUNTRY_INFO!N39*($G39-$D39)),0)),IF($G39="",COUNTRY_INFO!N39*$E39,COUNTRY_INFO!N39*$G39))) -> 0 | I39: =IF(OR(COUNTRY_INFO!O39="Inconnu",COUNTRY_INFO!O39="Surveillance",COUNTRY_INFO!O39="Non requis",COUNTRY_INFO!O39=0),0,IF($E39<>0, IF($F39=0,COUNTRY_INFO!O39*$E39,COUNTRY_INFO!O39*($E39-$D39)),COUNTRY_INFO!O39*$E39)) -> 0 | K39: =IF(OR(COUNTRY_INFO!P39="Inconnu",COUNTRY_INFO!P39="Surveillance",COUNTRY_INFO!P39="Non requis",COUNTRY_INFO!P39=0),0,IF(AND($E39<>0,$J39=""),IF($F39=0,COUNTRY_INFO!P39*$E39,COUNTRY_INFO!P39*($E39-$D39)), IF(AND($E39<>0,$J39<>0),IF($F39=0,COUNTRY_INFO!P39*$J39,COUNTRY_INFO!P39*($J39-$D39)), COUNTRY_INFO!P39*$J39))) -> 0 | L39: 0 | M39: 0 | O39: 0 | P39: 0 | R39: 0 | S39: 0 | U39: 0
A40: =IF(AND(INTRO!$E$37="Non endémique",INTRO!$E$41="Non endémique")," ",IF(COUNTRY_INFO!A40=0," ",COUNTRY_INFO!A40)) -> SENEGAL | B40: =IF(AND(INTRO!$E$37="Non endémique",INTRO!$E$41="Non endémique")," ",IF(COUNTRY_INFO!B40=0," ",COUNTRY_INFO!B40)) -> Kaolack | C40: =IF(AND(INTRO!$E$37="Non endémique",INTRO!$E$41="Non endémique")," ",IF(COUNTRY_INFO!C40=0," ",COUNTRY_INFO!C40)) -> Ndoffane | D40: =IF(AND(INTRO!$E$37="Non endémique",INTRO!$E$41="Non endémique"),0,COUNTRY_INFO!V40) -> 0 | E40: =IF(AND(INTRO!$E$37="Non endémique",INTRO!$E$41="Non endémique"),0,COUNTRY_INFO!X40) -> 0 | F40: =IF(INTRO!$E$39="Non endémique",IF($D40=1,DEC!I40,0),IF($D40=1,IVM!G40,0)) -> 0 | H40: =IF(OR(COUNTRY_INFO!N40="Inconnu",COUNTRY_INFO!N40="Surveillance",COUNTRY_INFO!N40="Non requis",COUNTRY_INFO!N40=0),0,IF(INTRO!$E$39="Non endémique",IF(AND($E40<>0,$G40=""),IF($F40=0,COUNTRY_INFO!N40*$E40,COUNTRY_INFO!N40*($E40-$D40)),IF(AND($E40<>0,$G40<>0),IF($F40=0,COUNTRY_INFO!N40*$G40,COUNTRY_INFO!N40*($G40-$D40)),0)),IF($G40="",COUNTRY_INFO!N40*$E40,COUNTRY_INFO!N40*$G40))) -> 0 | I40: =IF(OR(COUNTRY_INFO!O40="Inconnu",COUNTRY_INFO!O40="Surveillance",COUNTRY_INFO!O40="Non requis",COUNTRY_INFO!O40=0),0,IF($E40<>0, IF($F40=0,COUNTRY_INFO!O40*$E40,COUNTRY_INFO!O40*($E40-$D40)),COUNTRY_INFO!O40*$E40)) -> 0 | K40: =IF(OR(COUNTRY_INFO!P40="Inconnu",COUNTRY_INFO!P40="Surveillance",COUNTRY_INFO!P40="Non requis",COUNTRY_INFO!P40=0),0,IF(AND($E40<>0,$J40=""),IF($F40=0,COUNTRY_INFO!P40*$E40,COUNTRY_INFO!P40*($E40-$D40)), IF(AND($E40<>0,$J40<>0),IF($F40=0,COUNTRY_INFO!P40*$J40,COUNTRY_INFO!P40*($J40-$D40)), COUNTRY_INFO!P40*$J40))) -> 0 | L40: 0 | M40: 0 | O40: 0 | P40: 0 | R40: 0 | S40: 0 | U40: 0
A41: =IF(AND(INTRO!$E$37="Non endémique",INTRO!$E$41="Non endémique")," ",IF(COUNTRY_INFO!A41=0," ",COUNTRY_INFO!A41)) -> SENEGAL | B41: =IF(AND(INTRO!$E$37="Non endémique",INTRO!$E$41="Non endémique")," ",IF(COUNTRY_INFO!B41=0," ",COUNTRY_INFO!B41)) -> Kaolack | C41: =IF(AND(INTRO!$E$37="Non endémique",INTRO!$E$41="Non endémique")," ",IF(COUNTRY_INFO!C41=0," ",COUNTRY_INFO!C41)) -> Nioro | D41: =IF(AND(INTRO!$E$37="Non endémique",INTRO!$E$41="Non endémique"),0,COUNTRY_INFO!V41) -> 0 | E41: =IF(AND(INTRO!$E$37="Non endémique",INTRO!$E$41="Non endémique"),0,COUNTRY_INFO!X41) -> 0 | F41: =IF(INTRO!$E$39="Non endémique",IF($D41=1,DEC!I41,0),IF($D41=1,IVM!G41,0)) -> 0 | H41: =IF(OR(COUNTRY_INFO!N41="Inconnu",COUNTRY_INFO!N41="Surveillance",COUNTRY_INFO!N41="Non requis",COUNTRY_INFO!N41=0),0,IF(INTRO!$E$39="Non endémique",IF(AND($E41<>0,$G41=""),IF($F41=0,COUNTRY_INFO!N41*$E41,COUNTRY_INFO!N41*($E41-$D41)),IF(AND($E41<>0,$G41<>0),IF($F41=0,COUNTRY_INFO!N41*$G41,COUNTRY_INFO!N41*($G41-$D41)),0)),IF($G41="",COUNTRY_INFO!N41*$E41,COUNTRY_INFO!N41*$G41))) -> 0 | I41: =IF(OR(COUNTRY_INFO!O41="Inconnu",COUNTRY_INFO!O41="Surveillance",COUNTRY_INFO!O41="Non requis",COUNTRY_INFO!O41=0),0,IF($E41<>0, IF($F41=0,COUNTRY_INFO!O41*$E41,COUNTRY_INFO!O41*($E41-$D41)),COUNTRY_INFO!O41*$E41)) -> 0 | K41: =IF(OR(COUNTRY_INFO!P41="Inconnu",COUNTRY_INFO!P41="Surveillance",COUNTRY_INFO!P41="Non requis",COUNTRY_INFO!P41=0),0,IF(AND($E41<>0,$J41=""),IF($F41=0,COUNTRY_INFO!P41*$E41,COUNTRY_INFO!P41*($E41-$D41)), IF(AND($E41<>0,$J41<>0),IF($F41=0,COUNTRY_INFO!P41*$J41,COUNTRY_INFO!P41*($J41-$D41)), COUNTRY_INFO!P41*$J41))) -> 0 | L41: 0 | M41: 0 | O41: 0 | P41: 0 | R41: 0 | S41: 0 | U41: 0
A42: =IF(AND(INTRO!$E$37="Non endémique",INTRO!$E$41="Non endémique")," ",IF(COUNTRY_INFO!A42=0," ",COUNTRY_INFO!A42)) -> SENEGAL | B42: =IF(AND(INTRO!$E$37="Non endémique",INTRO!$E$41="Non endémique")," ",IF(COUNTRY_INFO!B42=0," ",COUNTRY_INFO!B42)) -> Kédougou | C42: =IF(AND(INTRO!$E$37="Non endémique",INTRO!$E$41="Non endémique")," ",IF(COUNTRY_INFO!C42=0," ",COUNTRY_INFO!C42)) -> Kédougou | D42: =IF(AND(INTRO!$E$37="Non endémique",INTRO!$E$41="Non endémique"),0,COUNTRY_INFO!V42) -> 0 | E42: =IF(AND(INTRO!$E$37="Non endémique",INTRO!$E$41="Non endémique"),0,COUNTRY_INFO!X42) -> 0 | F42: =IF(INTRO!$E$39="Non endémique",IF($D42=1,DEC!I42,0),IF($D42=1,IVM!G42,0)) -> 0 | H42: =IF(OR(COUNTRY_INFO!N42="Inconnu",COUNTRY_INFO!N42="Surveillance",COUNTRY_INFO!N42="Non requis",COUNTRY_INFO!N42=0),0,IF(INTRO!$E$39="Non endémique",IF(AND($E42<>0,$G42=""),IF($F42=0,COUNTRY_INFO!N42*$E42,COUNTRY_INFO!N42*($E42-$D42)),IF(AND($E42<>0,$G42<>0),IF($F42=0,COUNTRY_INFO!N42*$G42,COUNTRY_INFO!N42*($G42-$D42)),0)),IF($G42="",COUNTRY_INFO!N42*$E42,COUNTRY_INFO!N42*$G42))) -> 0 | I42: =IF(OR(COUNTRY_INFO!O42="Inconnu",COUNTRY_INFO!O42="Surveillance",COUNTRY_INFO!O42="Non requis",COUNTRY_INFO!O42=0),0,IF($E42<>0, IF($F42=0,COUNTRY_INFO!O42*$E42,COUNTRY_INFO!O42*($E42-$D42)),COUNTRY_INFO!O42*$E42)) -> 0 | K42: =IF(OR(COUNTRY_INFO!P42="Inconnu",COUNTRY_INFO!P42="Surveillance",COUNTRY_INFO!P42="Non requis",COUNTRY_INFO!P42=0),0,IF(AND($E42<>0,$J42=""),IF($F42=0,COUNTRY_INFO!P42*$E42,COUNTRY_INFO!P42*($E42-$D42)), IF(AND($E42<>0,$J42<>0),IF($F42=0,COUNTRY_INFO!P42*$J42,COUNTRY_INFO!P42*($J42-$D42)), COUNTRY_INFO!P42*$J42))) -> 0 | L42: 0 | M42: 0 | O42: 0 | P42: 0 | R42: 0 | S42: 0 | U42: 0
A43: =IF(AND(INTRO!$E$37="Non endémique",INTRO!$E$41="Non endémique")," ",IF(COUNTRY_INFO!A43=0," ",COUNTRY_INFO!A43)) -> SENEGAL | B43: =IF(AND(INTRO!$E$37="Non endémique",INTRO!$E$41="Non endémique")," ",IF(COUNTRY_INFO!B43=0," ",COUNTRY_INFO!B43)) -> Kédougou | C43: =IF(AND(INTRO!$E$37="Non endémique",INTRO!$E$41="Non endémique")," ",IF(COUNTRY_INFO!C43=0," ",COUNTRY_INFO!C43)) -> Salemata | D43: =IF(AND(INTRO!$E$37="Non endémique",INTRO!$E$41="Non endémique"),0,COUNTRY_INFO!V43) -> 0 | E43: =IF(AND(INTRO!$E$37="Non endémique",INTRO!$E$41="Non endémique"),0,COUNTRY_INFO!X43) -> 0 | F43: =IF(INTRO!$E$39="Non endémique",IF($D43=1,DEC!I43,0),IF($D43=1,IVM!G43,0)) -> 0 | H43: =IF(OR(COUNTRY_INFO!N43="Inconnu",COUNTRY_INFO!N43="Surveillance",COUNTRY_INFO!N43="Non requis",COUNTRY_INFO!N43=0),0,IF(INTRO!$E$39="Non endémique",IF(AND($E43<>0,$G43=""),IF($F43=0,COUNTRY_INFO!N43*$E43,COUNTRY_INFO!N43*($E43-$D43)),IF(AND($E43<>0,$G43<>0),IF($F43=0,COUNTRY_INFO!N43*$G43,COUNTRY_INFO!N43*($G43-$D43)),0)),IF($G43="",COUNTRY_INFO!N43*$E43,COUNTRY_INFO!N43*$G43))) -> 0 | I43: =IF(OR(COUNTRY_INFO!O43="Inconnu",COUNTRY_INFO!O43="Surveillance",COUNTRY_INFO!O43="Non requis",COUNTRY_INFO!O43=0),0,IF($E43<>0, IF($F43=0,COUNTRY_INFO!O43*$E43,COUNTRY_INFO!O43*($E43-$D43)),COUNTRY_INFO!O43*$E43)) -> 0 | K43: =IF(OR(COUNTRY_INFO!P43="Inconnu",COUNTRY_INFO!P43="Surveillance",COUNTRY_INFO!P43="Non requis",COUNTRY_INFO!P43=0),0,IF(AND($E43<>0,$J43=""),IF($F43=0,COUNTRY_INFO!P43*$E43,COUNTRY_INFO!P43*($E43-$D43)), IF(AND($E43<>0,$J43<>0),IF($F43=0,COUNTRY_INFO!P43*$J43,COUNTRY_INFO!P43*($J43-$D43)), COUNTRY_INFO!P43*$J43))) -> 0 | L43: 0 | M43: 0 | O43: 0 | P43: 0 | R43: 0 | S43: 0 | U43: 0
A44: =IF(AND(INTRO!$E$37="Non endémique",INTRO!$E$41="Non endémique")," ",IF(COUNTRY_INFO!A44=0," ",COUNTRY_INFO!A44)) -> SENEGAL | B44: =IF(AND(INTRO!$E$37="Non endémique",INTRO!$E$41="Non endémique")," ",IF(COUNTRY_INFO!B44=0," ",COUNTRY_INFO!B44)) -> Kédougou | C44: =IF(AND(INTRO!$E$37="Non endémique",INTRO!$E$41="Non endémique")," ",IF(COUNTRY_INFO!C44=0," ",COUNTRY_INFO!C44)) -> Saraya | D44: =IF(AND(INTRO!$E$37="Non endémique",INTRO!$E$41="Non endémique"),0,COUNTRY_INFO!V44) -> 0 | E44: =IF(AND(INTRO!$E$37="Non endémique",INTRO!$E$41="Non endémique"),0,COUNTRY_INFO!X44) -> 0 | F44: =IF(INTRO!$E$39="Non endémique",IF($D44=1,DEC!I44,0),IF($D44=1,IVM!G44,0)) -> 0 | H44: =IF(OR(COUNTRY_INFO!N44="Inconnu",COUNTRY_INFO!N44="Surveillance",COUNTRY_INFO!N44="Non requis",COUNTRY_INFO!N44=0),0,IF(INTRO!$E$39="Non endémique",IF(AND($E44<>0,$G44=""),IF($F44=0,COUNTRY_INFO!N44*$E44,COUNTRY_INFO!N44*($E44-$D44)),IF(AND($E44<>0,$G44<>0),IF($F44=0,COUNTRY_INFO!N44*$G44,COUNTRY_INFO!N44*($G44-$D44)),0)),IF($G44="",COUNTRY_INFO!N44*$E44,COUNTRY_INFO!N44*$G44))) -> 0 | I44: =IF(OR(COUNTRY_INFO!O44="Inconnu",COUNTRY_INFO!O44="Surveillance",COUNTRY_INFO!O44="Non requis",COUNTRY_INFO!O44=0),0,IF($E44<>0, IF($F44=0,COUNTRY_INFO!O44*$E44,COUNTRY_INFO!O44*($E44-$D44)),COUNTRY_INFO!O44*$E44)) -> 0 | K44: =IF(OR(COUNTRY_INFO!P44="Inconnu",COUNTRY_INFO!P44="Surveillance",COUNTRY_INFO!P44="Non requis",COUNTRY_INFO!P44=0),0,IF(AND($E44<>0,$J44=""),IF($F44=0,COUNTRY_INFO!P44*$E44,COUNTRY_INFO!P44*($E44-$D44)), IF(AND($E44<>0,$J44<>0),IF($F44=0,COUNTRY_INFO!P44*$J44,COUNTRY_INFO!P44*($J44-$D44)), COUNTRY_INFO!P44*$J44))) -> 0 | L44: 0 | M44: 0 | O44: 0 | P44: 0 | R44: 0 | S44: 0 | U44: 0
A45: =IF(AND(INTRO!$E$37="Non endémique",INTRO!$E$41="Non endémique")," ",IF(COUNTRY_INFO!A45=0," ",COUNTRY_INFO!A45)) -> SENEGAL | B45: =IF(AND(INTRO!$E$37="Non endémique",INTRO!$E$41="Non endémique")," ",IF(COUNTRY_INFO!B45=0," ",COUNTRY_INFO!B45)) -> Kolda | C45: =IF(AND(INTRO!$E$37="Non endémique",INTRO!$E$41="Non endémique")," ",IF(COUNTRY_INFO!C45=0," ",COUNTRY_INFO!C45)) -> Kolda | D45: =IF(AND(INTRO!$E$37="Non endémique",INTRO!$E$41="Non endémique"),0,COUNTRY_INFO!V45) -> 0 | E45: =IF(AND(INTRO!$E$37="Non endémique",INTRO!$E$41="Non endémique"),0,COUNTRY_INFO!X45) -> 0 | F45: =IF(INTRO!$E$39="Non endémique",IF($D45=1,DEC!I45,0),IF($D45=1,IVM!G45,0)) -> 0 | H45: =IF(OR(COUNTRY_INFO!N45="Inconnu",COUNTRY_INFO!N45="Surveillance",COUNTRY_INFO!N45="Non requis",COUNTRY_INFO!N45=0),0,IF(INTRO!$E$39="Non endémique",IF(AND($E45<>0,$G45=""),IF($F45=0,COUNTRY_INFO!N45*$E45,COUNTRY_INFO!N45*($E45-$D45)),IF(AND($E45<>0,$G45<>0),IF($F45=0,COUNTRY_INFO!N45*$G45,COUNTRY_INFO!N45*($G45-$D45)),0)),IF($G45="",COUNTRY_INFO!N45*$E45,COUNTRY_INFO!N45*$G45))) -> 0 | I45: =IF(OR(COUNTRY_INFO!O45="Inconnu",COUNTRY_INFO!O45="Surveillance",COUNTRY_INFO!O45="Non requis",COUNTRY_INFO!O45=0),0,IF($E45<>0, IF($F45=0,COUNTRY_INFO!O45*$E45,COUNTRY_INFO!O45*($E45-$D45)),COUNTRY_INFO!O45*$E45)) -> 0 | K45: =IF(OR(COUNTRY_INFO!P45="Inconnu",COUNTRY_INFO!P45="Surveillance",COUNTRY_INFO!P45="Non requis",COUNTRY_INFO!P45=0),0,IF(AND($E45<>0,$J45=""),IF($F45=0,COUNTRY_INFO!P45*$E45,COUNTRY_INFO!P45*($E45-$D45)), IF(AND($E45<>0,$J45<>0),IF($F45=0,COUNTRY_INFO!P45*$J45,COUNTRY_INFO!P45*($J45-$D45)), COUNTRY_INFO!P45*$J45))) -> 0 | L45: 0 | M45: 0 | O45: 0 | P45: 0 | R45: 0 | S45: 0 | U45: 0
A46: =IF(AND(INTRO!$E$37="Non endémique",INTRO!$E$41="Non endémique")," ",IF(COUNTRY_INFO!A46=0," ",COUNTRY_INFO!A46)) -> SENEGAL | B46: =IF(AND(INTRO!$E$37="Non endémique",INTRO!$E$41="Non endémique")," ",IF(COUNTRY_INFO!B46=0," ",COUNTRY_INFO!B46)) -> Kolda | C46: =IF(AND(INTRO!$E$37="Non endémique",INTRO!$E$41="Non endémique")," ",IF(COUNTRY_INFO!C46=0," ",COUNTRY_INFO!C46)) -> Medina Yoro Foulah | D46: =IF(AND(INTRO!$E$37="Non endémique",INTRO!$E$41="Non endémique"),0,COUNTRY_INFO!V46) -> 0 | E46: =IF(AND(INTRO!$E$37="Non endémique",INTRO!$E$41="Non endémique"),0,COUNTRY_INFO!X46) -> 0 | F46: =IF(INTRO!$E$39="Non endémique",IF($D46=1,DEC!I46,0),IF($D46=1,IVM!G46,0)) -> 0 | H46: =IF(OR(COUNTRY_INFO!N46="Inconnu",COUNTRY_INFO!N46="Surveillance",COUNTRY_INFO!N46="Non requis",COUNTRY_INFO!N46=0),0,IF(INTRO!$E$39="Non endémique",IF(AND($E46<>0,$G46=""),IF($F46=0,COUNTRY_INFO!N46*$E46,COUNTRY_INFO!N46*($E46-$D46)),IF(AND($E46<>0,$G46<>0),IF($F46=0,COUNTRY_INFO!N46*$G46,COUNTRY_INFO!N46*($G46-$D46)),0)),IF($G46="",COUNTRY_INFO!N46*$E46,COUNTRY_INFO!N46*$G46))) -> 0 | I46: =IF(OR(COUNTRY_INFO!O46="Inconnu",COUNTRY_INFO!O46="Surveillance",COUNTRY_INFO!O46="Non requis",COUNTRY_INFO!O46=0),0,IF($E46<>0, IF($F46=0,COUNTRY_INFO!O46*$E46,COUNTRY_INFO!O46*($E46-$D46)),COUNTRY_INFO!O46*$E46)) -> 0 | K46: =IF(OR(COUNTRY_INFO!P46="Inconnu",COUNTRY_INFO!P46="Surveillance",COUNTRY_INFO!P46="Non requis",COUNTRY_INFO!P46=0),0,IF(AND($E46<>0,$J46=""),IF($F46=0,COUNTRY_INFO!P46*$E46,COUNTRY_INFO!P46*($E46-$D46)), IF(AND($E46<>0,$J46<>0),IF($F46=0,COUNTRY_INFO!P46*$J46,COUNTRY_INFO!P46*($J46-$D46)), COUNTRY_INFO!P46*$J46))) -> 0 | L46: 0 | M46: 0 | O46: 0 | P46: 0 | R46: 0 | S46: 0 | U46: 0
A47: =IF(AND(INTRO!$E$37="Non endémique",INTRO!$E$41="Non endémique")," ",IF(COUNTRY_INFO!A47=0," ",COUNTRY_INFO!A47)) -> SENEGAL | B47: =IF(AND(INTRO!$E$37="Non endémique",INTRO!$E$41="Non endémique")," ",IF(COUNTRY_INFO!B47=0," ",COUNTRY_INFO!B47)) -> Kolda | C47: =IF(AND(INTRO!$E$37="Non endémique",INTRO!$E$41="Non endémique")," ",IF(COUNTRY_INFO!C47=0," ",COUNTRY_INFO!C47)) -> Velingara | D47: =IF(AND(INTRO!$E$37="Non endémique",INTRO!$E$41="Non endémique"),0,COUNTRY_INFO!V47) -> 0 | E47: =IF(AND(INTRO!$E$37="Non endémique",INTRO!$E$41="Non endémique"),0,COUNTRY_INFO!X47) -> 0 | F47: =IF(INTRO!$E$39="Non endémique",IF($D47=1,DEC!I47,0),IF($D47=1,IVM!G47,0)) -> 0 | H47: =IF(OR(COUNTRY_INFO!N47="Inconnu",COUNTRY_INFO!N47="Surveillance",COUNTRY_INFO!N47="Non requis",COUNTRY_INFO!N47=0),0,IF(INTRO!$E$39="Non endémique",IF(AND($E47<>0,$G47=""),IF($F47=0,COUNTRY_INFO!N47*$E47,COUNTRY_INFO!N47*($E47-$D47)),IF(AND($E47<>0,$G47<>0),IF($F47=0,COUNTRY_INFO!N47*$G47,COUNTRY_INFO!N47*($G47-$D47)),0)),IF($G47="",COUNTRY_INFO!N47*$E47,COUNTRY_INFO!N47*$G47))) -> 0 | I47: =IF(OR(COUNTRY_INFO!O47="Inconnu",COUNTRY_INFO!O47="Surveillance",COUNTRY_INFO!O47="Non requis",COUNTRY_INFO!O47=0),0,IF($E47<>0, IF($F47=0,COUNTRY_INFO!O47*$E47,COUNTRY_INFO!O47*($E47-$D47)),COUNTRY_INFO!O47*$E47)) -> 0 | K47: =IF(OR(COUNTRY_INFO!P47="Inconnu",COUNTRY_INFO!P47="Surveillance",COUNTRY_INFO!P47="Non requis",COUNTRY_INFO!P47=0),0,IF(AND($E47<>0,$J47=""),IF($F47=0,COUNTRY_INFO!P47*$E47,COUNTRY_INFO!P47*($E47-$D47)), IF(AND($E47<>0,$J47<>0),IF($F47=0,COUNTRY_INFO!P47*$J47,COUNTRY_INFO!P47*($J47-$D47)), COUNTRY_INFO!P47*$J47))) -> 0 | L47: 0 | M47: 0 | O47: 0 | P47: 0 | R47: 0 | S47: 0 | U47: 0
A48: =IF(AND(INTRO!$E$37="Non endémique",INTRO!$E$41="Non endémique")," ",IF(COUNTRY_INFO!A48=0," ",COUNTRY_INFO!A48)) -> SENEGAL | B48: =IF(AND(INTRO!$E$37="Non endémique",INTRO!$E$41="Non endémique")," ",IF(COUNTRY_INFO!B48=0," ",COUNTRY_INFO!B48)) -> Louga | C48: =IF(AND(INTRO!$E$37="Non endémique",INTRO!$E$41="Non endémique")," ",IF(COUNTRY_INFO!C48=0," ",COUNTRY_INFO!C48)) -> Darou-Mousty | D48: =IF(AND(INTRO!$E$37="Non endémique",INTRO!$E$41="Non endémique"),0,COUNTRY_INFO!V48) -> 0 | E48: =IF(AND(INTRO!$E$37="Non endémique",INTRO!$E$41="Non endémique"),0,COUNTRY_INFO!X48) -> 0 | F48: =IF(INTRO!$E$39="Non endémique",IF($D48=1,DEC!I48,0),IF($D48=1,IVM!G48,0)) -> 0 | H48: =IF(OR(COUNTRY_INFO!N48="Inconnu",COUNTRY_INFO!N48="Surveillance",COUNTRY_INFO!N48="Non requis",COUNTRY_INFO!N48=0),0,IF(INTRO!$E$39="Non endémique",IF(AND($E48<>0,$G48=""),IF($F48=0,COUNTRY_INFO!N48*$E48,COUNTRY_INFO!N48*($E48-$D48)),IF(AND($E48<>0,$G48<>0),IF($F48=0,COUNTRY_INFO!N48*$G48,COUNTRY_INFO!N48*($G48-$D48)),0)),IF($G48="",COUNTRY_INFO!N48*$E48,COUNTRY_INFO!N48*$G48))) -> 0 | I48: =IF(OR(COUNTRY_INFO!O48="Inconnu",COUNTRY_INFO!O48="Surveillance",COUNTRY_INFO!O48="Non requis",COUNTRY_INFO!O48=0),0,IF($E48<>0, IF($F48=0,COUNTRY_INFO!O48*$E48,COUNTRY_INFO!O48*($E48-$D48)),COUNTRY_INFO!O48*$E48)) -> 0 | K48: =IF(OR(COUNTRY_INFO!P48="Inconnu",COUNTRY_INFO!P48="Surveillance",COUNTRY_INFO!P48="Non requis",COUNTRY_INFO!P48=0),0,IF(AND($E48<>0,$J48=""),IF($F48=0,COUNTRY_INFO!P48*$E48,COUNTRY_INFO!P48*($E48-$D48)), IF(AND($E48<>0,$J48<>0),IF($F48=0,COUNTRY_INFO!P48*$J48,COUNTRY_INFO!P48*($J48-$D48)), COUNTRY_INFO!P48*$J48))) -> 0 | L48: 0 | M48: 0 | O48: 0 | P48: 0 | R48: 0 | S48: 0 | U48: 0
A49: =IF(AND(INTRO!$E$37="Non endémique",INTRO!$E$41="Non endémique")," ",IF(COUNTRY_INFO!A49=0," ",COUNTRY_INFO!A49)) -> SENEGAL | B49: =IF(AND(INTRO!$E$37="Non endémique",INTRO!$E$41="Non endémique")," ",IF(COUNTRY_INFO!B49=0," ",COUNTRY_INFO!B49)) -> Louga | C49: =IF(AND(INTRO!$E$37="Non endémique",INTRO!$E$41="Non endémique")," ",IF(COUNTRY_INFO!C49=0," ",COUNTRY_INFO!C49)) -> Kébémer | D49: =IF(AND(INTRO!$E$37="Non endémique",INTRO!$E$41="Non endémique"),0,COUNTRY_INFO!V49) -> 0 | E49: =IF(AND(INTRO!$E$37="Non endémique",INTRO!$E$41="Non endémique"),0,COUNTRY_INFO!X49) -> 0 | F49: =IF(INTRO!$E$39="Non endémique",IF($D49=1,DEC!I49,0),IF($D49=1,IVM!G49,0)) -> 0 | H49: =IF(OR(COUNTRY_INFO!N49="Inconnu",COUNTRY_INFO!N49="Surveillance",COUNTRY_INFO!N49="Non requis",COUNTRY_INFO!N49=0),0,IF(INTRO!$E$39="Non endémique",IF(AND($E49<>0,$G49=""),IF($F49=0,COUNTRY_INFO!N49*$E49,COUNTRY_INFO!N49*($E49-$D49)),IF(AND($E49<>0,$G49<>0),IF($F49=0,COUNTRY_INFO!N49*$G49,COUNTRY_INFO!N49*($G49-$D49)),0)),IF($G49="",COUNTRY_INFO!N49*$E49,COUNTRY_INFO!N49*$G49))) -> 0 | I49: =IF(OR(COUNTRY_INFO!O49="Inconnu",COUNTRY_INFO!O49="Surveillance",COUNTRY_INFO!O49="Non requis",COUNTRY_INFO!O49=0),0,IF($E49<>0, IF($F49=0,COUNTRY_INFO!O49*$E49,COUNTRY_INFO!O49*($E49-$D49)),COUNTRY_INFO!O49*$E49)) -> 0 | K49: =IF(OR(COUNTRY_INFO!P49="Inconnu",COUNTRY_INFO!P49="Surveillance",COUNTRY_INFO!P49="Non requis",COUNTRY_INFO!P49=0),0,IF(AND($E49<>0,$J49=""),IF($F49=0,COUNTRY_INFO!P49*$E49,COUNTRY_INFO!P49*($E49-$D49)), IF(AND($E49<>0,$J49<>0),IF($F49=0,COUNTRY_INFO!P49*$J49,COUNTRY_INFO!P49*($J49-$D49)), COUNTRY_INFO!P49*$J49))) -> 0 | L49: 0 | M49: 0 | O49: 0 | P49: 0 | R49: 0 | S49: 0 | U49: 0
A50: =IF(AND(INTRO!$E$37="Non endémique",INTRO!$E$41="Non endémique")," ",IF(COUNTRY_INFO!A50=0," ",COUNTRY_INFO!A50)) -> SENEGAL | B50: =IF(AND(INTRO!$E$37="Non endémique",INTRO!$E$41="Non endémique")," ",IF(COUNTRY_INFO!B50=0," ",COUNTRY_INFO!B50)) -> Louga | C50: =IF(AND(INTRO!$E$37="Non endémique",INTRO!$E$41="Non endémique")," ",IF(COUNTRY_INFO!C50=0," ",COUNTRY_INFO!C50)) -> Linguère | D50: =IF(AND(INTRO!$E$37="Non endémique",INTRO!$E$41="Non endémique"),0,COUNTRY_INFO!V50) -> 0 | E50: =IF(AND(INTRO!$E$37="Non endémique",INTRO!$E$41="Non endémique"),0,COUNTRY_INFO!X50) -> 0 | F50: =IF(INTRO!$E$39="Non endémique",IF($D50=1,DEC!I50,0),IF($D50=1,IVM!G50,0)) -> 0 | H50: =IF(OR(COUNTRY_INFO!N50="Inconnu",COUNTRY_INFO!N50="Surveillance",COUNTRY_INFO!N50="Non requis",COUNTRY_INFO!N50=0),0,IF(INTRO!$E$39="Non endémique",IF(AND($E50<>0,$G50=""),IF($F50=0,COUNTRY_INFO!N50*$E50,COUNTRY_INFO!N50*($E50-$D50)),IF(AND($E50<>0,$G50<>0),IF($F50=0,COUNTRY_INFO!N50*$G50,COUNTRY_INFO!N50*($G50-$D50)),0)),IF($G50="",COUNTRY_INFO!N50*$E50,COUNTRY_INFO!N50*$G50))) -> 0 | I50: =IF(OR(COUNTRY_INFO!O50="Inconnu",COUNTRY_INFO!O50="Surveillance",COUNTRY_INFO!O50="Non requis",COUNTRY_INFO!O50=0),0,IF($E50<>0, IF($F50=0,COUNTRY_INFO!O50*$E50,COUNTRY_INFO!O50*($E50-$D50)),COUNTRY_INFO!O50*$E50)) -> 0 | K50: =IF(OR(COUNTRY_INFO!P50="Inconnu",COUNTRY_INFO!P50="Surveillance",COUNTRY_INFO!P50="Non requis",COUNTRY_INFO!P50=0),0,IF(AND($E50<>0,$J50=""),IF($F50=0,COUNTRY_INFO!P50*$E50,COUNTRY_INFO!P50*($E50-$D50)), IF(AND($E50<>0,$J50<>0),IF($F50=0,COUNTRY_INFO!P50*$J50,COUNTRY_INFO!P50*($J50-$D50)), COUNTRY_INFO!P50*$J50))) -> 0 | L50: 0 | M50: 0 | O50: 0 | P50: 0 | R50: 0 | S50: 0 | U50: 0
A51: =IF(AND(INTRO!$E$37="Non endémique",INTRO!$E$41="Non endémique")," ",IF(COUNTRY_INFO!A51=0," ",COUNTRY_INFO!A51)) -> SENEGAL | B51: =IF(AND(INTRO!$E$37="Non endémique",INTRO!$E$41="Non endémique")," ",IF(COUNTRY_INFO!B51=0," ",COUNTRY_INFO!B51)) -> Louga | C51: =IF(AND(INTRO!$E$37="Non endémique",INTRO!$E$41="Non endémique")," ",IF(COUNTRY_INFO!C51=0," ",COUNTRY_INFO!C51)) -> Dahra | D51: =IF(AND(INTRO!$E$37="Non endémique",INTRO!$E$41="Non endémique"),0,COUNTRY_INFO!V51) -> 0 | E51: =IF(AND(INTRO!$E$37="Non endémique",INTRO!$E$41="Non endémique"),0,COUNTRY_INFO!X51) -> 0 | F51: =IF(INTRO!$E$39="Non endémique",IF($D51=1,DEC!I51,0),IF($D51=1,IVM!G51,0)) -> 0 | H51: =IF(OR(COUNTRY_INFO!N51="Inconnu",COUNTRY_INFO!N51="Surveillance",COUNTRY_INFO!N51="Non requis",COUNTRY_INFO!N51=0),0,IF(INTRO!$E$39="Non endémique",IF(AND($E51<>0,$G51=""),IF($F51=0,COUNTRY_INFO!N51*$E51,COUNTRY_INFO!N51*($E51-$D51)),IF(AND($E51<>0,$G51<>0),IF($F51=0,COUNTRY_INFO!N51*$G51,COUNTRY_INFO!N51*($G51-$D51)),0)),IF($G51="",COUNTRY_INFO!N51*$E51,COUNTRY_INFO!N51*$G51))) -> 0 | I51: =IF(OR(COUNTRY_INFO!O51="Inconnu",COUNTRY_INFO!O51="Surveillance",COUNTRY_INFO!O51="Non requis",COUNTRY_INFO!O51=0),0,IF($E51<>0, IF($F51=0,COUNTRY_INFO!O51*$E51,COUNTRY_INFO!O51*($E51-$D51)),COUNTRY_INFO!O51*$E51)) -> 0 | K51: =IF(OR(COUNTRY_INFO!P51="Inconnu",COUNTRY_INFO!P51="Surveillance",COUNTRY_INFO!P51="Non requis",COUNTRY_INFO!P51=0),0,IF(AND($E51<>0,$J51=""),IF($F51=0,COUNTRY_INFO!P51*$E51,COUNTRY_INFO!P51*($E51-$D51)), IF(AND($E51<>0,$J51<>0),IF($F51=0,COUNTRY_INFO!P51*$J51,COUNTRY_INFO!P51*($J51-$D51)), COUNTRY_INFO!P51*$J51))) -> 0 | L51: 0 | M51: 0 | O51: 0 | P51: 0 | R51: 0 | S51: 0 | U51: 0
A52: =IF(AND(INTRO!$E$37="Non endémique",INTRO!$E$41="Non endémique")," ",IF(COUNTRY_INFO!A52=0," ",COUNTRY_INFO!A52)) -> SENEGAL | B52: =IF(AND(INTRO!$E$37="Non endémique",INTRO!$E$41="Non endémique")," ",IF(COUNTRY_INFO!B52=0," ",COUNTRY_INFO!B52)) -> Louga | C52: =IF(AND(INTRO!$E$37="Non endémique",INTRO!$E$41="Non endémique")," ",IF(COUNTRY_INFO!C52=0," ",COUNTRY_INFO!C52)) -> Coki | D52: =IF(AND(INTRO!$E$37="Non endémique",INTRO!$E$41="Non endémique"),0,COUNTRY_INFO!V52) -> 1 | E52: =IF(AND(INTRO!$E$37="Non endémique",INTRO!$E$41="Non endémique"),0,COUNTRY_INFO!X52) -> 0 | F52: =IF(INTRO!$E$39="Non endémique",IF($D52=1,DEC!I52,0),IF($D52=1,IVM!G52,0)) -> 72781 | H52: =IF(OR(COUNTRY_INFO!N52="Inconnu",COUNTRY_INFO!N52="Surveillance",COUNTRY_INFO!N52="Non requis",COUNTRY_INFO!N52=0),0,IF(INTRO!$E$39="Non endémique",IF(AND($E52<>0,$G52=""),IF($F52=0,COUNTRY_INFO!N52*$E52,COUNTRY_INFO!N52*($E52-$D52)),IF(AND($E52<>0,$G52<>0),IF($F52=0,COUNTRY_INFO!N52*$G52,COUNTRY_INFO!N52*($G52-$D52)),0)),IF($G52="",COUNTRY_INFO!N52*$E52,COUNTRY_INFO!N52*$G52))) -> 0 | I52: =IF(OR(COUNTRY_INFO!O52="Inconnu",COUNTRY_INFO!O52="Surveillance",COUNTRY_INFO!O52="Non requis",COUNTRY_INFO!O52=0),0,IF($E52<>0, IF($F52=0,COUNTRY_INFO!O52*$E52,COUNTRY_INFO!O52*($E52-$D52)),COUNTRY_INFO!O52*$E52)) -> 0 | K52: =IF(OR(COUNTRY_INFO!P52="Inconnu",COUNTRY_INFO!P52="Surveillance",COUNTRY_INFO!P52="Non requis",COUNTRY_INFO!P52=0),0,IF(AND($E52<>0,$J52=""),IF($F52=0,COUNTRY_INFO!P52*$E52,COUNTRY_INFO!P52*($E52-$D52)), IF(AND($E52<>0,$J52<>0),IF($F52=0,COUNTRY_INFO!P52*$J52,COUNTRY_INFO!P52*($J52-$D52)), COUNTRY_INFO!P52*$J52))) -> 0 | L52: 0 | M52: 72781 | O52: 72781 | P52: 0 | R52: 0 | S52: 0 | U52: 0
A53: =IF(AND(INTRO!$E$37="Non endémique",INTRO!$E$41="Non endémique")," ",IF(COUNTRY_INFO!A53=0," ",COUNTRY_INFO!A53)) -> SENEGAL | B53: =IF(AND(INTRO!$E$37="Non endémique",INTRO!$E$41="Non endémique")," ",IF(COUNTRY_INFO!B53=0," ",COUNTRY_INFO!B53)) -> Louga | C53: =IF(AND(INTRO!$E$37="Non endémique",INTRO!$E$41="Non endémique")," ",IF(COUNTRY_INFO!C53=0," ",COUNTRY_INFO!C53)) -> Keur Momar Sarr | D53: =IF(AND(INTRO!$E$37="Non endémique",INTRO!$E$41="Non endémique"),0,COUNTRY_INFO!V53) -> 0 | E53: =IF(AND(INTRO!$E$37="Non endémique",INTRO!$E$41="Non endémique"),0,COUNTRY_INFO!X53) -> 0 | F53: =IF(INTRO!$E$39="Non endémique",IF($D53=1,DEC!I53,0),IF($D53=1,IVM!G53,0)) -> 0 | H53: =IF(OR(COUNTRY_INFO!N53="Inconnu",COUNTRY_INFO!N53="Surveillance",COUNTRY_INFO!N53="Non requis",COUNTRY_INFO!N53=0),0,IF(INTRO!$E$39="Non endémique",IF(AND($E53<>0,$G53=""),IF($F53=0,COUNTRY_INFO!N53*$E53,COUNTRY_INFO!N53*($E53-$D53)),IF(AND($E53<>0,$G53<>0),IF($F53=0,COUNTRY_INFO!N53*$G53,COUNTRY_INFO!N53*($G53-$D53)),0)),IF($G53="",COUNTRY_INFO!N53*$E53,COUNTRY_INFO!N53*$G53))) -> 0 | I53: =IF(OR(COUNTRY_INFO!O53="Inconnu",COUNTRY_INFO!O53="Surveillance",COUNTRY_INFO!O53="Non requis",COUNTRY_INFO!O53=0),0,IF($E53<>0, IF($F53=0,COUNTRY_INFO!O53*$E53,COUNTRY_INFO!O53*($E53-$D53)),COUNTRY_INFO!O53*$E53)) -> 0 | K53: =IF(OR(COUNTRY_INFO!P53="Inconnu",COUNTRY_INFO!P53="Surveillance",COUNTRY_INFO!P53="Non requis",COUNTRY_INFO!P53=0),0,IF(AND($E53<>0,$J53=""),IF($F53=0,COUNTRY_INFO!P53*$E53,COUNTRY_INFO!P53*($E53-$D53)), IF(AND($E53<>0,$J53<>0),IF($F53=0,COUNTRY_INFO!P53*$J53,COUNTRY_INFO!P53*($J53-$D53)), COUNTRY_INFO!P53*$J53))) -> 0 | L53: 0 | M53: 0 | O53: 0 | P53: 0 | R53: 0 | S53: 0 | U53: 0
A54: =IF(AND(INTRO!$E$37="Non endémique",INTRO!$E$41="Non endémique")," ",IF(COUNTRY_INFO!A54=0," ",COUNTRY_INFO!A54)) -> SENEGAL | B54: =IF(AND(INTRO!$E$37="Non endémique",INTRO!$E$41="Non endémique")," ",IF(COUNTRY_INFO!B54=0," ",COUNTRY_INFO!B54)) -> Louga | C54: =IF(AND(INTRO!$E$37="Non endémique",INTRO!$E$41="Non endémique")," ",IF(COUNTRY_INFO!C54=0," ",COUNTRY_INFO!C54)) -> Sakal | D54: =IF(AND(INTRO!$E$37="Non endémique",INTRO!$E$41="Non endémique"),0,COUNTRY_INFO!V54) -> 0 | E54: =IF(AND(INTRO!$E$37="Non endémique",INTRO!$E$41="Non endémique"),0,COUNTRY_INFO!X54) -> 0 | F54: =IF(INTRO!$E$39="Non endémique",IF($D54=1,DEC!I54,0),IF($D54=1,IVM!G54,0)) -> 0 | H54: =IF(OR(COUNTRY_INFO!N54="Inconnu",COUNTRY_INFO!N54="Surveillance",COUNTRY_INFO!N54="Non requis",COUNTRY_INFO!N54=0),0,IF(INTRO!$E$39="Non endémique",IF(AND($E54<>0,$G54=""),IF($F54=0,COUNTRY_INFO!N54*$E54,COUNTRY_INFO!N54*($E54-$D54)),IF(AND($E54<>0,$G54<>0),IF($F54=0,COUNTRY_INFO!N54*$G54,COUNTRY_INFO!N54*($G54-$D54)),0)),IF($G54="",COUNTRY_INFO!N54*$E54,COUNTRY_INFO!N54*$G54))) -> 0 | I54: =IF(OR(COUNTRY_INFO!O54="Inconnu",COUNTRY_INFO!O54="Surveillance",COUNTRY_INFO!O54="Non requis",COUNTRY_INFO!O54=0),0,IF($E54<>0, IF($F54=0,COUNTRY_INFO!O54*$E54,COUNTRY_INFO!O54*($E54-$D54)),COUNTRY_INFO!O54*$E54)) -> 0 | K54: =IF(OR(COUNTRY_INFO!P54="Inconnu",COUNTRY_INFO!P54="Surveillance",COUNTRY_INFO!P54="Non requis",COUNTRY_INFO!P54=0),0,IF(AND($E54<>0,$J54=""),IF($F54=0,COUNTRY_INFO!P54*$E54,COUNTRY_INFO!P54*($E54-$D54)), IF(AND($E54<>0,$J54<>0),IF($F54=0,COUNTRY_INFO!P54*$J54,COUNTRY_INFO!P54*($J54-$D54)), COUNTRY_INFO!P54*$J54))) -> 0 | L54: 0 | M54: 0 | O54: 0 | P54: 0 | R54: 0 | S54: 0 | U54: 0
A55: =IF(AND(INTRO!$E$37="Non endémique",INTRO!$E$41="Non endémique")," ",IF(COUNTRY_INFO!A55=0," ",COUNTRY_INFO!A55)) -> SENEGAL | B55: =IF(AND(INTRO!$E$37="Non endémique",INTRO!$E$41="Non endémique")," ",IF(COUNTRY_INFO!B55=0," ",COUNTRY_INFO!B55)) -> Louga | C55: =IF(AND(INTRO!$E$37="Non endémique",INTRO!$E$41="Non endémique")," ",IF(COUNTRY_INFO!C55=0," ",COUNTRY_INFO!C55)) -> Louga | D55: =IF(AND(INTRO!$E$37="Non endémique",INTRO!$E$41="Non endémique"),0,COUNTRY_INFO!V55) -> 1 | E55: =IF(AND(INTRO!$E$37="Non endémique",INTRO!$E$41="Non endémique"),0,COUNTRY_INFO!X55) -> 0 | F55: =IF(INTRO!$E$39="Non endémique",IF($D55=1,DEC!I55,0),IF($D55=1,IVM!G55,0)) -> 186314 | H55: =IF(OR(COUNTRY_INFO!N55="Inconnu",COUNTRY_INFO!N55="Surveillance",COUNTRY_INFO!N55="Non requis",COUNTRY_INFO!N55=0),0,IF(INTRO!$E$39="Non endémique",IF(AND($E55<>0,$G55=""),IF($F55=0,COUNTRY_INFO!N55*$E55,COUNTRY_INFO!N55*($E55-$D55)),IF(AND($E55<>0,$G55<>0),IF($F55=0,COUNTRY_INFO!N55*$G55,COUNTRY_INFO!N55*($G55-$D55)),0)),IF($G55="",COUNTRY_INFO!N55*$E55,COUNTRY_INFO!N55*$G55))) -> 0 | I55: =IF(OR(COUNTRY_INFO!O55="Inconnu",COUNTRY_INFO!O55="Surveillance",COUNTRY_INFO!O55="Non requis",COUNTRY_INFO!O55=0),0,IF($E55<>0, IF($F55=0,COUNTRY_INFO!O55*$E55,COUNTRY_INFO!O55*($E55-$D55)),COUNTRY_INFO!O55*$E55)) -> 0 | K55: =IF(OR(COUNTRY_INFO!P55="Inconnu",COUNTRY_INFO!P55="Surveillance",COUNTRY_INFO!P55="Non requis",COUNTRY_INFO!P55=0),0,IF(AND($E55<>0,$J55=""),IF($F55=0,COUNTRY_INFO!P55*$E55,COUNTRY_INFO!P55*($E55-$D55)), IF(AND($E55<>0,$J55<>0),IF($F55=0,COUNTRY_INFO!P55*$J55,COUNTRY_INFO!P55*($J55-$D55)), COUNTRY_INFO!P55*$J55))) -> 0 | L55: 0 | M55: 186314 | O55: 186314 | P55: 0 | R55: 0 | S55: 0 | U55: 0
A56: =IF(AND(INTRO!$E$37="Non endémique",INTRO!$E$41="Non endémique")," ",IF(COUNTRY_INFO!A56=0," ",COUNTRY_INFO!A56)) -> SENEGAL | B56: =IF(AND(INTRO!$E$37="Non endémique",INTRO!$E$41="Non endémique")," ",IF(COUNTRY_INFO!B56=0," ",COUNTRY_INFO!B56)) -> Matam | C56: =IF(AND(INTRO!$E$37="Non endémique",INTRO!$E$41="Non endémique")," ",IF(COUNTRY_INFO!C56=0," ",COUNTRY_INFO!C56)) -> Kanel | D56: =IF(AND(INTRO!$E$37="Non endémique",INTRO!$E$41="Non endémique"),0,COUNTRY_INFO!V56) -> 0 | E56: =IF(AND(INTRO!$E$37="Non endémique",INTRO!$E$41="Non endémique"),0,COUNTRY_INFO!X56) -> 0 | F56: =IF(INTRO!$E$39="Non endémique",IF($D56=1,DEC!I56,0),IF($D56=1,IVM!G56,0)) -> 0 | H56: =IF(OR(COUNTRY_INFO!N56="Inconnu",COUNTRY_INFO!N56="Surveillance",COUNTRY_INFO!N56="Non requis",COUNTRY_INFO!N56=0),0,IF(INTRO!$E$39="Non endémique",IF(AND($E56<>0,$G56=""),IF($F56=0,COUNTRY_INFO!N56*$E56,COUNTRY_INFO!N56*($E56-$D56)),IF(AND($E56<>0,$G56<>0),IF($F56=0,COUNTRY_INFO!N56*$G56,COUNTRY_INFO!N56*($G56-$D56)),0)),IF($G56="",COUNTRY_INFO!N56*$E56,COUNTRY_INFO!N56*$G56))) -> 0 | I56: =IF(OR(COUNTRY_INFO!O56="Inconnu",COUNTRY_INFO!O56="Surveillance",COUNTRY_INFO!O56="Non requis",COUNTRY_INFO!O56=0),0,IF($E56<>0, IF($F56=0,COUNTRY_INFO!O56*$E56,COUNTRY_INFO!O56*($E56-$D56)),COUNTRY_INFO!O56*$E56)) -> 0 | K56: =IF(OR(COUNTRY_INFO!P56="Inconnu",COUNTRY_INFO!P56="Surveillance",COUNTRY_INFO!P56="Non requis",COUNTRY_INFO!P56=0),0,IF(AND($E56<>0,$J56=""),IF($F56=0,COUNTRY_INFO!P56*$E56,COUNTRY_INFO!P56*($E56-$D56)), IF(AND($E56<>0,$J56<>0),IF($F56=0,COUNTRY_INFO!P56*$J56,COUNTRY_INFO!P56*($J56-$D56)), COUNTRY_INFO!P56*$J56))) -> 0 | L56: 0 | M56: 0 | O56: 0 | P56: 0 | R56: 0 | S56: 0 | U56: 0
A57: =IF(AND(INTRO!$E$37="Non endémique",INTRO!$E$41="Non endémique")," ",IF(COUNTRY_INFO!A57=0," ",COUNTRY_INFO!A57)) -> SENEGAL | B57: =IF(AND(INTRO!$E$37="Non endémique",INTRO!$E$41="Non endémique")," ",IF(COUNTRY_INFO!B57=0," ",COUNTRY_INFO!B57)) -> Matam | C57: =IF(AND(INTRO!$E$37="Non endémique",INTRO!$E$41="Non endémique")," ",IF(COUNTRY_INFO!C57=0," ",COUNTRY_INFO!C57)) -> Matam | D57: =IF(AND(INTRO!$E$37="Non endémique",INTRO!$E$41="Non endémique"),0,COUNTRY_INFO!V57) -> 0 | E57: =IF(AND(INTRO!$E$37="Non endémique",INTRO!$E$41="Non endémique"),0,COUNTRY_INFO!X57) -> 0 | F57: =IF(INTRO!$E$39="Non endémique",IF($D57=1,DEC!I57,0),IF($D57=1,IVM!G57,0)) -> 0 | H57: =IF(OR(COUNTRY_INFO!N57="Inconnu",COUNTRY_INFO!N57="Surveillance",COUNTRY_INFO!N57="Non requis",COUNTRY_INFO!N57=0),0,IF(INTRO!$E$39="Non endémique",IF(AND($E57<>0,$G57=""),IF($F57=0,COUNTRY_INFO!N57*$E57,COUNTRY_INFO!N57*($E57-$D57)),IF(AND($E57<>0,$G57<>0),IF($F57=0,COUNTRY_INFO!N57*$G57,COUNTRY_INFO!N57*($G57-$D57)),0)),IF($G57="",COUNTRY_INFO!N57*$E57,COUNTRY_INFO!N57*$G57))) -> 0 | I57: =IF(OR(COUNTRY_INFO!O57="Inconnu",COUNTRY_INFO!O57="Surveillance",COUNTRY_INFO!O57="Non requis",COUNTRY_INFO!O57=0),0,IF($E57<>0, IF($F57=0,COUNTRY_INFO!O57*$E57,COUNTRY_INFO!O57*($E57-$D57)),COUNTRY_INFO!O57*$E57)) -> 0 | K57: =IF(OR(COUNTRY_INFO!P57="Inconnu",COUNTRY_INFO!P57="Surveillance",COUNTRY_INFO!P57="Non requis",COUNTRY_INFO!P57=0),0,IF(AND($E57<>0,$J57=""),IF($F57=0,COUNTRY_INFO!P57*$E57,COUNTRY_INFO!P57*($E57-$D57)), IF(AND($E57<>0,$J57<>0),IF($F57=0,COUNTRY_INFO!P57*$J57,COUNTRY_INFO!P57*($J57-$D57)), COUNTRY_INFO!P57*$J57))) -> 0 | L57: 0 | M57: 0 | O57: 0 | P57: 0 | R57: 0 | S57: 0 | U57: 0
A58: =IF(AND(INTRO!$E$37="Non endémique",INTRO!$E$41="Non endémique")," ",IF(COUNTRY_INFO!A58=0," ",COUNTRY_INFO!A58)) -> SENEGAL | B58: =IF(AND(INTRO!$E$37="Non endémique",INTRO!$E$41="Non endémique")," ",IF(COUNTRY_INFO!B58=0," ",COUNTRY_INFO!B58)) -> Matam | C58: =IF(AND(INTRO!$E$37="Non endémique",INTRO!$E$41="Non endémique")," ",IF(COUNTRY_INFO!C58=0," ",COUNTRY_INFO!C58)) -> Thilogne | D58: =IF(AND(INTRO!$E$37="Non endémique",INTRO!$E$41="Non endémique"),0,COUNTRY_INFO!V58) -> 0 | E58: =IF(AND(INTRO!$E$37="Non endémique",INTRO!$E$41="Non endémique"),0,COUNTRY_INFO!X58) -> 0 | F58: =IF(INTRO!$E$39="Non endémique",IF($D58=1,DEC!I58,0),IF($D58=1,IVM!G58,0)) -> 0 | H58: =IF(OR(COUNTRY_INFO!N58="Inconnu",COUNTRY_INFO!N58="Surveillance",COUNTRY_INFO!N58="Non requis",COUNTRY_INFO!N58=0),0,IF(INTRO!$E$39="Non endémique",IF(AND($E58<>0,$G58=""),IF($F58=0,COUNTRY_INFO!N58*$E58,COUNTRY_INFO!N58*($E58-$D58)),IF(AND($E58<>0,$G58<>0),IF($F58=0,COUNTRY_INFO!N58*$G58,COUNTRY_INFO!N58*($G58-$D58)),0)),IF($G58="",COUNTRY_INFO!N58*$E58,COUNTRY_INFO!N58*$G58))) -> 0 | I58: =IF(OR(COUNTRY_INFO!O58="Inconnu",COUNTRY_INFO!O58="Surveillance",COUNTRY_INFO!O58="Non requis",COUNTRY_INFO!O58=0),0,IF($E58<>0, IF($F58=0,COUNTRY_INFO!O58*$E58,COUNTRY_INFO!O58*($E58-$D58)),COUNTRY_INFO!O58*$E58)) -> 0 | K58: =IF(OR(COUNTRY_INFO!P58="Inconnu",COUNTRY_INFO!P58="Surveillance",COUNTRY_INFO!P58="Non requis",COUNTRY_INFO!P58=0),0,IF(AND($E58<>0,$J58=""),IF($F58=0,COUNTRY_INFO!P58*$E58,COUNTRY_INFO!P58*($E58-$D58)), IF(AND($E58<>0,$J58<>0),IF($F58=0,COUNTRY_INFO!P58*$J58,COUNTRY_INFO!P58*($J58-$D58)), COUNTRY_INFO!P58*$J58))) -> 0 | L58: 0 | M58: 0 | O58: 0 | P58: 0 | R58: 0 | S58: 0 | U58: 0
A59: =IF(AND(INTRO!$E$37="Non endémique",INTRO!$E$41="Non endémique")," ",IF(COUNTRY_INFO!A59=0," ",COUNTRY_INFO!A59)) -> SENEGAL | B59: =IF(AND(INTRO!$E$37="Non endémique",INTRO!$E$41="Non endémique")," ",IF(COUNTRY_INFO!B59=0," ",COUNTRY_INFO!B59)) -> Matam | C59: =IF(AND(INTRO!$E$37="Non endémique",INTRO!$E$41="Non endémique")," ",IF(COUNTRY_INFO!C59=0," ",COUNTRY_INFO!C59)) -> Ranerou | D59: =IF(AND(INTRO!$E$37="Non endémique",INTRO!$E$41="Non endémique"),0,COUNTRY_INFO!V59) -> 0 | E59: =IF(AND(INTRO!$E$37="Non endémique",INTRO!$E$41="Non endémique"),0,COUNTRY_INFO!X59) -> 0 | F59: =IF(INTRO!$E$39="Non endémique",IF($D59=1,DEC!I59,0),IF($D59=1,IVM!G59,0)) -> 0 | H59: =IF(OR(COUNTRY_INFO!N59="Inconnu",COUNTRY_INFO!N59="Surveillance",COUNTRY_INFO!N59="Non requis",COUNTRY_INFO!N59=0),0,IF(INTRO!$E$39="Non endémique",IF(AND($E59<>0,$G59=""),IF($F59=0,COUNTRY_INFO!N59*$E59,COUNTRY_INFO!N59*($E59-$D59)),IF(AND($E59<>0,$G59<>0),IF($F59=0,COUNTRY_INFO!N59*$G59,COUNTRY_INFO!N59*($G59-$D59)),0)),IF($G59="",COUNTRY_INFO!N59*$E59,COUNTRY_INFO!N59*$G59))) -> 0 | I59: =IF(OR(COUNTRY_INFO!O59="Inconnu",COUNTRY_INFO!O59="Surveillance",COUNTRY_INFO!O59="Non requis",COUNTRY_INFO!O59=0),0,IF($E59<>0, IF($F59=0,COUNTRY_INFO!O59*$E59,COUNTRY_INFO!O59*($E59-$D59)),COUNTRY_INFO!O59*$E59)) -> 0 | K59: =IF(OR(COUNTRY_INFO!P59="Inconnu",COUNTRY_INFO!P59="Surveillance",COUNTRY_INFO!P59="Non requis",COUNTRY_INFO!P59=0),0,IF(AND($E59<>0,$J59=""),IF($F59=0,COUNTRY_INFO!P59*$E59,COUNTRY_INFO!P59*($E59-$D59)), IF(AND($E59<>0,$J59<>0),IF($F59=0,COUNTRY_INFO!P59*$J59,COUNTRY_INFO!P59*($J59-$D59)), COUNTRY_INFO!P59*$J59))) -> 0 | L59: 0 | M59: 0 | O59: 0 | P59: 0 | R59: 0 | S59: 0 | U59: 0
A60: =IF(AND(INTRO!$E$37="Non endémique",INTRO!$E$41="Non endémique")," ",IF(COUNTRY_INFO!A60=0," ",COUNTRY_INFO!A60)) -> SENEGAL | B60: =IF(AND(INTRO!$E$37="Non endémique",INTRO!$E$41="Non endémique")," ",IF(COUNTRY_INFO!B60=0," ",COUNTRY_INFO!B60)) -> Saint Louis | C60: =IF(AND(INTRO!$E$37="Non endémique",INTRO!$E$41="Non endémique")," ",IF(COUNTRY_INFO!C60=0," ",COUNTRY_INFO!C60)) -> Dagana | D60: =IF(AND(INTRO!$E$37="Non endémique",INTRO!$E$41="Non endémique"),0,COUNTRY_INFO!V60) -> 0 | E60: =IF(AND(INTRO!$E$37="Non endémique",INTRO!$E$41="Non endémique"),0,COUNTRY_INFO!X60) -> 0 | F60: =IF(INTRO!$E$39="Non endémique",IF($D60=1,DEC!I60,0),IF($D60=1,IVM!G60,0)) -> 0 | H60: =IF(OR(COUNTRY_INFO!N60="Inconnu",COUNTRY_INFO!N60="Surveillance",COUNTRY_INFO!N60="Non requis",COUNTRY_INFO!N60=0),0,IF(INTRO!$E$39="Non endémique",IF(AND($E60<>0,$G60=""),IF($F60=0,COUNTRY_INFO!N60*$E60,COUNTRY_INFO!N60*($E60-$D60)),IF(AND($E60<>0,$G60<>0),IF($F60=0,COUNTRY_INFO!N60*$G60,COUNTRY_INFO!N60*($G60-$D60)),0)),IF($G60="",COUNTRY_INFO!N60*$E60,COUNTRY_INFO!N60*$G60))) -> 0 | I60: =IF(OR(COUNTRY_INFO!O60="Inconnu",COUNTRY_INFO!O60="Surveillance",COUNTRY_INFO!O60="Non requis",COUNTRY_INFO!O60=0),0,IF($E60<>0, IF($F60=0,COUNTRY_INFO!O60*$E60,COUNTRY_INFO!O60*($E60-$D60)),COUNTRY_INFO!O60*$E60)) -> 0 | K60: =IF(OR(COUNTRY_INFO!P60="Inconnu",COUNTRY_INFO!P60="Surveillance",COUNTRY_INFO!P60="Non requis",COUNTRY_INFO!P60=0),0,IF(AND($E60<>0,$J60=""),IF($F60=0,COUNTRY_INFO!P60*$E60,COUNTRY_INFO!P60*($E60-$D60)), IF(AND($E60<>0,$J60<>0),IF($F60=0,COUNTRY_INFO!P60*$J60,COUNTRY_INFO!P60*($J60-$D60)), COUNTRY_INFO!P60*$J60))) -> 0 | L60: 0 | M60: 0 | O60: 0 | P60: 0 | R60: 0 | S60: 0 | U60: 0
A61: =IF(AND(INTRO!$E$37="Non endémique",INTRO!$E$41="Non endémique")," ",IF(COUNTRY_INFO!A61=0," ",COUNTRY_INFO!A61)) -> SENEGAL | B61: =IF(AND(INTRO!$E$37="Non endémique",INTRO!$E$41="Non endémique")," ",IF(COUNTRY_INFO!B61=0," ",COUNTRY_INFO!B61)) -> Saint Louis | C61: =IF(AND(INTRO!$E$37="Non endémique",INTRO!$E$41="Non endémique")," ",IF(COUNTRY_INFO!C61=0," ",COUNTRY_INFO!C61)) -> Richard Toll | D61: =IF(AND(INTRO!$E$37="Non endémique",INTRO!$E$41="Non endémique"),0,COUNTRY_INFO!V61) -> 0 | E61: =IF(AND(INTRO!$E$37="Non endémique",INTRO!$E$41="Non endémique"),0,COUNTRY_INFO!X61) -> 0 | F61: =IF(INTRO!$E$39="Non endémique",IF($D61=1,DEC!I61,0),IF($D61=1,IVM!G61,0)) -> 0 | H61: =IF(OR(COUNTRY_INFO!N61="Inconnu",COUNTRY_INFO!N61="Surveillance",COUNTRY_INFO!N61="Non requis",COUNTRY_INFO!N61=0),0,IF(INTRO!$E$39="Non endémique",IF(AND($E61<>0,$G61=""),IF($F61=0,COUNTRY_INFO!N61*$E61,COUNTRY_INFO!N61*($E61-$D61)),IF(AND($E61<>0,$G61<>0),IF($F61=0,COUNTRY_INFO!N61*$G61,COUNTRY_INFO!N61*($G61-$D61)),0)),IF($G61="",COUNTRY_INFO!N61*$E61,COUNTRY_INFO!N61*$G61))) -> 0 | I61: =IF(OR(COUNTRY_INFO!O61="Inconnu",COUNTRY_INFO!O61="Surveillance",COUNTRY_INFO!O61="Non requis",COUNTRY_INFO!O61=0),0,IF($E61<>0, IF($F61=0,COUNTRY_INFO!O61*$E61,COUNTRY_INFO!O61*($E61-$D61)),COUNTRY_INFO!O61*$E61)) -> 0 | K61: =IF(OR(COUNTRY_INFO!P61="Inconnu",COUNTRY_INFO!P61="Surveillance",COUNTRY_INFO!P61="Non requis",COUNTRY_INFO!P61=0),0,IF(AND($E61<>0,$J61=""),IF($F61=0,COUNTRY_INFO!P61*$E61,COUNTRY_INFO!P61*($E61-$D61)), IF(AND($E61<>0,$J61<>0),IF($F61=0,COUNTRY_INFO!P61*$J61,COUNTRY_INFO!P61*($J61-$D61)), COUNTRY_INFO!P61*$J61))) -> 0 | L61: 0 | M61: 0 | O61: 0 | P61: 0 | R61: 0 | S61: 0 | U61: 0
A62: =IF(AND(INTRO!$E$37="Non endémique",INTRO!$E$41="Non endémique")," ",IF(COUNTRY_INFO!A62=0," ",COUNTRY_INFO!A62)) -> SENEGAL | B62: =IF(AND(INTRO!$E$37="Non endémique",INTRO!$E$41="Non endémique")," ",IF(COUNTRY_INFO!B62=0," ",COUNTRY_INFO!B62)) -> Saint Louis | C62: =IF(AND(INTRO!$E$37="Non endémique",INTRO!$E$41="Non endémique")," ",IF(COUNTRY_INFO!C62=0," ",COUNTRY_INFO!C62)) -> Peté | D62: =IF(AND(INTRO!$E$37="Non endémique",INTRO!$E$41="Non endémique"),0,COUNTRY_INFO!V62) -> 1 | E62: =IF(AND(INTRO!$E$37="Non endémique",INTRO!$E$41="Non endémique"),0,COUNTRY_INFO!X62) -> 0 | F62: =IF(INTRO!$E$39="Non endémique",IF($D62=1,DEC!I62,0),IF($D62=1,IVM!G62,0)) -> 185944 | H62: =IF(OR(COUNTRY_INFO!N62="Inconnu",COUNTRY_INFO!N62="Surveillance",COUNTRY_INFO!N62="Non requis",COUNTRY_INFO!N62=0),0,IF(INTRO!$E$39="Non endémique",IF(AND($E62<>0,$G62=""),IF($F62=0,COUNTRY_INFO!N62*$E62,COUNTRY_INFO!N62*($E62-$D62)),IF(AND($E62<>0,$G62<>0),IF($F62=0,COUNTRY_INFO!N62*$G62,COUNTRY_INFO!N62*($G62-$D62)),0)),IF($G62="",COUNTRY_INFO!N62*$E62,COUNTRY_INFO!N62*$G62))) -> 0 | I62: =IF(OR(COUNTRY_INFO!O62="Inconnu",COUNTRY_INFO!O62="Surveillance",COUNTRY_INFO!O62="Non requis",COUNTRY_INFO!O62=0),0,IF($E62<>0, IF($F62=0,COUNTRY_INFO!O62*$E62,COUNTRY_INFO!O62*($E62-$D62)),COUNTRY_INFO!O62*$E62)) -> 0 | K62: =IF(OR(COUNTRY_INFO!P62="Inconnu",COUNTRY_INFO!P62="Surveillance",COUNTRY_INFO!P62="Non requis",COUNTRY_INFO!P62=0),0,IF(AND($E62<>0,$J62=""),IF($F62=0,COUNTRY_INFO!P62*$E62,COUNTRY_INFO!P62*($E62-$D62)), IF(AND($E62<>0,$J62<>0),IF($F62=0,COUNTRY_INFO!P62*$J62,COUNTRY_INFO!P62*($J62-$D62)), COUNTRY_INFO!P62*$J62))) -> 0 | L62: 0 | M62: 185944 | O62: 185944 | P62: 0 | R62: 0 | S62: 0 | U62: 0
A63: =IF(AND(INTRO!$E$37="Non endémique",INTRO!$E$41="Non endémique")," ",IF(COUNTRY_INFO!A63=0," ",COUNTRY_INFO!A63)) -> SENEGAL | B63: =IF(AND(INTRO!$E$37="Non endémique",INTRO!$E$41="Non endémique")," ",IF(COUNTRY_INFO!B63=0," ",COUNTRY_INFO!B63)) -> Saint Louis | C63: =IF(AND(INTRO!$E$37="Non endémique",INTRO!$E$41="Non endémique")," ",IF(COUNTRY_INFO!C63=0," ",COUNTRY_INFO!C63)) -> Podor | D63: =IF(AND(INTRO!$E$37="Non endémique",INTRO!$E$41="Non endémique"),0,COUNTRY_INFO!V63) -> 0 | E63: =IF(AND(INTRO!$E$37="Non endémique",INTRO!$E$41="Non endémique"),0,COUNTRY_INFO!X63) -> 0 | F63: =IF(INTRO!$E$39="Non endémique",IF($D63=1,DEC!I63,0),IF($D63=1,IVM!G63,0)) -> 0 | H63: =IF(OR(COUNTRY_INFO!N63="Inconnu",COUNTRY_INFO!N63="Surveillance",COUNTRY_INFO!N63="Non requis",COUNTRY_INFO!N63=0),0,IF(INTRO!$E$39="Non endémique",IF(AND($E63<>0,$G63=""),IF($F63=0,COUNTRY_INFO!N63*$E63,COUNTRY_INFO!N63*($E63-$D63)),IF(AND($E63<>0,$G63<>0),IF($F63=0,COUNTRY_INFO!N63*$G63,COUNTRY_INFO!N63*($G63-$D63)),0)),IF($G63="",COUNTRY_INFO!N63*$E63,COUNTRY_INFO!N63*$G63))) -> 0 | I63: =IF(OR(COUNTRY_INFO!O63="Inconnu",COUNTRY_INFO!O63="Surveillance",COUNTRY_INFO!O63="Non requis",COUNTRY_INFO!O63=0),0,IF($E63<>0, IF($F63=0,COUNTRY_INFO!O63*$E63,COUNTRY_INFO!O63*($E63-$D63)),COUNTRY_INFO!O63*$E63)) -> 0 | K63: =IF(OR(COUNTRY_INFO!P63="Inconnu",COUNTRY_INFO!P63="Surveillance",COUNTRY_INFO!P63="Non requis",COUNTRY_INFO!P63=0),0,IF(AND($E63<>0,$J63=""),IF($F63=0,COUNTRY_INFO!P63*$E63,COUNTRY_INFO!P63*($E63-$D63)), IF(AND($E63<>0,$J63<>0),IF($F63=0,COUNTRY_INFO!P63*$J63,COUNTRY_INFO!P63*($J63-$D63)), COUNTRY_INFO!P63*$J63))) -> 0 | L63: 0 | M63: 0 | O63: 0 | P63: 0 | R63: 0 | S63: 0 | U63: 0
A64: =IF(AND(INTRO!$E$37="Non endémique",INTRO!$E$41="Non endémique")," ",IF(COUNTRY_INFO!A64=0," ",COUNTRY_INFO!A64)) -> SENEGAL | B64: =IF(AND(INTRO!$E$37="Non endémique",INTRO!$E$41="Non endémique")," ",IF(COUNTRY_INFO!B64=0," ",COUNTRY_INFO!B64)) -> Saint Louis | C64: =IF(AND(INTRO!$E$37="Non endémique",INTRO!$E$41="Non endémique")," ",IF(COUNTRY_INFO!C64=0," ",COUNTRY_INFO!C64)) -> Saint Louis | D64: =IF(AND(INTRO!$E$37="Non endémique",INTRO!$E$41="Non endémique"),0,COUNTRY_INFO!V64) -> 0 | E64: =IF(AND(INTRO!$E$37="Non endémique",INTRO!$E$41="Non endémique"),0,COUNTRY_INFO!X64) -> 0 | F64: =IF(INTRO!$E$39="Non endémique",IF($D64=1,DEC!I64,0),IF($D64=1,IVM!G64,0)) -> 0 | H64: =IF(OR(COUNTRY_INFO!N64="Inconnu",COUNTRY_INFO!N64="Surveillance",COUNTRY_INFO!N64="Non requis",COUNTRY_INFO!N64=0),0,IF(INTRO!$E$39="Non endémique",IF(AND($E64<>0,$G64=""),IF($F64=0,COUNTRY_INFO!N64*$E64,COUNTRY_INFO!N64*($E64-$D64)),IF(AND($E64<>0,$G64<>0),IF($F64=0,COUNTRY_INFO!N64*$G64,COUNTRY_INFO!N64*($G64-$D64)),0)),IF($G64="",COUNTRY_INFO!N64*$E64,COUNTRY_INFO!N64*$G64))) -> 0 | I64: =IF(OR(COUNTRY_INFO!O64="Inconnu",COUNTRY_INFO!O64="Surveillance",COUNTRY_INFO!O64="Non requis",COUNTRY_INFO!O64=0),0,IF($E64<>0, IF($F64=0,COUNTRY_INFO!O64*$E64,COUNTRY_INFO!O64*($E64-$D64)),COUNTRY_INFO!O64*$E64)) -> 0 | K64: =IF(OR(COUNTRY_INFO!P64="Inconnu",COUNTRY_INFO!P64="Surveillance",COUNTRY_INFO!P64="Non requis",COUNTRY_INFO!P64=0),0,IF(AND($E64<>0,$J64=""),IF($F64=0,COUNTRY_INFO!P64*$E64,COUNTRY_INFO!P64*($E64-$D64)), IF(AND($E64<>0,$J64<>0),IF($F64=0,COUNTRY_INFO!P64*$J64,COUNTRY_INFO!P64*($J64-$D64)), COUNTRY_INFO!P64*$J64))) -> 0 | L64: 0 | M64: 0 | O64: 0 | P64: 0 | R64: 0 | S64: 0 | U64: 0
A65: =IF(AND(INTRO!$E$37="Non endémique",INTRO!$E$41="Non endémique")," ",IF(COUNTRY_INFO!A65=0," ",COUNTRY_INFO!A65)) -> SENEGAL | B65: =IF(AND(INTRO!$E$37="Non endémique",INTRO!$E$41="Non endémique")," ",IF(COUNTRY_INFO!B65=0," ",COUNTRY_INFO!B65)) -> Sédhiou | C65: =IF(AND(INTRO!$E$37="Non endémique",INTRO!$E$41="Non endémique")," ",IF(COUNTRY_INFO!C65=0," ",COUNTRY_INFO!C65)) -> Bounkiling | D65: =IF(AND(INTRO!$E$37="Non endémique",INTRO!$E$41="Non endémique"),0,COUNTRY_INFO!V65) -> 0 | E65: =IF(AND(INTRO!$E$37="Non endémique",INTRO!$E$41="Non endémique"),0,COUNTRY_INFO!X65) -> 0 | F65: =IF(INTRO!$E$39="Non endémique",IF($D65=1,DEC!I65,0),IF($D65=1,IVM!G65,0)) -> 0 | H65: =IF(OR(COUNTRY_INFO!N65="Inconnu",COUNTRY_INFO!N65="Surveillance",COUNTRY_INFO!N65="Non requis",COUNTRY_INFO!N65=0),0,IF(INTRO!$E$39="Non endémique",IF(AND($E65<>0,$G65=""),IF($F65=0,COUNTRY_INFO!N65*$E65,COUNTRY_INFO!N65*($E65-$D65)),IF(AND($E65<>0,$G65<>0),IF($F65=0,COUNTRY_INFO!N65*$G65,COUNTRY_INFO!N65*($G65-$D65)),0)),IF($G65="",COUNTRY_INFO!N65*$E65,COUNTRY_INFO!N65*$G65))) -> 0 | I65: =IF(OR(COUNTRY_INFO!O65="Inconnu",COUNTRY_INFO!O65="Surveillance",COUNTRY_INFO!O65="Non requis",COUNTRY_INFO!O65=0),0,IF($E65<>0, IF($F65=0,COUNTRY_INFO!O65*$E65,COUNTRY_INFO!O65*($E65-$D65)),COUNTRY_INFO!O65*$E65)) -> 0 | K65: =IF(OR(COUNTRY_INFO!P65="Inconnu",COUNTRY_INFO!P65="Surveillance",COUNTRY_INFO!P65="Non requis",COUNTRY_INFO!P65=0),0,IF(AND($E65<>0,$J65=""),IF($F65=0,COUNTRY_INFO!P65*$E65,COUNTRY_INFO!P65*($E65-$D65)), IF(AND($E65<>0,$J65<>0),IF($F65=0,COUNTRY_INFO!P65*$J65,COUNTRY_INFO!P65*($J65-$D65)), COUNTRY_INFO!P65*$J65))) -> 0 | L65: 0 | M65: 0 | O65: 0 | P65: 0 | R65: 0 | S65: 0 | U65: 0
A66: =IF(AND(INTRO!$E$37="Non endémique",INTRO!$E$41="Non endémique")," ",IF(COUNTRY_INFO!A66=0," ",COUNTRY_INFO!A66)) -> SENEGAL | B66: =IF(AND(INTRO!$E$37="Non endémique",INTRO!$E$41="Non endémique")," ",IF(COUNTRY_INFO!B66=0," ",COUNTRY_INFO!B66)) -> Sédhiou | C66: =IF(AND(INTRO!$E$37="Non endémique",INTRO!$E$41="Non endémique")," ",IF(COUNTRY_INFO!C66=0," ",COUNTRY_INFO!C66)) -> Goudomp | D66: =IF(AND(INTRO!$E$37="Non endémique",INTRO!$E$41="Non endémique"),0,COUNTRY_INFO!V66) -> 0 | E66: =IF(AND(INTRO!$E$37="Non endémique",INTRO!$E$41="Non endémique"),0,COUNTRY_INFO!X66) -> 0 | F66: =IF(INTRO!$E$39="Non endémique",IF($D66=1,DEC!I66,0),IF($D66=1,IVM!G66,0)) -> 0 | H66: =IF(OR(COUNTRY_INFO!N66="Inconnu",COUNTRY_INFO!N66="Surveillance",COUNTRY_INFO!N66="Non requis",COUNTRY_INFO!N66=0),0,IF(INTRO!$E$39="Non endémique",IF(AND($E66<>0,$G66=""),IF($F66=0,COUNTRY_INFO!N66*$E66,COUNTRY_INFO!N66*($E66-$D66)),IF(AND($E66<>0,$G66<>0),IF($F66=0,COUNTRY_INFO!N66*$G66,COUNTRY_INFO!N66*($G66-$D66)),0)),IF($G66="",COUNTRY_INFO!N66*$E66,COUNTRY_INFO!N66*$G66))) -> 0 | I66: =IF(OR(COUNTRY_INFO!O66="Inconnu",COUNTRY_INFO!O66="Surveillance",COUNTRY_INFO!O66="Non requis",COUNTRY_INFO!O66=0),0,IF($E66<>0, IF($F66=0,COUNTRY_INFO!O66*$E66,COUNTRY_INFO!O66*($E66-$D66)),COUNTRY_INFO!O66*$E66)) -> 0 | K66: =IF(OR(COUNTRY_INFO!P66="Inconnu",COUNTRY_INFO!P66="Surveillance",COUNTRY_INFO!P66="Non requis",COUNTRY_INFO!P66=0),0,IF(AND($E66<>0,$J66=""),IF($F66=0,COUNTRY_INFO!P66*$E66,COUNTRY_INFO!P66*($E66-$D66)), IF(AND($E66<>0,$J66<>0),IF($F66=0,COUNTRY_INFO!P66*$J66,COUNTRY_INFO!P66*($J66-$D66)), COUNTRY_INFO!P66*$J66))) -> 0 | L66: 0 | M66: 0 | O66: 0 | P66: 0 | R66: 0 | S66: 0 | U66: 0
A67: =IF(AND(INTRO!$E$37="Non endémique",INTRO!$E$41="Non endémique")," ",IF(COUNTRY_INFO!A67=0," ",COUNTRY_INFO!A67)) -> SENEGAL | B67: =IF(AND(INTRO!$E$37="Non endémique",INTRO!$E$41="Non endémique")," ",IF(COUNTRY_INFO!B67=0," ",COUNTRY_INFO!B67)) -> Sédhiou | C67: =IF(AND(INTRO!$E$37="Non endémique",INTRO!$E$41="Non endémique")," ",IF(COUNTRY_INFO!C67=0," ",COUNTRY_INFO!C67)) -> Sedhiou | D67: =IF(AND(INTRO!$E$37="Non endémique",INTRO!$E$41="Non endémique"),0,COUNTRY_INFO!V67) -> 0 | E67: =IF(AND(INTRO!$E$37="Non endémique",INTRO!$E$41="Non endémique"),0,COUNTRY_INFO!X67) -> 0 | F67: =IF(INTRO!$E$39="Non endémique",IF($D67=1,DEC!I67,0),IF($D67=1,IVM!G67,0)) -> 0 | H67: =IF(OR(COUNTRY_INFO!N67="Inconnu",COUNTRY_INFO!N67="Surveillance",COUNTRY_INFO!N67="Non requis",COUNTRY_INFO!N67=0),0,IF(INTRO!$E$39="Non endémique",IF(AND($E67<>0,$G67=""),IF($F67=0,COUNTRY_INFO!N67*$E67,COUNTRY_INFO!N67*($E67-$D67)),IF(AND($E67<>0,$G67<>0),IF($F67=0,COUNTRY_INFO!N67*$G67,COUNTRY_INFO!N67*($G67-$D67)),0)),IF($G67="",COUNTRY_INFO!N67*$E67,COUNTRY_INFO!N67*$G67))) -> 0 | I67: =IF(OR(COUNTRY_INFO!O67="Inconnu",COUNTRY_INFO!O67="Surveillance",COUNTRY_INFO!O67="Non requis",COUNTRY_INFO!O67=0),0,IF($E67<>0, IF($F67=0,COUNTRY_INFO!O67*$E67,COUNTRY_INFO!O67*($E67-$D67)),COUNTRY_INFO!O67*$E67)) -> 0 | K67: =IF(OR(COUNTRY_INFO!P67="Inconnu",COUNTRY_INFO!P67="Surveillance",COUNTRY_INFO!P67="Non requis",COUNTRY_INFO!P67=0),0,IF(AND($E67<>0,$J67=""),IF($F67=0,COUNTRY_INFO!P67*$E67,COUNTRY_INFO!P67*($E67-$D67)), IF(AND($E67<>0,$J67<>0),IF($F67=0,COUNTRY_INFO!P67*$J67,COUNTRY_INFO!P67*($J67-$D67)), COUNTRY_INFO!P67*$J67))) -> 0 | L67: 0 | M67: 0 | O67: 0 | P67: 0 | R67: 0 | S67: 0 | U67: 0
A68: =IF(AND(INTRO!$E$37="Non endémique",INTRO!$E$41="Non endémique")," ",IF(COUNTRY_INFO!A68=0," ",COUNTRY_INFO!A68)) -> SENEGAL | B68: =IF(AND(INTRO!$E$37="Non endémique",INTRO!$E$41="Non endémique")," ",IF(COUNTRY_INFO!B68=0," ",COUNTRY_INFO!B68)) -> Tambacounda | C68: =IF(AND(INTRO!$E$37="Non endémique",INTRO!$E$41="Non endémique")," ",IF(COUNTRY_INFO!C68=0," ",COUNTRY_INFO!C68)) -> Bakel | D68: =IF(AND(INTRO!$E$37="Non endémique",INTRO!$E$41="Non endémique"),0,COUNTRY_INFO!V68) -> 0 | E68: =IF(AND(INTRO!$E$37="Non endémique",INTRO!$E$41="Non endémique"),0,COUNTRY_INFO!X68) -> 0 | F68: =IF(INTRO!$E$39="Non endémique",IF($D68=1,DEC!I68,0),IF($D68=1,IVM!G68,0)) -> 0 | H68: =IF(OR(COUNTRY_INFO!N68="Inconnu",COUNTRY_INFO!N68="Surveillance",COUNTRY_INFO!N68="Non requis",COUNTRY_INFO!N68=0),0,IF(INTRO!$E$39="Non endémique",IF(AND($E68<>0,$G68=""),IF($F68=0,COUNTRY_INFO!N68*$E68,COUNTRY_INFO!N68*($E68-$D68)),IF(AND($E68<>0,$G68<>0),IF($F68=0,COUNTRY_INFO!N68*$G68,COUNTRY_INFO!N68*($G68-$D68)),0)),IF($G68="",COUNTRY_INFO!N68*$E68,COUNTRY_INFO!N68*$G68))) -> 0 | I68: =IF(OR(COUNTRY_INFO!O68="Inconnu",COUNTRY_INFO!O68="Surveillance",COUNTRY_INFO!O68="Non requis",COUNTRY_INFO!O68=0),0,IF($E68<>0, IF($F68=0,COUNTRY_INFO!O68*$E68,COUNTRY_INFO!O68*($E68-$D68)),COUNTRY_INFO!O68*$E68)) -> 0 | K68: =IF(OR(COUNTRY_INFO!P68="Inconnu",COUNTRY_INFO!P68="Surveillance",COUNTRY_INFO!P68="Non requis",COUNTRY_INFO!P68=0),0,IF(AND($E68<>0,$J68=""),IF($F68=0,COUNTRY_INFO!P68*$E68,COUNTRY_INFO!P68*($E68-$D68)), IF(AND($E68<>0,$J68<>0),IF($F68=0,COUNTRY_INFO!P68*$J68,COUNTRY_INFO!P68*($J68-$D68)), COUNTRY_INFO!P68*$J68))) -> 0 | L68: 0 | M68: 0 | O68: 0 | P68: 0 | R68: 0 | S68: 0 | U68: 0
A69: =IF(AND(INTRO!$E$37="Non endémique",INTRO!$E$41="Non endémique")," ",IF(COUNTRY_INFO!A69=0," ",COUNTRY_INFO!A69)) -> SENEGAL | B69: =IF(AND(INTRO!$E$37="Non endémique",INTRO!$E$41="Non endémique")," ",IF(COUNTRY_INFO!B69=0," ",COUNTRY_INFO!B69)) -> Tambacounda | C69: =IF(AND(INTRO!$E$37="Non endémique",INTRO!$E$41="Non endémique")," ",IF(COUNTRY_INFO!C69=0," ",COUNTRY_INFO!C69)) -> Kidira | D69: =IF(AND(INTRO!$E$37="Non endémique",INTRO!$E$41="Non endémique"),0,COUNTRY_INFO!V69) -> 0 | E69: =IF(AND(INTRO!$E$37="Non endémique",INTRO!$E$41="Non endémique"),0,COUNTRY_INFO!X69) -> 0 | F69: =IF(INTRO!$E$39="Non endémique",IF($D69=1,DEC!I69,0),IF($D69=1,IVM!G69,0)) -> 0 | H69: =IF(OR(COUNTRY_INFO!N69="Inconnu",COUNTRY_INFO!N69="Surveillance",COUNTRY_INFO!N69="Non requis",COUNTRY_INFO!N69=0),0,IF(INTRO!$E$39="Non endémique",IF(AND($E69<>0,$G69=""),IF($F69=0,COUNTRY_INFO!N69*$E69,COUNTRY_INFO!N69*($E69-$D69)),IF(AND($E69<>0,$G69<>0),IF($F69=0,COUNTRY_INFO!N69*$G69,COUNTRY_INFO!N69*($G69-$D69)),0)),IF($G69="",COUNTRY_INFO!N69*$E69,COUNTRY_INFO!N69*$G69))) -> 0 | I69: =IF(OR(COUNTRY_INFO!O69="Inconnu",COUNTRY_INFO!O69="Surveillance",COUNTRY_INFO!O69="Non requis",COUNTRY_INFO!O69=0),0,IF($E69<>0, IF($F69=0,COUNTRY_INFO!O69*$E69,COUNTRY_INFO!O69*($E69-$D69)),COUNTRY_INFO!O69*$E69)) -> 0 | K69: =IF(OR(COUNTRY_INFO!P69="Inconnu",COUNTRY_INFO!P69="Surveillance",COUNTRY_INFO!P69="Non requis",COUNTRY_INFO!P69=0),0,IF(AND($E69<>0,$J69=""),IF($F69=0,COUNTRY_INFO!P69*$E69,COUNTRY_INFO!P69*($E69-$D69)), IF(AND($E69<>0,$J69<>0),IF($F69=0,COUNTRY_INFO!P69*$J69,COUNTRY_INFO!P69*($J69-$D69)), COUNTRY_INFO!P69*$J69))) -> 0 | L69: 0 | M69: 0 | O69: 0 | P69: 0 | R69: 0 | S69: 0 | U69: 0
A70: =IF(AND(INTRO!$E$37="Non endémique",INTRO!$E$41="Non endémique")," ",IF(COUNTRY_INFO!A70=0," ",COUNTRY_INFO!A70)) -> SENEGAL | B70: =IF(AND(INTRO!$E$37="Non endémique",INTRO!$E$41="Non endémique")," ",IF(COUNTRY_INFO!B70=0," ",COUNTRY_INFO!B70)) -> Tambacounda | C70: =IF(AND(INTRO!$E$37="Non endémique",INTRO!$E$41="Non endémique")," ",IF(COUNTRY_INFO!C70=0," ",COUNTRY_INFO!C70)) -> Goudiry | D70: =IF(AND(INTRO!$E$37="Non endémique",INTRO!$E$41="Non endémique"),0,COUNTRY_INFO!V70) -> 0 | E70: =IF(AND(INTRO!$E$37="Non endémique",INTRO!$E$41="Non endémique"),0,COUNTRY_INFO!X70) -> 0 | F70: =IF(INTRO!$E$39="Non endémique",IF($D70=1,DEC!I70,0),IF($D70=1,IVM!G70,0)) -> 0 | H70: =IF(OR(COUNTRY_INFO!N70="Inconnu",COUNTRY_INFO!N70="Surveillance",COUNTRY_INFO!N70="Non requis",COUNTRY_INFO!N70=0),0,IF(INTRO!$E$39="Non endémique",IF(AND($E70<>0,$G70=""),IF($F70=0,COUNTRY_INFO!N70*$E70,COUNTRY_INFO!N70*($E70-$D70)),IF(AND($E70<>0,$G70<>0),IF($F70=0,COUNTRY_INFO!N70*$G70,COUNTRY_INFO!N70*($G70-$D70)),0)),IF($G70="",COUNTRY_INFO!N70*$E70,COUNTRY_INFO!N70*$G70))) -> 0 | I70: =IF(OR(COUNTRY_INFO!O70="Inconnu",COUNTRY_INFO!O70="Surveillance",COUNTRY_INFO!O70="Non requis",COUNTRY_INFO!O70=0),0,IF($E70<>0, IF($F70=0,COUNTRY_INFO!O70*$E70,COUNTRY_INFO!O70*($E70-$D70)),COUNTRY_INFO!O70*$E70)) -> 0 | K70: =IF(OR(COUNTRY_INFO!P70="Inconnu",COUNTRY_INFO!P70="Surveillance",COUNTRY_INFO!P70="Non requis",COUNTRY_INFO!P70=0),0,IF(AND($E70<>0,$J70=""),IF($F70=0,COUNTRY_INFO!P70*$E70,COUNTRY_INFO!P70*($E70-$D70)), IF(AND($E70<>0,$J70<>0),IF($F70=0,COUNTRY_INFO!P70*$J70,COUNTRY_INFO!P70*($J70-$D70)), COUNTRY_INFO!P70*$J70))) -> 0 | L70: 0 | M70: 0 | O70: 0 | P70: 0 | R70: 0 | S70: 0 | U70: 0
A71: =IF(AND(INTRO!$E$37="Non endémique",INTRO!$E$41="Non endémique")," ",IF(COUNTRY_INFO!A71=0," ",COUNTRY_INFO!A71)) -> SENEGAL | B71: =IF(AND(INTRO!$E$37="Non endémique",INTRO!$E$41="Non endémique")," ",IF(COUNTRY_INFO!B71=0," ",COUNTRY_INFO!B71)) -> Tambacounda | C71: =IF(AND(INTRO!$E$37="Non endémique",INTRO!$E$41="Non endémique")," ",IF(COUNTRY_INFO!C71=0," ",COUNTRY_INFO!C71)) -> Dianke Makha | D71: =IF(AND(INTRO!$E$37="Non endémique",INTRO!$E$41="Non endémique"),0,COUNTRY_INFO!V71) -> 0 | E71: =IF(AND(INTRO!$E$37="Non endémique",INTRO!$E$41="Non endémique"),0,COUNTRY_INFO!X71) -> 0 | F71: =IF(INTRO!$E$39="Non endémique",IF($D71=1,DEC!I71,0),IF($D71=1,IVM!G71,0)) -> 0 | H71: =IF(OR(COUNTRY_INFO!N71="Inconnu",COUNTRY_INFO!N71="Surveillance",COUNTRY_INFO!N71="Non requis",COUNTRY_INFO!N71=0),0,IF(INTRO!$E$39="Non endémique",IF(AND($E71<>0,$G71=""),IF($F71=0,COUNTRY_INFO!N71*$E71,COUNTRY_INFO!N71*($E71-$D71)),IF(AND($E71<>0,$G71<>0),IF($F71=0,COUNTRY_INFO!N71*$G71,COUNTRY_INFO!N71*($G71-$D71)),0)),IF($G71="",COUNTRY_INFO!N71*$E71,COUNTRY_INFO!N71*$G71))) -> 0 | I71: =IF(OR(COUNTRY_INFO!O71="Inconnu",COUNTRY_INFO!O71="Surveillance",COUNTRY_INFO!O71="Non requis",COUNTRY_INFO!O71=0),0,IF($E71<>0, IF($F71=0,COUNTRY_INFO!O71*$E71,COUNTRY_INFO!O71*($E71-$D71)),COUNTRY_INFO!O71*$E71)) -> 0 | K71: =IF(OR(COUNTRY_INFO!P71="Inconnu",COUNTRY_INFO!P71="Surveillance",COUNTRY_INFO!P71="Non requis",COUNTRY_INFO!P71=0),0,IF(AND($E71<>0,$J71=""),IF($F71=0,COUNTRY_INFO!P71*$E71,COUNTRY_INFO!P71*($E71-$D71)), IF(AND($E71<>0,$J71<>0),IF($F71=0,COUNTRY_INFO!P71*$J71,COUNTRY_INFO!P71*($J71-$D71)), COUNTRY_INFO!P71*$J71))) -> 0 | L71: 0 | M71: 0 | O71: 0 | P71: 0 | R71: 0 | S71: 0 | U71: 0
A72: =IF(AND(INTRO!$E$37="Non endémique",INTRO!$E$41="Non endémique")," ",IF(COUNTRY_INFO!A72=0," ",COUNTRY_INFO!A72)) -> SENEGAL | B72: =IF(AND(INTRO!$E$37="Non endémique",INTRO!$E$41="Non endémique")," ",IF(COUNTRY_INFO!B72=0," ",COUNTRY_INFO!B72)) -> Tambacounda | C72: =IF(AND(INTRO!$E$37="Non endémique",INTRO!$E$41="Non endémique")," ",IF(COUNTRY_INFO!C72=0," ",COUNTRY_INFO!C72)) -> Koumpentoum | D72: =IF(AND(INTRO!$E$37="Non endémique",INTRO!$E$41="Non endémique"),0,COUNTRY_INFO!V72) -> 0 | E72: =IF(AND(INTRO!$E$37="Non endémique",INTRO!$E$41="Non endémique"),0,COUNTRY_INFO!X72) -> 0 | F72: =IF(INTRO!$E$39="Non endémique",IF($D72=1,DEC!I72,0),IF($D72=1,IVM!G72,0)) -> 0 | H72: =IF(OR(COUNTRY_INFO!N72="Inconnu",COUNTRY_INFO!N72="Surveillance",COUNTRY_INFO!N72="Non requis",COUNTRY_INFO!N72=0),0,IF(INTRO!$E$39="Non endémique",IF(AND($E72<>0,$G72=""),IF($F72=0,COUNTRY_INFO!N72*$E72,COUNTRY_INFO!N72*($E72-$D72)),IF(AND($E72<>0,$G72<>0),IF($F72=0,COUNTRY_INFO!N72*$G72,COUNTRY_INFO!N72*($G72-$D72)),0)),IF($G72="",COUNTRY_INFO!N72*$E72,COUNTRY_INFO!N72*$G72))) -> 0 | I72: =IF(OR(COUNTRY_INFO!O72="Inconnu",COUNTRY_INFO!O72="Surveillance",COUNTRY_INFO!O72="Non requis",COUNTRY_INFO!O72=0),0,IF($E72<>0, IF($F72=0,COUNTRY_INFO!O72*$E72,COUNTRY_INFO!O72*($E72-$D72)),COUNTRY_INFO!O72*$E72)) -> 0 | K72: =IF(OR(COUNTRY_INFO!P72="Inconnu",COUNTRY_INFO!P72="Surveillance",COUNTRY_INFO!P72="Non requis",COUNTRY_INFO!P72=0),0,IF(AND($E72<>0,$J72=""),IF($F72=0,COUNTRY_INFO!P72*$E72,COUNTRY_INFO!P72*($E72-$D72)), IF(AND($E72<>0,$J72<>0),IF($F72=0,COUNTRY_INFO!P72*$J72,COUNTRY_INFO!P72*($J72-$D72)), COUNTRY_INFO!P72*$J72))) -> 0 | L72: 0 | M72: 0 | O72: 0 | P72: 0 | R72: 0 | S72: 0 | U72: 0
A73: =IF(AND(INTRO!$E$37="Non endémique",INTRO!$E$41="Non endémique")," ",IF(COUNTRY_INFO!A73=0," ",COUNTRY_INFO!A73)) -> SENEGAL | B73: =IF(AND(INTRO!$E$37="Non endémique",INTRO!$E$41="Non endémique")," ",IF(COUNTRY_INFO!B73=0," ",COUNTRY_INFO!B73)) -> Tambacounda | C73: =IF(AND(INTRO!$E$37="Non endémique",INTRO!$E$41="Non endémique")," ",IF(COUNTRY_INFO!C73=0," ",COUNTRY_INFO!C73)) -> Tambacounda | D73: =IF(AND(INTRO!$E$37="Non endémique",INTRO!$E$41="Non endémique"),0,COUNTRY_INFO!V73) -> 0 | E73: =IF(AND(INTRO!$E$37="Non endémique",INTRO!$E$41="Non endémique"),0,COUNTRY_INFO!X73) -> 0 | F73: =IF(INTRO!$E$39="Non endémique",IF($D73=1,DEC!I73,0),IF($D73=1,IVM!G73,0)) -> 0 | H73: =IF(OR(COUNTRY_INFO!N73="Inconnu",COUNTRY_INFO!N73="Surveillance",COUNTRY_INFO!N73="Non requis",COUNTRY_INFO!N73=0),0,IF(INTRO!$E$39="Non endémique",IF(AND($E73<>0,$G73=""),IF($F73=0,COUNTRY_INFO!N73*$E73,COUNTRY_INFO!N73*($E73-$D73)),IF(AND($E73<>0,$G73<>0),IF($F73=0,COUNTRY_INFO!N73*$G73,COUNTRY_INFO!N73*($G73-$D73)),0)),IF($G73="",COUNTRY_INFO!N73*$E73,COUNTRY_INFO!N73*$G73))) -> 0 | I73: =IF(OR(COUNTRY_INFO!O73="Inconnu",COUNTRY_INFO!O73="Surveillance",COUNTRY_INFO!O73="Non requis",COUNTRY_INFO!O73=0),0,IF($E73<>0, IF($F73=0,COUNTRY_INFO!O73*$E73,COUNTRY_INFO!O73*($E73-$D73)),COUNTRY_INFO!O73*$E73)) -> 0 | K73: =IF(OR(COUNTRY_INFO!P73="Inconnu",COUNTRY_INFO!P73="Surveillance",COUNTRY_INFO!P73="Non requis",COUNTRY_INFO!P73=0),0,IF(AND($E73<>0,$J73=""),IF($F73=0,COUNTRY_INFO!P73*$E73,COUNTRY_INFO!P73*($E73-$D73)), IF(AND($E73<>0,$J73<>0),IF($F73=0,COUNTRY_INFO!P73*$J73,COUNTRY_INFO!P73*($J73-$D73)), COUNTRY_INFO!P73*$J73))) -> 0 | L73: 0 | M73: 0 | O73: 0 | P73: 0 | R73: 0 | S73: 0 | U73: 0
A74: =IF(AND(INTRO!$E$37="Non endémique",INTRO!$E$41="Non endémique")," ",IF(COUNTRY_INFO!A74=0," ",COUNTRY_INFO!A74)) -> SENEGAL | B74: =IF(AND(INTRO!$E$37="Non endémique",INTRO!$E$41="Non endémique")," ",IF(COUNTRY_INFO!B74=0," ",COUNTRY_INFO!B74)) -> Tambacounda | C74: =IF(AND(INTRO!$E$37="Non endémique",INTRO!$E$41="Non endémique")," ",IF(COUNTRY_INFO!C74=0," ",COUNTRY_INFO!C74)) -> Maka Colibantang | D74: =IF(AND(INTRO!$E$37="Non endémique",INTRO!$E$41="Non endémique"),0,COUNTRY_INFO!V74) -> 0 | E74: =IF(AND(INTRO!$E$37="Non endémique",INTRO!$E$41="Non endémique"),0,COUNTRY_INFO!X74) -> 0 | F74: =IF(INTRO!$E$39="Non endémique",IF($D74=1,DEC!I74,0),IF($D74=1,IVM!G74,0)) -> 0 | H74: =IF(OR(COUNTRY_INFO!N74="Inconnu",COUNTRY_INFO!N74="Surveillance",COUNTRY_INFO!N74="Non requis",COUNTRY_INFO!N74=0),0,IF(INTRO!$E$39="Non endémique",IF(AND($E74<>0,$G74=""),IF($F74=0,COUNTRY_INFO!N74*$E74,COUNTRY_INFO!N74*($E74-$D74)),IF(AND($E74<>0,$G74<>0),IF($F74=0,COUNTRY_INFO!N74*$G74,COUNTRY_INFO!N74*($G74-$D74)),0)),IF($G74="",COUNTRY_INFO!N74*$E74,COUNTRY_INFO!N74*$G74))) -> 0 | I74: =IF(OR(COUNTRY_INFO!O74="Inconnu",COUNTRY_INFO!O74="Surveillance",COUNTRY_INFO!O74="Non requis",COUNTRY_INFO!O74=0),0,IF($E74<>0, IF($F74=0,COUNTRY_INFO!O74*$E74,COUNTRY_INFO!O74*($E74-$D74)),COUNTRY_INFO!O74*$E74)) -> 0 | K74: =IF(OR(COUNTRY_INFO!P74="Inconnu",COUNTRY_INFO!P74="Surveillance",COUNTRY_INFO!P74="Non requis",COUNTRY_INFO!P74=0),0,IF(AND($E74<>0,$J74=""),IF($F74=0,COUNTRY_INFO!P74*$E74,COUNTRY_INFO!P74*($E74-$D74)), IF(AND($E74<>0,$J74<>0),IF($F74=0,COUNTRY_INFO!P74*$J74,COUNTRY_INFO!P74*($J74-$D74)), COUNTRY_INFO!P74*$J74))) -> 0 | L74: 0 | M74: 0 | O74: 0 | P74: 0 | R74: 0 | S74: 0 | U74: 0
A75: =IF(AND(INTRO!$E$37="Non endémique",INTRO!$E$41="Non endémique")," ",IF(COUNTRY_INFO!A75=0," ",COUNTRY_INFO!A75)) -> SENEGAL | B75: =IF(AND(INTRO!$E$37="Non endémique",INTRO!$E$41="Non endémique")," ",IF(COUNTRY_INFO!B75=0," ",COUNTRY_INFO!B75)) -> Thiès | C75: =IF(AND(INTRO!$E$37="Non endémique",INTRO!$E$41="Non endémique")," ",IF(COUNTRY_INFO!C75=0," ",COUNTRY_INFO!C75)) -> Joal-Fadhiouth | D75: =IF(AND(INTRO!$E$37="Non endémique",INTRO!$E$41="Non endémique"),0,COUNTRY_INFO!V75) -> 0 | E75: =IF(AND(INTRO!$E$37="Non endémique",INTRO!$E$41="Non endémique"),0,COUNTRY_INFO!X75) -> 0 | F75: =IF(INTRO!$E$39="Non endémique",IF($D75=1,DEC!I75,0),IF($D75=1,IVM!G75,0)) -> 0 | H75: =IF(OR(COUNTRY_INFO!N75="Inconnu",COUNTRY_INFO!N75="Surveillance",COUNTRY_INFO!N75="Non requis",COUNTRY_INFO!N75=0),0,IF(INTRO!$E$39="Non endémique",IF(AND($E75<>0,$G75=""),IF($F75=0,COUNTRY_INFO!N75*$E75,COUNTRY_INFO!N75*($E75-$D75)),IF(AND($E75<>0,$G75<>0),IF($F75=0,COUNTRY_INFO!N75*$G75,COUNTRY_INFO!N75*($G75-$D75)),0)),IF($G75="",COUNTRY_INFO!N75*$E75,COUNTRY_INFO!N75*$G75))) -> 0 | I75: =IF(OR(COUNTRY_INFO!O75="Inconnu",COUNTRY_INFO!O75="Surveillance",COUNTRY_INFO!O75="Non requis",COUNTRY_INFO!O75=0),0,IF($E75<>0, IF($F75=0,COUNTRY_INFO!O75*$E75,COUNTRY_INFO!O75*($E75-$D75)),COUNTRY_INFO!O75*$E75)) -> 0 | K75: =IF(OR(COUNTRY_INFO!P75="Inconnu",COUNTRY_INFO!P75="Surveillance",COUNTRY_INFO!P75="Non requis",COUNTRY_INFO!P75=0),0,IF(AND($E75<>0,$J75=""),IF($F75=0,COUNTRY_INFO!P75*$E75,COUNTRY_INFO!P75*($E75-$D75)), IF(AND($E75<>0,$J75<>0),IF($F75=0,COUNTRY_INFO!P75*$J75,COUNTRY_INFO!P75*($J75-$D75)), COUNTRY_INFO!P75*$J75))) -> 0 | L75: 0 | M75: 0 | O75: 0 | P75: 0 | R75: 0 | S75: 0 | U75: 0
A76: =IF(AND(INTRO!$E$37="Non endémique",INTRO!$E$41="Non endémique")," ",IF(COUNTRY_INFO!A76=0," ",COUNTRY_INFO!A76)) -> SENEGAL | B76: =IF(AND(INTRO!$E$37="Non endémique",INTRO!$E$41="Non endémique")," ",IF(COUNTRY_INFO!B76=0," ",COUNTRY_INFO!B76)) -> Thiès | C76: =IF(AND(INTRO!$E$37="Non endémique",INTRO!$E$41="Non endémique")," ",IF(COUNTRY_INFO!C76=0," ",COUNTRY_INFO!C76)) -> Mbour | D76: =IF(AND(INTRO!$E$37="Non endémique",INTRO!$E$41="Non endémique"),0,COUNTRY_INFO!V76) -> 0 | E76: =IF(AND(INTRO!$E$37="Non endémique",INTRO!$E$41="Non endémique"),0,COUNTRY_INFO!X76) -> 1 | F76: =IF(INTRO!$E$39="Non endémique",IF($D76=1,DEC!I76,0),IF($D76=1,IVM!G76,0)) -> 0 | H76: =IF(OR(COUNTRY_INFO!N76="Inconnu",COUNTRY_INFO!N76="Surveillance",COUNTRY_INFO!N76="Non requis",COUNTRY_INFO!N76=0),0,IF(INTRO!$E$39="Non endémique",IF(AND($E76<>0,$G76=""),IF($F76=0,COUNTRY_INFO!N76*$E76,COUNTRY_INFO!N76*($E76-$D76)),IF(AND($E76<>0,$G76<>0),IF($F76=0,COUNTRY_INFO!N76*$G76,COUNTRY_INFO!N76*($G76-$D76)),0)),IF($G76="",COUNTRY_INFO!N76*$E76,COUNTRY_INFO!N76*$G76))) -> 58872 | I76: =IF(OR(COUNTRY_INFO!O76="Inconnu",COUNTRY_INFO!O76="Surveillance",COUNTRY_INFO!O76="Non requis",COUNTRY_INFO!O76=0),0,IF($E76<>0, IF($F76=0,COUNTRY_INFO!O76*$E76,COUNTRY_INFO!O76*($E76-$D76)),COUNTRY_INFO!O76*$E76)) -> 129402 | K76: =IF(OR(COUNTRY_INFO!P76="Inconnu",COUNTRY_INFO!P76="Surveillance",COUNTRY_INFO!P76="Non requis",COUNTRY_INFO!P76=0),0,IF(AND($E76<>0,$J76=""),IF($F76=0,COUNTRY_INFO!P76*$E76,COUNTRY_INFO!P76*($E76-$D76)), IF(AND($E76<>0,$J76<>0),IF($F76=0,COUNTRY_INFO!P76*$J76,COUNTRY_INFO!P76*($J76-$D76)), COUNTRY_INFO!P76*$J76))) -> 119940 | L76: 308214 | M76: 0 | O76: 0 | P76: 129402 | R76: 129402 | S76: 0 | U76: 0
A77: =IF(AND(INTRO!$E$37="Non endémique",INTRO!$E$41="Non endémique")," ",IF(COUNTRY_INFO!A77=0," ",COUNTRY_INFO!A77)) -> SENEGAL | B77: =IF(AND(INTRO!$E$37="Non endémique",INTRO!$E$41="Non endémique")," ",IF(COUNTRY_INFO!B77=0," ",COUNTRY_INFO!B77)) -> Thiès | C77: =IF(AND(INTRO!$E$37="Non endémique",INTRO!$E$41="Non endémique")," ",IF(COUNTRY_INFO!C77=0," ",COUNTRY_INFO!C77)) -> Popenguine | D77: =IF(AND(INTRO!$E$37="Non endémique",INTRO!$E$41="Non endémique"),0,COUNTRY_INFO!V77) -> 0 | E77: =IF(AND(INTRO!$E$37="Non endémique",INTRO!$E$41="Non endémique"),0,COUNTRY_INFO!X77) -> 0 | F77: =IF(INTRO!$E$39="Non endémique",IF($D77=1,DEC!I77,0),IF($D77=1,IVM!G77,0)) -> 0 | H77: =IF(OR(COUNTRY_INFO!N77="Inconnu",COUNTRY_INFO!N77="Surveillance",COUNTRY_INFO!N77="Non requis",COUNTRY_INFO!N77=0),0,IF(INTRO!$E$39="Non endémique",IF(AND($E77<>0,$G77=""),IF($F77=0,COUNTRY_INFO!N77*$E77,COUNTRY_INFO!N77*($E77-$D77)),IF(AND($E77<>0,$G77<>0),IF($F77=0,COUNTRY_INFO!N77*$G77,COUNTRY_INFO!N77*($G77-$D77)),0)),IF($G77="",COUNTRY_INFO!N77*$E77,COUNTRY_INFO!N77*$G77))) -> 0 | I77: =IF(OR(COUNTRY_INFO!O77="Inconnu",COUNTRY_INFO!O77="Surveillance",COUNTRY_INFO!O77="Non requis",COUNTRY_INFO!O77=0),0,IF($E77<>0, IF($F77=0,COUNTRY_INFO!O77*$E77,COUNTRY_INFO!O77*($E77-$D77)),COUNTRY_INFO!O77*$E77)) -> 0 | K77: =IF(OR(COUNTRY_INFO!P77="Inconnu",COUNTRY_INFO!P77="Surveillance",COUNTRY_INFO!P77="Non requis",COUNTRY_INFO!P77=0),0,IF(AND($E77<>0,$J77=""),IF($F77=0,COUNTRY_INFO!P77*$E77,COUNTRY_INFO!P77*($E77-$D77)), IF(AND($E77<>0,$J77<>0),IF($F77=0,COUNTRY_INFO!P77*$J77,COUNTRY_INFO!P77*($J77-$D77)), COUNTRY_INFO!P77*$J77))) -> 0 | L77: 0 | M77: 0 | O77: 0 | P77: 0 | R77: 0 | S77: 0 | U77: 0
A78: =IF(AND(INTRO!$E$37="Non endémique",INTRO!$E$41="Non endémique")," ",IF(COUNTRY_INFO!A78=0," ",COUNTRY_INFO!A78)) -> SENEGAL | B78: =IF(AND(INTRO!$E$37="Non endémique",INTRO!$E$41="Non endémique")," ",IF(COUNTRY_INFO!B78=0," ",COUNTRY_INFO!B78)) -> Thiès | C78: =IF(AND(INTRO!$E$37="Non endémique",INTRO!$E$41="Non endémique")," ",IF(COUNTRY_INFO!C78=0," ",COUNTRY_INFO!C78)) -> Thiadiaye | D78: =IF(AND(INTRO!$E$37="Non endémique",INTRO!$E$41="Non endémique"),0,COUNTRY_INFO!V78) -> 0 | E78: =IF(AND(INTRO!$E$37="Non endémique",INTRO!$E$41="Non endémique"),0,COUNTRY_INFO!X78) -> 1 | F78: =IF(INTRO!$E$39="Non endémique",IF($D78=1,DEC!I78,0),IF($D78=1,IVM!G78,0)) -> 0 | H78: =IF(OR(COUNTRY_INFO!N78="Inconnu",COUNTRY_INFO!N78="Surveillance",COUNTRY_INFO!N78="Non requis",COUNTRY_INFO!N78=0),0,IF(INTRO!$E$39="Non endémique",IF(AND($E78<>0,$G78=""),IF($F78=0,COUNTRY_INFO!N78*$E78,COUNTRY_INFO!N78*($E78-$D78)),IF(AND($E78<>0,$G78<>0),IF($F78=0,COUNTRY_INFO!N78*$G78,COUNTRY_INFO!N78*($G78-$D78)),0)),IF($G78="",COUNTRY_INFO!N78*$E78,COUNTRY_INFO!N78*$G78))) -> 24835 | I78: =IF(OR(COUNTRY_INFO!O78="Inconnu",COUNTRY_INFO!O78="Surveillance",COUNTRY_INFO!O78="Non requis",COUNTRY_INFO!O78=0),0,IF($E78<>0, IF($F78=0,COUNTRY_INFO!O78*$E78,COUNTRY_INFO!O78*($E78-$D78)),COUNTRY_INFO!O78*$E78)) -> 54588 | K78: =IF(OR(COUNTRY_INFO!P78="Inconnu",COUNTRY_INFO!P78="Surveillance",COUNTRY_INFO!P78="Non requis",COUNTRY_INFO!P78=0),0,IF(AND($E78<>0,$J78=""),IF($F78=0,COUNTRY_INFO!P78*$E78,COUNTRY_INFO!P78*($E78-$D78)), IF(AND($E78<>0,$J78<>0),IF($F78=0,COUNTRY_INFO!P78*$J78,COUNTRY_INFO!P78*($J78-$D78)), COUNTRY_INFO!P78*$J78))) -> 50596 | L78: 130019 | M78: 0 | O78: 0 | P78: 54588 | R78: 54588 | S78: 0 | U78: 0
A79: =IF(AND(INTRO!$E$37="Non endémique",INTRO!$E$41="Non endémique")," ",IF(COUNTRY_INFO!A79=0," ",COUNTRY_INFO!A79)) -> SENEGAL | B79: =IF(AND(INTRO!$E$37="Non endémique",INTRO!$E$41="Non endémique")," ",IF(COUNTRY_INFO!B79=0," ",COUNTRY_INFO!B79)) -> Thiès | C79: =IF(AND(INTRO!$E$37="Non endémique",INTRO!$E$41="Non endémique")," ",IF(COUNTRY_INFO!C79=0," ",COUNTRY_INFO!C79)) -> Pout | D79: =IF(AND(INTRO!$E$37="Non endémique",INTRO!$E$41="Non endémique"),0,COUNTRY_INFO!V79) -> 0 | E79: =IF(AND(INTRO!$E$37="Non endémique",INTRO!$E$41="Non endémique"),0,COUNTRY_INFO!X79) -> 1 | F79: =IF(INTRO!$E$39="Non endémique",IF($D79=1,DEC!I79,0),IF($D79=1,IVM!G79,0)) -> 0 | H79: =IF(OR(COUNTRY_INFO!N79="Inconnu",COUNTRY_INFO!N79="Surveillance",COUNTRY_INFO!N79="Non requis",COUNTRY_INFO!N79=0),0,IF(INTRO!$E$39="Non endémique",IF(AND($E79<>0,$G79=""),IF($F79=0,COUNTRY_INFO!N79*$E79,COUNTRY_INFO!N79*($E79-$D79)),IF(AND($E79<>0,$G79<>0),IF($F79=0,COUNTRY_INFO!N79*$G79,COUNTRY_INFO!N79*($G79-$D79)),0)),IF($G79="",COUNTRY_INFO!N79*$E79,COUNTRY_INFO!N79*$G79))) -> 19552 | I79: =IF(OR(COUNTRY_INFO!O79="Inconnu",COUNTRY_INFO!O79="Surveillance",COUNTRY_INFO!O79="Non requis",COUNTRY_INFO!O79=0),0,IF($E79<>0, IF($F79=0,COUNTRY_INFO!O79*$E79,COUNTRY_INFO!O79*($E79-$D79)),COUNTRY_INFO!O79*$E79)) -> 42975 | K79: =IF(OR(COUNTRY_INFO!P79="Inconnu",COUNTRY_INFO!P79="Surveillance",COUNTRY_INFO!P79="Non requis",COUNTRY_INFO!P79=0),0,IF(AND($E79<>0,$J79=""),IF($F79=0,COUNTRY_INFO!P79*$E79,COUNTRY_INFO!P79*($E79-$D79)), IF(AND($E79<>0,$J79<>0),IF($F79=0,COUNTRY_INFO!P79*$J79,COUNTRY_INFO!P79*($J79-$D79)), COUNTRY_INFO!P79*$J79))) -> 39833 | L79: 102360 | M79: 0 | O79: 0 | P79: 42975 | R79: 42975 | S79: 0 | U79: 0
